Workbook

Sheet Instruction
A1: POLICY ANALYSIS MODEL for ASEAN (PAMA)
B3: Cell Color Definitions
C5: Inputs available for User Modification | D5: These are data for which an estimate has been given, but which can be replaced if better information is available
C6: Do Not Modify | D6: These Values are necessary calculations or parameters which should not be edited
C8: Worksheets
C9: Summary | D9: Country selection, Input parameters and Results
C10: User Inputs | D10: Cells by which Inputs can be customised according to User Data and Assumptions
C11: Base Stock | D11: Calculation of Unit Sales and Stock for each year in the Base Case
C12: Country Data | D12: Demographic, Economic, Energy Related and Climate Data
C13: Database | D13: Lighting data, raw data from surveys, industry interviews, and data provided by relevant government agencies
C14: Policy scenarios | D14: Lighitng data have been processed and calculated through different scenario chosen by the user
C15: Input & references | D15: Model inputs, Flow charts, and references
B17: Step by step instruction
B32: 1) Navigate to the SUMMARY worksheet tab
B33: 2) Use drop-down menu to select desired country, economic growth circumstance, analysis year, and policy scenario
B34: 3) Optional updates of data can also be done through the User Inputs page for increased accuracy of projections
B35: 4) The model will automatically simulate and display the results based on input parameters on the SUMMARY tab
B39: Acknowledgements
B40: This Policy Analysis Model for ASEAN (PAMA) was prepared by the International Institute for Energy Conservation (IIEC), for the United Nations Environment Programme (UNEP)–Global Environment Facility (GEF) en.lighten initiative
B41: as part of the Association of South East Asia Nations Standards Harmonization Initiative for Energy Efficiency (ASEAN SHINE) project.
B43: IIEC and UNEP would like to thank the EU Switch-Asia Regional Policy Support Component and the Australian Government for funding the development of this tool, as part of the ASEAN SHINE – Lighting project.

Sheet SUMMARY
C1: =VLOOKUP(CountryIndex,CountryData!$A$201:$D$210,4,FALSE) -> Malaysia
G3: =VLOOKUP(CountryIndex,CountryData!$A$201:$B$210,2,FALSE) -> CountryData!C205
B4: Country | I4: COUNTRY PROFILE, AT A GLANCE
F5: Custom GDP growth | I5: Population (2015) | M5: =ROUND(VALUE(OFFSET(TopPop,CountryIndex-1,1)/1000),2)&" million" -> 30.33 million
B6: Economic Growth | F6: User input | I6: GDP per capita PPP (2013) | M6: =VALUE(OFFSET(TopPercapIncome,CountryIndex-1,0))&" US$" -> 22530 US$
I7: Electricity use/Electrification (2015) | M7: =ROUNDDOWN(VALUE(OFFSET(TopElecUse,CountryIndex-1,1)),1)&" TWh /" -> 148.8 TWh / | N7: =VALUE(OFFSET(TopElecRate,CountryIndex-1,0)) -> 0.995
B8: Analysis Year | I8: Transmission & Distribution loss | M8: =VALUE(OFFSET(TopTD,CountryIndex-1,0)) -> 0.06400184488
I9: Emission factor (kgCO2/kWh) | M9: =ROUND(VALUE(OFFSET(TopCO2Em,CountryIndex-1,0)),3) -> 0.656
B10: Policy Scenarios
B12: Policy implementation
B13: (EE scenario only)
B15: ="Total lamp installed (stock) in"&" "&AnalysisYear -> Total lamp installed (stock) in 2016 | F15: =" "&ROUNDDOWN(Database!F215,1)&" million" -> 276.6 million | I15: ="Lamp Shipment Projection from"&" "&AnalysisYear -> Lamp Shipment Projection from 2016 | M15: =ROUNDDOWN(VLOOKUP(AnalysisYear,'Base Stock'!$B$8:$G$88,6,FALSE)/1000000,1)&" million" -> 41.6 million
B34: ="Cumulative Savings in 2021-30 "&IF(PolicyIndex=1,"if there is no policy applied",IF(PolicyIndex=2,"if energy efficiency programme applied by 2020","in case best available technology is used widely")) -> Cumulative Savings in 2021-30 if energy efficiency programme applied by 2020
E36: Reduce electricity use by | H36: =IF('Policy Scenarios'!N172>0,ROUNDUP('Policy Scenarios'!N172,2),"0.0")&" TWh" -> 15.1 TWh
E37: equivalent to | H37: =IF('Policy Scenarios'!$N$172>1.8,ROUNDUP(('Policy Scenarios'!N172/(500*41%*8760/1000000)),1)&" typical coal-fired power plants's annual output (500 MW)",ROUNDDOWN(('Policy Scenarios'!N172)/(500*41%*8760/1000000)%,0)&" % of the annual output of 500 MW coal-fired power plant") -> 8.5 typical coal-fired power plants's annual output (500 MW)
E38: Save electricity worth | H38: =ROUNDDOWN(VALUE(OFFSET(TopElecTariff,CountryIndex-1,0))*1.01^15*('Policy Scenarios'!N172)*1000,0)&" million USD" -> 1927 million USD
E39: equivalent to | H39: =ROUNDDOWN(VALUE(OFFSET(TopElecTariff,CountryIndex-1,0))*1.01^15*('Policy Scenarios'!$M$173-'Policy Scenarios'!$L$173)/(VALUE(OFFSET(TopGDP,CountryIndex-1,0))*(1+VLOOKUP(VALUE(OFFSET(TopSRESref,CountryIndex-1,0)),SRESEcoGrowth,EcoIndex+1,FALSE))^15)%,2)&" % of total Gross Domestic Product in 2030" -> 0.05 % of total Gross Domestic Product in 2030
E40: Reduce CO2 emissions by | H40: =ROUNDDOWN(('Policy Scenarios'!N172)*VALUE(OFFSET(TopCO2Em,CountryIndex-1,0))*(1+VALUE(OFFSET(TopTD,CountryIndex-1,0))),1)&" million tonnes" -> 10.5 million tonnes
E41: equivalent to | H41: =IF(('Policy Scenarios'!N172)*VALUE(OFFSET(TopCO2Em,CountryIndex-1,0))*(1+VALUE(OFFSET(TopTD,CountryIndex-1,0)))/4>1,ROUNDUP(('Policy Scenarios'!N172)*VALUE(OFFSET(TopCO2Em,CountryIndex-1,0))*(1+VALUE(OFFSET(TopTD,CountryIndex-1,0)))/4,2)&" million passenger cars",ROUNDDOWN(('Policy Scenarios'!N172)*VALUE(OFFSET(TopCO2Em,CountryIndex-1,0))*(1+VALUE(OFFSET(TopTD,CountryIndex-1,0)))/4,2)*1000&" thousand passenger cars") -> 2.64 million passenger cars
B43: Electricity consumption amongst different scenarios | J43: Scenario: | K43: =" "&IF(PolicyIndex=1,"Business As Usual (BAU)",IF(PolicyIndex=2,"Energy Efficiency","Best Available Technologies")) -> Energy Efficiency
B66: METHODOLOGY
B67: The Policy Analysis Model for ASEAN (PAMA) is a self-contained spreadsheet model that provides both a consumer-oriented analysis and a national cost-benefit analysis. The models take into account country level data, expected income PPP growth, and industrialisation levels. As well as a Business as usual scenario, three saving scenarios are provided: (1) The savings potential assumes minimum energy performance standards (MEPS) are implemented in early 2020 at level equivalent to the baseline year (2015) using pragmatic MEPS requirements. (2) The standards and labelling (S&L) is implemented on top of the MEPS programme by 2020, and (3) the maximum savings potential that could gain from the implementation of aforementioned policies with even more efficient type of lamps in the markets.

Sheet User Inputs
B2: User Inputs
B4: Shipments Data | F4: Energy data
B6: Year | C6: Sales (units) | D6: Default (units) | F6: Sectoral Electricity Consumption (%)
B7: 2030 | D7: ='Base Stock'!G8 -> 51671261.63
B8: 2029 | D8: ='Base Stock'!G9 -> 50910527.21 | F8: Country Name | G8: Residential | H8: Commercial | I8: Industrial | J8: Public | K8: Others | L8: Entry Check | N8: Note: By default, the model has used official electricity statistics in each country for the period 2014-15 as indicated in the grey field. By updating this data, users MUST not leave any of the 5 sectors blank. It is required to enter 0% in case of no data. The automatic entry for "Others" will ensure that the summation of the total consumption is equal to 100%, providing an error notification if sum is greater than 100%.
B9: 2028 | D9: ='Base Stock'!G10 -> 50184614.71 | F9: Brunei Darussalam | K9: =IF(OR(G9="",H9="",I9="",J9=""),"",IF(SUM(G9:J9)>1,"Error: totals greater than 100%",(1-SUM(G9:J9)))) ->  | L9: =IF(AND(G9="",H9="",I9="",J9="",K9=""),"",IF(AND(OR(G9="",H9="",I9="",J9=""),OR(G9<>"",H9<>"",I9<>"",J9<>"")),"Incomplete","ok")) -> 
B10: 2027 | D10: ='Base Stock'!G11 -> 49484383.59 | F10: Default BRN | G10: 0.38 | H10: 0.15 | I10: 0.18 | J10: 0.29 | K10: 0
B11: 2026 | D11: ='Base Stock'!G12 -> 48799814.65 | F11: Cambodia | K11: =IF(OR(G11="",H11="",I11="",J11=""),"",IF(SUM(G11:J11)>1,"Error: totals greater than 100%",(1-SUM(G11:J11)))) ->  | L11: =IF(AND(G11="",H11="",I11="",J11="",K11=""),"",IF(AND(OR(G11="",H11="",I11="",J11=""),OR(G11<>"",H11<>"",I11<>"",J11<>"")),"Incomplete","ok")) -> 
B12: 2025 | D12: ='Base Stock'!G13 -> 48119778.15 | F12: Default KHM | G12: 0.26 | H12: 0.28 | I12: 0.2 | J12: 0.04 | K12: 0.22
B13: 2024 | D13: ='Base Stock'!G14 -> 47432538.15 | F13: Indonesia | K13: =IF(OR(G13="",H13="",I13="",J13=""),"",IF(SUM(G13:J13)>1,"Error: totals greater than 100%",(1-SUM(G13:J13)))) -> 
B14: 2023 | D14: ='Base Stock'!G15 -> 46725341.36 | F14: Default IDN | G14: 0.41 | H14: 0.18 | I14: 0.35 | J14: 0.03 | K14: 0.03
B15: 2022 | D15: ='Base Stock'!G16 -> 45988682.34 | F15: Lao PDR | K15: =IF(OR(G15="",H15="",I15="",J15=""),"",IF(SUM(G15:J15)>1,"Error: totals greater than 100%",(1-SUM(G15:J15)))) -> 
B16: 2021 | D16: ='Base Stock'!G17 -> 45208557.18 | F16: Default LAO | G16: 0.38 | H16: 0.15 | I16: 0.41 | J16: 0.06 | K16: 0
B17: 2020 | D17: ='Base Stock'!G18 -> 44396438.5 | F17: Malaysia | K17: =IF(OR(G17="",H17="",I17="",J17=""),"",IF(SUM(G17:J17)>1,"Error: totals greater than 100%",(1-SUM(G17:J17)))) -> 
B18: 2019 | D18: ='Base Stock'!G19 -> 43513778.6 | F18: Default MYS | G18: 0.18 | H18: 0.34 | I18: 0.43 | J18: 0.01 | K18: 0.04
B19: 2018 | D19: ='Base Stock'!G20 -> 42704486.75 | F19: Myanmar | K19: =IF(OR(G19="",H19="",I19="",J19=""),"",IF(SUM(G19:J19)>1,"Error: totals greater than 100%",(1-SUM(G19:J19)))) -> 
B20: 2017 | D20: ='Base Stock'!G21 -> 41698063.05 | F20: Default MMR | G20: 0.33 | H20: 0.2 | I20: 0.44 | J20: 0.03 | K20: 0
B21: 2016 | D21: ='Base Stock'!G22 -> 41622538.48 | F21: Philippines | K21: =IF(OR(G21="",H21="",I21="",J21=""),"",IF(SUM(G21:J21)>1,"Error: totals greater than 100%",(1-SUM(G21:J21)))) -> 
B22: 2015 | D22: ='Base Stock'!G23 -> 40516060.54 | F22: Default PHL | G22: 0.28 | H22: 0.24 | I22: 0.27 | J22: 0.07 | K22: 0.14
B23: 2014 | D23: ='Base Stock'!G24 -> 39972884.91 | F23: Singapore | K23: =IF(OR(G23="",H23="",I23="",J23=""),"",IF(SUM(G23:J23)>1,"Error: totals greater than 100%",(1-SUM(G23:J23)))) -> 
B24: 2013 | D24: ='Base Stock'!G25 -> 38214577.64 | F24: Default SGP | G24: 0.15 | H24: 0.37 | I24: 0.43 | J24: 0.05 | K24: 0
B25: 2012 | D25: ='Base Stock'!G26 -> 36456270.36 | F25: Thailand | K25: =IF(OR(G25="",H25="",I25="",J25=""),"",IF(SUM(G25:J25)>1,"Error: totals greater than 100%",(1-SUM(G25:J25)))) -> 
B26: 2011 | D26: ='Base Stock'!G27 -> 34679027.18 | F26: Default THA | G26: 0.24 | H26: 0.3 | I26: 0.44 | J26: 0.02 | K26: 0
B27: 2010 | D27: ='Base Stock'!G28 -> 32901784 | F27: Viet Nam | K27: =IF(OR(G27="",H27="",I27="",J27=""),"",IF(SUM(G27:J27)>1,"Error: totals greater than 100%",(1-SUM(G27:J27)))) -> 
B28: 2009 | D28: ='Base Stock'!G29 -> 31437246.12 | F28: Default VNM | G28: 0.36 | H28: 0.05 | I28: 0.54 | J28: 0.04 | K28: 0.01
B29: 2008 | D29: ='Base Stock'!G30 -> 29972708.24
B30: 2007 | D30: ='Base Stock'!G31 -> 28508170.36 | F30: Economic data
B31: 2006 | D31: ='Base Stock'!G32 -> 27043632.48
B32: 2005 | D32: ='Base Stock'!G33 -> 25579094.6 | F32: Income PPP growth (%)
B33: 2004 | D33: ='Base Stock'!G34 -> 24114556.72
B34: 2003 | D34: ='Base Stock'!G35 -> 22650018.84 | F34: Househol and market survey data
B35: 2002 | D35: ='Base Stock'!G36 -> 21185480.96 | F35: The residential sector
B36: 2001 | D36: ='Base Stock'!G37 -> 19720943.08 | F36: No. of light point per household | H36: =ROUND(VALUE(OFFSET(TopLightpoint,CountryIndex-1,0)),2)&" units" -> 19.6 units
B37: 2000 | D37: ='Base Stock'!G38 -> 18256405.2
B38: 1999 | D38: ='Base Stock'!G39 -> 17075443.53 | F38: The commercial sector
B39: 1998 | D39: ='Base Stock'!G40 -> 15895860.98 | F39: %share of electricity from lighting | H39: =VALUE(OFFSET(TopElecLighting,CountryIndex-1,0)) -> 0.11
B40: 1997 | D40: ='Base Stock'!G41 -> 14688131.43
B41: 1996 | D41: ='Base Stock'!G42 -> 13500292.11 | F41: The industrial sector
B42: 1995 | D42: ='Base Stock'!G43 -> 12238820.46 | F42: %share of electricity from lighting | H42: =VALUE(OFFSET(TopIndLighting,CountryIndex-1,0)) -> 0.0454
B43: 1994 | D43: ='Base Stock'!G44 -> 11268911.9
B44: 1993 | D44: ='Base Stock'!G45 -> 10270833.51 | F44: Street & Outdoor lighting sector
B45: 1992 | D45: ='Base Stock'!G46 -> 9175011.854 | F45: %share of street lighting from the total electricity consumption | H45: =VALUE(OFFSET(TopStLighting,CountryIndex-1,0)) -> 0.011
B46: 1991 | D46: ='Base Stock'!G47 -> 8134912.26
B47: 1990 | D47: ='Base Stock'!G48 -> 6929177.357 | F47: Lamp technology substitution
B48: 1989 | D48: ='Base Stock'!G49 -> 6583922.821
B49: 1988 | D49: ='Base Stock'!G50 -> 6244394.258 | F49: % annual decrease of lamp
B50: 1987 | D50: ='Base Stock'!G51 -> 5909132.458 | F50: Incandescent
B51: 1986 | D51: ='Base Stock'!G52 -> 5572227.661 | F51: Halogen
B52: 1985 | D52: ='Base Stock'!G53 -> 5230234.174 | F52: CFL
B53: 1984 | D53: ='Base Stock'!G54 -> 4866716.08 | F53: LFL - T5
B54: 1983 | D54: ='Base Stock'!G55 -> 4490975.969 | F54: LFL - T8
B55: 1982 | D55: ='Base Stock'!G56 -> 4057656.838 | F55: LFL - T12
B56: 1981 | D56: ='Base Stock'!G57 -> 3672697.132 | F56: LFL - Circular
B57: 1980 | D57: ='Base Stock'!G58 -> 3173723.317 | F57: HID
B59: Regulated sales (%)
B200: -0.001 | C200: 0.001
B201: -0.002 | C201: 0.002
B202: -0.003 | C202: 0.003
B203: -0.004 | C203: 0.004
B204: -0.005 | C204: 0.005
B205: -0.006 | C205: 0.006
B206: -0.007 | C206: 0.007
B207: -0.008 | C207: 0.008
B208: -0.009 | C208: 0.009
B209: -0.01 | C209: 0.01
B210: -0.011 | C210: 0.011
B211: -0.012 | C211: 0.012
B212: -0.013 | C212: 0.013
B213: -0.014 | C213: 0.014
B214: -0.015 | C214: 0.015
B215: -0.016 | C215: 0.016
B216: -0.017 | C216: 0.017
B217: -0.018 | C217: 0.018
B218: -0.019 | C218: 0.019
B219: -0.02 | C219: 0.02
B220: -0.021 | C220: 0.021
B221: -0.022 | C221: 0.022
B222: -0.023 | C222: 0.023
B223: -0.024 | C223: 0.024
B224: -0.025 | C224: 0.025
B225: -0.026 | C225: 0.026
B226: -0.027 | C226: 0.027
B227: -0.028 | C227: 0.028
B228: -0.029 | C228: 0.029
B229: -0.03 | C229: 0.03
B230: -0.031 | C230: 0.031
B231: -0.032 | C231: 0.032
B232: -0.033 | C232: 0.033
B233: -0.034 | C233: 0.034
B234: -0.035 | C234: 0.035
B235: -0.036 | C235: 0.036
B236: -0.037 | C236: 0.037
B237: -0.038 | C237: 0.038
B238: -0.039 | C238: 0.039
B239: -0.04 | C239: 0.04
B240: -0.041 | C240: 0.041
B241: -0.042 | C241: 0.042
B242: -0.043 | C242: 0.043
B243: -0.044 | C243: 0.044
B244: -0.045 | C244: 0.045
B245: -0.046 | C245: 0.046
B246: -0.047 | C246: 0.047
B247: -0.048 | C247: 0.048
B248: -0.049 | C248: 0.049
B249: -0.05 | C249: 0.05
B250: -0.051 | C250: 0.06
B251: -0.052 | C251: 0.07
B252: -0.053 | C252: 0.08
B253: -0.054 | C253: 0.09
B254: -0.055 | C254: 0.1
B255: -0.056
B256: -0.057
B257: -0.058
B258: -0.059
B259: -0.06
B260: -0.061
B261: -0.062
B262: -0.063
B263: -0.064
B264: -0.065
B265: -0.066
B266: -0.067
B267: -0.068
B268: -0.069
B269: -0.07
B270: -0.071
B271: -0.072
B272: -0.073
B273: -0.074
B274: -0.075
B275: -0.076
B276: -0.077
B277: -0.078
B278: -0.079
B279: -0.08
B280: -0.081
B281: -0.082
B282: -0.083
B283: -0.084
B284: -0.085
B285: -0.086
B286: -0.087
B287: -0.088
B288: -0.089
B289: -0.09
B290: -0.091
B291: -0.092
B292: -0.093
B293: -0.094
B294: -0.095
B295: -0.096
B296: -0.097
B297: -0.098
B298: -0.099
B299: -0.1
B300: -0.11
B301: -0.12
B302: -0.13
B303: -0.14
B304: -0.15
B305: -0.2
B306: -0.25
B307: -0.3
B308: -0.35
B309: -0.4
B310: -0.45
B311: -0.5
B312: -0.55
B313: -0.6
B314: -0.65
B315: -0.7

Sheet Base Stock
B1: Stock and Shipments Forecast in the Base Case
H2: Cumulative Retirement Function
B3: Age_0 | E3: =VALUE(OFFSET(TopLifetime,CountryIndex-1,2)) -> 5.741009851 | H3: 0 | I3: =1/(1+EXP(-(I7-Age_0)/DeltaAge)) -> 0.1839497395 | J3: 0.2358489882 | K3: 0.2970607024 | L3: 0.3665388009 | M3: 0.4420479435 | N3: 0.5203350221 | O3: 0.5976359833 | P3: 0.6703711797 | Q3: 0.735771237 | R3: 0.7922174264 | S3: 0.8392398908 | T3: 0.877269464 | U3: 0.9072964676 | V3: 0.9305586348 | W3: 0.9483161228 | X3: 0.9617194817 | Y3: 0.9717504464 | Z3: 0.9792097359 | AA3: 0.9847303511 | AB3: 0.9888017949 | AC3: 0.9917966872 | AD3: 0.9939954776 | AE3: 0.9956075212 | AF3: 0.9967881753 | AG3: 0.9976522299 | AH3: 0.998284234 | AI3: 0.9987463206 | AJ3: 0.9990840732 | AK3: 0.9993308931 | AL3: 0.9995112337
B4: DeltaAge | E4: =VALUE(OFFSET(TopLifetime,CountryIndex-1,3)) -> 3.182284378 | H4: Annual Retirement Function
B5: Ship_Adj | E5: 5 | H5: 0 | I5: =(I3-H3)/(1-H3) -> 0.1839497395 | J5: =(J3-I3)/(1-I3) -> 0.06359810325 | K5: =(K3-J3)/(1-J3) -> 0.08010421148 | L5: =(L3-K3)/(1-K3) -> 0.0988394001 | M5: 0.1192008962 | N5: 0.1403114795 | O5: 0.1611561502 | P5: 0.180769635 | Q5: 0.1984051552 | R5: 0.2136262109 | S5: 0.2263061022 | T5: 0.2365610062 | U5: 0.244657969 | V5: 0.2509307527 | W5: 0.2557191666 | X5: 0.2593334632 | Y5: 0.2620383734 | Z5: 0.2640498158 | AA5: 0.265538483 | AB5: 0.2666363724 | AC5: 0.2674439632 | AD5: 0.2680368803 | AE5: 0.2684715776 | AF5: 0.2687899481 | AG5: 0.2690229456 | AH5: 0.2691933694 | AI5: 0.2693179738 | AJ5: 0.2694090508 | AK5: 0.2694756073 | AL5: 0.2695242372
I6: Vintage
B7: Year | C7: Total Stock | D7: Ideal Stock | E7: First Purchase | F7: Replacements | G7: Total Sales | H7: Regulated Sales | I7: 1 | J7: =+I7+1 -> 2 | K7: 3 | L7: 4 | M7: 5 | N7: 6 | O7: 7 | P7: 8 | Q7: 9 | R7: 10 | S7: 11 | T7: 12 | U7: 13 | V7: 14 | W7: 15 | X7: 16 | Y7: 17 | Z7: 18 | AA7: 19 | AB7: 20 | AC7: 21 | AD7: 22 | AE7: 23 | AF7: 24 | AG7: 25 | AH7: 26 | AI7: 27 | AJ7: 28 | AK7: 29 | AL7: 30
B8: 2030 | C8: =SUM(Database!B123:E123) -> 448180596.9 | D8: =SUM(I8:AL8) -> 323077894.3 | E8: =IF(UserIncomeGrowth>0,E9*(1+UserIncomeGrowth),(1+VLOOKUP((VALUE(OFFSET(TopSRESref,CountryIndex-1,0))),SRESEcoGrowth,EcoIndex+1,FALSE))*E9) -> 23713685.58 | F8: =SUMPRODUCT(I$5:AB$5,I8:AB8)*(0.97^(2031-$B$24)) -> 27575919.36 | G8: =IF(VLOOKUP($B8,UserShipments,2,FALSE)>0,VLOOKUP($B8,UserShipments,2,FALSE),(E8+F9)) -> 51671261.63 | H8: =G8*IF(NewOnly>0,NewOnly,1) -> 51671261.63 | I8: =+G9*(1-H$5) -> 50910527.21 | J8: =+I9*(1-I$5) -> 40953167.91 | K8: =+J9*(1-J$5) -> 37813541.79 | L8: =+K9*(1-K$5) -> 34303307.43 | M8: =+L9*(1-L$5) -> 30482012.36 | N8: 26465082.2 | O8: 22412509.83 | P8: 18504190.95 | Q8: =+P9*(1-P$5) -> 14902043.37 | R8: 11730816.03 | S8: 9041404.904 | T8: 6865177.955 | U8: 5117625.63 | V8: 3858556.343 | W8: 2813490.557 | X8: 2065953.674 | Y8: 1462873.839 | Z8: 1029873.362 | AA8: 720986.1355 | AB8: 502398.6913 | AC8: 352040.7312 | AD8: 245875.5005 | AE8: 171177.9479 | AF8: 118788.5825 | AG8: 82155.56673 | AH8: 56615.43588 | AI8: 38862.13167 | AJ8: 26559.8002 | AK8: 18062.94015 | AL8: 12215.48604
B9: 2029 | C9: =($B9-$B$13)/($B$8-$B$13)*($C$8-$C$13)+$C$13 -> 433275832.2 | D9: =SUM(I9:AL9) -> 317975852.7 | E9: 22584462.45 | F9: =SUMPRODUCT(I$5:AB$5,I9:AB9)*(0.97^(B8-$B$24)) -> 27957576.06 | G9: =IF(VLOOKUP($B9,UserShipments,2,FALSE)>0,VLOOKUP($B9,UserShipments,2,FALSE),(E9+F10)) -> 50910527.21 | H9: =G9*IF(NewOnly>0,NewOnly,1) -> 50910527.21 | I9: =+G10*(1-H$3) -> 50184614.71 | J9: =+I10*(1-I$5) -> 40381744.12 | K9: 37290427.74 | L9: 33825283.05 | M9: 30046672.49 | N9: 26070500.3 | O9: 22059160.3 | P9: 18190296.66 | Q9: 14634345.65 | R9: 11497591.9 | S9: 8873248.161 | T9: 6703385.171 | U9: 5108356.459 | V9: 3755981.93 | W9: 2775771.7 | X9: 1975077.537 | Y9: 1395564.925 | Z9: 979667.0359 | AA9: 684036.7803 | AB9: 480035.712 | AC9: 335640.5355 | AD9: 233861.4382 | AE9: 162384.0973 | AF9: 112355.6309 | AG9: 77451.72786 | AH9: 53177.0376 | AI9: 36349.32741 | AJ9: 24723.73929 | AK9: 16721.53067 | AL9: 11425.29648
B10: 2028 | C10: =($B10-$B$13)/($B$8-$B$13)*($C$8-$C$13)+$C$13 -> 418371067.6 | D10: 312800042.5 | E10: 21509011.86 | F10: =SUMPRODUCT(I$5:AB$5,I10:AB10)*(0.97^(B9-$B$24)) -> 28326064.76 | G10: 50184614.71 | H10: 50184614.71 | I10: =+G11*(1-H$3) -> 49484383.59 | J10: =+I11*(1-I$5) -> 39823101.46 | K10: 36770777.16 | L10: 33342195.05 | M10: 29598690.77 | N10: 25659479.89 | O10: 21684961.58 | P10: 17863529.32 | Q10: 14343395.51 | R10: 11283753.71 | S10: 8664130.854 | T10: 6691243.833 | U10: 4972557.829 | V10: 3705627.63 | W10: 2653672.442 | X10: 1884201.4 | Y10: 1327531.135 | Z10: 929460.7095 | AA10: 653588.6509 | AB10: 457672.7327 | AC10: 319240.3399 | AD10: 221847.3759 | AE10: 153590.2468 | AF10: 105922.6793 | AG10: 72747.88898 | AH10: 49738.63931 | AI10: 33836.52314 | AJ10: 22887.67838 | AK10: 15639.85624 | AL10: 10636.02969
B11: 2027 | C11: =($B11-$B$13)/($B$8-$B$13)*($C$8-$C$13)+$C$13 -> 403466303 | D11: 307501880.8 | E11: 20484773.2 | F11: 28675602.85 | G11: =IF(VLOOKUP($B11,UserShipments,2,FALSE)>0,VLOOKUP($B11,UserShipments,2,FALSE),(E11+F12)) -> 49484383.59 | H11: 49484383.59 | I11: =+G12*(1-H$3) -> 48799814.65 | J11: =+I12*(1-I$5) -> 39268157.49 | K11: 36245622.02 | L11: 32845078.64 | M11: 29132045.86 | N11: 25224207.45 | O11: 21295416.69 | P11: 17508378.74 | Q11: 14076629.59 | R11: 11017827.62 | S11: 8648438.164 | T11: 6513366.319 | U11: 4905893.593 | V11: 3542626.335 | W11: 2531573.184 | X11: 1792346.581 | Y11: 1259497.345 | Z11: 888088.1682 | AA11: 623140.5215 | AB11: 435309.7534 | AC11: 302840.1443 | AD11: 209833.3136 | AE11: 144796.3963 | AF11: 99489.72774 | AG11: 68044.05011 | AH11: 46300.24103 | AI11: 31323.71888 | AJ11: 21407.13111 | AK11: 14559.44497 | AL11: 9827.929563
B12: 2026 | C12: =($B12-$B$13)/($B$8-$B$13)*($C$8-$C$13)+$C$13 -> 388561538.4 | D12: 302036042.5 | E12: 19509307.81 | F12: 28999610.39 | G12: 48799814.65 | H12: 48799814.65 | I12: 48119778.15 | J12: =+I13*(1-I$5) -> 38707335.12 | K12: 35705216.88 | L12: 32327252.06 | M12: 28637866.84 | N12: 24771084.16 | O12: 20872035.65 | P12: 17182748.82 | Q12: 13744883.33 | R12: 10997871.86 | S12: 8418531.331 | T12: 6426045.345 | U12: 4690095.598 | V12: 3379625.04 | W12: 2408158.992 | X12: 1700491.763 | Y12: 1203434.076 | Z12: 846715.6269 | AA12: 592692.3922 | AB12: 412946.7741 | AC12: 286439.9487 | AD12: 197819.2513 | AE12: 136002.5458 | AF12: 93056.77614 | AG12: 63340.21123 | AH12: 42861.84274 | AI12: 29297.46503 | AJ12: 19928.31281 | AK12: 13453.25312 | AL12: 9033.138123
B13: 2025 | C13: =SUM(Database!B128:E128) -> 373656773.8 | D13: 296361047 | E13: 18580293.15 | F13: 29290506.84 | G13: 48119778.15 | H13: 48119778.15 | I13: 47432538.15 | J13: =+I14*(1-I$5) -> 38130226.99 | K13: 35142298.14 | L13: 31778871.43 | M13: 28123421.17 | N13: 24278602.26 | O13: 20483846.7 | P13: 16777800.14 | Q13: 13719988.26 | R13: 10705508.56 | S13: 8305668.901 | T13: 6143379.676 | U13: 4474297.604 | V13: 3214868.319 | W13: 2284744.799 | X13: 1624798.767 | Y13: 1147370.807 | Z13: 805343.0856 | AA13: 562244.2628 | AB13: 390583.7948 | AC13: 270039.753 | AD13: 185805.189 | AE13: 127208.6952 | AF13: 86623.82454 | AG13: 58636.37236 | AH13: 40089.21622 | AI13: 27273.57742 | AJ13: 18414.2072 | AK13: 12365.27926 | AL13: 8189.078783
B14: 2024 | C14: =($B14-$B$18)/($B$13-$B$18)*($C$13-$C$18)+$C$18 -> 361544453.8 | D14: 290439536.1 | E14: 17695517.29 | F14: 29539484.99 | G14: 47432538.15 | H14: 47432538.15 | I14: 46725341.36 | J14: =+I15*(1-I$5) -> 37529076.21 | K14: 34546164.71 | L14: 31208001.29 | M14: 27564290.37 | N14: 23827056.2 | O14: 20001100.49 | P14: 16747411.77 | Q14: 13355261.24 | R14: 10561985.94 | S14: 7940323.29 | T14: 5860714.006 | U14: 4256175.596 | V14: 3050111.598 | W14: 2183045.289 | X14: 1549105.771 | Y14: 1091307.538 | Z14: 763970.5443 | AA14: 531796.1334 | AB14: 368220.8155 | AC14: 253639.5574 | AD14: 173791.1266 | AE14: 118414.8447 | AF14: 80190.87293 | AG14: 54843.33056 | AH14: 37319.82754 | AI14: 25201.39615 | AJ14: 16925.03757 | AK14: 11209.86358 | AL14: 7540.106307
B15: 2023 | C15: =($B15-$B$18)/($B$13-$B$18)*($C$13-$C$18)+$C$18 -> 349432133.8 | D15: 284239171.9 | E15: 16852873.61 | F15: 29737020.86 | G15: =IF(VLOOKUP($B15,UserShipments,2,FALSE)>0,VLOOKUP($B15,UserShipments,2,FALSE),(E15+F16)) -> 46725341.36 | H15: 46725341.36 | I15: 45988682.34 | J15: =+I16*(1-I$5) -> 36892454.87 | K15: 33925583.4 | L15: 30587544.97 | M15: 27051635.38 | N15: 23265520.03 | O15: 19964874 | P15: 16302204.86 | Q15: 13176214.9 | R15: 10097390.58 | S15: 7574977.679 | T15: 5575004.198 | U15: 4038053.588 | V15: 2914343.763 | W15: 2081345.779 | X15: 1473412.775 | Y15: 1035244.268 | Z15: 722598.003 | AA15: 501348.004 | AB15: 345857.8362 | AC15: 237239.3618 | AD15: 161777.0643 | AE15: 109620.9942 | AF15: 75003.52384 | AG15: 51054.71822 | AH15: 34484.35618 | AI15: 23163.34187 | AJ15: 15343.5566 | AK15: 10321.49834 | AL15: 6872.285206
B16: 2022 | C16: =($B16-$B$18)/($B$13-$B$18)*($C$13-$C$18)+$C$18 -> 337319813.8 | D16: 277729279.1 | E16: 16050355.82 | F16: =SUMPRODUCT(I$5:AB$5,I16:AB16)*(0.97^(B15-$B$24)) -> 29872467.75 | G16: 45988682.34 | H16: 45988682.34 | I16: 45208557.18 | J16: =+I17*(1-I$5) -> 36229725.2 | K16: 33251097.95 | L16: 30018661.92 | M16: 26414105.02 | N16: 23223380.94 | O16: 19434135.29 | P16: 16083650.53 | Q16: 12596626.14 | R16: 9632795.223 | S16: 7205697.517 | T16: 5289294.391 | U16: 3858310.068 | V16: 2778575.929 | W16: 1979646.269 | X16: 1397719.779 | Y16: 979180.9993 | Z16: 681225.4617 | AA16: 470899.8746 | AB16: 323494.8569 | AC16: 220839.1662 | AD16: 149763.002 | AE16: 102529.8834 | AF16: 69822.23246 | AG16: 47175.70268 | AH16: 31695.58252 | AI16: 20998.95173 | AJ16: 14127.60225 | AK16: 9407.331603 | AL16: 6139.063412
B17: 2021 | C17: =($B17-$B$18)/($B$13-$B$18)*($C$13-$C$18)+$C$18 -> 325207493.8 | D17: 270890838.9 | E17: 15286053.16 | F17: 29938326.53 | G17: 45208557.18 | H17: 45208557.18 | I17: 44396438.5 | J17: =+I18*(1-I$5) -> 35509430.37 | K17: 32632676.76 | L17: 29311207.15 | M17: 26366263.13 | N17: 22606019.3 | O17: 19173592.96 | P17: 15376170.96 | Q17: 12017037.39 | R17: 9163196.456 | S17: 6836417.355 | T17: 5053855.121 | U17: 3678566.549 | V17: 2642808.094 | W17: 1877946.76 | X17: 1322026.783 | Y17: 923117.7301 | Z17: 639852.9204 | AA17: 440451.7452 | AB17: 301131.8776 | AC17: 204438.9706 | AD17: 140075.2041 | AE17: 95447.05349 | AF17: 64517.30601 | AG17: 43360.57108 | AH17: 28733.93707 | AI17: 19334.81562 | AJ17: 12876.33198 | AK17: 8403.639186 | AL17: 5443.125634
B18: 2020 | C18: =SUM(Database!B133:E133) -> 313095173.8 | D18: 263685882.7 | E18: 14558145.87 | F18: 29922504.02 | G18: =IF(VLOOKUP($B18,UserShipments,2,FALSE)>0,VLOOKUP($B18,UserShipments,2,FALSE),(E18+F19)) -> 44396438.5 | H18: 44396438.5 | I18: 43513778.6 | J18: =+I19*(1-I$5) -> 34849007.54 | K18: 31863617.07 | L18: 29258117.96 | M18: 25665352.29 | N18: 22302953.34 | O18: 18330194.54 | P18: 14668691.38 | Q18: 11431206.82 | R18: 8693597.689 | S18: 6532111.906 | T18: 4818415.851 | U18: 3498823.03 | V18: 2507040.259 | W18: 1776247.25 | X18: 1246333.788 | Y18: 867054.461 | Z18: 598480.3791 | AA18: 410003.6158 | AB18: 278768.8984 | AC18: 191214.3195 | AD18: 130398.7194 | AE18: 88195.21435 | AF18: 59299.74699 | AG18: 39308.94533 | AH18: 26456.81472 | AI18: 17622.34668 | AJ18: 11502.52299 | AK18: 7450.984099 | AL18: 4636.360134
B19: 2019 | C19: =($B19-$B$23)/($B$18-$B$23)*($C$18-$C$23)+$C$23 -> 303980143.9 | D19: 256139033.6 | E19: 13864900.82 | F19: 29838292.63 | G19: 43513778.6 | H19: 43513778.6 | I19: 42704486.75 | J19: =+I20*(1-I$5) -> 34027715.22 | K19: 31805904.89 | L19: 28480331.14 | M19: 25321271.61 | N19: 21321902.18 | O19: 17486796.12 | P19: 13953592.67 | Q19: 10845376.25 | R19: 8306624.656 | S19: 6227806.456 | T19: 4582976.582 | U19: 3319079.511 | V19: 2371272.424 | W19: 1674547.74 | X19: 1170640.792 | Y19: 810991.1918 | Z19: 557107.8378 | AA19: 379555.4864 | AB19: 260736.0283 | AC19: 178005.1121 | AD19: 120491.3362 | AE19: 81062.80655 | AF19: 53758.75951 | AG19: 36193.7691 | AH19: 24113.5561 | AI19: 15742.17317 | AJ19: 10198.57159 | AK19: 6346.619197 | AL19: 4405.347954
B20: 2018 | C20: =($B20-$B$23)/($B$18-$B$23)*($C$18-$C$23)+$C$23 -> 294865113.9 | D20: 248094094.6 | E20: 13204667.45 | F20: 29648877.78 | G20: 42704486.75 | H20: =G20*IF(NewOnly>0,NewOnly,1) -> 42704486.75 | I20: 41698063.05 | J20: =+I21*(1-I$5) -> 33966083.37 | K20: 30960388.66 | L20: 28098511.64 | M20: 24207452.17 | N20: 20340851.02 | O20: 16634314.81 | P20: 13238493.97 | Q20: 10362622.35 | R20: 7919651.623 | S20: 5923501.006 | T20: 4347537.312 | U20: 3139335.992 | V20: 2235504.589 | W20: 1572848.23 | X20: 1094947.796 | Y20: 754927.9227 | Z20: 515735.2965 | AA20: 355002.9814 | AB20: 242724.2168 | AC20: 164480.7089 | AD20: 110747.1188 | AE20: 73488.27176 | AF20: 49498.45671 | AG20: 32988.11632 | AH20: 21540.81874 | AI20: 13957.60567 | AJ20: 8686.966631 | AK20: 6030.391317 | AL20: 4178.167062
B21: 2017 | C21: =($B21-$B$23)/($B$18-$B$23)*($C$18-$C$23)+$C$23 -> 285750084 | D21: 239839760.3 | E21: 12575873.76 | F21: =SUMPRODUCT(I$5:AB$5,I21:AB21)*(0.97^(B20-$B$24)) -> 29499819.3 | G21: 41698063.05 | H21: 41698063.05 | I21: 41622538.48 | J21: =+I22*(1-I$5) -> 33063141.76 | K21: 30545320.45 | L21: 26862528.36 | M21: 23093632.74 | N21: 19349234.53 | O21: 15781833.5 | P21: 12649216.62 | Q21: 9879868.458 | R21: 7532678.591 | S21: 5619195.556 | T21: 4112098.042 | U21: 2959592.473 | V21: 2099736.755 | W21: 1471148.72 | X21: 1019254.8 | Y21: 698864.6535 | Z21: 482373.6566 | AA21: 330479.1485 | AB21: 224282.6105 | AC21: 151179.0405 | AD21: 100398.8723 | AE21: 67664.43407 | AF21: 45114.41854 | AG21: 29468.5293 | AH21: 19098.90399 | AI21: 11888.84675 | AJ21: 8254.128146 | AK21: 5719.408009 | AL21: 3953.84109
B22: 2016 | C22: =($B22-$B$23)/($B$18-$B$23)*($C$18-$C$23)+$C$23 -> 276635054 | D22: 230236468.4 | E22: 11977022.63 | F22: 29122189.29 | G22: 41622538.48 | H22: 41622538.48 | I22: 40516060.54 | J22: =+I23*(1-I$5) -> 32619883.15 | K22: 29201708.17 | L22: 25626545.08 | M22: 21967818.14 | N22: 18357618.05 | O22: 15079345.97 | P22: 12059939.28 | Q22: 9397114.564 | R22: 7145705.558 | S22: 5314890.106 | T22: 3876658.773 | U22: 2779848.954 | V22: 1963968.92 | W22: 1369449.211 | X22: 943561.8039 | Y22: 653656.8288 | Z22: 449050.976 | AA22: 305370.1322 | AB22: 206144.7212 | AC22: 137052.8222 | AD22: 92442.40898 | AE22: 61671.45002 | AF22: 40301.04513 | AG22: 26127.91177 | AH22: 16268.1156 | AI22: 11296.47076 | AJ22: 7828.468194 | AK22: 5412.332743 | AL22: 3728.415778
B23: 2015 | C23: =SUM(Database!B138:E138) -> 267520024.1 | D23: 220383427.4 | E23: 11406688.22 | F23: =SUMPRODUCT(I$5:AB$5,I23:AB23)*(0.97^(B23-$B$24)) -> 29645515.85 | G23: =IF(VLOOKUP($B23,UserShipments,2,FALSE)>0,VLOOKUP($B23,UserShipments,2,FALSE),(E23+F24)) -> 40516060.54 | H23: 40516060.54 | I23: 39972884.91 | J23: =+I24*(1-I$5) -> 31185016.04 | K23: 27858095.89 | L23: 24377251.01 | M23: 20842003.55 | N23: 17540476.12 | O23: 14376858.44 | P23: 11470661.94 | Q23: 8914360.671 | R23: 6758732.526 | S23: 5010584.656 | T23: 3641219.503 | U23: 2600105.435 | V23: 1828201.085 | W23: 1267749.701 | X23: 882525.1261 | Y23: 608501.7972 | Z23: 414933.1555 | AA23: 280674.6391 | AB23: 186882.4919 | AC23: 126191.5872 | AD23: 84254.85978 | AE23: 55091.56431 | AF23: 35732.4297 | AG23: 22255.30269 | AH23: 15457.53732 | AI23: 10713.91921 | AJ23: 7408.157395 | AK23: 5103.752613 | AL23: 3499.585588
B24: 2014 | C24: =($B24-$B$28)/($B$23-$B$28)*($C$23-$C$28)+$C$28 -> 256614860 | D24: 209522293.5 | E24: =IF(G24-F24>0,G24-F24,IF(UserIncomeGrowth>0,E25*(1+UserIncomeGrowth),(1+VLOOKUP((VALUE(OFFSET(TopSRESref,CountryIndex-1,0))),SRESEcoGrowth,EcoIndex+1,FALSE))*E25)) -> 10863512.59 | F24: =SUMPRODUCT(I$5:AL$5,I24:AL24) -> 29109372.32 | G24: =IF(VLOOKUP($B24,UserShipments,2,FALSE)>0,VLOOKUP($B24,UserShipments,2,FALSE),VALUE(OFFSET(TopSales,CountryIndex-1,0))) -> 39972884.91 | H24: 39972884.91 | I24: 38214577.64 | J24: =+I25*(1-I$5) -> 29750148.93 | K24: 26500013.71 | L24: 23127956.94 | M24: 19914275.63 | N24: 16723334.2 | O24: 13674370.91 | P24: 10881384.59 | Q24: 8431606.777 | R24: 6371759.493 | S24: 4706279.206 | T24: 3405780.233 | U24: 2420361.915 | V24: 1692433.25 | W24: 1185742.11 | X24: 821559.7262 | Y24: 562269.2841 | Z24: 381377.2251 | AA24: 254448.3102 | AB24: 172072.3287 | AC24: 115014.9006 | AD24: 75265.49197 | AE24: 48846.26298 | AF24: 30436.26469 | AG24: 21146.40565 | AH24: 14660.4023 | AI24: 10138.68842 | AJ24: 6985.786805 | AK24: 4790.511615 | AL24: 3256.353136
B25: 2013 | C25: =($B25-$B$28)/($B$23-$B$28)*($C$23-$C$28)+$C$28 -> 245709695.8 | D25: 198896901.1 | E25: =IF(G25-F25>0,G25-F25,IF(UserIncomeGrowth>0,E26*(1+UserIncomeGrowth),(1+VLOOKUP((VALUE(OFFSET(TopSRESref,CountryIndex-1,0))),SRESEcoGrowth,EcoIndex+1,FALSE))*E26)) -> 10627587.4 | F25: 27586990.24 | G25: =IF(VLOOKUP($B25,UserShipments,2,FALSE)>0,VLOOKUP($B25,UserShipments,2,FALSE),(G24+G26)/2) -> 38214577.64 | H25: 38214577.64 | I25: 36456270.36 | J25: =+I26*(1-I$5) -> 28299829.17 | K25: 25141931.54 | L25: 22098475.71 | M25: 18986547.7 | N25: 15906192.28 | O25: 12971883.38 | P25: 10292107.25 | Q25: 7948852.883 | R25: 5984786.461 | S25: 4401973.756 | T25: 3170340.964 | U25: 2240618.396 | V25: 1582953.932 | W25: 1103830.287 | X25: 759139.5805 | Y25: 516798.1794 | Z25: 345741.2142 | AA25: 234283.6551 | AB25: 156832.0221 | AC25: 102743.6649 | AD25: 66733.22968 | AE25: 41606.40074 | AF25: 28919.74146 | AG25: 20055.89944 | AH25: 13873.28466 | AI25: 9560.638629 | AJ25: 6557.03663 | AK25: 4457.555653 | AL25: 3004.942849
B26: 2012 | C26: =($B26-$B$28)/($B$23-$B$28)*($C$23-$C$28)+$C$28 -> 234804531.6 | D26: 188533252.9 | E26: =IF(G26-F26>0,G26-F26,IF(UserIncomeGrowth>0,E27*(1+UserIncomeGrowth),(1+VLOOKUP((VALUE(OFFSET(TopSRESref,CountryIndex-1,0))),SRESEcoGrowth,EcoIndex+1,FALSE))*E27)) -> 10365631.45 | F26: 26090638.92 | G26: =IF(VLOOKUP($B26,UserShipments,2,FALSE)>0,VLOOKUP($B26,UserShipments,2,FALSE),VALUE(OFFSET(TopSales,CountryIndex-1,1))) -> 36456270.36 | H26: 36456270.36 | I26: 34679027.18 | J26: =+I27*(1-I$5) -> 26849509.41 | K26: 24022803.43 | L26: 21068994.48 | M26: 18058819.78 | N26: 15089050.36 | O26: 12269395.85 | P26: 9702829.903 | Q26: 7466098.989 | R26: 5597813.428 | S26: 4097668.306 | T26: 2934901.694 | U26: 2095678.338 | V26: 1473602.462 | W26: 1019963.899 | X26: 697747.4393 | Y26: 468508.3908 | Z26: 318341.7303 | AA26: 213533.3417 | AB26: 140099.2101 | AC26: 91096.41629 | AD26: 56842.20915 | AE26: 39533.31214 | AF26: 27428.36944 | AG26: 18979.09733 | AH26: 13082.30964 | AI26: 8973.85784 | AJ26: 6101.301498 | AK26: 4113.405218 | AL26: 2715.006043
B27: 2011 | C27: =($B27-$B$28)/($B$23-$B$28)*($C$23-$C$28)+$C$28 -> 223899367.5 | D27: 178479862.6 | E27: =IF(G27-F27>0,G27-F27,IF(UserIncomeGrowth>0,E28*(1+UserIncomeGrowth),(1+VLOOKUP((VALUE(OFFSET(TopSRESref,CountryIndex-1,0))),SRESEcoGrowth,EcoIndex+1,FALSE))*E28)) -> 10055185.39 | F27: 24623841.79 | G27: =IF(VLOOKUP($B27,UserShipments,2,FALSE)>0,VLOOKUP($B27,UserShipments,2,FALSE),(G26+G28)/2) -> 34679027.18 | H27: 34679027.18 | I27: 32901784 | J27: =+I28*(1-I$5) -> 25654372.89 | K27: 22903675.33 | L27: 20039513.25 | M27: 17131091.86 | N27: 14271908.43 | O27: 11566908.32 | P27: 9113552.559 | Q27: 6983345.095 | R27: 5210840.395 | S27: 3793362.856 | T27: 2745050.167 | U27: 1950907.538 | V27: 1361641.667 | W27: 937478.7149 | X27: 632549.6935 | Y27: 431379.7884 | Z27: 290146.4614 | AA27: 190750.92 | AB27: 124217.2544 | AC27: 77594.3495 | AD27: 54009.9782 | AE27: 37494.60527 | AF27: 25955.73909 | AG27: 17897.01819 | AH27: 12279.38755 | AI27: 8350.145863 | AJ27: 5630.243877 | AK27: 3716.516615 | AL27: 2457.426862
B28: 2010 | C28: =SUM(Database!B143:E143) -> 212994203.3 | D28: 168810965.8 | E28: =IF(VLOOKUP($B28,UserShipments,2,FALSE)>0,G28-F28,G28-F28) -> 9670448.02 | F28: =SUMPRODUCT(I$5:AL$5,I28:AL28) -> 23231335.98 | G28: =IF(VLOOKUP($B28,UserShipments,2,FALSE)>0,VLOOKUP($B28,UserShipments,2,FALSE),VALUE(OFFSET(TopSales,CountryIndex-1,2))) -> 32901784 | H28: 32901784 | I28: 31437246.12 | J28: =+I29*(1-I$5) -> 24459236.37 | K28: 21784547.23 | L28: 19010032.02 | M28: 16203363.94 | N28: 13454766.51 | O28: 10864420.79 | P28: 8524275.215 | Q28: 6500591.202 | R28: 4823867.363 | S28: 3547979.602 | T28: 2555420.347 | U28: 1802682.244 | V28: 1251524.767 | W28: 849880.4014 | X28: 582421.0585 | Y28: 393172.8303 | Z28: 259189.9888 | AA28: 169126.9747 | AB28: 105806.1057 | AC28: 73728.11838 | AD28: 51224.7192 | AE28: 35481.51828 | AF28: 24475.89191 | AG28: 16798.59508 | AH28: 11425.93063 | AI28: 7705.463766 | AJ28: 5087.000626 | AK28: 3363.921707 | AL28: 2123.560057
B29: 2009 | C29: =($B29-$B$33)/($B$28-$B$33)*($C$28-$C$33)+$C$33 -> 202714682.9 | D29: 159234889.4 | E29: =($B29-$B$33)/($B$28-$B$33)*(E$28-E$33)+E$33 -> 9519439.335 | F29: =SUMPRODUCT(I$5:AL$5,I29:AL29) -> 21859592.55 | G29: =IF(VLOOKUP($B29,UserShipments,2,FALSE)>0,VLOOKUP($B29,UserShipments,2,FALSE),($B29-$B$38)/($B$28-$B$38)*(G$28-G$38)+G$38) -> 31437246.12 | H29: 31437246.12 | I29: 29972708.24 | J29: =+I30*(1-I$5) -> 23264099.85 | K29: 20665419.12 | L29: 17980550.79 | M29: 15275636.02 | N29: 12637624.59 | O29: 10161933.26 | P29: 7934997.87 | Q29: 6017837.308 | R29: 4511823.322 | S29: 3302882.903 | T29: 2361265.613 | U29: 1656898.088 | V29: 1134581.889 | W29: 782528.6268 | X29: 530836.4977 | Y29: 351224.2093 | Z29: 229807.6396 | AA29: 144059.4276 | AB29: 100534.1901 | AC29: 69926.00788 | AD29: 48474.46179 | AE29: 33458.56587 | AF29: 22973.69277 | AG29: 15631.0387 | AH29: 10543.77922 | AI29: 6961.989543 | AJ29: 4604.384588 | AK29: 2906.89822 | AL29: 2159.162318
B30: 2008 | C30: =($B30-$B$33)/($B$28-$B$33)*($C$28-$C$33)+$C$33 -> 192435162.5 | D30: 149776510.7 | E30: =($B30-$B$33)/($B$28-$B$33)*(E$28-E$33)+E$33 -> 9368430.65 | F30: 20512789.4 | G30: 29972708.24 | H30: 29972708.24 | I30: 28508170.36 | J30: =+I31*(1-I$5) -> 22068963.33 | K30: 19546291.02 | L30: 16951069.56 | M30: 14347908.09 | N30: 11820482.67 | O30: 9459445.727 | P30: 7345720.526 | Q30: 5628558.307 | R30: 4200143.683 | S30: 3051937.749 | T30: 2170308.435 | U30: 1502076.996 | V30: 1044667.939 | W30: 713220.7009 | X30: 474200.1857 | Y30: 311408.6577 | Z30: 195746.1669 | AA30: 136881.4946 | AB30: 95349.70818 | AC30: 66171.67746 | AD30: 45710.72637 | AE30: 31405.05832 | AF30: 21376.94724 | AG30: 14424.22735 | AH30: 9526.445508 | AI30: 6301.488778 | AJ30: 3978.831415 | AK30: 2955.633433 | AL30: 2108.331027
B31: 2007 | C31: =($B31-$B$33)/($B$28-$B$33)*($C$28-$C$33)+$C$33 -> 182155642 | D31: 140465026.2 | E31: =($B31-$B$33)/($B$28-$B$33)*(E$28-E$33)+E$33 -> 9217421.964 | F31: 19195182.95 | G31: 28508170.36 | H31: 28508170.36 | I31: 27043632.48 | J31: =+I32*(1-I$5) -> 20873826.81 | K31: 18427162.92 | L31: 15921588.33 | M31: 13420180.17 | N31: 11003340.75 | O31: 8756958.197 | P31: 6870544.046 | Q31: 5239733.901 | R31: 3881026.798 | S31: 2805125.439 | T31: 1967514.114 | U31: 1383039.598 | V31: 952142.5469 | W31: 637125.3489 | X31: 420443.806 | Y31: 265252.5007 | Z31: 185992.8804 | AA31: 129822.6061 | AB31: 90230.37819 | AC31: 62398.94844 | AD31: 42905.24683 | AE31: 29222.30578 | AF31: 19726.51677 | AG31: 13032.48228 | AH31: 8622.64861 | AI31: 5445.366483 | AJ31: 4045.53798 | AK31: 2886.05151 | AL31: 2057.467034
B32: 2006 | C32: =($B32-$B$33)/($B$28-$B$33)*($C$28-$C$33)+$C$33 -> 171876121.6 | D32: 131333736.2 | E32: =($B32-$B$33)/($B$28-$B$33)*(E$28-E$33)+E$33 -> 9066413.279 | F32: 17910876.88 | G32: 27043632.48 | H32: 27043632.48 | I32: 25579094.6 | J32: =+I33*(1-I$5) -> 19678690.3 | K32: =+J33*(1-J$5) -> 17308034.81 | L32: =+K33*(1-K$5) -> 14892107.1 | M32: 12492452.25 | N32: 10186198.82 | O32: 8190492.245 | P32: 6395922.471 | Q32: 4841631.434 | R32: 3567165.485 | S32: 2543013.613 | T32: 1811591.508 | U32: 1260544.903 | V32: 850556.0084 | W32: 564899.4132 | X32: 358126.7514 | Y32: 252035.9781 | Z32: 176401.35 | AA32: 122852.4247 | AB32: 85085.96021 | AC32: 58569.23521 | AD32: 39923.1942 | AE32: 26966.16586 | AF32: 17823.17167 | AG32: 11796.0592 | AH32: 7451.172793 | AI32: 5536.660045 | AJ32: 3950.297377 | AK32: 2816.424824 | AL32: 2006.432648
B33: 2005 | C33: =SUM(Database!B148:E148) -> 161596601.2 | D33: 122419759.4 | E33: =IF(VLOOKUP($B33,UserShipments,2,FALSE)>0,G33-F33,G33-F33) -> 8915404.593 | F33: =SUMPRODUCT(I$5:AL$5,I33:AL33) -> 16663690.01 | G33: 25579094.6 | H33: 25579094.6 | I33: 24114556.72 | J33: =+I34*(1-I$5) -> 18483553.78 | K33: 16188906.71 | L33: 13862625.88 | M33: 11564724.33 | N33: 9527278.833 | O33: 7624687.805 | P33: 5909975.559 | Q33: 4450085.362 | R33: 3233848.392 | S33: 2341483.516 | T33: 1651140.317 | U33: 1126054.123 | V33: 754135.102 | W33: 481171.5354 | X33: 340282.6584 | Y33: 239038.6487 | Z33: 166930.3539 | AA33: 115848.0849 | AB33: 79863.83973 | AC33: 54498.48503 | AD33: 36840.88055 | AE33: 24364.29142 | AF33: 16132.24432 | AG33: 10193.4428 | AH33: 7576.094432 | AI33: 5406.315244 | AJ33: 3854.995503 | AK33: 2746.56489 | AL33: 1954.553244
B34: 2004 | C34: =($B34-$B$38)/($B$33-$B$38)*($C$33-$C$38)+$C$38 -> 153844095.3 | D34: 113763753.9 | E34: =($B34-$B$38)/($B$33-$B$38)*(E$33-E$38)+E$38 -> 8737939.695 | F34: =SUMPRODUCT(I$5:AL$5,I34:AL34) -> 15457161.68 | G34: 24114556.72 | H34: 24114556.72 | I34: 22650018.84 | J34: =+I35*(1-I$5) -> 17288417.26 | K34: 15069778.61 | L34: 12833144.65 | M34: 10816630.93 | N34: 8869128.321 | O34: 7045382.237 | P34: 5432031.761 | Q34: 4034267.95 | R34: 2977570.652 | S34: 2134100.22 | T34: 1474975.908 | U34: 998402.1423 | V34: 642359.2174 | W34: 457196.5891 | X34: 322734.5058 | Y34: 226204.6532 | Z34: 157412.9438 | AA34: 108737.95 | AB34: 74313.04605 | AC34: 50290.87019 | AD34: 33286.22818 | AE34: 22052.79224 | AF34: 13940.51241 | AG34: 10364.3396 | AH34: 7397.736991 | AI34: 5275.88659 | AJ34: 3759.374372 | AK34: 2675.548228 | AL34: 1902.241529
B35: 2003 | C35: =($B35-$B$38)/($B$33-$B$38)*($C$33-$C$38)+$C$38 -> 146091589.3 | D35: 105409771.9 | E35: =($B35-$B$38)/($B$33-$B$38)*(E$33-E$38)+E$38 -> 8560474.797 | F35: 14294687.25 | G35: 22650018.84 | H35: 22650018.84 | I35: 21185480.96 | J35: =+I36*(1-I$5) -> 16093280.74 | K35: 13950650.5 | L35: 12003000.28 | M35: 10069411.15 | N35: 8195273.135 | O35: 6475617.318 | P35: 4924460.961 | Q35: 3714558.135 | R35: 2713849.634 | S35: 1906407.576 | T35: 1307769.384 | U35: 850421.6514 | V35: 610352.9024 | W35: 433619.2622 | X35: 305406.8761 | Y35: 213307.763 | Z35: 147751.7804 | AA35: 101180.3128 | AB35: 68575.62646 | AC35: 45438.47366 | AD35: 30128.28331 | AE35: 19056.69278 | AF35: 14174.2302 | AG35: 10120.34091 | AH35: 7219.264808 | AI35: 5145.021003 | AJ35: 3662.169961 | AK35: 2603.939784 | AL35: 1847.510255
B36: 2002 | C36: =($B36-$B$38)/($B$33-$B$38)*($C$33-$C$38)+$C$38 -> 138339083.4 | D36: 97405318.41 | E36: =($B36-$B$38)/($B$33-$B$38)*(E$33-E$38)+E$38 -> 8383009.898 | F36: =SUMPRODUCT(I$5:AL$5,I36:AL36) -> 13179716.67 | G36: 21185480.96 | H36: 21185480.96 | I36: 19720943.08 | J36: =+I37*(1-I$5) -> 14898144.22 | K36: 13048217.45 | L36: 11173825.35 | M36: 9304361.346 | N36: 7532515.746 | O36: 5870533.547 | P36: 4534204.656 | Q36: 3385562.734 | R36: 2424302.033 | S36: 1690293.005 | T36: 1113935.309 | U36: 808048.3771 | V36: 578877.4052 | W36: 410338.225 | X36: 287994.33 | Y36: 200216.0751 | Z36: 137482.5566 | AA36: 93368.57668 | AB36: 61958.99544 | AC36: 41127.6159 | AD36: 26035.04503 | AE36: 19376.18521 | AF36: 13840.53855 | AG36: 9876.185258 | AH36: 7040.194749 | AI36: 5011.988567 | AJ36: 3564.155547 | AK36: 2529.019254 | AL36: 1794.468754
B37: 2001 | C37: =($B37-$B$38)/($B$33-$B$38)*($C$33-$C$38)+$C$38 -> 130586577.5 | D37: 89801555.38 | E37: =($B37-$B$38)/($B$33-$B$38)*(E$33-E$38)+E$38 -> 8205545 | F37: =SUMPRODUCT(I$5:AL$5,I37:AL37) -> 12115913.2 | G37: 19720943.08 | H37: 19720943.08 | I37: 18256405.2 | J37: =+I38*(1-I$5) -> 13934420.14 | K37: 12146838.25 | L37: 10324864.79 | M37: 8551911.229 | N37: 6828675.045 | O37: 5405302.378 | P37: 4132613.827 | Q37: 3024348.333 | R37: 2149477.804 | S37: 1439762.304 | T37: 1058432.152 | U37: 766377.8546 | V37: 547797.452 | W37: 386943.096 | X37: 270318.7806 | Y37: 186300.414 | Z37: 126868.0662 | AA37: 84359.75747 | AB37: 56080.79588 | AC37: 35540.00476 | AD37: 26471.53209 | AE37: 18920.02844 | AF37: 13506.63224 | AG37: 9631.211687 | AH37: 6858.159678 | AI37: 4877.847572 | AJ37: 3461.607699 | AK37: 2456.411822 | AL37: 1734.276267
B38: 2000 | C38: =SUM(Database!B153:E153) -> 122834071.6 | D38: 82693671.07 | E38: =IF(VLOOKUP($B38,UserShipments,2,FALSE)>0,G38-F38,(C38-D38)/ShipAdjTime) -> 8028080.101 | F38: =SUMPRODUCT(I$5:AL$5,I38:AL38) -> 11147287.29 | G38: =IF(VLOOKUP($B38,UserShipments,2,FALSE)>0,VLOOKUP($B38,UserShipments,2,FALSE),(E38+F39)) -> 18256405.2 | H38: 18256405.2 | I38: 17075443.53 | J38: =+I39*(1-I$5) -> 12971821.49 | K38: 11223950.49 | L38: 9489885.854 | M38: 7752817.885 | N38: 6287512.569 | O38: 4926559.13 | P38: 3691694.623 | Q38: 2681501.531 | R38: 1830887.962 | S38: 1368024.428 | T38: 1003849.503 | U38: 725230.9941 | V38: 516565.1873 | W38: 363194.6014 | X38: 251530.7561 | Y38: 171916.8878 | Z38: 114626.9942 | AA38: 76356.3435 | AB38: 48461.64089 | AC38: 36135.84595 | AD38: 25848.3357 | AE38: 18463.5782 | AF38: 13171.60734 | AG38: 9382.181885 | AH38: 6674.60771 | AI38: 4737.502189 | AJ38: 3362.225914 | AK38: 2374.015548 | AL38: 1688.768363
B39: 1999 | C39: =($B39-$B$43)/($B$38-$B$43)*($C$38-$C$43)+$C$43 -> 114421417.8 | D39: 75847732.16 | E39: =IF(VLOOKUP($B39,UserShipments,2,FALSE)>0,G39-F39,(C39-D39)/ShipAdjTime) -> 7714737.131 | F39: =SUMPRODUCT(I$5:AL$5,I39:AL39) -> 10228325.1 | G39: =IF(VLOOKUP($B39,UserShipments,2,FALSE)>0,VLOOKUP($B39,UserShipments,2,FALSE),(E39+F40)) -> 17075443.53 | H39: 17075443.53 | I39: 15895860.98 | J39: =+I40*(1-I$5) -> 11986253.48 | K39: 10316261.88 | L39: 8603147.859 | M39: 7138418.445 | N39: 5730632.68 | O39: 4400931.859 | P39: 3273195.972 | Q39: 2284056.558 | R39: 1739661.783 | S39: 1297476.309 | T39: 949952.7794 | U39: 683882.4878 | V39: 484861.183 | W39: 337951.4087 | X39: 232111.0504 | Y39: 155329.2069 | Z39: 103752.0543 | AA39: 65982.54608 | AB39: 49274.11804 | AC39: 35285.13097 | AD39: 25224.73839 | AE39: 18005.59888 | AF39: 12831.03516 | AG39: 9131.07692 | AH39: 6482.565963 | AI39: 4601.489832 | AJ39: 3249.445604 | AK39: 2311.720704 | AL39: 1614.724376
B40: 1998 | C40: =($B40-$B$43)/($B$38-$B$43)*($C$38-$C$43)+$C$43 -> 106008764 | D40: 69313755.83 | E40: =IF(VLOOKUP($B40,UserShipments,2,FALSE)>0,G40-F40,(C40-D40)/ShipAdjTime) -> 7339001.644 | F40: 9360706.4 | G40: =IF(VLOOKUP($B40,UserShipments,2,FALSE)>0,VLOOKUP($B40,UserShipments,2,FALSE),(E40+F41)) -> 15895860.98 | H40: 15895860.98 | I40: 14688131.43 | J40: =+I41*(1-I$5) -> 11016916.9 | K40: 9352307.04 | L40: 7921361.016 | M40: 6506174.512 | N40: 5119216.732 | O40: 3902032.51 | P40: 2788051.634 | Q40: 2170250.712 | R40: 1649948.571 | S40: 1227814.75 | T40: 895791.9274 | U40: 641909.4438 | V40: 451161.7716 | W40: 311859.5024 | X40: 209715.4376 | Y40: 140592.7498 | Z40: 89656.26682 | AA40: 67088.76762 | AB40: 48114.10007 | AC40: 34433.8687 | AD40: 24599.05205 | AE40: 17540.03641 | AF40: 12487.62499 | AG40: 8868.357665 | AH40: 6296.453314 | AI40: 4447.140463 | AJ40: 3164.179226 | AK40: 2210.363393 | AL40: 1612.987442
B41: 1997 | C41: =($B41-$B$43)/($B$38-$B$43)*($C$38-$C$43)+$C$43 -> 97596110.28 | D41: 63183575.76 | E41: =IF(VLOOKUP($B41,UserShipments,2,FALSE)>0,G41-F41,(C41-D41)/ShipAdjTime) -> 6882506.905 | F41: 8556859.333 | G41: =IF(VLOOKUP($B41,UserShipments,2,FALSE)>0,VLOOKUP($B41,UserShipments,2,FALSE),(E41+F42)) -> 14688131.43 | H41: 14688131.43 | I41: 13500292.11 | J41: =+I42*(1-I$5) -> 9987492.627 | K41: 8611150.431 | L41: 7219772.495 | M41: 5812014.011 | N41: 4538891.024 | O41: 3323683.704 | P41: 2649133.632 | Q41: 2058332.313 | R41: 1561362.76 | S41: 1157811.804 | T41: 840813.0171 | U41: 597294.6733 | V41: 416329.3361 | W41: 281769.2304 | X41: 189819.2274 | Y41: 121491.7735 | Z41: 91159.38695 | AA41: 65509.35476 | AB41: 46953.33585 | AC41: 33579.75474 | AD41: 23963.0057 | AE41: 17070.59441 | AF41: 12128.33117 | AG41: 8613.749607 | AH41: 6085.249198 | AI41: 4330.44623 | AJ41: 3025.445902 | AK41: 2207.98574 | AL41: 1494.946934
B42: 1996 | C42: =($B42-$B$43)/($B$38-$B$43)*($C$38-$C$43)+$C$43 -> 89183456.51 | D42: 57490104.61 | E42: 6338670.38 | F42: 7805624.522 | G42: 13500292.11 | H42: 13500292.11 | I42: 12238820.46 | J42: =+I43*(1-I$5) -> 9195998.493 | K42: 7848467.821 | L42: 6449476.388 | M42: 5153151.275 | N42: 3866148.756 | O42: 3158077.195 | P42: 2512519.556 | Q42: 1947820.361 | R42: 1472342.822 | S42: 1086751.517 | T42: 782373.8087 | U42: 551179.8881 | V42: 376159.122 | W42: 255037.1028 | X42: 164030.3261 | Y42: 123528.6276 | Z42: 89013.30031 | AA42: 63928.92584 | AB42: 45788.6831 | AC42: 32711.4985 | AD42: 23321.65917 | AE42: 16579.43943 | AF42: 11780.13019 | AG42: 8324.815618 | AH42: 5925.570525 | AI42: 4140.577972 | AJ42: 3022.191478 | AK42: 2046.402486 | AL42: 1637.899414
B43: 1995 | C43: =SUM(Database!B158:E158) -> 80770802.75 | D43: 52413943.5 | E43: =IF(VLOOKUP($B43,UserShipments,2,FALSE)>0,G43-F43,(C43-D43)/ShipAdjTime) -> 5671371.849 | F43: 7161621.732 | G43: =IF(VLOOKUP($B43,UserShipments,2,FALSE)>0,VLOOKUP($B43,UserShipments,2,FALSE),(E43+F44)) -> 12238820.46 | H43: 12238820.46 | I43: 11268911.9 | J43: =+I44*(1-I$5) -> 8381516.364 | K43: 7011094.592 | L43: 5718349.51 | M43: 4389364.997 | N43: 3673513.278 | O43: 2995217.234 | P43: 2377622.271 | Q43: 1836766.83 | R43: 1381978.306 | S43: 1011218.792 | T43: 721969.7874 | U43: 497998.3988 | V43: 340471.9974 | W43: 220387.6799 | X43: 166780.3545 | Y43: 120620.4999 | Z43: 86865.83305 | AA43: 62343.20252 | AB43: 44604.74622 | AC43: 31836.00708 | AD43: 22650.64863 | AE43: 16103.44838 | AF43: 11384.9852 | AG43: 8106.370084 | AH43: 5665.7641 | AI43: 4136.124018 | AJ43: 2801.023594 | AK43: 2242.087232 | AL43: 1420.468841
B44: 1994 | C44: =($B44-$B$48)/($B$43-$B$48)*($C$43-$C$48)+$C$48 -> 73996807.72 | D44: 47713483.08 | E44: 5256664.929 | F44: 6567448.613 | G44: 11268911.9 | H44: 11268911.9 | I44: 10270833.51 | J44: =+I45*(1-I$5) -> 7487270.814 | K44: 6216301.434 | L44: 4870791.064 | M44: 4170659.645 | N44: 3484072.618 | O44: 2834403.89 | P44: 2242063.904 | Q44: 1724035.92 | R44: 1285926.37 | S44: 933146.5447 | T44: 652309.3565 | U44: 450752.0877 | V44: 294215.3622 | W44: 224082.56 | X44: 162853.9888 | Y44: 117710.5014 | Z44: 84711.17184 | AA44: 60731.22307 | AB44: 43410.94361 | AC44: 30920.0218 | AD44: 22000.35486 | AE44: 15563.28483 | AF44: 11086.23994 | AG44: 7750.946581 | AH44: 5659.669528 | AI44: 3833.437109 | AJ44: 3068.868064 | AK44: 1944.450939 | AL44: 1372.892895
B45: 1993 | C45: =($B45-$B$48)/($B$43-$B$48)*($C$43-$C$48)+$C$48 -> 67222812.7 | D45: 43455865.09 | E45: 4753389.522 | F45: 6012246.972 | G45: 10270833.51 | H45: 10270833.51 | I45: 9175011.854 | J45: =+I46*(1-I$5) -> 6638497.269 | K45: 5294937.889 | L45: 4628098.083 | M45: 3955581.474 | N45: 3297012.607 | O45: 2672802.458 | P45: 2104458.03 | Q45: 1604209.88 | R45: 1186645.025 | S45: 843110.3804 | T45: 590423.1921 | U45: 389512.7639 | V45: 299147.9904 | W45: 218807.178 | X45: 158925.0972 | Y45: 114790.7544 | Z45: 82520.83411 | AA45: 59105.811 | AB45: 42161.92437 | AC45: 30032.31666 | AD45: 21262.38933 | AE45: 15154.8998 | AF45: 10600.16415 | AG45: 7742.609011 | AH45: 5245.487587 | AI45: 4200.004865 | AJ45: 2661.476906 | AK45: 1879.325193 | AL45: 1325.921712
B46: 1992 | C46: =($B46-$B$48)/($B$43-$B$48)*($C$43-$C$48)+$C$48 -> 60448817.67 | D46: 39799231.27 | E46: 4129917.281 | F46: 5517443.991 | G46: 9175011.854 | H46: 9175011.854 | I46: 8134912.26 | J46: =+I47*(1-I$5) -> 5654556.988 | K46: 5031111.286 | L46: 4389430.114 | M46: 3743206.132 | N46: 3109035.882 | O46: 2508760.16 | P46: 1958191.43 | Q46: 1480355.111 | R46: 1072149.647 | S46: 763122.462 | T46: 510208.1071 | U46: 396043.088 | V46: 292105.4079 | W46: 213528.4023 | X46: 154983.0439 | Y46: 111822.6628 | Z46: 80312.24432 | AA46: 57405.21919 | AB46: 40951.46736 | AC46: 29024.93225 | AD46: 20704.45818 | AE46: 14490.43377 | AF46: 10588.76173 | AG46: 7175.994863 | AH46: 5747.08095 | AI46: 3642.455694 | AJ46: 2572.335717 | AK46: 1815.027295 | AL46: 1278.674207
B47: 1991 | C47: =($B47-$B$48)/($B$43-$B$48)*($C$43-$C$48)+$C$48 -> 53674822.65 | D47: 36710311.66 | E47: 3392902.199 | F47: 5045094.573 | G47: 8134912.26 | H47: 8134912.26 | I47: 6929177.357 | J47: =+I48*(1-I$5) -> 5372811.934 | K47: 4771660.191 | L47: 4153761.419 | M47: 3529790.016 | N47: 2918219.913 | O47: 2334393.261 | P47: 1807007.13 | Q47: 1337520.636 | R47: 970432.2201 | S47: 659444.3985 | T47: 518761.9328 | U47: 386719.3879 | V47: 285058.2948 | W47: 208231.9428 | X47: 150975.7188 | Y47: 108829.8381 | Z47: 78001.50122 | AA47: 55757.13146 | AB47: 39577.81809 | AC47: 28263.30975 | AD47: 19796.67196 | AE47: 14474.84664 | AF47: 9813.862439 | AG47: 7862.190633 | AH47: 4984.157971 | AI47: 3520.458455 | AJ47: 2484.327649 | AK47: 1750.351145 | AL47: 1229.437977
B48: 1990 | C48: =SUM(Database!B163:E163) -> 46900827.63 | D48: 34524003.74 | E48: 2475364.776 | F48: 4742010.061 | G48: 6929177.357 | H48: 6929177.357 | I48: 6583922.821 | J48: =+I49*(1-I$5) -> 5095739.561 | K48: 4515469.546 | L48: 3916937.798 | M48: 3313150.411 | N48: 2715394.245 | O48: 2154163.889 | P48: 1632655.104 | Q48: 1210626.823 | R48: 838588.9861 | S48: 670500.2253 | T48: 506549.169 | U48: 377389.6898 | V48: 277987.574 | W48: 202847.7854 | X48: 146935.0006 | Y48: 105698.587 | Z48: 75762.10002 | AA48: 53886.85067 | AB48: 38539.28487 | AC48: 27024.10596 | AD48: 19775.37699 | AE48: 13415.55863 | AF48: 10752.30108 | AG48: 6818.487587 | AH48: 4817.222926 | AI48: 3400.011988 | AJ48: 2395.801847 | AK48: 1682.95267 | AL48: 1176.473748
B49: 1989 | C49: =($B49-$B$58)/($B$48-$B$58)*($C$48-$C$58)+$C$58 -> 44397966.84 | D49: 32394709.37 | E49: 2400651.493 | F49: 4453812.581 | G49: 6583922.821 | H49: 6583922.821 | I49: 6244394.258 | J49: =+I50*(1-I$5) -> 4822149.082 | K49: 4258023.405 | L49: 3676537.136 | M49: 3082875.804 | N49: 2505749.278 | O49: 1946315.878 | P49: 1477761.17 | Q49: 1046150.673 | R49: 852648.2375 | S49: 654715.2181 | T49: 494328.5486 | U49: 368028.7374 | V49: 270799.7774 | W49: 197418.7619 | X49: 142707.3883 | Y49: 102664.0103 | Z49: 73220.78563 | AA49: 52472.84436 | AB49: 36849.53132 | AC49: 26995.03656 | AD49: 18328.18931 | AE49: 14698.40508 | AF49: 9324.93689 | AG49: 6590.115103 | AH49: 4652.409879 | AI49: 3278.85696 | AJ49: 2303.549848 | AK49: 1610.451013 | AL49: 1116.896609
B50: 1988 | C50: =($B50-$B$58)/($B$48-$B$58)*($C$48-$C$58)+$C$58 -> 41895106.05 | D50: 30334354.64 | E50: 2312150.281 | F50: 4183271.328 | G50: 6244394.258 | H50: 6244394.258 | I50: 5909132.458 | J50: =+I51*(1-I$5) -> 4547217.834 | K50: 3996688.736 | L50: 3421005.983 | M50: 2844859.023 | N50: 2263977.977 | O50: 1761664.189 | P50: 1276992.062 | Q50: 1063689.772 | R50: 832575.0771 | S50: 638920.0562 | T50: 482066.9895 | U50: 358512.788 | V50: 263552.085 | W50: 191738.6312 | X50: 138610.2992 | Y50: 99220.31579 | Z50: 71299.45136 | AA50: 50172.1744 | AB50: 36809.89286 | AC50: 25019.50485 | AD50: 20080.8001 | AE50: 12747.19697 | AF50: 9012.615576 | AG50: 6364.645582 | AH50: 4486.627272 | AI50: 3152.602316 | AJ50: 2204.312844 | AK50: 1528.897077 | AL50: 1051.649273
B51: 1987 | C51: 39392245.26 | D51: 28358178.83 | E51: 2206813.286 | F51: 3932243.977 | G51: 5909132.458 | H51: 5909132.458 | I51: 5572227.661 | J51: =+I52*(1-I$5) -> 4268133.96 | K51: 3718906.017 | L51: 3156883.493 | M51: 2570368.166 | N51: 2049188.917 | O51: 1522323.925 | P51: 1298401.301 | Q51: 1038648.243 | R51: 812489.0033 | S51: 623071.9809 | T51: 469602.4055 | U51: 348917.5422 | V51: 255969.167 | W51: 186233.869 | X51: 133960.8459 | Y51: 96616.74643 | Z51: 68173.32949 | AA51: 50118.20498 | AB51: 34116.09726 | AC51: 27411.96453 | AD51: 17415.08093 | AE51: 12320.25346 | AF51: 8704.264343 | AG51: 6137.84967 | AH51: 4313.866602 | AI51: 3016.788103 | AJ51: 2092.685489 | AK51: 1439.581325 | AL51: 975.6256913
B52: 1986 | C52: 36889384.48 | D52: 26488932.05 | E52: 2080090.485 | F52: 3702319.172 | G52: 5572227.661 | H52: 5572227.661 | I52: 5230234.174 | J52: =+I53*(1-I$5) -> 3971484.925 | K52: 3431783.831 | L52: 2852286.447 | M52: 2326511.129 | N52: 1770785.451 | O52: 1547846.243 | P52: 1267834.162 | Q52: 1013590.604 | R52: 792335.6418 | S52: 606961.4958 | T52: 457033.9543 | U52: 338878.4901 | V52: 248620.3641 | W52: 179986.9617 | X52: 130445.6751 | Y52: 92380.58869 | Z52: 68099.99652 | AA52: 46450.48988 | AB52: 37378.40752 | AC52: 23773.03586 | AD52: 16831.79538 | AE52: 11898.73705 | AF52: 8394.099144 | AG52: 5901.507546 | AH52: 4128.025085 | AI52: 2864.01665 | AJ52: 1970.434107 | AK52: 1335.514188 | AL52: 905.8545706
B53: 1985 | C53: 34386523.69 | D53: 24751427.54 | E53: 1927019.23 | F53: 3492137.176 | G53: 5230234.174 | H53: 5230234.174 | I53: 4866716.08 | J53: =+I54*(1-I$5) -> 3664862.11 | K53: 3100662.578 | L53: 2581683.142 | M53: 2010430.578 | N53: 1800473.317 | O53: 1511406.637 | P53: 1237247.358 | Q53: 988449.0237 | R53: 771848.5843 | S53: 590716.7622 | T53: 443884.1778 | U53: 329149.3838 | V53: 240280.805 | W53: 175264.0526 | X53: 124726.2892 | Y53: 92281.21635 | Z53: 63116.35064 | AA53: 50892.26141 | AB53: 32416.43704 | AC53: 22976.80251 | AD53: 16255.92428 | AE53: 11474.74095 | AF53: 8070.878581 | AG53: 5647.270403 | AH53: 3918.98011 | AI53: 2696.70532 | AJ53: 1827.991696 | AK53: 1240.005919 | AL53: 811.094611
B54: 1984 | C54: 31883662.9 | D54: 23188507.13 | E54: 1739031.154 | F54: 3303214.944 | G54: 4866716.08 | H54: 4866716.08 | I54: 4490975.969 | J54: =+I55*(1-I$5) -> 3311251.92 | K54: 2806495.229 | L54: 2230934.839 | M54: 2044136.182 | N54: 1758086.331 | O54: 1474943.588 | P54: 1206558.089 | Q54: 962891.1529 | R54: 751190.8082 | S54: 573720.6654 | T54: 431140.3877 | U54: 318108.6119 | V54: 233975.7682 | W54: 167579.6065 | X54: 124592.1231 | Y54: 85527.95751 | Z54: 69151.77481 | AA54: 44136.33158 | AB54: 31330.70914 | AC54: 22190.69049 | AD54: 15676.66545 | AE54: 11032.89815 | AF54: 7723.184862 | AG54: 5361.290189 | AH54: 3690.039481 | AI54: 2501.760862 | AJ54: 1697.264276 | AK54: 1110.290935 | AL54: 795.003278
B55: 1983 | C55: 29380802.11 | D55: 21825678.97 | E55: 1511024.63 | F55: 3127684.926 | G55: 4490975.969 | H55: 4490975.969 | I55: 4057656.838 | J55: =+I56*(1-I$5) -> 2997105.451 | K55: 2425203.884 | L55: 2268337.278 | M55: 1996012.851 | N55: 1715672.075 | O55: 1438358.39 | P55: 1175360.673 | Q55: 937120.3085 | R55: 729577.5537 | S55: 557249.3062 | T55: 416678.4962 | U55: 309761.3513 | V55: 223717.1091 | W55: 167399.3438 | X55: 115474.3103 | Y55: 93706.46429 | Z55: 59971.90098 | AA55: 42658.06773 | AB55: 30258.78249 | AC55: 21399.95395 | AD55: 15073.02466 | AE55: 10557.60053 | AF55: 7332.079442 | AG55: 5048.092083 | AH55: 3423.287033 | AI55: 2322.849359 | AJ55: 1519.716247 | AK55: 1088.263836 | AL55: 633.6636552
B56: 1982 | C56: 26877941.33 | D56: 20748698.86 | E56: 1225848.492 | F56: 2979951.34 | G56: 4057656.838 | H56: 4057656.838 | I56: 3672697.132 | J56: =+I57*(1-I$5) -> 2589917.739 | K56: 2465863.314 | L56: 2214935.775 | M56: 1947858.562 | N56: 1673115.734 | O56: 1401167.42 | P56: 1143903.288 | Q56: 910157.4922 | R56: 708631.587 | S56: 538557.2995 | T56: 405744.7338 | U56: 296179.8761 | V56: 223476.4602 | W56: 155148.8432 | X56: 126516.4006 | Y56: 81266.96406 | Z56: 57963.25437 | AA56: 41198.59488 | AB56: 29180.54992 | AC56: 20575.93399 | AD56: 14423.67825 | AE56: 10022.95908 | AF56: 6903.75094 | AG56: 4683.166199 | AH56: 3178.473295 | AI56: 2079.859901 | AJ56: 1489.566545 | AK56: 867.4093042 | AL56: 993.0469656
B57: 1981 | C57: 24375080.54 | D57: 19908096.41 | E57: =IF(VLOOKUP($B57,UserShipments,2,FALSE)>0,G57-F57,(C57-D57)/ShipAdjTime) -> 893396.8265 | F57: 2831808.345 | G57: 3672697.132 | H57: 3672697.132 | I57: 3173723.317 | J57: =+I58*(1-I$5) -> 2633338.658 | K57: 2407811.626 | L57: 2161499.917 | M57: 1899542.957 | N57: 1629854.751 | O57: 1363666.538 | P57: 1110990.914 | Q57: 884027.1262 | R57: 684861.712 | S57: 524425.4025 | T57: 387954.8706 | U57: 295861.2801 | V57: 207122.1636 | W57: 169984.7624 | X57: 109721.3929 | Y57: 78545.07915 | Z57: 55980.14072 | AA57: 39730.53625 | AB57: 28056.93277 | AC57: 19689.52207 | AD57: 13693.25695 | AE57: 9437.433637 | AF57: 6404.679732 | AG57: 4348.253171 | AH57: 2845.978421 | AI57: 2038.597491 | AJ57: 1187.270805 | AK57: 1359.361817 | AL57: 391.9745481
B58: 1980 | C58: =SUM(Database!B173:E173) -> 21872219.75 | D58: 19516060.29 | E58: =IF(VLOOKUP($B58,UserShipments,2,FALSE)>0,G58-F58,(C58-D58)/ShipAdjTime) -> 471231.8921 | F58: 2779300.305 | G58: =IF(VLOOKUP($B58,UserShipments,2,FALSE)>0,VLOOKUP($B58,UserShipments,2,FALSE),(E58+F59)) -> 3173723.317 | H58: 3173723.317 | I58: 3226931.95 | J58: =+I59*(1-I$5) -> 2571344.243 | K58: 2349722.592 | L58: 2107885.05 | M58: 1850427.35 | N58: 1586233.275 | O58: 1324431.138 | P58: 1079094.677 | Q58: 854373.8978 | R58: 666890.7456 | S58: 501431.9898 | T58: 387537.5537 | U58: 274209.7687 | V58: 226927.9683 | W58: 147419.3449 | X58: 106046.4801 | Y58: 75857.79356 | Z58: 53985.36083 | AA58: 38200.68461 | AB58: 26848.23917 | AC58: 18692.43616 | AD58: 12893.31851 | AE58: 8755.202855 | AF58: 5946.653988 | AG58: 3893.389545 | AH58: 2789.516961 | AI58: 1624.880266 | AJ58: 1860.633256 | AK58: 536.5659956 | AL58: 3267.59048
B59: 1979 | C59: =($B59-$B$88)/($B$58-$B$88)*($C$58-$C$88)+$C$88 -> 21286402.19 | D59: 18991619.76 | E59: =(C59-D59)/ShipAdjTime -> 458956.486 | F59: 2702491.424 | G59: =C58-SUM(I59:W59) -> 3226931.95 | H59: 3226931.95 | I59: 3150963.081 | J59: =+I60*(1-I$5) -> 2509309.945 | K59: 2291438.962 | L59: 2053382.438 | M59: 1800902.463 | N59: 1540594.187 | O59: 1286407.092 | P59: 1042898.23 | Q59: 831954.8833 | R59: 637650.945 | S59: 500892.6073 | T59: 359177.054 | U59: 300430.7439 | V59: 196803.3602 | W59: 142481.8097 | X59: 102418.2811 | Y59: 73154.69922 | Z59: 51906.61737 | AA59: 36554.99784 | AB59: 25488.63273 | AC59: 17600.45356 | AD59: 11961.26228 | AE59: 8129.081258 | AF59: 5324.584277 | AG59: 3816.14846 | AH59: 2223.406572 | AI59: 2546.433592 | AJ59: 734.4273786 | AK59: 4472.938225 | AL59: 0
B60: 1978 | C60: =($B60-$B$88)/($B$58-$B$88)*($C$58-$C$88)+$C$88 -> 20700584.64 | D60: 18466504.85 | E60: 446815.9572 | F60: 2625848.168 | G60: 3150963.081 | H60: 3150963.081 | I60: 3074945.339 | J60: =+I61*(1-I$5) -> 2447067.834 | K60: 2232190.28 | L60: 1998425.656 | M60: 1749086.915 | N60: 1496364.161 | O60: 1243256.693 | P60: 1015532.284 | Q60: 795477.8516 | R60: 636965.034 | S60: 464236.638 | T60: 393522.9224 | U60: 260548.6681 | V60: 190211.7999 | W60: 137607.0382 | X60: 98768.73814 | Y60: 70337.82719 | Z60: 49670.47856 | AA60: 34703.83695 | AB60: 23999.62706 | AC60: 16328.11919 | AD60: 11105.86181 | AE60: 7278.711413 | AF60: 5218.949672 | AG60: 3041.691335 | AH60: 3484.415008 | AI60: 1005.125831 | AJ60: 6122.356471 | AK60: 0 | AL60: 0
B61: 1977 | C61: 20114767.08 | D61: 17940928.64 | E61: 434767.6886 | F61: 2549369.126 | G61: 3074945.339 | H61: 3074945.339 | I61: 2998672.94 | J61: =+I62*(1-I$5) -> 2383795.129 | K61: 2172447.88 | L61: 1940926.973 | M61: 1698871.121 | N61: 1446171.099 | O61: 1210633.283 | P61: 971006.3073 | Q61: 794622.1686 | R61: 590351.1084 | S61: 508628.7012 | T61: 341282.8926 | U61: 251822.078 | V61: 183704.0283 | W61: 132703.5894 | X61: 94965.57992 | Y61: 67307.67125 | Z61: 47155.14405 | AA61: 32676.4936 | AB61: 22264.69731 | AC61: 15160.42631 | AD61: 9944.095839 | AE61: 7134.308815 | AF61: 4159.805144 | AG61: 4766.791224 | AH61: 1375.364958 | AI61: 8378.96137 | AJ61: 0 | AK61: 0 | AL61: 0
B62: 1976 | C62: 19528949.53 | D62: 17415128.71 | E62: 422764.1639 | F62: 2472873.008 | G62: 2998672.94 | H62: 2998672.94 | I62: 2921137.636 | J62: =+I63*(1-I$5) -> 2319995.173 | K62: 2109942.232 | L62: 1885203.504 | M62: 1641885.298 | N62: 1408223.157 | O62: 1157553.11 | P62: 969961.8112 | Q62: 736470.69 | R62: 646802.7142 | S62: 441108.4197 | T62: 329852.2607 | U62: 243206.4161 | V62: 177157.9729 | W62: 127593.7464 | X62: 90874.45956 | Y62: 63899.18168 | Z62: 44400.41501 | AA62: 30314.31436 | AB62: 20672.45461 | AC62: 13574.519 | AD62: 9746.81459 | AE62: 5686.457308 | AF62: 6519.044989 | AG62: 1881.543271 | AH62: 11465.36035 | AI62: 0 | AJ62: 0 | AK62: 0 | AL62: 0
B63: 1975 | C63: 18943131.97 | D63: 16890341.49 | E63: 410558.0964 | F63: 2396350.418 | G63: 2921137.636 | H63: 2921137.636 | I63: 2842956.231 | J63: =+I64*(1-I$5) -> 2253244.295 | K63: 2049366.382 | L63: 1821967.47 | M63: 1598801.76 | N63: 1346479.664 | O63: 1156307.949 | P63: 898978.7506 | Q63: 806894.8028 | R63: 560939.881 | S63: 426334.3185 | T63: 318566.9295 | U63: 234540.0701 | V63: 170336.3833 | W63: 122097.0035 | X63: 86272.53765 | Y63: 60166.2924 | Z63: 41190.7151 | AA63: 28146.40949 | AB63: 18509.94307 | AC63: 13305.21366 | AD63: 7768.775715 | AE63: 8911.540261 | AF63: 2573.1912 | AG63: 15684.97983 | AH63: 0 | AI63: 0 | AJ63: 0 | AK63: 0 | AL63: 0
B64: 1974 | C64: 18357314.41 | D64: 16366563.17 | E64: 398150.2482 | F64: 2319177.916 | G64: 2842956.231 | H64: 2842956.231 | I64: 2761158.722 | J64: =+I65*(1-I$5) -> 2188554.284 | K64: 1980623.775 | L64: 1774158.524 | M64: 1528702.355 | N64: 1345031.277 | O64: 1071687.837 | P64: 984942.4988 | Q64: 699779.801 | R64: 542152.2493 | S64: 411748.0187 | T64: 307215.2091 | U64: 225508.9434 | V64: 162998.2862 | W64: 115913.9585 | X64: 81232.63224 | Y64: 55816.87938 | Z64: 38244.9928 | AA64: 25202.0598 | AB64: 18142.7237 | AC64: 10605.02586 | AD64: 12174.84873 | AE64: 3517.554645 | AF64: 21450.71692 | AG64: 0 | AH64: 0 | AI64: 0 | AJ64: 0 | AK64: 0 | AL64: 0
B65: 1973 | C65: 17771496.86 | D65: 15847496.81 | E65: 384800.0104 | F65: 2242092.355 | G65: 2761158.722 | H65: 2761158.722 | I65: 2681886.631 | J65: =+I66*(1-I$5) -> 2115142.849 | K65: 1928651.643 | L65: 1696370.608 | M65: 1527057.954 | N65: 1246600.148 | O65: 1174166.681 | P65: 854191.7279 | Q65: 676341.986 | R65: 523603.437 | S65: 397075.9108 | T65: 295385.6761 | U65: 215794.0105 | V65: 154743.9825 | W65: 109142.4481 | X65: 75360.33641 | Y65: 51825.17819 | Z65: 34244.24689 | AA65: 24702.0753 | AB65: 14460.80152 | AC65: 16619.68249 | AD65: 4805.644643 | AE65: 29323.14899 | AF65: 0 | AG65: 0 | AH65: 0 | AI65: 0 | AJ65: 0 | AK65: 0 | AL65: 0
B66: 1972 | C66: 17185679.3 | D66: 15328522.25 | E66: 371431.4094 | F66: 2162912.079 | G66: 2681886.631 | H66: 2681886.631 | I66: 2591927.178 | J66: =+I67*(1-I$5) -> 2059640.898 | K66: 1844089.982 | L66: 1694545.849 | M66: 1415305.876 | N66: 1365804.769 | O66: 1018296.466 | P66: 825582.1743 | Q66: 653202.1012 | R66: 504945.5059 | S66: 381786.2296 | T66: 282660.4513 | U66: 204866.1086 | V66: 145704.0835 | W66: 101252.5555 | X66: 69970.99993 | Y66: 46403.83138 | Z66: 33564.87413 | AA66: 19688.98463 | AB66: 22662.2672 | AC66: 6560.105168 | AD66: 40060.9651 | AE66: 0 | AF66: 0 | AG66: 0 | AH66: 0 | AI66: 0 | AJ66: 0 | AK66: 0 | AL66: 0
B67: 1971 | C67: 16599861.75 | D67: 14823127.35 | E67: 355346.8792 | F67: 2086532.273 | G67: 2591927.178 | H67: 2591927.178 | I67: 2523914.27 | J67: =+I68*(1-I$5) -> 1969336.017 | K67: 1842106.323 | L67: 1570536.791 | M67: 1550642.777 | N67: 1184494.665 | O67: 984190.5314 | P67: 797336.2916 | Q67: 629926.0894 | R67: 485502.2318 | S67: 365338.8661 | T67: 268346.4039 | U67: 192898.154 | V67: 135171.1553 | W67: 94011.55691 | X67: 62651.44849 | Y67: 45483.22422 | Z67: 26753.14859 | AA67: 30855.62236 | AB67: 8945.228427 | AC67: 54686.55377 | AD67: 0 | AE67: 0 | AF67: 0 | AG67: 0 | AH67: 0 | AI67: 0 | AJ67: 0 | AK67: 0 | AL67: 0
B68: 1970 | C68: 16014044.19 | D68: 14302283.78 | E68: 342352.0827 | F68: 2003070.696 | G68: 2523914.27 | H68: 2523914.27 | I68: 2413253.34 | J68: =+I69*(1-I$5) -> 1967217.634 | K68: 1707298.599 | L68: 1720717.459 | M68: 1344795.493 | N68: 1144822.233 | O68: 950518.135 | P68: 768924.2444 | Q68: 605670.3519 | R68: 464586.7794 | S68: 346837.948 | T68: 252670.0307 | U68: 178953.573 | V68: 125504.4941 | W68: 84177.16227 | X68: 61408.50432 | Y68: 36252.76386 | Z68: 41926.2377 | AA68: 12179.30173 | AB68: 74569.49283 | AC68: 0 | AD68: 0 | AE68: 0 | AF68: 0 | AG68: 0 | AH68: 0 | AI68: 0 | AJ68: 0 | AK68: 0 | AL68: 0
B69: 1969 | C69: 15428226.63 | D69: 13824629.12 | E69: 320719.5031 | F69: 1935598.683 | G69: 2413253.34 | H69: 2413253.34 | I69: 2410657.442 | J69: =+I70*(1-I$5) -> 1823254.101 | K69: 1870556.948 | L69: 1492292.82 | M69: 1299754.084 | N69: 1105654.097 | O69: 916647.651 | P69: 739316.2873 | Q69: 579578.0529 | R69: 441059.9041 | S69: 326576.2228 | T69: 234404.5489 | U69: 166155.8459 | V69: 112375.675 | W69: 82507.16875 | X69: 48946.13441 | Y69: 56813.57429 | Z69: 16549.08443 | AA69: 101529.4758 | AB69: 0 | AC69: 0 | AD69: 0 | AE69: 0 | AF69: 0 | AG69: 0 | AH69: 0 | AI69: 0 | AJ69: 0 | AK69: 0 | AL69: 0
B70: 1968 | C70: 14842409.08 | D70: 13254657.6 | E70: 317550.2964 | F70: 1840685.919 | G70: 2410657.442 | H70: 2410657.442 | I70: 2234242.411 | J70: =+I71*(1-I$5) -> 1997600.554 | K70: 1622241.17 | L70: 1442311.264 | M70: 1255285.22 | N70: 1066255.544 | O70: 881351.5025 | P70: 707466.5169 | Q70: 550227.9698 | R70: 415293.881 | S70: 302968.0725 | T70: 217641.2879 | U70: 148774.5556 | V70: 110146.2502 | W70: 65762.99189 | X70: 76706.00935 | Y70: 22425.39968 | Z70: 137956.9949 | AA70: 0 | AB70: 0 | AC70: 0 | AD70: 0 | AE70: 0 | AF70: 0 | AG70: 0 | AH70: 0 | AI70: 0 | AJ70: 0 | AK70: 0 | AL70: 0
B71: 1967 | C71: 14256591.52 | D71: 12825387.31 | E71: 286240.8428 | F71: 1804972.122 | G71: 2234242.411 | H71: 2234242.411 | I71: 2447889.12 | J71: =+I72*(1-I$5) -> 1732419.782 | K71: 1567907.237 | L71: 1392965.05 | M71: 1210554.756 | N71: 1025198.64 | O71: 843382.8503 | P71: 671640.1067 | Q71: 518084.5207 | R71: 385272.3433 | S71: 281301.5439 | T71: 194874.1901 | U71: 145823.0122 | V71: 87792.94055 | W71: 103060.5732 | X71: 30277.32261 | Y71: 186943.3178 | Z71: 0 | AA71: 0 | AB71: 0 | AC71: 0 | AD71: 0 | AE71: 0 | AF71: 0 | AG71: 0 | AH71: 0 | AI71: 0 | AJ71: 0 | AK71: 0 | AL71: 0
B72: 1966 | C72: 13670773.97 | D72: 12061101.16 | E72: 321934.5602 | F72: 1683602.977 | G72: 2447889.12 | H72: 2447889.12 | I72: 2122932.699 | J72: =+I73*(1-I$5) -> 1674395.623 | K72: 1514263.972 | L72: 1343328.543 | M72: 1163941.512 | N72: 981033.0487 | O72: 800673.5782 | P72: 632403.9524 | Q72: 480632.2618 | R72: 357719.8881 | S72: 251875.0512 | T72: 191008.0745 | U72: 116229.3861 | V72: 137584.841 | W72: 40679.97086 | X72: 252398.7632 | Y72: 0 | Z72: 0 | AA72: 0 | AB72: 0 | AC72: 0 | AD72: 0 | AE72: 0 | AF72: 0 | AG72: 0 | AH72: 0 | AI72: 0 | AJ72: 0 | AK72: 0 | AL72: 0
B73: 1965 | C73: 13084956.41 | D73: =SUM(I73:AL73) -> 11547841.27 | E73: 307423.0286 | F73: 1609672.801 | G73: 2122932.699 | H73: =G73*IF(NewOnly>0,NewOnly,1) -> 2122932.699 | I73: 2051829.04 | J73: =+I74*(1-I$5) -> 1617109.039 | K73: 1460305.134 | L73: 1291602.753 | M73: 1113798.873 | N73: 931353.1111 | O73: 753899.4922 | P73: 586687.5575 | Q73: 446260.2154 | R73: 320299.3979 | S73: 246878.0936 | T73: 152244.4976 | U73: 182149.06 | V73: 54307.35677 | W73: 339117.6447 | X73: 0 | Y73: 0 | Z73: 0 | AA73: 0 | AB73: 0 | AC73: 0 | AD73: 0 | AE73: 0 | AF73: 0 | AG73: 0 | AH73: 0 | AI73: 0 | AJ73: 0 | AK73: 0 | AL73: 0
B74: 1964 | C74: 12499138.85 | D74: 11033127.37 | E74: 293202.2969 | F74: 1537115.143 | G74: 2051829.04 | H74: 2051829.04 | I74: =+G75*(1-H$3) -> 1981629.218 | J74: =+I75*(1-I$5) -> 1559485.451 | K74: 1404075.08 | L74: 1235960.463 | M74: 1057395.616 | N74: 876944.9332 | O74: 699400.2014 | P74: 544731.0481 | Q74: 399577.6669 | R74: 313944.9674 | S74: 196776.1385 | T74: 238590.1971 | U74: 71897.70269 | V74: 452718.6851 | W74: 0 | X74: 0 | Y74: 0 | Z74: 0 | AA74: 0 | AB74: 0 | AC74: 0 | AD74: 0 | AE74: 0 | AF74: 0 | AG74: 0 | AH74: 0 | AI74: 0 | AJ74: 0 | AK74: 0 | AL74: 0
B75: 1963 | C75: 11913321.3 | D75: 10517509.64 | E75: 279162.3323 | F75: 1466011.484 | G75: 1981629.218 | H75: 1981629.218 | I75: 1911016.424 | J75: =+I76*(1-I$5) -> 1499436.391 | K75: 1343587.479 | L75: 1173370.891 | M75: 995624.2342 | N75: 813550.7043 | O75: 649383.1341 | P75: 487747.6275 | Q75: 391650.4322 | R75: 250232.3212 | S75: 308378.0263 | T75: 94176.09431 | U75: 599355.8766 | V75: 0 | W75: 0 | X75: 0 | Y75: 0 | Z75: 0 | AA75: 0 | AB75: 0 | AC75: 0 | AD75: 0 | AE75: 0 | AF75: 0 | AG75: 0 | AH75: 0 | AI75: 0 | AJ75: 0 | AK75: 0 | AL75: 0
B76: 1962 | C76: 11327503.74 | D76: 10002304.87 | E76: 265039.7736 | F76: 1395811.662 | G76: 1911016.424 | H76: 1911016.424 | I76: 1837431.422 | J76: =+I77*(1-I$5) -> 1434840.621 | K76: 1275547.628 | L76: 1104824.417 | M76: 923650.6949 | N76: 755370.2516 | O76: 581452.2305 | P76: 478071.186 | Q76: 312168.0769 | R76: 392151.9645 | S76: 121722.6795 | T76: 785073.7013 | U76: 0 | V76: 0 | W76: 0 | X76: 0 | Y76: 0 | Z76: 0 | AA76: 0 | AB76: 0 | AC76: 0 | AD76: 0 | AE76: 0 | AF76: 0 | AG76: 0 | AH76: 0 | AI76: 0 | AJ76: 0 | AK76: 0 | AL76: 0
B77: 1961 | C77: 10741686.18 | D77: 9490072.319 | E77: 250322.7732 | F77: 1325198.868 | G77: 1837431.422 | H77: 1837431.422 | I77: 1758274.815 | J77: =+I78*(1-I$5) -> 1362179.672 | K77: 1201032.15 | L77: 1024956.811 | M77: 857596.5261 | N77: 676352.2096 | O77: 569916.7803 | P77: 381050.4227 | Q77: 489214.6788 | R77: 154789.8482 | S77: 1014708.405 | T77: 0 | U77: 0 | V77: 0 | W77: 0 | X77: 0 | Y77: 0 | Z77: 0 | AA77: 0 | AB77: 0 | AC77: 0 | AD77: 0 | AE77: 0 | AF77: 0 | AG77: 0 | AH77: 0 | AI77: 0 | AJ77: 0 | AK77: 0 | AL77: 0
B78: 1960 | C78: 10155868.63 | D78: 8983411.37 | E78: 234491.4517 | F78: 1251613.866 | G78: 1758274.815 | H78: 1758274.815 | I78: 1669235.018 | J78: =+I79*(1-I$5) -> 1282603.286 | K78: 1114209.701 | L78: 951657.8135 | M78: 767884.7614 | N78: 662934.0356 | O78: 454256.6806 | P78: 597163.7523 | Q78: 193102.3499 | R78: 1290363.971 | S78: 0 | T78: 0 | U78: 0 | V78: 0 | W78: 0 | X78: 0 | Y78: 0 | Z78: 0 | AA78: 0 | AB78: 0 | AC78: 0 | AD78: 0 | AE78: 0 | AF78: 0 | AG78: 0 | AH78: 0 | AI78: 0 | AJ78: 0 | AK78: 0 | AL78: 0
B79: 1959 | C79: 9570051.072 | D79: 8486633.61 | E79: 216683.4924 | F79: 1172457.259 | G79: 1669235.018 | H79: 1669235.018 | I79: 1571720.945 | J79: =+I80*(1-I$5) -> 1189884.071 | K79: 1034527.851 | L79: 852106.4519 | M79: 752650.67 | N79: 528396.8202 | O79: 711889.0512 | P79: 235711.9049 | Q79: 1609745.846 | R79: 0 | S79: 0 | T79: 0 | U79: 0 | V79: 0 | W79: 0 | X79: 0 | Y79: 0 | Z79: 0 | AA79: 0 | AB79: 0 | AC79: 0 | AD79: 0 | AE79: 0 | AF79: 0 | AG79: 0 | AH79: 0 | AI79: 0 | AJ79: 0 | AK79: 0 | AL79: 0
B80: 1958 | C80: 8984233.516 | D80: 7998330.128 | E80: 197180.6777 | F80: 1083417.462 | G80: 1571720.945 | H80: 1571720.945 | I80: 1458101.453 | J80: =+I81*(1-I$5) -> 1104790.427 | K80: 926307.5911 | L80: 835201.4836 | M80: 599906.1737 | N80: 828077.8843 | O80: 280996.1651 | P80: 1964948.95 | Q80: 0 | R80: 0 | S80: 0 | T80: 0 | U80: 0 | V80: 0 | W80: 0 | X80: 0 | Y80: 0 | Z80: 0 | AA80: 0 | AB80: 0 | AC80: 0 | AD80: 0 | AE80: 0 | AF80: 0 | AG80: 0 | AH80: 0 | AI80: 0 | AJ80: 0 | AK80: 0 | AL80: 0
B81: 1957 | C81: 8398415.96 | D81: 7526132.063 | E81: =(C81-D81)/ShipAdjTime -> 174456.7794 | F81: 985903.3884 | G81: 1458101.453 | H81: 1458101.453 | I81: 1353826.45 | J81: =+I82*(1-I$5) -> 989220.114 | K81: 907930.5439 | L81: 665703.9531 | M81: 940143.8769 | N81: 326858.1101 | O81: 2342449.016 | P81: 0 | Q81: 0 | R81: 0 | S81: 0 | T81: 0 | U81: 0 | V81: 0 | W81: 0 | X81: 0 | Y81: 0 | Z81: 0 | AA81: 0 | AB81: 0 | AC81: 0 | AD81: 0 | AE81: 0 | AF81: 0 | AG81: 0 | AH81: 0 | AI81: 0 | AJ81: 0 | AK81: 0 | AL81: 0
B82: 1956 | C82: 7812598.404 | D82: 7044589.511 | E82: 153601.7787 | F82: 872283.8971 | G82: 1353826.45 | H82: 1353826.45 | I82: 1212204.887 | J82: =+I83*(1-I$5) -> 969594.9432 | K82: 723673.2262 | L82: 1043258.967 | M82: 371092.6915 | N82: 2724764.795 | O82: 0 | P82: 0 | Q82: 0 | R82: 0 | S82: 0 | T82: 0 | U82: 0 | V82: 0 | W82: 0 | X82: 0 | Y82: 0 | Z82: 0 | AA82: 0 | AB82: 0 | AC82: 0 | AD82: 0 | AE82: 0 | AF82: 0 | AG82: 0 | AH82: 0 | AI82: 0 | AJ82: 0 | AK82: 0 | AL82: 0
B83: 1955 | C83: 7226780.848 | D83: 6600393.517 | E83: 125277.4662 | F83: 768008.8934 | G83: 1212204.887 | H83: 1212204.887 | I83: 1188155.914 | J83: =+I84*(1-I$5) -> 772823.3238 | K83: 1134105.602 | L83: 411794.1814 | M83: 3093514.495 | N83: 0 | O83: 0 | P83: 0 | Q83: 0 | R83: 0 | S83: 0 | T83: 0 | U83: 0 | V83: 0 | W83: 0 | X83: 0 | Y83: 0 | Z83: 0 | AA83: 0 | AB83: 0 | AC83: 0 | AD83: 0 | AE83: 0 | AF83: 0 | AG83: 0 | AH83: 0 | AI83: 0 | AJ83: 0 | AK83: 0 | AL83: 0
B84: 1954 | C84: =($B84-$B$88)/($B$58-$B$88)*($C$58-$C$88)+$C$88 -> 6640963.292 | D84: 6038624.934 | E84: 120467.6716 | F84: 626387.331 | G84: 1188155.914 | H84: 1188155.914 | I84: 947029.0755 | J84: =+I85*(1-I$5) -> 1211131.253 | K84: 447653.0782 | L84: 3432811.527 | M84: 0 | N84: 0 | O84: 0 | P84: 0 | Q84: 0 | R84: 0 | S84: 0 | T84: 0 | U84: 0 | V84: 0 | W84: 0 | X84: 0 | Y84: 0 | Z84: 0 | AA84: 0 | AB84: 0 | AC84: 0 | AD84: 0 | AE84: 0 | AF84: 0 | AG84: 0 | AH84: 0 | AI84: 0 | AJ84: 0 | AK84: 0 | AL84: 0
B85: 1953 | C85: 6055145.736 | D85: 5693934.216 | E85: 72242.30387 | F85: 602338.3579 | G85: 947029.0755 | H85: 947029.0755 | I85: 1484138.063 | J85: =+I86*(1-I$5) -> 478056.5693 | K85: 3731739.584 | L85: 0 | M85: 0 | N85: 0 | O85: 0 | P85: 0 | Q85: 0 | R85: 0 | S85: 0 | T85: 0 | U85: 0 | V85: 0 | W85: 0 | X85: 0 | Y85: 0 | Z85: 0 | AA85: 0 | AB85: 0 | AC85: 0 | AD85: 0 | AE85: 0 | AF85: 0 | AG85: 0 | AH85: 0 | AI85: 0 | AJ85: 0 | AK85: 0 | AL85: 0
B86: 1952 | C86: 5469328.18 | D86: 4571007.673 | E86: =(C86-D86)/ShipAdjTime -> 179664.1014 | F86: 361211.5193 | G86: 1484138.063 | H86: 1484138.063 | I86: 585817.5561 | J86: =+I87*(1-I$5) -> 3985190.117 | K86: 0 | L86: 0 | M86: 0 | N86: 0 | O86: 0 | P86: 0 | Q86: 0 | R86: 0 | S86: 0 | T86: 0 | U86: 0 | V86: 0 | W86: 0 | X86: 0 | Y86: 0 | Z86: 0 | AA86: 0 | AB86: 0 | AC86: 0 | AD86: 0 | AE86: 0 | AF86: 0 | AG86: 0 | AH86: 0 | AI86: 0 | AJ86: 0 | AK86: 0 | AL86: 0
B87: 1951 | C87: 4883510.624 | D87: 4883510.624 | E87: 0 | F87: 898320.5068 | G87: 585817.5561 | H87: 585817.5561 | I87: 4883510.624 | J87: =+I88*(1-I$5) -> 0 | K87: 0 | L87: 0 | M87: 0 | N87: 0 | O87: 0 | P87: 0 | Q87: 0 | R87: 0 | S87: 0 | T87: 0 | U87: 0 | V87: 0 | W87: 0 | X87: 0 | Y87: 0 | Z87: 0 | AA87: 0 | AB87: 0 | AC87: 0 | AD87: 0 | AE87: 0 | AF87: 0 | AG87: 0 | AH87: 0 | AI87: 0 | AJ87: 0 | AK87: 0 | AL87: 0
B88: 1950 | C88: =SUM(Database!B203:E203) -> 4297693.067 | D88: 0 | E88: =(C88-D88)/ShipAdjTime -> 859538.6135 | F88: 0 | G88: 4883510.624 | H88: 4883510.624 | I88: =+G89*(1-H$5) -> 0 | J88: =+I89*(1-I$5) -> 0 | K88: 0 | L88: 0 | M88: 0 | N88: 0 | O88: 0 | P88: 0 | Q88: 0 | R88: 0 | S88: 0 | T88: 0 | U88: 0 | V88: 0 | W88: 0 | X88: 0 | Y88: 0 | Z88: 0 | AA88: 0 | AB88: 0 | AC88: 0 | AD88: 0 | AE88: 0 | AF88: 0 | AG88: 0 | AH88: 0 | AI88: 0 | AJ88: 0 | AK88: 0 | AL88: 0

Sheet CountryData
C2: Sources:
C3: Population: Population Division of the Department of Economic and Social Affairs of the United Nations Secretariat, 2015 and National census
C4: Electrification Rates: Most recent data from respective organisations in each ASEAN member state | T4: SRES Scenarios Income growth
C5: Household Size: UN Habitat and most recent country census report (2010-12) | T5: Country | U5: High growth (OECD) | V5: Conservative (ADB) | W5: Custom growth (user input)
C6: Urbanization: UN Escap | S6: =U5 -> High growth (OECD) | T6: 1 | U6: 0.018 | V6: 0.012 | W6: =IF(AND(UserGDPgrowth<>0,EcoIndex=3,CountryIndex=1),UserGDPgrowth,U6) -> 0.018
C7: Income PPP: World Bank | S7: =V5 -> Conservative (ADB) | T7: 2 | U7: 0.073 | V7: 0.04 | W7: =IF(AND(UserGDPgrowth<>0,EcoIndex=3,CountryIndex=2),UserGDPgrowth,U7) -> 0.073
C8: Generation Mix: IEA, Heat Rate are assumed to be 3.3 for thermal generation and 3.13 for Nuclear (IEA average gross heat rate) | S8: =W5 -> Custom growth (user input) | T8: 3 | U8: 0.055 | V8: 0.025 | W8: =IF(AND(UserGDPgrowth<>0,EcoIndex=3,CountryIndex=3),UserGDPgrowth,U8) -> 0.055
C9: CO2 Emission Factor: IEA, 2013 and List of Grid Emission Factors created by Kentaro Takahashi and Akihisa Kuriyama | T9: 4 | U9: 0.073 | V9: 0.035 | W9: =IF(AND(UserGDPgrowth<>0,EcoIndex=3,CountryIndex=4),UserGDPgrowth,U9) -> 0.073
C10: Distribution Losses: IEA and published data by national utility | T10: 5 | U10: 0.05 | V10: 0.025 | W10: =IF(AND(UserGDPgrowth<>0,EcoIndex=3,CountryIndex=5),UserGDPgrowth,U10) -> 0.05
C11: Income Growth: High growth is based on OECD report: Economic Outlook for Southeast Asia, China and India 2016, Conservative is based on ADB the ASEAN economy in the regional context 2014 | T11: 6 | U11: 0.083 | V11: 0.04 | W11: =IF(AND(UserGDPgrowth<>0,EcoIndex=3,CountryIndex=6),UserGDPgrowth,U11) -> 0.083
C12: Cooling Degree Days based on average monthly temperatures from weatherbase.com or given by wunderground.com | T12: 7 | U12: 0.057 | V12: 0.03 | W12: =IF(AND(UserGDPgrowth<>0,EcoIndex=3,CountryIndex=7),UserGDPgrowth,U12) -> 0.057
C13: Electricity tariff based on official data reported by national utilities. | T13: 8 | U13: 0.026 | V13: 0.01 | W13: =IF(AND(UserGDPgrowth<>0,EcoIndex=3,CountryIndex=8),UserGDPgrowth,U13) -> 0.026
C14: GDP: The World Bank, 2015 | T14: 9 | U14: 0.036 | V14: 0.02 | W14: =IF(AND(UserGDPgrowth<>0,EcoIndex=3,CountryIndex=9),UserGDPgrowth,U14) -> 0.036
C15: Note: Data in italics have been interpolated from other countries, except economic data. See collumn comments. | T15: 10 | U15: 0.06 | V15: 0.035 | W15: =IF(AND(UserGDPgrowth<>0,EcoIndex=3,CountryIndex=10),UserGDPgrowth,U15) -> 0.06
F18: population in thousands | R18: HHSize (pp/HH) | AA18: Electricity Consumption (TWh) | AK18: Inflation, average consumer prices | AL18: Income Growth (%)--High | AM18: Income Growth (%)--Low | AN18: Income Growth (%)--Current | AO18: Income PPP ($) | BH18: Heat Rate | BI18: CO2 Em.Factor kg/kWh | BJ18: T&D Losses | BK18: Elec Rate (IEA) | BL18: Air Conditioner Percent Operating Days | BM18: Cooling Degree Days | BN18: Electricity tariff | BO18: Gross Domestic Product
C19: Country Name | D19: HDI Rank | E19: SRES | F19: 1950 | G19: 1980 | H19: 1990 | I19: 1995 | J19: 2000 | K19: 2005 | L19: 2010 | M19: 2015 | N19: 2020 | O19: 2025 | P19: 2030 | Q19: 1980 | R19: 1990 | S19: 1995 | T19: 2000 | U19: 2005 | V19: 2010 | W19: 2015 | X19: 2020 | Y19: 2025 | Z19: 2030 | AA19: 1990 | AB19: 1995 | AC19: 2000 | AD19: 2005 | AE19: 2010 | AF19: 2015 | AG19: 2020 | AH19: 2025 | AI19: 2030 | AM19: 1990-2050 | AN19: 2000-2013 | AO19: 1980 | AP19: 1985 | AQ19: 1990 | AR19: 1995 | AS19: 2000 | AT19: 2001 | AU19: 2002 | AV19: 2003 | AW19: 2004 | AX19: 2005 | AY19: 2006 | AZ19: 2007 | BA19: 2008 | BB19: 2009 | BC19: 2010 | BD19: 2011 | BE19: 2012 | BF19: 2013 | BH19: 2002 | BI19: 2013 | BJ19: 2011 | BK19: 2013 | BL19: Based on 18.5C (65F) | BM19: Based on 18.5C (65F) | BN19: in USD (2015) | BO19: in billion USD (2015)
C20: User Specified
C21: Brunei Darussalam | D21: 33 | E21: 1 | F21: 48 | G21: 193 | H21: 257 | I21: 295 | J21: 333 | K21: 374 | L21: 401 | M21: 423 | N21: 454 | O21: 476 | P21: 499 | Q21: 6.02 | R21: 5.96 | S21: 5.93 | T21: 5.88 | U21: 5.8 | V21: 5.8 | W21: 5.86 | X21: 5.99 | Y21: 6.14 | Z21: 5.98 | AA21: 1.119265662 | AB21: 1.825934252 | AC21: 2.532602843 | AD21: 3.171609398 | AE21: 3.391017081 | AF21: 3.871515502 | AG21: =IF(UserIncomeGrowth>0,AF21*(1+UserIncomeGrowth)^5,AF21*(1+VLOOKUP($E21,SRESEcoGrowth,EcoIndex+1,FALSE))^5) -> 4.232723433 | AH21: =AG21*(1+VLOOKUP($E21,SRESEcoGrowth,EcoIndex+1,FALSE))^5 -> 4.627631648 | AI21: 5.059384344 | AK21: 0.00108 | AL21: =VLOOKUP(E21,SRESEcoGrowth,2,TRUE) -> 0.018 | AM21: =VLOOKUP(E21,SRESEcoGrowth,3,TRUE) -> 0.012 | AN21: 0.01614760947 | AO21: 29762.47884 | AP21: 35470.828 | AQ21: 49820 | AR21: 57170 | AS21: 59030 | AT21: 60700 | AU21: 62670 | AV21: 64420 | AW21: 65210 | AX21: 66280 | AY21: 70010 | AZ21: 71070 | BA21: 69770 | BB21: 68010 | BC21: 68997.9 | BD21: 70001.1 | BE21: 71020 | BF21: 71424 | BH21: 3.3 | BI21: 0.7545034 | BJ21: 0.07167785235 | BK21: 0.998 | BL21: 0.9687287671 | BM21: 3516 | BN21: 0.04 | BO21: 17.105
C22: Cambodia | D22: 130 | E22: 2 | F22: 4346 | G22: 6613 | H22: 9738 | I22: 11368 | J22: 12223 | K22: 13675 | L22: 14365 | M22: 15578 | N22: 16947 | O22: 17432 | P22: 19144 | Q22: 5.78 | R22: 5.64 | S22: 5.82 | T22: 5.61 | U22: 5.27 | V22: 4.96 | W22: 4.75 | X22: 4.59 | Y22: 4.38 | Z22: 4.38 | AA22: 0.19538192 | AB22: 0.30890632 | AC22: 0.3988188136 | AD22: 1.100037263 | AE22: 2.065203286 | AF22: 4.144 | AG22: =IF(UserIncomeGrowth>0,AF22*(1+UserIncomeGrowth)^5,AF22*(1+VLOOKUP($E22,SRESEcoGrowth,EcoIndex+1,FALSE))^5) -> 5.894111627 | AH22: 8.383337806 | AI22: 11.92382453 | AK22: 0.02925 | AL22: 0.073 | AM22: 0.04 | AN22: 0.08341114242 | AO22: 1467.800392 | AP22: 1452.586302 | AQ22: 565 | AR22: 780 | AS22: 1050 | AT22: 1130 | AU22: 1190 | AV22: 1310 | AW22: 1450 | AX22: 1660 | AY22: 1870 | AZ22: 2090 | BA22: 2250 | BB22: 2230 | BC22: 2340 | BD22: 2530 | BE22: 2710 | BF22: 2890 | BH22: 2.138099827 | BI22: =1.1597317 -> 1.1597317 | BJ22: 0.2811016144 | BK22: 0.34 | BL22: 0.9999780822 | BM22: 3323 | BN22: 0.2 | BO22: 16.778
C23: Indonesia | D23: 111 | E23: 3 | F23: 79538 | G23: 150072 | H23: 179414 | I23: 195649 | J23: 206339 | K23: =L23-(L23-J23)/2 -> 221992.5 | L23: 237646 | M23: 257564 | N23: 277322.35 | O23: 283667.69 | P23: 305429.69 | Q23: 4.72 | R23: 4.56 | S23: 4.39 | T23: 4.26 | U23: 4.16 | V23: 4.06 | W23: 3.97 | X23: 3.91 | Y23: 3.89 | Z23: 3.89 | AA23: 29.15528583 | AB23: 54.85239035 | AC23: 80.54949487 | AD23: 115.3264229 | AE23: 151.3061814 | AF23: 210.7638404 | AG23: =IF(UserIncomeGrowth>0,AF23*(1+UserIncomeGrowth)^5,AF23*(1+VLOOKUP($E23,SRESEcoGrowth,EcoIndex+1,FALSE))^5) -> 275.4599102 | AH23: 360.015086 | AI23: 470.5253191 | AK23: 0.03981 | AL23: 0.055 | AM23: 0.025 | AN23: 0.06040087812 | AO23: 735.884 | AP23: 1081.468 | AQ23: 2810 | AR23: 4320 | AS23: 4230 | AT23: 4350 | AU23: 4490 | AV23: 5160 | AW23: 5440 | AX23: 5840 | AY23: 6300 | AZ23: 6790 | BA23: 7280 | BB23: 7570 | BC23: 8100 | BD23: 8640 | BE23: 9220 | BF23: 9750 | BH23: 2.840728321 | BI23: =0.759948 -> 0.759948 | BJ23: 0.07521152733 | BK23: 0.81 | BL23: 0.9999780822 | BM23: 3545 | BN23: 0.12 | BO23: 888.538
C24: Lao PDR | D24: 135 | E24: 4 | F24: 1755 | G24: 3205 | H24: 4132 | I24: 4686 | J24: 5388 | K24: 5924 | L24: 6396 | M24: 6802 | N24: 7350.45 | O24: 7944.28 | P24: 8586.08 | Q24: 6.71 | R24: 6.5 | S24: 6.341 | T24: 6.177 | U24: 6.01 | V24: 5.9 | W24: 5.705 | X24: 5.507 | Y24: 5.355 | Z24: 5.15138 | AA24: 0.389568 | AB24: 0.54847 | AC24: 0.705 | AD24: 1.011 | AE24: 2.44 | AF24: 3.88 | AG24: 5.518618029 | AH24: 7.849264162 | AI24: 11.16419864 | AK24: 0.04259 | AL24: 0.073 | AM24: 0.035 | AN24: 0.07591006465 | AO24: 344.972 | AP24: 569.536 | AQ24: 1050 | AR24: 1390 | AS24: 1770 | AT24: 1890 | AU24: 2010 | AV24: 2100 | AW24: 2300 | AX24: 2550 | AY24: 2710 | AZ24: 3000 | BA24: 3190 | BB24: 3450 | BC24: 3570 | BD24: 3840 | BE24: 4170 | BF24: 4550 | BH24: 0.09303636876 | BI24: 0.5764 | BJ24: =AVERAGE(10.78,10.14,10.32,12.02,13.1)% -> 0.11272 | BK24: 0.8734053628 | BL24: 0.5042132189 | BM24: 2833 | BN24: 0.09 | BO24: 11.997
C25: Malaysia | D25: 59 | E25: 5 | F25: 6110 | G25: 13763 | H25: 17845 | I25: 20362 | J25: 23421 | K25: 26347 | L25: 28276 | M25: 30331 | N25: 32858 | O25: 34223 | P25: 36846 | Q25: 5.23 | R25: 5.13 | S25: 5.05 | T25: 4.62 | U25: 4.465 | V25: 4.31 | W25: 4.138 | X25: 4 | Y25: 3.82 | Z25: 3.75432 | AA25: 20.44751148 | AB25: 42.08209444 | AC25: 63.7166774 | AD25: 80.58076229 | AE25: 117.5878167 | AF25: 148.8747173 | AG25: 190.0060568 | AH25: 242.5012271 | AI25: 309.499845 | AK25: 0.01664 | AL25: 0.05 | AM25: 0.025 | AN25: 0.05271161613 | AO25: 2350.976 | AP25: 3421.78 | AQ25: 6290 | AR25: 9760 | AS25: 11430 | AT25: 11610 | AU25: 12270 | AV25: 13150 | AW25: 14190 | AX25: 15260 | AY25: 16560 | AZ25: 17890 | BA25: 18610 | BB25: 18330 | BC25: 19330 | BD25: 20580 | BE25: 21460 | BF25: 22530 | BH25: 2.945440456 | BI25: 0.6559169 | BJ25: 0.06400184488 | BK25: 0.995 | BL25: 0.9687287671 | BM25: 3411 | BN25: 0.11 | BO25: 338.104
C26: Myanmar | D26: 149 | E26: 6 | F26: 17527 | G26: 34475 | H26: 42123 | I26: 45330 | J26: 48452 | K26: 50181 | L26: 51931 | M26: 53897 | N26: 55843.7333 | O26: 57861.854 | P26: 59952.905 | Q26: 5.78 | R26: 5.54 | S26: 5.35 | T26: 5.2 | U26: 4.72 | V26: 4.649 | W26: 4.579 | X26: 4.55 | Y26: 4.51 | Z26: 4.44 | AA26: 1.828020667 | AB26: 2.700857186 | AC26: 3.573693705 | AD26: 4.339903267 | AE26: 6.314072409 | AF26: 10.22868682 | AG26: 15.23919986 | AH26: 22.7041082 | AI26: 33.82569519 | AK26: 0.02829 | AL26: 0.083 | AM26: 0.04 | AN26: 0.09569509391 | AO26: 303.0567537 | AP26: 355.2295256 | AQ26: 0 | AR26: 0 | AS26: 530.327 | AT26: 603.889 | AU26: 660.18 | AV26: 751.334 | AW26: 853.487 | AX26: 991.544 | AY26: 1132.889 | AZ26: 1276.75 | BA26: 1321.971 | BB26: 1373.07 | BC26: 1435.12 | BD26: 1519.379 | BE26: 1626.26 | BF26: 1739.843 | BH26: 0.07690756303 | BI26: =0.2852407 -> 0.2852407 | BJ26: 0.2123652245 | BK26: 0.34 | BL26: 0.6687 | BM26: 3243 | BN26: 0.06 | BO26: 64.33
C27: Philippines | D27: 83 | E27: 7 | F27: 19996 | G27: 48088 | H27: 61104 | I27: 68396 | J27: 77652 | K27: 83054 | L27: 93444 | M27: 100699 | N27: 110404 | O27: 118321 | P27: 127797 | Q27: 5.76 | R27: 5.33 | S27: 5.08 | T27: 5 | U27: 4.8 | V27: 4.6 | W27: 4.42 | X27: 4.24 | Y27: 4.11 | Z27: 4.07 | AA27: 22.04277194 | AB27: 38.4238622 | AC27: 43.80495246 | AD27: 56.56837965 | AE27: 67.74299173 | AF27: 80.18202288 | AG27: 105.7917851 | AH27: 139.5811852 | AI27: 184.1627614 | AK27: 0.03171 | AL27: 0.057 | AM27: 0.03 | AN27: 0.05122411011 | AO27: 1345.172 | AP27: 1438.277 | AQ27: 2550 | AR27: 2990 | AS27: 3940 | AT27: 4090 | AU27: 4240 | AV27: 4590 | AW27: 4960 | AX27: 5390 | AY27: 5730 | AZ27: 6140 | BA27: 6490 | BB27: 6810 | BC27: 7330 | BD27: 6850 | BE27: 7310 | BF27: 7840 | BH27: 2.026267019 | BI27: =0.4867668 -> 0.4867668 | BJ27: 0.1110211634 | BK27: 0.809 | BL27: 0.9999780822 | BM27: 3508 | BN27: 0.2 | BO27: 284.777
C28: Singapore | D28: 25 | E28: 8 | F28: 1022 | G28: 2415 | H28: 3016 | I28: 3478 | J28: 3918 | K28: 4458 | L28: 5079 | M28: 5604 | N28: 5948 | O28: 6252 | P28: 6506 | Q28: 4.26 | R28: 4.16 | S28: 3.89 | T28: 3.59 | U28: 3.47 | V28: 3.5 | W28: 3.43 | X28: 3.3 | Y28: 3.2 | Z28: 3.08 | AA28: 15.02902563 | AB28: 22.35474395 | AC28: 29.68046228 | AD28: 37.98223293 | AE28: 42.68519786 | AF28: 49.48384477 | AG28: 56.26006631 | AH28: 63.96421047 | AI28: 72.72334515 | AK28: 0.04575 | AL28: 0.026 | AM28: 0.01 | AN28: 0.05253065818 | AO28: 7151.726 | AP28: 11338.12 | AQ28: 21960 | AR28: 32960 | AS28: 40700 | AT28: 39960 | AU28: 41150 | AV28: 44180 | AW28: 47290 | AX28: 51490 | AY28: 57830 | AZ28: 62390 | BA28: 60530 | BB28: 58750 | BC28: 70200 | BD28: 73240 | BE28: 74740 | BF28: 77840 | BH28: 3.3 | BI28: 0.5310437 | BJ28: 0.05291419379 | BK28: 1 | BL28: 0.9687287671 | BM28: 3261 | BN28: 0.21 | BO28: 307.86
C29: Thailand | D29: 76 | E29: 9 | F29: 19626 | G29: 46334 | H29: 54639 | I29: 58336 | J29: 62343 | K29: 64233 | L29: 66402 | M29: 67193 | N29: 67858 | O29: 67732 | P29: 67554 | Q29: 4.64 | R29: 4.4 | S29: 4.22 | T29: 3.812 | U29: 3.594 | V29: 3.2 | W29: 3.08 | X29: 2.985 | Y29: 2.9 | Z29: 2.81 | AA29: 38.75235547 | AB29: 64.70148272 | AC29: 90.65060996 | AD29: 119.9761173 | AE29: 147.2676505 | AF29: 174.8340756 | AG29: 208.6531082 | AH29: 249.0139261 | AI29: 297.1819395 | AK29: 0.03015 | AL29: 0.036 | AM29: 0.02 | AN29: 0.0535034931 | AO29: 1099.497 | AP29: 1659.825 | AQ29: 4060 | AR29: 6630 | AS29: 6970 | AT29: 7130 | AU29: 7470 | AV29: 8020 | AW29: 8650 | AX29: 9240 | AY29: 10040 | AZ29: 10840 | BA29: 11320 | BB29: 11080 | BC29: 12020 | BD29: 12340 | BE29: 13280 | BF29: 13430 | BH29: 3.043069675 | BI29: 0.5291102 | BJ29: 0.06944854025 | BK29: 0.991 | BL29: 0.9999780822 | BM29: 3567 | BN29: 0.11 | BO29: 404.824
C30: Viet Nam | D30: 112 | E30: 10 | F30: 27367 | G30: 53005 | H30: 66206 | I30: 73163 | J30: 80888 | K30: 84238 | L30: 89047 | M30: 92391 | N30: 97057 | O30: 100321 | P30: 101830 | Q30: 5.21 | R30: 4.92 | S30: 4.622 | T30: 4.307 | U30: 3.972 | V30: 3.89 | W30: 3.831 | X30: 3.75 | Y30: 3.702 | Z30: 3.57 | AA30: 6.494569647 | AB30: 15.17976758 | AC30: 23.86496552 | AD30: 55.20335619 | AE30: 92.12867716 | AF30: 148.3949584 | AG30: 198.5859289 | AH30: 265.7527695 | AI30: 355.6371534 | AK30: 0.09103 | AL30: 0.06 | AM30: 0.035 | AN30: 0.08280423317 | AO30: 302.073 | AP30: 495.991 | AQ30: 910 | AR30: 1470 | AS30: 2070 | AT30: 2220 | AU30: 2370 | AV30: 2550 | AW30: 2780 | AX30: 3050 | AY30: 3310 | AZ30: 3580 | BA30: 3810 | BB30: 3950 | BC30: 4230 | BD30: 4510 | BE30: 4800 | BF30: 5070 | BH30: 1.295674146 | BI30: 0.5638 | BJ30: 0.101432763 | BK30: 0.958 | BL30: 0.9999780822 | BM30: 3016 | BN30: 0.09 | BO30: 186.205
A201: 1 | B201: CountryData!C201 | D201: Brunei Darussalam
A202: 2 | B202: CountryData!C202 | D202: Cambodia
A203: 3 | B203: CountryData!C203 | D203: Indonesia
A204: 4 | B204: CountryData!C204 | D204: Lao People's Democratic Republic
A205: 5 | B205: CountryData!C205 | D205: Malaysia
A206: 6 | B206: CountryData!C206 | D206: Myanmar
A207: 7 | B207: CountryData!C207 | D207: Philippines
A208: 8 | B208: CountryData!C208 | D208: Singapore
A209: 9 | B209: CountryData!C209 | D209: Thailand
A210: 10 | B210: CountryData!C210 | D210: Viet Nam

Sheet Database
B1: OFFICIAL DATA OR DATA FROM PRELIMINARY ANALYSIS | S1: Assumptions and Econometric modelling | AL1: Time series SHIPMENT projection
A2: Sectoral Electricity Consumption (data in 2014-15) | I2: Share of electricity use for lighting | S2: Assumption on Typical wattage & Operating hours | AL2: Historial shipment (Sales) | AQ2: Lamps lifetime | AT2: % Share of installed lamps in each sector in the selected country
B4: Country | C4: Residential | D4: Commercial | E4: Industrial | F4: Public | G4: Others | I4: Elec. use for lighting (commercial sector) | J4: Elec. use for lighting (industrial sector) | K4: % Elec. Use for street lighting | L4: No. of light points per HH | S4: Typical wattage | W4: Operating hours (default vaule by country) | AG4: Utilisation (%) | AL4: Country | AM4: Est. sales in 2014 (units) | AN4: Est. sales in 2012 (units) | AO4: Est. sales in 2010 (units) | AQ4: Lamp type | AR4: AVG lifespan (hours) | AT4: Country | AU4: Residential | AV4: Professional | AW4: Street lighting | AX4: Total stock
A5: SEA | B5: Brunei Darussalam | C5: =IF(VLOOKUP($B5,'User Inputs'!$F$9:$K$27,2,FALSE)>0,VLOOKUP(Database!$B5,'User Inputs'!$F$9:$K$27,2,FALSE),38%) -> 0.38 | D5: =IF(VLOOKUP($B5,'User Inputs'!$F$9:$K$27,3,FALSE)>0,VLOOKUP(Database!$B5,'User Inputs'!$F$9:$K$27,3,FALSE),15%) -> 0.15 | E5: =IF(VLOOKUP($B5,'User Inputs'!$F$9:$K$27,4,FALSE)>0,VLOOKUP(Database!$B5,'User Inputs'!$F$9:$K$27,4,FALSE),18%) -> 0.18 | F5: =IF(VLOOKUP($B5,'User Inputs'!$F$9:$K$27,5,FALSE)>0,VLOOKUP(Database!$B5,'User Inputs'!$F$9:$K$27,5,FALSE),29%) -> 0.29 | G5: =1-SUM(C5:F5) -> 0 | I5: =IF(AND(UserComeleclighting>0,CountryIndex=1),UserComeleclighting,14%) -> 0.14 | J5: =IF(AND(UserIndeleclighting>0,CountryIndex=1),UserIndeleclighting,AVERAGE($J$11,$J$13,$J$14)) -> 0.0454 | K5: =IF(AND(UserStreetconsumption>0,CountryIndex=1),UserStreetconsumption,AVERAGE($K$6:$K$9,$K$12:$K$14)) -> 0.01045142857 | L5: =IF(AND(UserLightpoint>0,CountryIndex=1),UserLightpoint,23) -> 23 | S5: Lamp type | T5: Commercial (W) | U5: Industrial (W) | V5: Outdoor (W) | W5: BRN | X5: KHM | Y5: IDN | Z5: LAO | AA5: MAS | AB5: MYM | AC5: PHP | AD5: SGP | AE5: THA | AF5: VNM | AG5: Commercial | AH5: Industrial | AI5: Outdoor | AL5: Brunei Darussalam | AM5: 702284.3445 | AN5: 659397.3146 | AO5: 613690.3837 | AQ5: Incandescent | AR5: 900 | AT5: =OFFSET(TopCountry,CountryIndex-1,0) -> Malaysia | AU5: =B138 -> 146776180.6 | AV5: =SUM(C138+D138) -> 118019784.2 | AW5: =E138 -> 2724059.291 | AX5: =SUM(AU5:AW5) -> 267520024.1
B6: Cambodia | C6: =IF(VLOOKUP($B6,'User Inputs'!$F$9:$K$27,2,FALSE)>0,VLOOKUP(Database!$B6,'User Inputs'!$F$9:$K$27,2,FALSE),26%) -> 0.26 | D6: =IF(VLOOKUP($B6,'User Inputs'!$F$9:$K$27,3,FALSE)>0,VLOOKUP(Database!$B6,'User Inputs'!$F$9:$K$27,3,FALSE),28%) -> 0.28 | E6: =IF(VLOOKUP($B6,'User Inputs'!$F$9:$K$27,4,FALSE)>0,VLOOKUP(Database!$B6,'User Inputs'!$F$9:$K$27,4,FALSE),20%) -> 0.2 | F6: =IF(VLOOKUP($B6,'User Inputs'!$F$9:$K$27,5,FALSE)>0,VLOOKUP(Database!$B6,'User Inputs'!$F$9:$K$27,5,FALSE),4%) -> 0.04 | G6: =1-SUM(C6:F6) -> 0.22 | I6: =IF(AND(UserComeleclighting>0,CountryIndex=2),UserComeleclighting,AVERAGE($I$5,$I$7,$I$9,$I$11:$I$14)) -> 0.1461857143 | J6: =IF(AND(UserIndeleclighting>0,CountryIndex=2),UserIndeleclighting,AVERAGE($J$11,$J$13,$J$14)) -> 0.0454 | K6: =IF(AND(UserStreetconsumption>0,CountryIndex=2),UserStreetconsumption,2%) -> 0.02 | L6: =IF(AND(UserLightpoint>0,CountryIndex=2),UserLightpoint,8.07) -> 8.07 | S6: Incandescent | T6: 60 | U6: 60 | V6: 100 | W6: 6.5 | X6: 7.1 | Y6: 7.1 | Z6: 7.1 | AA6: 7.1 | AB6: 7.1 | AC6: 7.1 | AD6: 6.5 | AE6: 7.1 | AF6: 7.1 | AG6: =250/365*97% -> 0.6643835616 | AH6: =340/365*90% -> 0.8383561644 | AI6: 1 | AL6: Cambodia | AM6: 4449692.897 | AN6: 3931748.643 | AO6: 3474093.101 | AQ6: Halogen | AR6: 1000 | AT6: Percentage share | AU6: =AU5/$AX$5 -> 0.548654932 | AV6: =AV5/$AX$5 -> 0.4411624311 | AW6: =AW5/$AX$5 -> 0.01018263698
B7: Indonesia | C7: =IF(VLOOKUP($B7,'User Inputs'!$F$9:$K$27,2,FALSE)>0,VLOOKUP(Database!$B7,'User Inputs'!$F$9:$K$27,2,FALSE),41%) -> 0.41 | D7: =IF(VLOOKUP($B7,'User Inputs'!$F$9:$K$27,3,FALSE)>0,VLOOKUP(Database!$B7,'User Inputs'!$F$9:$K$27,3,FALSE),18%) -> 0.18 | E7: =IF(VLOOKUP($B7,'User Inputs'!$F$9:$K$27,4,FALSE)>0,VLOOKUP(Database!$B7,'User Inputs'!$F$9:$K$27,4,FALSE),35%) -> 0.35 | F7: =IF(VLOOKUP($B7,'User Inputs'!$F$9:$K$27,5,FALSE)>0,VLOOKUP(Database!$B7,'User Inputs'!$F$9:$K$27,5,FALSE),3%) -> 0.03 | G7: 0.03 | I7: =IF(AND(UserComeleclighting>0,CountryIndex=3),UserComeleclighting,22%) -> 0.22 | J7: =IF(AND(UserIndeleclighting>0,CountryIndex=3),UserIndeleclighting,AVERAGE($J$11,$J$13,$J$14)) -> 0.0454 | K7: =IF(AND(UserStreetconsumption>0,CountryIndex=3),UserStreetconsumption,1.4%) -> 0.014 | L7: 7.26 | S7: Halogen | T7: 50 | U7: 50 | V7: 80 | W7: 9 | X7: 9.4 | Y7: 9.4 | Z7: 9.4 | AA7: 9.4 | AB7: 9.4 | AC7: 9.4 | AD7: 9 | AE7: 9.4 | AF7: 9.4 | AG7: =250/365*97% -> 0.6643835616 | AH7: =340/365*90% -> 0.8383561644 | AI7: 1 | AL7: Indonesia | AM7: 204567085 | AN7: 182683521.1 | AO7: 161419159.2 | AQ7: CFL | AR7: 8000
B8: Lao PDR | C8: =IF(VLOOKUP($B8,'User Inputs'!$F$9:$K$27,2,FALSE)>0,VLOOKUP(Database!$B8,'User Inputs'!$F$9:$K$27,2,FALSE),38%) -> 0.38 | D8: =IF(VLOOKUP($B8,'User Inputs'!$F$9:$K$27,3,FALSE)>0,VLOOKUP(Database!$B8,'User Inputs'!$F$9:$K$27,3,FALSE),15%) -> 0.15 | E8: =IF(VLOOKUP($B8,'User Inputs'!$F$9:$K$27,4,FALSE)>0,VLOOKUP(Database!$B8,'User Inputs'!$F$9:$K$27,4,FALSE),41%) -> 0.41 | F8: =IF(VLOOKUP($B8,'User Inputs'!$F$9:$K$27,5,FALSE)>0,VLOOKUP(Database!$B8,'User Inputs'!$F$9:$K$27,5,FALSE),6%) -> 0.06 | G8: 0 | I8: =IF(AND(UserComeleclighting>0,CountryIndex=4),UserComeleclighting,20%) -> 0.2 | J8: =IF(AND(UserIndeleclighting>0,CountryIndex=4),UserIndeleclighting,AVERAGE($J$11,$J$13,$J$14)) -> 0.0454 | K8: =IF(AND(UserStreetconsumption>0,CountryIndex=4),UserStreetconsumption,0.3%) -> 0.003 | L8: =IF(AND(UserLightpoint>0,CountryIndex=4),UserLightpoint,7.17) -> 7.17 | S8: CFL | T8: 14 | U8: 24 | V8: 25 | W8: 9.5 | X8: 10.7 | Y8: 10.7 | Z8: 10.7 | AA8: 10.7 | AB8: 10.7 | AC8: 10.7 | AD8: 9.5 | AE8: 10.7 | AF8: 10.7 | AG8: 0.6643835616 | AH8: =340/365*90% -> 0.8383561644 | AI8: 1 | AL8: Lao PDR | AM8: 1824472.439 | AN8: 1612103.847 | AO8: 1424454.959 | AQ8: LFL - T5 | AR8: 16000 | AT8: Lifetime and Ago_0
B9: Malaysia | C9: =IF(VLOOKUP($B9,'User Inputs'!$F$9:$K$27,2,FALSE)>0,VLOOKUP(Database!$B9,'User Inputs'!$F$9:$K$27,2,FALSE),18%) -> 0.18 | D9: =IF(VLOOKUP($B9,'User Inputs'!$F$9:$K$27,3,FALSE)>0,VLOOKUP(Database!$B9,'User Inputs'!$F$9:$K$27,3,FALSE),34%) -> 0.34 | E9: =IF(VLOOKUP($B9,'User Inputs'!$F$9:$K$27,4,FALSE)>0,VLOOKUP(Database!$B9,'User Inputs'!$F$9:$K$27,4,FALSE),43%) -> 0.43 | F9: =IF(VLOOKUP($B9,'User Inputs'!$F$9:$K$27,5,FALSE)>0,VLOOKUP(Database!$B9,'User Inputs'!$F$9:$K$27,5,FALSE),1%) -> 0.01 | G9: 0.04 | I9: =IF(AND(UserComeleclighting>0,CountryIndex=5),UserComeleclighting,11%) -> 0.11 | J9: =IF(AND(UserIndeleclighting>0,CountryIndex=5),UserIndeleclighting,AVERAGE($J$11,$J$13,$J$14)) -> 0.0454 | K9: =IF(AND(UserStreetconsumption>0,CountryIndex=5),UserStreetconsumption,1.1%) -> 0.011 | L9: =IF(AND(UserLightpoint>0,CountryIndex=5),UserLightpoint,19.604) -> 19.604 | S9: LFL - T5 | T9: 26 | U9: 26 | V9: 28 | W9: 11.1 | X9: 11.1 | Y9: 11.1 | Z9: 11.1 | AA9: 11.1 | AB9: 11.1 | AC9: 11.1 | AD9: 11.1 | AE9: 11.1 | AF9: 11.1 | AG9: 0.6643835616 | AH9: 0.8383561644 | AI9: 1 | AL9: Malaysia | AM9: 39972884.91 | AN9: 36456270.36 | AO9: 32901784 | AQ9: LFL - T8 | AR9: 18000 | AT9: Country | AU9: Residential (hrs) | AV9: Professional (hrs) | AW9: Street lighting (hrs) | AX9: Weighted AVG lifetime | AY9: Mean deviation (Δage) | AZ9: Age_0 | BA9: Δage
B10: Myanmar | C10: =IF(VLOOKUP($B10,'User Inputs'!$F$9:$K$27,2,FALSE)>0,VLOOKUP(Database!$B10,'User Inputs'!$F$9:$K$27,2,FALSE),33%) -> 0.33 | D10: =IF(VLOOKUP($B10,'User Inputs'!$F$9:$K$27,3,FALSE)>0,VLOOKUP(Database!$B10,'User Inputs'!$F$9:$K$27,3,FALSE),20%) -> 0.2 | E10: =IF(VLOOKUP($B10,'User Inputs'!$F$9:$K$27,4,FALSE)>0,VLOOKUP(Database!$B10,'User Inputs'!$F$9:$K$27,4,FALSE),44%) -> 0.44 | F10: =IF(VLOOKUP($B10,'User Inputs'!$F$9:$K$27,5,FALSE)>0,VLOOKUP(Database!$B10,'User Inputs'!$F$9:$K$27,5,FALSE),3%) -> 0.03 | G10: 0 | I10: =IF(AND(UserComeleclighting>0,CountryIndex=6),UserComeleclighting,AVERAGE($I$5,$I$7,$I$9,$I$11:$I$14)) -> 0.1461857143 | J10: =IF(AND(UserIndeleclighting>0,CountryIndex=6),UserIndeleclighting,AVERAGE($J$11,$J$13,$J$14)) -> 0.0454 | K10: =IF(AND(UserStreetconsumption>0,CountryIndex=6),UserStreetconsumption,AVERAGE($K$6:$K$9,$K$12:$K$14)) -> 0.01045142857 | L10: =IF(AND(UserLightpoint>0,CountryIndex=6),UserLightpoint,8.5616) -> 8.5616 | S10: LFL - T8 | T10: 32 | U10: 36 | V10: 32 | W10: 9.5 | X10: 10.5 | Y10: 10.5 | Z10: 10.5 | AA10: 10.5 | AB10: 10.5 | AC10: 10.5 | AD10: 9.5 | AE10: 10.5 | AF10: 10.5 | AG10: 0.6643835616 | AH10: 0.8383561644 | AI10: 1 | AL10: Myanmar | AM10: 19098115.92 | AN10: 16875095.22 | AO10: 15390508.72 | AQ10: LFL - T12 | AR10: 16000 | AT10: Brunei Darussalam | AU10: =SUMPRODUCT(C25:C37,$AR$5:$AR$17) -> 13714 | AV10: =SUMPRODUCT(C39:C51,$AR$5:$AR$17)*85%+SUMPRODUCT(C54:C66,$AR$5:$AR$17)*15% -> 13915.435 | AW10: =SUMPRODUCT(C69:C82,$AR$5:$AR$18) -> 16638.1 | AX10: =IF(AT10=$AT$5,AU10*$AU$6+AV10*$AV$6+AW10*$AW$6,"") ->  | AY10: =AVEDEV($AR$5:$AR$18) -> 6946.938776 | AZ10: =AX10/AQ24 ->  | BA10: =AY10/AQ24 -> 
B11: Philippines | C11: =IF(VLOOKUP($B11,'User Inputs'!$F$9:$K$27,2,FALSE)>0,VLOOKUP(Database!$B11,'User Inputs'!$F$9:$K$27,2,FALSE),28%) -> 0.28 | D11: =IF(VLOOKUP($B11,'User Inputs'!$F$9:$K$27,3,FALSE)>0,VLOOKUP(Database!$B11,'User Inputs'!$F$9:$K$27,3,FALSE),24%) -> 0.24 | E11: =IF(VLOOKUP($B11,'User Inputs'!$F$9:$K$27,4,FALSE)>0,VLOOKUP(Database!$B11,'User Inputs'!$F$9:$K$27,4,FALSE),27%) -> 0.27 | F11: =IF(VLOOKUP($B11,'User Inputs'!$F$9:$K$27,5,FALSE)>0,VLOOKUP(Database!$B11,'User Inputs'!$F$9:$K$27,5,FALSE),7%) -> 0.07 | G11: 0.14 | I11: 0.15 | J11: =IF(AND(UserIndeleclighting>0,CountryIndex=7),UserIndeleclighting,5%) -> 0.05 | K11: =IF(AND(UserStreetconsumption>0,CountryIndex=7),UserStreetconsumption,AVERAGE($K$6:$K$9,$K$12:$K$14)) -> 0.01045142857 | L11: =IF(AND(UserLightpoint>0,CountryIndex=7),UserLightpoint,5.96) -> 5.96 | S11: LFL - T12 | T11: 40 | U11: 40 | V11: 40 | W11: 2.5 | X11: 9.1 | Y11: 9.1 | Z11: 9.1 | AA11: 9.1 | AB11: 9.1 | AC11: 9.1 | AD11: 2.5 | AE11: 9.1 | AF11: 9.1 | AG11: 0.6643835616 | AH11: 0.8383561644 | AI11: 1 | AL11: Philippines | AM11: 75310994.38 | AN11: 68685509.65 | AO11: 60690516.33 | AQ11: LFL - Circular | AR11: 10000 | AT11: Cambodia | AU11: 13148.72666 | AV11: 13996.015 | AW11: 20013 | AX11: =IF(AT11=$AT$5,AU11*$AU$6+AV11*$AV$6+AW11*$AW$6,"") ->  | AY11: 6946.938776 | AZ11: =AX11/AQ25 ->  | BA11: =AY11/AQ25 -> 
B12: Singapore | C12: =IF(VLOOKUP($B12,'User Inputs'!$F$9:$K$27,2,FALSE)>0,VLOOKUP(Database!$B12,'User Inputs'!$F$9:$K$27,2,FALSE),15%) -> 0.15 | D12: =IF(VLOOKUP($B12,'User Inputs'!$F$9:$K$27,3,FALSE)>0,VLOOKUP(Database!$B12,'User Inputs'!$F$9:$K$27,3,FALSE),37%) -> 0.37 | E12: =IF(VLOOKUP($B12,'User Inputs'!$F$9:$K$27,4,FALSE)>0,VLOOKUP(Database!$B12,'User Inputs'!$F$9:$K$27,4,FALSE),43%) -> 0.43 | F12: =IF(VLOOKUP($B12,'User Inputs'!$F$9:$K$27,5,FALSE)>0,VLOOKUP(Database!$B12,'User Inputs'!$F$9:$K$27,5,FALSE),5%) -> 0.05 | G12: 0 | I12: =IF(AND(UserComeleclighting>0,CountryIndex=8),UserComeleclighting,11.73%) -> 0.1173 | J12: =IF(AND(UserIndeleclighting>0,CountryIndex=8),UserIndeleclighting,AVERAGE($J$11,$J$13,$J$14)) -> 0.0454 | K12: =IF(AND(UserStreetconsumption>0,CountryIndex=8),UserStreetconsumption,0.33%) -> 0.0033 | L12: =IF(AND(UserLightpoint>0,CountryIndex=8),UserLightpoint,29.37) -> 29.37 | S12: LFL - Circular | T12: 28 | U12: 32 | V12: 28 | W12: 7.5 | X12: 9.3 | Y12: 9.3 | Z12: 9.3 | AA12: 9.3 | AB12: 9.3 | AC12: 9.3 | AD12: 6.5 | AE12: 9.3 | AF12: 9.3 | AG12: 0.6643835616 | AH12: 0.8383561644 | AI12: 1 | AL12: Singapore | AM12: 21747028.58 | AN12: 25628689.9 | AO12: 22545070 | AQ12: LED omni | AR12: 18000 | AT12: Indonesia | AU12: 10036.29032 | AV12: 13438.585 | AW12: 19237.35875 | AY12: 6946.938776
B13: Thailand | C13: =IF(VLOOKUP($B13,'User Inputs'!$F$9:$K$27,2,FALSE)>0,VLOOKUP(Database!$B13,'User Inputs'!$F$9:$K$27,2,FALSE),24%) -> 0.24 | D13: =IF(VLOOKUP($B13,'User Inputs'!$F$9:$K$27,3,FALSE)>0,VLOOKUP(Database!$B13,'User Inputs'!$F$9:$K$27,3,FALSE),30%) -> 0.3 | E13: =IF(VLOOKUP($B13,'User Inputs'!$F$9:$K$27,4,FALSE)>0,VLOOKUP(Database!$B13,'User Inputs'!$F$9:$K$27,4,FALSE),44%) -> 0.44 | F13: =IF(VLOOKUP($B13,'User Inputs'!$F$9:$K$27,5,FALSE)>0,VLOOKUP(Database!$B13,'User Inputs'!$F$9:$K$27,5,FALSE),2%) -> 0.02 | G13: 0 | I13: =IF(AND(UserComeleclighting>0,CountryIndex=9),UserComeleclighting,13.6%) -> 0.136 | J13: =IF(AND(UserIndeleclighting>0,CountryIndex=9),UserIndeleclighting,4.62%) -> 0.0462 | K13: =IF(AND(UserStreetconsumption>0,CountryIndex=9),UserStreetconsumption,1.186%) -> 0.01186 | L13: =IF(AND(UserLightpoint>0,CountryIndex=9),UserLightpoint,14.1) -> 14.1 | S13: LED omni | T13: 7.2 | U13: 10 | V13: 16.5 | W13: 11.4 | X13: 11.4 | Y13: 11.4 | Z13: 11.4 | AA13: 11.4 | AB13: 11.4 | AC13: 11.4 | AD13: 11.4 | AE13: 11.4 | AF13: 11.4 | AG13: 0.6643835616 | AH13: 0.8383561644 | AI13: 1 | AL13: Thailand | AM13: 90990513.8 | AN13: 87746029 | AO13: 79300000 | AQ13: LED tube | AR13: 20000 | AT13: Lao PDR | AU13: 15023.84199 | AV13: 13848.455 | AW13: 15920 | AY13: 6946.938776
B14: Viet Nam | C14: =IF(VLOOKUP($B14,'User Inputs'!$F$9:$K$27,2,FALSE)>0,VLOOKUP(Database!$B14,'User Inputs'!$F$9:$K$27,2,FALSE),36%) -> 0.36 | D14: =IF(VLOOKUP($B14,'User Inputs'!$F$9:$K$27,3,FALSE)>0,VLOOKUP(Database!$B14,'User Inputs'!$F$9:$K$27,3,FALSE),5%) -> 0.05 | E14: =IF(VLOOKUP($B14,'User Inputs'!$F$9:$K$27,4,FALSE)>0,VLOOKUP(Database!$B14,'User Inputs'!$F$9:$K$27,4,FALSE),54%) -> 0.54 | F14: =IF(VLOOKUP($B14,'User Inputs'!$F$9:$K$27,5,FALSE)>0,VLOOKUP(Database!$B14,'User Inputs'!$F$9:$K$27,5,FALSE),4%) -> 0.04 | G14: 0.01 | I14: =IF(AND(UserComeleclighting>0,CountryIndex=10),UserComeleclighting,15%) -> 0.15 | J14: =IF(AND(UserIndeleclighting>0,CountryIndex=10),UserIndeleclighting,4%) -> 0.04 | K14: =IF(AND(UserStreetconsumption>0,CountryIndex=10),UserStreetconsumption,1%) -> 0.01 | L14: =IF(AND(UserLightpoint>0,CountryIndex=10),UserLightpoint,13.63) -> 13.63 | S14: LED tube | T14: 14 | U14: 16 | V14: 16.5 | W14: 12.9 | X14: 12.9 | Y14: 12.9 | Z14: 12.9 | AA14: 12.9 | AB14: 12.9 | AC14: 12.9 | AD14: 12.9 | AE14: 12.9 | AF14: 12.9 | AG14: 0.6643835616 | AH14: 0.8383561644 | AI14: 1 | AL14: Viet Nam | AM14: 108521901.8 | AN14: 102108257.4 | AO14: 96073659.37 | AQ14: LED others | AR14: 15000 | AT14: Malaysia | AU14: 11720.1373 | AV14: 13438.585 | AW14: 17062 | AX14: 12532.64611 | AY14: 6946.938776 | AZ14: 5.741009851 | BA14: 3.182284378
S15: LED others | T15: 14 | U15: 20 | V15: 16.5 | W15: 11.8 | X15: 11.8 | Y15: 11.8 | Z15: 11.8 | AA15: 11.8 | AB15: 11.8 | AC15: 11.8 | AD15: 11.8 | AE15: 11.8 | AF15: 11.8 | AG15: 0.6643835616 | AH15: 0.8383561644 | AI15: 1 | AQ15: HID - HPS | AR15: 21000 | AT15: Myanmar | AU15: 11945.18 | AV15: 13423.88 | AW15: 20013 | AY15: 6946.938776
S16: HID - HPS | T16: 120 | U16: 150 | V16: 180 | W16: 11.5 | X16: 11.5 | Y16: 11.5 | Z16: 11.5 | AA16: 11.5 | AB16: 11.5 | AC16: 11.5 | AD16: 11.5 | AE16: 11.5 | AF16: 11.5 | AG16: 0.6643835616 | AH16: 0.8383561644 | AI16: 1 | AQ16: HID - Mercury Vapour | AR16: 10000 | AT16: Philippines | AU16: 10140.60403 | AV16: 15500.26 | AW16: 16230 | AY16: 6946.938776
S17: HID - Mercury Vapour | T17: 120 | U17: 150 | V17: 180 | W17: 11.5 | X17: 11.5 | Y17: 11.5 | Z17: 11.5 | AA17: 11.5 | AB17: 11.5 | AC17: 11.5 | AD17: 11.5 | AE17: 11.5 | AF17: 11.5 | AG17: 0.6643835616 | AH17: 0.8383561644 | AI17: 1 | AQ17: HID - Metal Halide | AR17: 8000 | AT17: Singapore | AU17: 12647.55833 | AV17: 13438.585 | AW17: 16625.3 | AY17: 6946.938776
S18: HID - Metal Halide | T18: 120 | U18: 150 | V18: 180 | W18: 11.5 | X18: 11.5 | Y18: 11.5 | Z18: 11.5 | AA18: 11.5 | AB18: 11.5 | AC18: 11.5 | AD18: 11.5 | AE18: 11.5 | AF18: 11.5 | AG18: 0.6643835616 | AH18: =340/365*90% -> 0.8383561644 | AI18: 1 | AQ18: LED street light | AR18: 40000 | AT18: Thailand | AU18: 12853.14685 | AV18: 14820.005 | AW18: 13762 | AX18: =IF(AT18=$AT$5,AU18*$AU$6+AV18*$AV$6+AW18*$AW$6,"") ->  | AY18: =AVEDEV($AR$5:$AR$18) -> 6946.938776 | BA18: =AY18/AQ32 -> 
S19: LED street light | T19: 30 | U19: 70 | V19: 90 | W19: 11.5 | X19: 11.5 | Y19: 11.5 | Z19: 11.5 | AA19: 11.5 | AB19: 11.5 | AC19: 11.5 | AD19: 11.5 | AE19: 11.5 | AF19: 11.5 | AG19: 0.6643835616 | AH19: =340/365*90% -> 0.8383561644 | AI19: 1 | AT19: Viet Nam | AU19: 12293.29 | AV19: 15456.3745 | AW19: 18371.5 | AY19: 6946.938776
B22: % Share of lamps by type in 3 different sectors | AL22: Annual operating hour of lighting by country
B23: RESIDENTIAL | C23: 1 | D23: 2 | E23: 3 | F23: 4 | G23: 5 | H23: 6 | I23: 7 | J23: 8 | K23: 9 | L23: 10 | AL23: Country | AM23: Residential | AN23: Commercial | AO23: Industrial | AP23: Street lighting | AQ23: Weighted AVG hours
B24: Lamp type | C24: BRN | D24: KHM | E24: IDN | F24: LAO | G24: MAS | H24: MYM | I24: PHP | J24: SGP | K24: THA | L24: VNM | R24: Country Name | T24: Sigmoid Saturation function (Baseline in 2015) | AL24: Brunei Darussalam | AM24: 1295 | AN24: 2310.443 | AO24: 4135.7277 | AP24: =11.5*365 -> 4197.5 | AQ24: =IF(AL24=$AT$5,AM24*$AU$6+(AN24*90%+AO24*10%)*$AV$6+(AP24*$AW$6),"") -> 
B25: Incandescent | C25: 0.04 | D25: 0.006791171477 | E25: 0 | F25: 0.02831706674 | G25: 0.01806588735 | H25: 0.0622 | I25: 0.03691275168 | J25: 0.06047000995 | K25: 0.04995004995 | L25: 0.1101 | T25: 1950 | U25: 1980 | V25: 1990 | W25: 1995 | X25: 2000 | Y25: 2005 | Z25: 2010 | AA25: 2015 | AB25: 2020 | AC25: 2025 | AD25: 2030 | AL25: Cambodia | AM25: 1229 | AN25: 2558.084 | AO25: 4135.7277 | AP25: =11.5*365 -> 4197.5 | AQ25: =IF(AL25=$AT$5,AM25*$AU$6+(AN25*90%+AO25*10%)*$AV$6+(AP25*$AW$6),"") -> 
B26: Halogen | C26: 0.015 | D26: 0.003395585739 | E26: 0.004032258065 | F26: 0.001490371934 | G26: 0.0605738576 | H26: 0.008 | I26: 0.006711409396 | J26: 0.123989011 | K26: 0.01098901099 | L26: 0.0139 | R26: SEA | S26: Brunei Darussalam | T26: 0.06755900555 | U26: 0.3004864577 | V26: 0.6169658626 | W26: 0.7511147855 | X26: 0.8265489501 | Y26: 0.902378943 | Z26: 0.9442364982 | AA26: 1 | AB26: 1.058818429 | AC26: 1.118280222 | AD26: 1.175562758 | AL26: Indonesia | AM26: 2241 | AN26: 2598.3875 | AO26: 4135.7277 | AP26: 4197.5
B27: CFL | C27: 0.295 | D27: 0.4210526316 | E27: 0.7741935484 | F27: 0.1405961488 | G27: 0.4197662062 | H27: 0.4114 | I27: 0.6140939597 | J27: 0.1805702328 | K27: 0.3276723277 | L27: 0.3155 | S27: Cambodia | T27: 0.1874951865 | U27: 0.2247805888 | V27: 0.2548236317 | W27: 0.2741994641 | X27: 0.3101023153 | Y27: 0.3933174046 | Z27: 0.5973093331 | AA27: 1 | AB27: 1.607590274 | AC27: 2.179318998 | AD27: 2.563711653 | AL27: Lao PDR | AM27: 1678 | AN27: 2506.972275 | AO27: 4135.7277 | AP27: 4197.5
B28: LFL - T5 | C28: 0.046 | D28: 0.003395585739 | E28: 0.07661290323 | F28: 0.002789765233 | G28: 0.05313496281 | H28: 0.029 | I28: 0.006711409396 | J28: 0.041999001 | K28: 0.000999000999 | L28: 0 | S28: Indonesia | T28: 0.06227170453 | U28: 0.1065913801 | V28: 0.1681663119 | W28: 0.2397892366 | X28: 0.365420446 | Y28: 0.5440288442 | Z28: 0.769612524 | AA28: 1 | AB28: 1.19462021 | AC28: 1.342980225 | AD28: 1.45277963 | AL28: Malaysia | AM28: 1688 | AN28: 2598.3875 | AO28: 4135.7277 | AP28: 4197.5 | AQ28: 2183.003764
B29: LFL - T8 | C29: 0.49 | D29: 0.4702886248 | E29: 0.004032258065 | F29: 0.6904668953 | G29: 0.265674814 | H29: 0.145 | I29: 0.06711409396 | J29: 0.4169404595 | K29: 0.4595404595 | L29: 0.3294 | S29: Lao PDR | T29: 0.06855796725 | U29: 0.08824684828 | V29: 0.1084553306 | W29: 0.1415878112 | X29: 0.231705792 | Y29: 0.4241963103 | Z29: 0.7077583575 | AA29: 1 | AB29: 1.208417229 | AC29: 1.314949919 | AD29: 1.387429646 | AL29: Myanmar | AM29: 2137 | AN29: 2600.6185 | AO29: 4135.7277 | AP29: 4197.5
B30: LFL - T12 | C30: 0.027 | D30: 0 | E30: 0 | F30: 0.00418464785 | G30: 0.01594048884 | H30: 0.2656 | I30: 0.07718120805 | J30: 0.002995004995 | K30: 0.004995004995 | L30: 0.0073 | S30: Malaysia | T30: 0.04709740279 | U30: 0.2186179481 | V30: 0.4575653032 | W30: 0.6121173587 | X30: 0.7425976314 | Y30: 0.8611513566 | Z30: 0.9519687018 | AA30: 1 | AB30: 1.034598432 | AC30: 1.062279296 | AD30: 1.087627515 | AL30: Philippines | AM30: 2504 | AN30: 2600.6185 | AO30: 4135.7277 | AP30: 4197.5
B31: LFL - Circular | C31: 0.03 | D31: 0.05432937182 | E31: 0 | F31: 0.130836191 | G31: 0.05632306057 | H31: 0.0164 | I31: 0.1006711409 | J31: 0.0428971029 | K31: 0.1028971029 | L31: 0.0521 | S31: Myanmar | T31: 0.3428010686 | U31: 0.3896680045 | V31: 0.4084456719 | W31: 0.4343175428 | X31: 0.4836291047 | Y31: 0.5718202863 | Z31: 0.7342968482 | AA31: 1 | AB31: 1.444129208 | AC31: 2.109163907 | AD31: 2.916026519 | AL31: Singapore | AM31: 1503 | AN31: 2372.8625 | AO31: 4135.7277 | AP31: 4197.5
B32: LED omni | C32: 0.045 | D32: 0.03225806452 | E32: 0.1411290323 | F32: 0.001318913216 | G32: 0.05528097768 | H32: 0.0448 | I32: 0.09060402685 | J32: 0.09307503497 | K32: 0.03496503497 | L32: 0.1101 | S32: Philippines | T32: 0.1013583144 | U32: 0.1522725538 | V32: 0.2409466132 | W32: 0.3031494853 | X32: 0.410809145 | Y32: 0.5744419235 | Z32: 0.7826610796 | AA32: 1 | AB32: 1.189929293 | AC32: 1.340780438 | AD32: 1.454380801 | AL32: Thailand | AM32: 1385 | AN32: 2570.64065 | AO32: 4135.7277 | AP32: 4197.5 | AQ32: =IF(AL32=$AT$5,AM32*$AU$6+(AN32*85%+AO32*15%)*$AV$6+(AP32*$AW$6),"") -> 
B33: LED tube | C33: 0.005 | D33: 0 | E33: 0 | F33: 0 | G33: 0.002125398512 | H33: 0.0064 | I33: 0 | J33: 0.02789400599 | K33: 0.005994005994 | L33: 0.0367 | S33: Singapore | T33: 0.1571223001 | U33: 0.4114324554 | V33: 0.6781611492 | W33: 0.7880518245 | X33: 0.8536181067 | Y33: 0.910265573 | Z33: 0.9785520555 | AA33: 1 | AB33: 1.019360301 | AC33: 1.041729066 | AD33: 1.065280868 | AL33: Viet Nam | AM33: 1431 | AN33: 2617.351 | AO33: 4135.7277 | AP33: 4197.5
B34: LED others | C34: 0.007 | D34: 0.008488964346 | E34: 0 | F34: 0 | G34: 0.05313496281 | H34: 0.0112 | I34: 0 | J34: 0.00917001998 | K34: 0.001998001998 | L34: 0.0249 | S34: Thailand | T34: 0.09066557954 | U34: 0.2630884755 | V34: 0.5289585198 | W34: 0.6783086624 | X34: 0.7565092385 | Y34: 0.8473463335 | Z34: 0.9540351981 | AA34: 1 | AB34: 1.079844372 | AC34: 1.153487135 | AD34: 1.260870754 | BK34: 15
B35: HID - HPS | C35: 0 | D35: 0 | E35: 0 | F35: 0 | G35: 0 | H35: 0 | I35: 0 | J35: 0 | K35: 0 | L35: 0 | S35: Viet Nam | T35: 0.07937473208 | U35: 0.1032011174 | V35: 0.1790440959 | W35: 0.3048509446 | X35: 0.5043026937 | Y35: 0.7172804588 | Z35: 0.8119385701 | AA35: 1 | AB35: 1.103467031 | AC35: 1.249898139 | AD35: 1.307147101 | BK35: =1/(1+EXP(($AU$22/2-($AM$24*BK34))/($AU$22))) -> 
B36: HID - Mercury Vapour | C36: 0 | D36: 0 | E36: 0 | F36: 0 | G36: 0 | H36: 0 | I36: 0 | J36: 0 | K36: 0 | L36: 0
B37: HID - Metal Halide | C37: 0 | D37: 0 | E37: 0 | F37: 0 | G37: 0 | H37: 0 | I37: 0 | J37: 0 | K37: 0 | L37: 0 | S37: Weighted average lamp wattages in each country | BK37: =IF($AM$24*BK34/$AU$22<1,$AM$24*BK34/$AU$22,1) -> 
B38: COMMERCIAL | C38: 1 | D38: 2 | E38: 3 | F38: 4 | G38: 5 | H38: 6 | I38: 7 | J38: 8 | K38: 9 | L38: 10 | S38: Country Name | T38: Incandescent | U38: Halogen | V38: CFL | W38: Fluorescent | X38: LED | Y38: HID
B39: Incandescent | C39: 0 | D39: 0.002 | E39: 0 | F39: 0.036 | G39: 0 | H39: 0.016 | I39: 0.005 | J39: 0 | K39: 0.02 | L39: 0.0123 | S39: Brunei Darussalam | T39: =60*97.5%+60*2.5% -> 60 | U39: 50 | V39: =C90*39%+T8*47%+U8*9%+V8*5% -> 15.45 | W39: 34.5 | X39: =8.5*30%+11*67%+16.5*3% -> 10.415 | Y39: =143.4 -> 143.4 | BK39: =(BK37-BJ37)/(1-BJ37) ->  | BL39: =(BL37-BK37)/(1-BK37) -> 
B40: Halogen | C40: 0 | D40: 0.011 | E40: 0.02 | F40: 0.064 | G40: 0.02 | H40: 0.035 | I40: 0.016 | J40: 0.02 | K40: 0.028 | L40: 0 | S40: Cambodia | T40: 41.5 | U40: 50 | V40: =18.2*65%+14*30%+24*5% -> 17.23 | W40: =32*65%+35.1*33%+34.9*2% -> 33.081 | X40: =10.56*70%+11*30% -> 10.692 | Y40: 168.6
B41: CFL | C41: 0.4 | D41: 0.34 | E41: 0.4 | F41: 0.2 | G41: 0.4 | H41: 0.345 | I41: 0.167 | J41: 0.4 | K41: 0.211 | L41: 0.2454 | S41: Indonesia | T41: 60 | U41: 50 | V41: =9.9*85%+14*14%+24*1% -> 10.615 | W41: =25.15*32%+34.1*55%+35.1*13% -> 31.366 | X41: =8.9*65%+12.5*30%+30*5% -> 11.035 | Y41: =150*65%+180*35% -> 160.5
B42: LFL - T5 | C42: 0.065 | D42: 0.038 | E42: 0.125 | F42: 0.041 | G42: 0.125 | H42: 0.048 | I42: 0.095 | J42: 0.125 | K42: 0.073 | L42: 0 | S42: Lao PDR | T42: =45.5*74%+60*26% -> 49.27 | U42: 50 | V42: =13.5*70%+14*18%+24*12% -> 14.85 | W42: =33.2*80%+34.9*10%+35.1*10% -> 33.56 | X42: =7.45*5%+9.5*85%+30*10% -> 11.4475 | Y42: 158.8
B43: LFL - T8 | C43: 0.41 | D43: 0.505 | E43: 0.325 | F43: 0.54 | G43: 0.325 | H43: 0.3409 | I43: 0.582 | J43: 0.325 | K43: 0.5415 | L43: 0.6135 | S43: Malaysia | T43: =44.06*98%+60*2% -> 44.3788 | U43: =43.95*90%+50*10% -> 44.555 | V43: =14*60%+14*35%+24*2%+25*2% -> 14.28 | W43: =37*55%+34.1*30%+35.1*15% -> 35.845 | X43: =10.5*55%+12.5*40%+30*5% -> 12.275 | Y43: 158.5
B44: LFL - T12 | C44: 0.01 | D44: 0 | E44: 0.005 | F44: 0.005 | G44: 0.005 | H44: 0.057 | I44: 0.012 | J44: 0.005 | K44: 0.005 | L44: 0.0061 | S44: Myanmar | T44: =40.83*95%+60*5% -> 41.7885 | U44: =38*40%+50*60% -> 45.2 | V44: =H90*87.5%+14*10%+24*2.5% -> 17.2775 | W44: =36.5*83%+34.9*10%+35.1*7% -> 36.242 | X44: =8.5*75%+9.5*20%+16.5*5% -> 9.1 | Y44: 168.7
B45: LFL - Circular | C45: 0.015 | D45: 0.057 | E45: 0.03 | F45: 0.064 | G45: 0.03 | H45: 0.035 | I45: 0 | J45: 0.03 | K45: 0.01 | L45: 0 | S45: Philippines | T45: =38.73*85%+60*15% -> 41.9205 | U45: 50 | V45: =15.45*80%+14*19%+24*1% -> 15.26 | W45: =35.5*50%+35.1*50% -> 35.3 | X45: =10.1*60%+16.5*20%+30*20% -> 15.36 | Y45: =150*30%+180*70% -> 171
B46: LED omni | C46: 0.067 | D46: 0.045 | E46: 0.065 | F46: 0.0421 | G46: 0.065 | H46: 0.094 | I46: 0.035 | J46: 0.065 | K46: 0.08 | L46: 0 | S46: Singapore | T46: 60 | U46: 50 | V46: 14 | W46: =31*65%+34.1*35% -> 32.085 | X46: =9.8*50%+12*50% -> 10.9 | Y46: =150*90%+180*10% -> 153
B47: LED tube | C47: 0.025 | D47: 0.002 | E47: 0.025 | F47: 0.0017 | G47: 0.025 | H47: 0.016 | I47: 0.042 | J47: 0.025 | K47: 0.019 | L47: 0.1227 | S47: Thailand | T47: =49.69*80%+60*20% -> 51.752 | U47: =43.75*50%+50*50% -> 46.875 | V47: =K90*70%+14*25%+24*5% -> 16.642 | W47: =36.3*70%+34.1*30% -> 35.64 | X47: =8.3*35%+12.5*60%+30*5% -> 11.905 | Y47: =150*70%+180*30% -> 159
B48: LED others | C48: 0.008 | D48: 0 | E48: 0.005 | F48: 0.0062 | G48: 0.005 | H48: 0.009 | I48: 0.023 | J48: 0.005 | K48: 0.0076 | L48: 0 | S48: Viet Nam | T48: =43.5*90%+60*10% -> 45.15 | U48: =42.75*80%+50*20% -> 44.2 | V48: =15.75*95%+15*5% -> 15.7125 | W48: =35.9*83%+35.1*17% -> 35.764 | X48: =11.33*79%+16.5*15%+30*6% -> 13.2257 | Y48: =160*60%+185*40% -> 170
B49: HID - HPS | C49: 0 | D49: 0 | E49: 0 | F49: 0 | G49: 0 | H49: 0.0015 | I49: 0.005 | J49: 0 | K49: 0.0012 | L49: 0
B50: HID - Mercury Vapour | C50: 0 | D50: 0 | E50: 0 | F50: 0 | G50: 0 | H50: 0.0014 | I50: 0.013 | J50: 0 | K50: 0.0012 | L50: 0
B51: HID - Metal Halide | C51: 0 | D51: 0 | E51: 0 | F51: 0 | G51: 0 | H51: 0.0012 | I51: 0.005 | J51: 0 | K51: 0.0025 | L51: 0
C52: 1 | D52: 2 | E52: 3 | F52: 4 | G52: 5 | H52: 6 | I52: 7 | J52: 8 | K52: 9 | L52: 10
B53: INDUSTRIAL (assumption) | C53: BRN | D53: KHM | E53: IDN | F53: LAO | G53: MAS | H53: MYM | I53: PHP | J53: SGP | K53: THA | L53: VNM
B54: Incandescent | C54: 0.001 | D54: 0.001 | E54: 0.001 | F54: 0.001 | G54: 0.001 | H54: 0.001 | I54: 0.001 | J54: 0.001 | K54: 0.001 | L54: 0.001
B55: Halogen | C55: 0.001 | D55: 0.001 | E55: 0.001 | F55: 0.001 | G55: 0.001 | H55: 0.001 | I55: 0.001 | J55: 0.001 | K55: 0.001 | L55: 0.001
B56: CFL | C56: 0.119 | D56: 0.119 | E56: 0.119 | F56: 0.119 | G56: 0.119 | H56: 0.119 | I56: 0.119 | J56: 0.119 | K56: 0.119 | L56: 0.119
B57: LFL - T5 | C57: 0.1 | D57: 0.1 | E57: 0.1 | F57: 0.1 | G57: 0.1 | H57: 0.1 | I57: 0.1 | J57: 0.1 | K57: 0.1 | L57: 0.1
B58: LFL - T8 | C58: 0.4 | D58: 0.4 | E58: 0.4 | F58: 0.4 | G58: 0.4 | H58: 0.4 | I58: 0.4 | J58: 0.4 | K58: 0.4 | L58: 0.4
B59: LFL - T12 | C59: 0.001 | D59: 0.001 | E59: 0.001 | F59: 0.001 | G59: 0.001 | H59: 0.001 | I59: 0.001 | J59: 0.001 | K59: 0.001 | L59: 0.001
B60: LFL - Circular | C60: 0.02 | D60: 0.02 | E60: 0.02 | F60: 0.02 | G60: 0.02 | H60: 0.02 | I60: 0.02 | J60: 0.02 | K60: 0.02 | L60: 0.02
B61: LED omni | C61: 0.05 | D61: 0.05 | E61: 0.05 | F61: 0.05 | G61: 0.05 | H61: 0.05 | I61: 0.05 | J61: 0.05 | K61: 0.05 | L61: 0.05
B62: LED tube | C62: 0.05 | D62: 0.05 | E62: 0.05 | F62: 0.05 | G62: 0.05 | H62: 0.05 | I62: 0.05 | J62: 0.05 | K62: 0.05 | L62: 0.05
B63: LED others | C63: 0.02 | D63: 0.02 | E63: 0.02 | F63: 0.02 | G63: 0.02 | H63: 0.02 | I63: 0.02 | J63: 0.02 | K63: 0.02 | L63: 0.02
B64: HID - HPS | C64: 0.039 | D64: 0.039 | E64: 0.039 | F64: 0.039 | G64: 0.039 | H64: 0.039 | I64: 0.039 | J64: 0.039 | K64: 0.039 | L64: 0.039
B65: HID - Mercury Vapour | C65: 0.119 | D65: 0.119 | E65: 0.119 | F65: 0.119 | G65: 0.119 | H65: 0.119 | I65: 0.119 | J65: 0.119 | K65: 0.119 | L65: 0.119
B66: HID - Metal Halide | C66: 0.08 | D66: 0.08 | E66: 0.08 | F66: 0.08 | G66: 0.08 | H66: 0.08 | I66: 0.08 | J66: 0.08 | K66: 0.08 | L66: 0.08
B68: STREET&OUTDOOR | C68: 1 | D68: 2 | E68: 3 | F68: 4 | G68: 5 | H68: 6 | I68: 7 | J68: 8 | K68: 9 | L68: 10
B69: Incandescent | C69: 0 | D69: 0 | E69: 0.00117968459 | F69: 0 | G69: 0 | H69: 0 | I69: 0 | J69: 0 | K69: 0 | L69: 0.005
B70: Halogen | C70: 0 | D70: 0 | E70: 0 | F70: 0 | G70: 0 | H70: 0 | I70: 0 | J70: 0 | K70: 0 | L70: 0
B71: CFL | C71: 0.0153 | D71: 0 | E71: 0 | F71: 0 | G71: 0 | H71: 0 | I71: 0.005 | J71: 0.0153 | K71: 0 | L71: 0.12
B72: LFL - T5 | C72: 0.0184 | D72: 0 | E72: 0.002890572182 | F72: 0 | G72: 0.058 | H72: 0 | I72: 0.004 | J72: 0.0184 | K72: 0.058 | L72: 0.005
B73: LFL - T8 | C73: 0.0539 | D73: 0.065 | E73: 0.05432757978 | F73: 0.19 | G73: 0.13 | H73: 0.065 | I73: 0.035 | J73: 0.0539 | K73: 0.13 | L73: 0.039
B74: LFL - T12 | C74: 0.0012 | D74: 0 | E74: 0 | F74: 0 | G74: 0 | H74: 0 | I74: 0.001 | J74: 0.0012 | K74: 0 | L74: 0.001
B75: LFL - Circular | C75: 0 | D75: 0 | E75: 0 | F75: 0 | G75: 0 | H75: 0 | I75: 0 | J75: 0 | K75: 0 | L75: 0
B76: LED omni | C76: 0 | D76: 0 | E76: 0 | F76: 0 | G76: 0 | H76: 0 | I76: 0 | J76: 0 | K76: 0 | L76: 0
B77: LED tube | C77: 0.003 | D77: 0 | E77: 0.01 | F77: 0 | G77: 0 | H77: 0 | I77: 0.003 | J77: 0.003 | K77: 0 | L77: 0.011
B78: LED others | C78: 0 | D78: 0 | E78: 0 | F78: 0 | G78: 0 | H78: 0 | I78: 0 | J78: 0 | K78: 0 | L78: 0
B79: HID - HPS | C79: 0.3543 | D79: 0.819 | E79: 0.6406653145 | F79: 0.34 | G79: 0.466 | H79: 0.819 | I79: 0.48 | J79: 0.3543 | K79: 0.166 | L79: 0.621
B80: HID - Mercury Vapour | C80: 0.2854 | D80: 0.054 | E80: 0.2317010914 | F80: 0.32 | G80: 0.316 | H80: 0.054 | I80: 0.27 | J80: 0.2854 | K80: 0.616 | L80: 0.114
B81: HID - Metal Halide | C81: 0.1832 | D81: 0.043 | E81: 0.004008168109 | F81: 0.12 | G81: 0.011 | H81: 0.043 | I81: 0.17 | J81: 0.1832 | K81: 0.011 | L81: 0.036
B82: LED Street lighting | C82: 0.0853 | D82: 0.019 | E82: 0.05522758944 | F82: 0.03 | G82: 0.019 | H82: 0.019 | I82: 0.032 | J82: 0.0853 | K82: 0.019 | L82: 0.048
B84: Surveyed lamp wattages & operating hours in the residential sector
B86: RESIDENTIAL AVG lamp wattages | C86: 1 | D86: 2 | E86: 3 | F86: 4 | G86: 5 | H86: 6 | I86: 7 | J86: 8 | K86: 9 | L86: 10 | N86: Residential sector
B87: Lamp type | C87: BRN | D87: KHM | E87: IDN | F87: LAO | G87: MAS | H87: MYM | I87: PHP | J87: SGP | K87: THA | L87: VNM | N87: AVG Operating hours
B88: Incandescent | C88: 60 | D88: 41.25 | E88: 37.73 | F88: 45.5 | G88: 44.06 | H88: 40.83 | I88: 37.73 | J88: 60 | K88: 49.69 | L88: 43.5 | N88: BRN | O88: 3
B89: Halogen | C89: 50 | D89: 50 | E89: 50 | F89: 50 | G89: 43.95 | H89: 38 | I89: 50 | J89: 50 | K89: 43.75 | L89: 42.75 | N89: KHM | O89: 2.82
B90: CFL | C90: 14 | D90: 18.2 | E90: 9.9 | F90: 13.5 | G90: 14.06 | H90: 17.46 | I90: 16.74 | J90: 14 | K90: 17.06 | L90: 16.35 | N90: IDN | O90: 6.03
B91: LFL - T5 | C91: 26 | D91: 22.5 | E91: 23 | F91: 23 | G91: 21.68 | H91: 20 | I91: 38 | J91: 26 | K91: 22 | L91: 24.8 | N91: LAO | O91: 2.14
B92: LFL - T8 | C92: 32 | D92: 29.02 | E92: 46 | F92: 34 | G92: 40.51 | H92: 39.79 | I92: 41 | J92: 32 | K92: 37.59 | L92: 35.3 | N92: MAS | O92: 4.35
B93: LFL - T12 | C93: 40 | D93: 36 | E93: 48 | F93: 36 | G93: 48.667 | H93: 41.42 | I93: 45 | J93: 40 | K93: 40 | L93: 40.2 | N93: MYM | O93: 5.5795
B94: LFL - Circular | C94: 28 | D94: 40 | E94: 31.93 | F94: 32 | G94: 34 | H94: 32 | I94: 31.93 | J94: 28 | K94: 41.5 | L94: 34.2 | N94: PHP | O94: 6.7
B95: LED omni | C95: 7.2 | D95: 10.26 | E95: 6.85 | F95: 7.2 | G95: 5.86 | H95: 9.4 | I95: 9.07 | J95: 7.2 | K95: 6.77 | L95: 8.18 | N95: SGP | O95: 2.75
B96: LED tube | C96: 14 | D96: 14 | E96: 15 | F96: 14 | G96: 18 | H96: 15 | I96: 15 | J96: 14 | K96: 15 | L96: 14.5 | N96: THA | O96: 2.197
B97: LED others | C97: 14 | D97: 14 | E97: 14 | F97: 14 | G97: 21.98 | H97: 12 | I97: 14 | J97: 14 | K97: 14 | L97: 14 | N97: VNM | O97: 2.99
B98: HID - HPS | C98: 90 | D98: 90 | E98: 90 | F98: 90 | G98: 90 | H98: 90 | I98: 90 | J98: 90 | K98: 90 | L98: 90
B99: HID - Mercury Vapour | C99: 90 | D99: 90 | E99: 90 | F99: 90 | G99: 90 | H99: 90 | I99: 90 | J99: 90 | K99: 90 | L99: 90
B100: HID - Metal Halide | C100: 90 | D100: 90 | E100: 90 | F100: 90 | G100: 90 | H100: 90 | I100: 90 | J100: 90 | K100: 90 | L100: 90
A103: Annual electricity consumption from average lamp in each sector (kWh/lamp) [Unit Energy Consumption]
A105: Country Name | C105: Sector
C106: Residential | D106: Commercial | E106: Industrial | F106: Outdoor
A107: SEA | B107: Brunei Darussalam | C107: =SUMPRODUCT($C$25:$C$37,$C$88:$C$100/1000*$O$88*365) -> 29.09196 | D107: =SUMPRODUCT(C39:C51,$T$6:$T$18,$W$6:$W$18,$AG$6:$AG$18)/1000*365 -> 51.4306028 | E107: =SUMPRODUCT($C$54:$C$66,$U$6:$U$18,$W$6:$W$18,$AH$6:$AH$18)/1000*365 -> 192.725532 | F107: =SUMPRODUCT($C$69:$C$82,$V$6:$V$19,$W$6:$W$19,$AI$6:$AI$19)/1000*365 -> 663.6375688
B108: Cambodia | C108: =SUMPRODUCT($D$25:$D$37,$D$88:$D$100)/1000*$O$89*365 -> 25.17692266 | D108: =SUMPRODUCT(D39:D51,$T$6:$T$18,X6:X18,$AG$6:$AG$18)/1000*365 -> 62.200862 | E108: =SUMPRODUCT($C$54:$C$66,$U$6:$U$18,$W$6:$W$18,$AH$6:$AH$18)/1000*365 -> 192.725532 | F108: =SUMPRODUCT($D$69:$D$82,$V$6:$V$19,$X$6:$X$19,$AI$6:$AI$19)/1000*365 -> 707.233125
B109: Indonesia | C109: =SUMPRODUCT($E$25:$E$37,$E$88:$E$100)/1000*$O$90*365 -> 23.72721723 | D109: =SUMPRODUCT(E39:E51,$T$6:$T$18,Y6:Y18,$AG$6:$AG$18)/1000*365 -> 56.964026 | E109: =SUMPRODUCT($C$54:$C$66,$U$6:$U$18,$W$6:$W$18,$AH$6:$AH$18)/1000*365 -> 192.725532 | F109: =SUMPRODUCT($E$69:$E$82,$V$6:$V$19,$Y$6:$Y$19,$AI$6:$AI$19)/1000*365 -> 691.0816764
B110: Lao PDR | C110: =SUMPRODUCT($F$25:$F$37,$F$88:$F$100)/1000*$O$91*365 -> 24.32965108 | D110: =SUMPRODUCT(F39:F51,$T$6:$T$18,Z6:Z18,$AG$6:$AG$18)/1000*365 -> 70.79084929 | E110: 192.725532 | F110: =SUMPRODUCT($F$69:$F$82,$V$6:$V$19,$Z$6:$Z$19,$AI$6:$AI$19)/1000*365 -> 623.96385
B111: Malaysia | C111: =SUMPRODUCT($G$25:$G$37,$G$88:$G$100)/1000*$O$92*365 -> 40.48038426 | D111: =SUMPRODUCT(G39:G51,$T$6:$T$18,AA6:AA18,$AG$6:$AG$18)/1000*365 -> 56.964026 | E111: 192.725532 | F111: =SUMPRODUCT($G$69:$G$82,$V$6:$V$19,$AA$6:$AA$19,$AI$6:$AI$19)/1000*365 -> 628.851711
B112: Myanmar | C112: =SUMPRODUCT($H$25:$H$37,$H$88:$H$100)/1000*$O$93*365 -> 58.15009345 | D112: =SUMPRODUCT(H39:H51,$T$6:$T$18,AB6:AB18,$AG$6:$AG$18)/1000*365 -> 60.8563741 | E112: 192.725532 | F112: =SUMPRODUCT($H$69:$H$82,$V$6:$V$19,$AB$6:$AB$19,$AI$6:$AI$19)/1000*365 -> 707.233125
B113: Philippines | C113: =SUMPRODUCT($I$25:$I$37,$I$88:$I$100)/1000*$O$94*365 -> 55.08316416 | D113: =SUMPRODUCT(I39:I51,$T$6:$T$18,AC6:AC18,$AG$6:$AG$18)/1000*365 -> 74.690291 | E113: 192.725532 | F113: =SUMPRODUCT($I$69:$I$82,$V$6:$V$19,$AC$6:$AC$19,$AI$6:$AI$19)/1000*365 -> 712.7950862
B114: Singapore | C114: =SUMPRODUCT($J$25:$J$37,$J$88:$J$100)/1000*$O$95*365 -> 29.40953255 | D114: =SUMPRODUCT(J39:J51,$T$6:$T$18,AD6:AD18,$AG$6:$AG$18)/1000*365 -> 51.824966 | E114: 192.725532 | F114: =SUMPRODUCT($J$69:$J$82,$V$6:$V$19,$AD$6:$AD$19,$AI$6:$AI$19)*1.2/1000*365 -> 796.3650826
B115: Thailand | C115: =SUMPRODUCT($K$25:$K$37,$K$88:$K$100)/1000*$O$96*365 -> 24.59731834 | D115: =SUMPRODUCT(K39:K51,$T$6:$T$18,AE6:AE18,$AG$6:$AG$18)/1000*365 -> 67.5941881 | E115: 192.725532 | F115: =SUMPRODUCT($K$69:$K$82,$V$6:$V$19,$AE$6:$AE$19,$AI$6:$AI$19)/1000*365 -> 628.851711
B116: Viet Nam | C116: =SUMPRODUCT($L$25:$L$37,L$88:$L$100/1000*$O$97*365) -> 28.40398585 | D116: =SUMPRODUCT(L39:L51,$T$6:$T$18,AF6:AF18,$AG$6:$AG$18)/1000*365 -> 66.08530945 | E116: =SUMPRODUCT($C$54:$C$66,$U$6:$U$18,$W$6:$W$18,$AH$6:$AH$18)/1000*365 -> 192.725532 | F116: =SUMPRODUCT($L$69:$L$82,$V$6:$V$19,$AF$6:$AF$19,$AI$6:$AI$19)/1000*365 -> 620.0121228
B120: Time series of lamps installed in 3 different sectors | G120: Time series of elec. consumption from lighting in 3 different sectors (TWh)
A122: Year | B122: Residential | C122: Commercial | D122: Industrial | E122: Street&outdoor | G122: Year | H122: Residential | I122: Commercial | J122: Industrial | K122: Street&outdoor
A123: 2030 | B123: =(VALUE(OFFSET(TopPop,CountryIndex-1,4)*1000)/VALUE(OFFSET(HHsize,CountryIndex-1,4)))*VALUE(OFFSET(TopElecRate,CountryIndex-1,0)*VALUE(OFFSET(TopLightpoint,CountryIndex-1,0)*VALUE(OFFSET(TopSaturation,CountryIndex-1,3)))) -> 208212606.7 | C123: =(VALUE(OFFSET(TopElecUse,CountryIndex-1,4)*10^9)*VALUE(OFFSET(TopSectoralElec,CountryIndex-1,0))*VALUE(OFFSET(TopElecLighting,CountryIndex-1,0)))/VALUE(OFFSET(TopUEC2015,CountryIndex-1,0)) -> 203203583.3 | D123: =(VALUE(OFFSET(TopElecUse,CountryIndex-1,4)*10^9)*VALUE(OFFSET(TopSectoralElec,CountryIndex-1,1))*VALUE(OFFSET(TopElecLighting,CountryIndex-1,1)))/VALUE(OFFSET(TopUEC2015,CountryIndex-1,1)) -> 31350573.6 | E123: =(VALUE(OFFSET(TopElecUse,CountryIndex-1,4)*10^9)*VALUE(OFFSET(TopElecLighting,CountryIndex-1,2)))/VALUE(OFFSET(TopUEC2015,CountryIndex-1,2)) -> 5413833.239 | G123: 2030 | H123: =VALUE(OFFSET(TopUEC2015,CountryIndex-1,-1))*B123/10^9 -> 8.428526326 | I123: =VALUE(OFFSET(TopUEC2015,CountryIndex-1,0))*$C123/10^9 -> 11.5752942 | J123: =VALUE(OFFSET(TopUEC2015,CountryIndex-1,1))*$D123/10^9 -> 6.042055975 | K123: =VALUE(OFFSET(TopUEC2015,CountryIndex-1,2))*$E123/10^9 -> 3.404498295
A124: 2029 | B124: =($A124-$A$128)/($A$123-$A$128)*(B$123-B$128)+B$128 -> 203697200.2 | C124: 194405931.6 | D124: 29993257.83 | E124: 5179442.592 | G124: 2029 | H124: =VALUE(OFFSET(TopUEC2015,CountryIndex-1,-1))*B124/10^9 -> 8.245740938 | I124: 11.07414454 | J124: =VALUE(OFFSET(TopUEC2015,CountryIndex-1,1))*$D124/10^9 -> 5.780466571 | K124: 3.257101336
A125: 2028 | B125: 199181793.8 | C125: 185608279.9 | D125: 28635942.06 | E125: 4945051.945 | G125: 2028 | H125: 8.062955549 | I125: 10.57299488 | J125: 5.518877167 | K125: 3.109704376
A126: 2027 | B126: 194666387.3 | C126: 176810628.1 | D126: 27278626.29 | E126: 4710661.298 | G126: 2027 | H126: 7.880170161 | I126: 10.07184522 | J126: 5.257287763 | K126: 2.962307417
A127: 2026 | B127: 190150980.9 | C127: 168012976.4 | D127: 25921310.52 | E127: 4476270.651 | G127: 2026 | H127: 7.697384773 | I127: 9.570695556 | J127: 4.995698359 | K127: 2.814910458
A128: 2025 | B128: =(VALUE(OFFSET(TopPop,CountryIndex-1,3)*1000)/VALUE(OFFSET(HHsize,CountryIndex-1,3)))*VALUE(OFFSET(TopElecRate,CountryIndex-1,0)*VALUE(OFFSET(TopLightpoint,CountryIndex-1,0)*VALUE(OFFSET(TopSaturation,CountryIndex-1,2)))) -> 185635574.4 | C128: =(VALUE(OFFSET(TopElecUse,CountryIndex-1,3)*10^9)*VALUE(OFFSET(TopSectoralElec,CountryIndex-1,0))*VALUE(OFFSET(TopElecLighting,CountryIndex-1,0)))/VALUE(OFFSET(TopUEC2015,CountryIndex-1,0)) -> 159215324.7 | D128: =(VALUE(OFFSET(TopElecUse,CountryIndex-1,3)*10^9)*VALUE(OFFSET(TopSectoralElec,CountryIndex-1,1))*VALUE(OFFSET(TopElecLighting,CountryIndex-1,1)))/VALUE(OFFSET(TopUEC2015,CountryIndex-1,1)) -> 24563994.75 | E128: =(VALUE(OFFSET(TopElecUse,CountryIndex-1,3)*10^9)*VALUE(OFFSET(TopElecLighting,CountryIndex-1,2)))/VALUE(OFFSET(TopUEC2015,CountryIndex-1,2)) -> 4241880.004 | G128: 2025 | H128: 7.514599384 | I128: 9.069545894 | J128: 4.734108955 | K128: 2.667513498
A129: 2024 | B129: =($A129-$A$133)/($A$128-$A$133)*($B$128-$B$133)+$B$133 -> 181663588.4 | C129: =($A129-$A$133)/($A$128-$A$133)*(C$128-C$133)+C$133 -> 152322134.3 | D129: =($A129-$A$133)/($A$128-$A$133)*(D$128-D$133)+D$133 -> 23500502.32 | E129: =($A129-$A$133)/($A$128-$A$133)*(E$128-E$133)+E$133 -> 4058228.798 | G129: 2024 | H129: 7.353811863 | I129: 8.67688202 | J129: 4.529146813 | K129: 2.552024124
A130: 2023 | B130: =($A130-$A$133)/($A$128-$A$133)*($B$128-$B$133)+$B$133 -> 177691602.3 | C130: =($A130-$A$133)/($A$128-$A$133)*(C$128-C$133)+C$133 -> 145428944 | D130: 22437009.9 | E130: 3874577.593 | G130: 2023 | H130: 7.193024342 | I130: 8.284218146 | J130: 4.32418467 | K130: 2.436534749
A131: 2022 | B131: =($A131-$A$133)/($A$128-$A$133)*($B$128-$B$133)+$B$133 -> 173719616.3 | C131: 138535753.6 | D131: 21373517.48 | E131: 3690926.388 | G131: 2022 | H131: 7.032236821 | I131: 7.891554273 | J131: 4.119222527 | K131: 2.321045374
A132: 2021 | B132: =($A132-$A$133)/($A$128-$A$133)*($B$128-$B$133)+$B$133 -> 169747630.2 | C132: 131642563.3 | D132: 20310025.06 | E132: 3507275.183 | G132: 2021 | H132: 6.871449299 | I132: 7.498890399 | J132: 3.914260384 | K132: 2.205556
A133: 2020 | B133: =(VALUE(OFFSET(TopPop,CountryIndex-1,2)*1000)/VALUE(OFFSET(HHsize,CountryIndex-1,2)))*VALUE(OFFSET(TopElecRate,CountryIndex-1,0)*VALUE(OFFSET(TopLightpoint,CountryIndex-1,0)*VALUE(OFFSET(TopSaturation,CountryIndex-1,1)))) -> 165775644.2 | C133: =(VALUE(OFFSET(TopElecUse,CountryIndex-1,2)*10^9)*VALUE(OFFSET(TopSectoralElec,CountryIndex-1,0))*VALUE(OFFSET(TopElecLighting,CountryIndex-1,0)))/VALUE(OFFSET(TopUEC2015,CountryIndex-1,0)) -> 124749373 | D133: =(VALUE(OFFSET(TopElecUse,CountryIndex-1,2)*10^9)*VALUE(OFFSET(TopSectoralElec,CountryIndex-1,1))*VALUE(OFFSET(TopElecLighting,CountryIndex-1,1)))/VALUE(OFFSET(TopUEC2015,CountryIndex-1,1)) -> 19246532.64 | E133: =(VALUE(OFFSET(TopElecUse,CountryIndex-1,2)*10^9)*VALUE(OFFSET(TopElecLighting,CountryIndex-1,2)))/VALUE(OFFSET(TopUEC2015,CountryIndex-1,2)) -> 3323623.978 | G133: 2020 | H133: 6.710661778 | I133: 7.106226526 | J133: 3.709298242 | K133: 2.090066625
A134: 2019 | B134: =($A134-$A$139)/($A$133-$A$139)*($B$133-$B$139)+$B$139 -> 161975751.5 | C134: =($A134-$A$139)/($A$133-$A$139)*(C$133-C$139)+C$139 -> 120248543.8 | D134: 18552137.52 | E134: 3203711.041 | G134: 2019 | H134: 6.556840661 | I134: 6.849841176 | J134: 3.575470573 | K134: 2.014659169
A135: 2018 | B135: =($A135-$A$139)/($A$133-$A$139)*($B$133-$B$139)+$B$139 -> 158175858.8 | C135: 115747714.6 | D135: 17857742.4 | E135: 3083798.103 | G135: 2018 | H135: 6.403019544 | I135: 6.593455826 | J135: 3.441642905 | K135: 1.939251714
A136: 2017 | B136: =($A136-$A$139)/($A$133-$A$139)*($B$133-$B$139)+$B$139 -> 154375966.1 | C136: 111246885.5 | D136: 17163347.29 | E136: 2963885.166 | G136: 2017 | H136: 6.249198426 | I136: 6.337070477 | J136: 3.307815236 | K136: 1.863844258
A137: 2016 | B137: =($A137-$A$139)/($A$133-$A$139)*($B$133-$B$139)+$B$139 -> 150576073.3 | C137: 106746056.3 | D137: 16468952.17 | E137: 2843972.229 | G137: 2016 | H137: 6.095377309 | I137: 6.080685127 | J137: 3.173987568 | K137: 1.788436802
A138: 2015 | B138: =($A138-$A$139)/($A$133-$A$139)*($B$133-$B$139)+$B$139 -> 146776180.6 | C138: 102245227.1 | D138: 15774557.05 | E138: 2724059.291 | G138: 2015 | H138: 5.941556192 | I138: 5.824299777 | J138: =VALUE(OFFSET(TopUEC2015,CountryIndex-1,1))*$D138/10^9 -> 3.0401599 | K138: 1.713029346
A139: 2014 | B139: =(VALUE(OFFSET(TopPop,CountryIndex-1,1)*1000)/VALUE(OFFSET(HHsize,CountryIndex-1,1)))*VALUE(OFFSET(TopElecRate,CountryIndex-1,0)*VALUE(OFFSET(TopLightpoint,CountryIndex-1,0)*VALUE(OFFSET(TopSaturation,CountryIndex-1,0)))) -> 142976287.9 | C139: =(VALUE(OFFSET(TopElecUse,CountryIndex-1,1)*10^9)*VALUE(OFFSET(TopSectoralElec,CountryIndex-1,0))*VALUE(OFFSET(TopElecLighting,CountryIndex-1,0)))/VALUE(OFFSET(TopUEC2015,CountryIndex-1,0)) -> 97744397.98 | D139: =(VALUE(OFFSET(TopElecUse,CountryIndex-1,1)*10^9)*VALUE(OFFSET(TopSectoralElec,CountryIndex-1,1))*VALUE(OFFSET(TopElecLighting,CountryIndex-1,1)))/VALUE(OFFSET(TopUEC2015,CountryIndex-1,1)) -> 15080161.93 | E139: =(VALUE(OFFSET(TopElecUse,CountryIndex-1,1)*10^9)*VALUE(OFFSET(TopElecLighting,CountryIndex-1,2)))/VALUE(OFFSET(TopUEC2015,CountryIndex-1,2)) -> 2604146.354 | G139: 2014 | H139: =((($G152-$G$153)/($G$138-$G$153))*(VALUE(OFFSET(TopUEC2000,CountryIndex-1,-1)-OFFSET(TopUEC2015,CountryIndex-1,-1)))+VALUE(OFFSET(TopUEC2015,CountryIndex-1,-1)))*B139/10^9 -> 5.94407369 | I139: =((($G152-$G$153)/($G$138-$G$153))*(VALUE(OFFSET(TopUEC2000,CountryIndex-1,0)-OFFSET(TopUEC2015,CountryIndex-1,0)))+VALUE(OFFSET(TopUEC2015,CountryIndex-1,0)))*C139/10^9 -> 5.728681638 | J139: =((($G152-$G$153)/($G$138-$G$153))*(VALUE(OFFSET(TopUEC2000,CountryIndex-1,1)-OFFSET(TopUEC2015,CountryIndex-1,1)))+VALUE(OFFSET(TopUEC2015,CountryIndex-1,1)))*D139/10^9 -> 2.918066888 | K139: =((($G152-$G$153)/($G$138-$G$153))*(VALUE(OFFSET(TopUEC2000,CountryIndex-1,2)-OFFSET(TopUEC2015,CountryIndex-1,2)))+VALUE(OFFSET(TopUEC2015,CountryIndex-1,2)))*E139/10^9 -> 1.638371072
A140: 2013 | B140: =($A140-$A$143)/($A$138-$A$143)*($B$138-$B$143)+$B$143 -> 136795116.8 | C140: =($A140-$A$143)/($A$138-$A$143)*(C$138-C$143)+C$143 -> 92228270.6 | D140: 14229124.99 | E140: 2457183.425 | G140: 2013 | H140: =((($G151-$G$153)/($G$138-$G$153))*(VALUE(OFFSET(TopUEC2000,CountryIndex-1,-1)-OFFSET(TopUEC2015,CountryIndex-1,-1)))+VALUE(OFFSET(TopUEC2015,CountryIndex-1,-1)))*B140/10^9 -> 5.836678416 | I140: =((($G151-$G$153)/($G$138-$G$153))*(VALUE(OFFSET(TopUEC2000,CountryIndex-1,0)-OFFSET(TopUEC2015,CountryIndex-1,0)))+VALUE(OFFSET(TopUEC2015,CountryIndex-1,0)))*C140/10^9 -> 5.557082486 | J140: =((($G151-$G$153)/($G$138-$G$153))*(VALUE(OFFSET(TopUEC2000,CountryIndex-1,1)-OFFSET(TopUEC2015,CountryIndex-1,1)))+VALUE(OFFSET(TopUEC2015,CountryIndex-1,1)))*D140/10^9 -> 2.764460524 | K140: =((($G151-$G$153)/($G$138-$G$153))*(VALUE(OFFSET(TopUEC2000,CountryIndex-1,2)-OFFSET(TopUEC2015,CountryIndex-1,2)))+VALUE(OFFSET(TopUEC2015,CountryIndex-1,2)))*E140/10^9 -> 1.546617806
A141: 2012 | B141: =($A141-$A$143)/($A$138-$A$143)*($B$138-$B$143)+$B$143 -> 131804584.9 | C141: 87219792.33 | D141: 13456408.95 | E141: 2323745.492 | G141: 2012 | H141: =((($G150-$G$153)/($G$138-$G$153))*(VALUE(OFFSET(TopUEC2000,CountryIndex-1,-1)-OFFSET(TopUEC2015,CountryIndex-1,-1)))+VALUE(OFFSET(TopUEC2015,CountryIndex-1,-1)))*B141/10^9 -> 5.767868711 | I141: =((($G150-$G$153)/($G$138-$G$153))*(VALUE(OFFSET(TopUEC2000,CountryIndex-1,0)-OFFSET(TopUEC2015,CountryIndex-1,0)))+VALUE(OFFSET(TopUEC2015,CountryIndex-1,0)))*C141/10^9 -> 5.398760432 | J141: =((($G150-$G$153)/($G$138-$G$153))*(VALUE(OFFSET(TopUEC2000,CountryIndex-1,1)-OFFSET(TopUEC2015,CountryIndex-1,1)))+VALUE(OFFSET(TopUEC2015,CountryIndex-1,1)))*D141/10^9 -> 2.624806964 | K141: =((($G150-$G$153)/($G$138-$G$153))*(VALUE(OFFSET(TopUEC2000,CountryIndex-1,2)-OFFSET(TopUEC2015,CountryIndex-1,2)))+VALUE(OFFSET(TopUEC2015,CountryIndex-1,2)))*E141/10^9 -> 1.463296871
A142: 2011 | B142: =($A142-$A$143)/($A$138-$A$143)*($B$138-$B$143)+$B$143 -> 126814052.9 | C142: 82211314.06 | D142: 12683692.92 | E142: 2190307.559 | G142: 2011 | H142: =((($G149-$G$153)/($G$138-$G$153))*(VALUE(OFFSET(TopUEC2000,CountryIndex-1,-1)-OFFSET(TopUEC2015,CountryIndex-1,-1)))+VALUE(OFFSET(TopUEC2015,CountryIndex-1,-1)))*B142/10^9 -> 5.688145129 | I142: =((($G149-$G$153)/($G$138-$G$153))*(VALUE(OFFSET(TopUEC2000,CountryIndex-1,0)-OFFSET(TopUEC2015,CountryIndex-1,0)))+VALUE(OFFSET(TopUEC2015,CountryIndex-1,0)))*C142/10^9 -> 5.223962772 | J142: =((($G149-$G$153)/($G$138-$G$153))*(VALUE(OFFSET(TopUEC2000,CountryIndex-1,1)-OFFSET(TopUEC2015,CountryIndex-1,1)))+VALUE(OFFSET(TopUEC2015,CountryIndex-1,1)))*D142/10^9 -> 2.483950824 | K142: =((($G149-$G$153)/($G$138-$G$153))*(VALUE(OFFSET(TopUEC2000,CountryIndex-1,2)-OFFSET(TopUEC2015,CountryIndex-1,2)))+VALUE(OFFSET(TopUEC2015,CountryIndex-1,2)))*E142/10^9 -> 1.379899158
A143: 2010 | B143: =(VALUE(OFFSET(TopPop,CountryIndex-1,0)*1000)/VALUE(OFFSET(HHsize,CountryIndex-1,0)))*VALUE(OFFSET(TopElecRate,CountryIndex-1,0)*VALUE(OFFSET(TopLightpoint,CountryIndex-1,0)*VALUE(OFFSET(TopSaturation,CountryIndex-1,-1)))) -> 121823521 | C143: =(VALUE(OFFSET(TopElecUse,CountryIndex-1,0)*10^9)*VALUE(OFFSET(TopSectoralElec,CountryIndex-1,0))*VALUE(OFFSET(TopElecLighting,CountryIndex-1,0)))/VALUE(OFFSET(TopUEC2015,CountryIndex-1,0)) -> 77202835.79 | D143: =(VALUE(OFFSET(TopElecUse,CountryIndex-1,0)*10^9)*VALUE(OFFSET(TopSectoralElec,CountryIndex-1,1))*VALUE(OFFSET(TopElecLighting,CountryIndex-1,1)))/VALUE(OFFSET(TopUEC2015,CountryIndex-1,1)) -> 11910976.89 | E143: =(VALUE(OFFSET(TopElecUse,CountryIndex-1,0)*10^9)*VALUE(OFFSET(TopElecLighting,CountryIndex-1,2)))/VALUE(OFFSET(TopUEC2015,CountryIndex-1,2)) -> 2056869.626 | G143: 2010 | H143: =((($G148-$G$153)/($G$138-$G$153))*(VALUE(OFFSET(TopUEC2000,CountryIndex-1,-1)-OFFSET(TopUEC2015,CountryIndex-1,-1)))+VALUE(OFFSET(TopUEC2015,CountryIndex-1,-1)))*B143/10^9 -> 5.59750767 | I143: =((($G148-$G$153)/($G$138-$G$153))*(VALUE(OFFSET(TopUEC2000,CountryIndex-1,0)-OFFSET(TopUEC2015,CountryIndex-1,0)))+VALUE(OFFSET(TopUEC2015,CountryIndex-1,0)))*C143/10^9 -> 5.032689507 | J143: =((($G148-$G$153)/($G$138-$G$153))*(VALUE(OFFSET(TopUEC2000,CountryIndex-1,1)-OFFSET(TopUEC2015,CountryIndex-1,1)))+VALUE(OFFSET(TopUEC2015,CountryIndex-1,1)))*D143/10^9 -> 2.341892103 | K143: =((($G148-$G$153)/($G$138-$G$153))*(VALUE(OFFSET(TopUEC2000,CountryIndex-1,2)-OFFSET(TopUEC2015,CountryIndex-1,2)))+VALUE(OFFSET(TopUEC2015,CountryIndex-1,2)))*E143/10^9 -> 1.296424669
A144: 2009 | B144: =($A144-$A$148)/($A$143-$A$148)*($B$143-$B$148)+$B$148 -> 117282619.6 | C144: =($A144-$A$148)/($A$143-$A$148)*(C$143-C$148)+C$148 -> 72343404.55 | D144: =($A144-$A$148)/($A$143-$A$148)*(D$143-D$148)+D$148 -> 11161256.07 | E144: =($A144-$A$148)/($A$143-$A$148)*(E$143-E$148)+E$148 -> 1927402.666 | G144: 2009 | H144: =((($G147-$G$153)/($G$138-$G$153))*(VALUE(OFFSET(TopUEC2000,CountryIndex-1,-1)-OFFSET(TopUEC2015,CountryIndex-1,-1)))+VALUE(OFFSET(TopUEC2015,CountryIndex-1,-1)))*B144/10^9 -> 5.517107462 | I144: =((($G147-$G$153)/($G$138-$G$153))*(VALUE(OFFSET(TopUEC2000,CountryIndex-1,0)-OFFSET(TopUEC2015,CountryIndex-1,0)))+VALUE(OFFSET(TopUEC2015,CountryIndex-1,0)))*C144/10^9 -> 4.834901845 | J144: =((($G147-$G$153)/($G$138-$G$153))*(VALUE(OFFSET(TopUEC2000,CountryIndex-1,1)-OFFSET(TopUEC2015,CountryIndex-1,1)))+VALUE(OFFSET(TopUEC2015,CountryIndex-1,1)))*D144/10^9 -> 2.203169929 | K144: =((($G147-$G$153)/($G$138-$G$153))*(VALUE(OFFSET(TopUEC2000,CountryIndex-1,2)-OFFSET(TopUEC2015,CountryIndex-1,2)))+VALUE(OFFSET(TopUEC2015,CountryIndex-1,2)))*E144/10^9 -> 1.215377409
A145: 2008 | B145: =($A145-$A$148)/($A$143-$A$148)*($B$143-$B$148)+$B$148 -> 112741718.2 | C145: =($A145-$A$148)/($A$143-$A$148)*(C$143-C$148)+C$148 -> 67483973.32 | D145: 10411535.26 | E145: 1797935.705 | G145: 2008 | H145: =((($G146-$G$153)/($G$138-$G$153))*(VALUE(OFFSET(TopUEC2000,CountryIndex-1,-1)-OFFSET(TopUEC2015,CountryIndex-1,-1)))+VALUE(OFFSET(TopUEC2015,CountryIndex-1,-1)))*B145/10^9 -> 5.426776681 | I145: =((($G146-$G$153)/($G$138-$G$153))*(VALUE(OFFSET(TopUEC2000,CountryIndex-1,0)-OFFSET(TopUEC2015,CountryIndex-1,0)))+VALUE(OFFSET(TopUEC2015,CountryIndex-1,0)))*C145/10^9 -> 4.621128874 | J145: =((($G146-$G$153)/($G$138-$G$153))*(VALUE(OFFSET(TopUEC2000,CountryIndex-1,1)-OFFSET(TopUEC2015,CountryIndex-1,1)))+VALUE(OFFSET(TopUEC2015,CountryIndex-1,1)))*D145/10^9 -> 2.063280961 | K145: =((($G146-$G$153)/($G$138-$G$153))*(VALUE(OFFSET(TopUEC2000,CountryIndex-1,2)-OFFSET(TopUEC2015,CountryIndex-1,2)))+VALUE(OFFSET(TopUEC2015,CountryIndex-1,2)))*E145/10^9 -> 1.134255658
A146: 2007 | B146: =($A146-$A$148)/($A$143-$A$148)*($B$143-$B$148)+$B$148 -> 108200816.8 | C146: 62624542.09 | D146: 9661814.44 | E146: 1668468.744 | G146: 2007 | H146: =((($G145-$G$153)/($G$138-$G$153))*(VALUE(OFFSET(TopUEC2000,CountryIndex-1,-1)-OFFSET(TopUEC2015,CountryIndex-1,-1)))+VALUE(OFFSET(TopUEC2015,CountryIndex-1,-1)))*B146/10^9 -> 5.326515327 | I146: =((($G145-$G$153)/($G$138-$G$153))*(VALUE(OFFSET(TopUEC2000,CountryIndex-1,0)-OFFSET(TopUEC2015,CountryIndex-1,0)))+VALUE(OFFSET(TopUEC2015,CountryIndex-1,0)))*C146/10^9 -> 4.391370594 | J146: =((($G145-$G$153)/($G$138-$G$153))*(VALUE(OFFSET(TopUEC2000,CountryIndex-1,1)-OFFSET(TopUEC2015,CountryIndex-1,1)))+VALUE(OFFSET(TopUEC2015,CountryIndex-1,1)))*D146/10^9 -> 1.922225201 | K146: =((($G145-$G$153)/($G$138-$G$153))*(VALUE(OFFSET(TopUEC2000,CountryIndex-1,2)-OFFSET(TopUEC2015,CountryIndex-1,2)))+VALUE(OFFSET(TopUEC2015,CountryIndex-1,2)))*E146/10^9 -> 1.053059414
A147: 2006 | B147: =($A147-$A$148)/($A$143-$A$148)*($B$143-$B$148)+$B$148 -> 103659915.3 | C147: 57765110.86 | D147: 8912093.623 | E147: 1539001.784 | G147: 2006 | H147: =((($G144-$G$153)/($G$138-$G$153))*(VALUE(OFFSET(TopUEC2000,CountryIndex-1,-1)-OFFSET(TopUEC2015,CountryIndex-1,-1)))+VALUE(OFFSET(TopUEC2015,CountryIndex-1,-1)))*B147/10^9 -> 5.2163234 | I147: =((($G144-$G$153)/($G$138-$G$153))*(VALUE(OFFSET(TopUEC2000,CountryIndex-1,0)-OFFSET(TopUEC2015,CountryIndex-1,0)))+VALUE(OFFSET(TopUEC2015,CountryIndex-1,0)))*C147/10^9 -> 4.145627005 | J147: =((($G144-$G$153)/($G$138-$G$153))*(VALUE(OFFSET(TopUEC2000,CountryIndex-1,1)-OFFSET(TopUEC2015,CountryIndex-1,1)))+VALUE(OFFSET(TopUEC2015,CountryIndex-1,1)))*D147/10^9 -> 1.780002646 | K147: =((($G144-$G$153)/($G$138-$G$153))*(VALUE(OFFSET(TopUEC2000,CountryIndex-1,2)-OFFSET(TopUEC2015,CountryIndex-1,2)))+VALUE(OFFSET(TopUEC2015,CountryIndex-1,2)))*E147/10^9 -> 0.9717886779
A148: 2005 | B148: =(VALUE(OFFSET(TopPop,CountryIndex-1,-1)*1000)/VALUE(OFFSET(HHsize,CountryIndex-1,-1)))*VALUE(OFFSET(TopElecRate,CountryIndex-1,0)*VALUE(OFFSET(TopLightpoint,CountryIndex-1,0)*VALUE(OFFSET(TopSaturation,CountryIndex-1,-2)))) -> 99119013.93 | C148: =(VALUE(OFFSET(TopElecUse,CountryIndex-1,-1)*10^9)*VALUE(OFFSET(TopSectoralElec,CountryIndex-1,0))*VALUE(OFFSET(TopElecLighting,CountryIndex-1,0)))/VALUE(OFFSET(TopUEC2015,CountryIndex-1,0)) -> 52905679.63 | D148: =(VALUE(OFFSET(TopElecUse,CountryIndex-1,-1)*10^9)*VALUE(OFFSET(TopSectoralElec,CountryIndex-1,1))*VALUE(OFFSET(TopElecLighting,CountryIndex-1,1)))/VALUE(OFFSET(TopUEC2015,CountryIndex-1,1)) -> 8162372.806 | E148: =(VALUE(OFFSET(TopElecUse,CountryIndex-1,-1)*10^9)*VALUE(OFFSET(TopElecLighting,CountryIndex-1,2)))/VALUE(OFFSET(TopUEC2015,CountryIndex-1,2)) -> 1409534.823 | G148: 2005 | H148: =((($G143-$G$153)/($G$138-$G$153))*(VALUE(OFFSET(TopUEC2000,CountryIndex-1,-1)-OFFSET(TopUEC2015,CountryIndex-1,-1)))+VALUE(OFFSET(TopUEC2015,CountryIndex-1,-1)))*B148/10^9 -> 5.096200899 | I148: =((($G143-$G$153)/($G$138-$G$153))*(VALUE(OFFSET(TopUEC2000,CountryIndex-1,0)-OFFSET(TopUEC2015,CountryIndex-1,0)))+VALUE(OFFSET(TopUEC2015,CountryIndex-1,0)))*C148/10^9 -> 3.883898107 | J148: =((($G143-$G$153)/($G$138-$G$153))*(VALUE(OFFSET(TopUEC2000,CountryIndex-1,1)-OFFSET(TopUEC2015,CountryIndex-1,1)))+VALUE(OFFSET(TopUEC2015,CountryIndex-1,1)))*D148/10^9 -> 1.636613299 | K148: =((($G143-$G$153)/($G$138-$G$153))*(VALUE(OFFSET(TopUEC2000,CountryIndex-1,2)-OFFSET(TopUEC2015,CountryIndex-1,2)))+VALUE(OFFSET(TopUEC2015,CountryIndex-1,2)))*E148/10^9 -> 0.8904434497
A149: 2004 | B149: =($A149-$A$153)/($A$148-$A$153)*($B$148-$B$153)+$B$153 -> 93981592.07 | C149: =($A149-$A$153)/($A$148-$A$153)*(C$148-C$153)+C$153 -> 50691240.73 | D149: =($A149-$A$153)/($A$148-$A$153)*(D$148-D$153)+D$153 -> 7820725.634 | E149: =($A149-$A$153)/($A$148-$A$153)*(E$148-E$153)+E$153 -> 1350536.833 | G149: 2004 | H149: =((($G142-$G$153)/($G$138-$G$153))*(VALUE(OFFSET(TopUEC2000,CountryIndex-1,-1)-OFFSET(TopUEC2015,CountryIndex-1,-1)))+VALUE(OFFSET(TopUEC2015,CountryIndex-1,-1)))*B149/10^9 -> 4.934825476 | I149: =((($G142-$G$153)/($G$138-$G$153))*(VALUE(OFFSET(TopUEC2000,CountryIndex-1,0)-OFFSET(TopUEC2015,CountryIndex-1,0)))+VALUE(OFFSET(TopUEC2015,CountryIndex-1,0)))*C149/10^9 -> 3.804707804 | J149: =((($G142-$G$153)/($G$138-$G$153))*(VALUE(OFFSET(TopUEC2000,CountryIndex-1,1)-OFFSET(TopUEC2015,CountryIndex-1,1)))+VALUE(OFFSET(TopUEC2015,CountryIndex-1,1)))*D149/10^9 -> 1.574196344 | K149: =((($G142-$G$153)/($G$138-$G$153))*(VALUE(OFFSET(TopUEC2000,CountryIndex-1,2)-OFFSET(TopUEC2015,CountryIndex-1,2)))+VALUE(OFFSET(TopUEC2015,CountryIndex-1,2)))*E149/10^9 -> 0.8535612661
A150: 2003 | B150: =($A150-$A$153)/($A$148-$A$153)*($B$148-$B$153)+$B$153 -> 88844170.21 | C150: =($A150-$A$153)/($A$148-$A$153)*(C$148-C$153)+C$153 -> 48476801.83 | D150: 7479078.462 | E150: 1291538.844 | G150: 2003 | H150: =((($G141-$G$153)/($G$138-$G$153))*(VALUE(OFFSET(TopUEC2000,CountryIndex-1,-1)-OFFSET(TopUEC2015,CountryIndex-1,-1)))+VALUE(OFFSET(TopUEC2015,CountryIndex-1,-1)))*B150/10^9 -> 4.76221494 | I150: =((($G141-$G$153)/($G$138-$G$153))*(VALUE(OFFSET(TopUEC2000,CountryIndex-1,0)-OFFSET(TopUEC2015,CountryIndex-1,0)))+VALUE(OFFSET(TopUEC2015,CountryIndex-1,0)))*C150/10^9 -> 3.718233008 | J150: =((($G141-$G$153)/($G$138-$G$153))*(VALUE(OFFSET(TopUEC2000,CountryIndex-1,1)-OFFSET(TopUEC2015,CountryIndex-1,1)))+VALUE(OFFSET(TopUEC2015,CountryIndex-1,1)))*D150/10^9 -> 1.511247683 | K150: =((($G141-$G$153)/($G$138-$G$153))*(VALUE(OFFSET(TopUEC2000,CountryIndex-1,2)-OFFSET(TopUEC2015,CountryIndex-1,2)))+VALUE(OFFSET(TopUEC2015,CountryIndex-1,2)))*E150/10^9 -> 0.8166451365
A151: 2002 | B151: =($A151-$A$153)/($A$148-$A$153)*($B$148-$B$153)+$B$153 -> 83706748.35 | C151: 46262362.93 | D151: 7137431.289 | E151: 1232540.854 | G151: 2002 | H151: =((($G140-$G$153)/($G$138-$G$153))*(VALUE(OFFSET(TopUEC2000,CountryIndex-1,-1)-OFFSET(TopUEC2015,CountryIndex-1,-1)))+VALUE(OFFSET(TopUEC2015,CountryIndex-1,-1)))*B151/10^9 -> 4.57836929 | I151: =((($G140-$G$153)/($G$138-$G$153))*(VALUE(OFFSET(TopUEC2000,CountryIndex-1,0)-OFFSET(TopUEC2015,CountryIndex-1,0)))+VALUE(OFFSET(TopUEC2015,CountryIndex-1,0)))*C151/10^9 -> 3.624473719 | J151: =((($G140-$G$153)/($G$138-$G$153))*(VALUE(OFFSET(TopUEC2000,CountryIndex-1,1)-OFFSET(TopUEC2015,CountryIndex-1,1)))+VALUE(OFFSET(TopUEC2015,CountryIndex-1,1)))*D151/10^9 -> 1.447767315 | K151: =((($G140-$G$153)/($G$138-$G$153))*(VALUE(OFFSET(TopUEC2000,CountryIndex-1,2)-OFFSET(TopUEC2015,CountryIndex-1,2)))+VALUE(OFFSET(TopUEC2015,CountryIndex-1,2)))*E151/10^9 -> 0.7796950609
A152: 2001 | B152: =($A152-$A$153)/($A$148-$A$153)*($B$148-$B$153)+$B$153 -> 78569326.49 | C152: 44047924.03 | D152: 6795784.117 | E152: 1173542.864 | G152: 2001 | H152: =((($G139-$G$153)/($G$138-$G$153))*(VALUE(OFFSET(TopUEC2000,CountryIndex-1,-1)-OFFSET(TopUEC2015,CountryIndex-1,-1)))+VALUE(OFFSET(TopUEC2015,CountryIndex-1,-1)))*B152/10^9 -> 4.383288526 | I152: =((($G139-$G$153)/($G$138-$G$153))*(VALUE(OFFSET(TopUEC2000,CountryIndex-1,0)-OFFSET(TopUEC2015,CountryIndex-1,0)))+VALUE(OFFSET(TopUEC2015,CountryIndex-1,0)))*C152/10^9 -> 3.523429938 | J152: =((($G139-$G$153)/($G$138-$G$153))*(VALUE(OFFSET(TopUEC2000,CountryIndex-1,1)-OFFSET(TopUEC2015,CountryIndex-1,1)))+VALUE(OFFSET(TopUEC2015,CountryIndex-1,1)))*D152/10^9 -> 1.38375524 | K152: =((($G139-$G$153)/($G$138-$G$153))*(VALUE(OFFSET(TopUEC2000,CountryIndex-1,2)-OFFSET(TopUEC2015,CountryIndex-1,2)))+VALUE(OFFSET(TopUEC2015,CountryIndex-1,2)))*E152/10^9 -> 0.7427110392
A153: 2000 | B153: =(VALUE(OFFSET(TopPop,CountryIndex-1,-2)*1000)/VALUE(OFFSET(HHsize,CountryIndex-1,-2)))*VALUE(OFFSET(TopElecRate,CountryIndex-1,0)*VALUE(OFFSET(TopLightpoint,CountryIndex-1,0)*VALUE(OFFSET(TopSaturation,CountryIndex-1,-3)))) -> 73431904.63 | C153: =(VALUE(OFFSET(TopElecUse,CountryIndex-1,-2)*10^9)*VALUE(OFFSET(TopSectoralElec,CountryIndex-1,0))*VALUE(OFFSET(TopElecLighting,CountryIndex-1,0)))/VALUE(OFFSET(TopUEC2015,CountryIndex-1,0)) -> 41833485.13 | D153: =(VALUE(OFFSET(TopElecUse,CountryIndex-1,-2)*10^9)*VALUE(OFFSET(TopSectoralElec,CountryIndex-1,1))*VALUE(OFFSET(TopElecLighting,CountryIndex-1,1)))/VALUE(OFFSET(TopUEC2015,CountryIndex-1,1)) -> 6454136.945 | E153: =(VALUE(OFFSET(TopElecUse,CountryIndex-1,-2)*10^9)*VALUE(OFFSET(TopElecLighting,CountryIndex-1,2)))/VALUE(OFFSET(TopUEC2015,CountryIndex-1,2)) -> 1114544.875 | G153: 2000 | H153: =VALUE(OFFSET(TopUEC2000,CountryIndex-1,-1))*B153/10^9 -> 4.176972648 | I153: =VALUE(OFFSET(TopUEC2000,CountryIndex-1,0))*$C153/10^9 -> 3.415101664 | J153: =VALUE(OFFSET(TopUEC2000,CountryIndex-1,1))*$D153/10^9 -> 1.319211458 | K153: =VALUE(OFFSET(TopUEC2000,CountryIndex-1,2))*$E153/10^9 -> 0.7056930714
A154: 1999 | B154: =($A154-$A$158)/($A$153-$A$158)*($B$153-$B$158)+$B$158 -> 68374087.69 | C154: =($A154-$A$158)/($A$153-$A$158)*(C$153-C$158)+C$158 -> 38992627.63 | D154: =($A154-$A$158)/($A$153-$A$158)*(D$153-D$158)+D$158 -> 6015844.909 | E154: =($A154-$A$158)/($A$153-$A$158)*(E$153-E$158)+E$158 -> 1038857.584 | G154: 1999 | H154: =VALUE(OFFSET(TopUEC2015,CountryIndex-1,-1))*B154/10^9 -> 2.767809343 | I154: 2.221177054 | J154: 1.159406911 | K154: 0.6532873689
A155: 1998 | B155: =($A155-$A$158)/($A$153-$A$158)*($B$153-$B$158)+$B$158 -> 63316270.75 | C155: =($A155-$A$158)/($A$153-$A$158)*(C$153-C$158)+C$158 -> 36151770.13 | D155: 5577552.874 | E155: 963170.2925 | G155: 1998 | H155: =VALUE(OFFSET(TopUEC2015,CountryIndex-1,-1))*B155/10^9 -> 2.56306697 | I155: =VALUE(OFFSET(TopUEC2015,CountryIndex-1,0))*$C155/10^9 -> 2.059350374 | J155: =VALUE(OFFSET(TopUEC2015,CountryIndex-1,1))*$D155/10^9 -> 1.074936845 | K155: =VALUE(OFFSET(TopUEC2015,CountryIndex-1,2))*$E155/10^9 -> 0.6056912864
A156: 1997 | B156: =($A156-$A$158)/($A$153-$A$158)*($B$153-$B$158)+$B$158 -> 58258453.81 | C156: 33310912.63 | D156: 5139260.838 | E156: 887483.0014 | G156: 1997 | H156: 2.358324597 | I156: 1.897523693 | J156: 0.9904667791 | K156: 0.5580952039
A157: 1996 | B157: =($A157-$A$158)/($A$153-$A$158)*($B$153-$B$158)+$B$158 -> 53200636.87 | C157: 30470055.13 | D157: 4700968.803 | E157: 811795.7103 | G157: 1996 | H157: 2.153582223 | I157: 1.735697013 | J157: 0.9059967134 | K157: 0.5104991214
A158: 1995 | B158: =(VALUE(OFFSET(TopPop,CountryIndex-1,-3)*1000)/VALUE(OFFSET(HHsize,CountryIndex-1,-3)))*VALUE(OFFSET(TopElecRate,CountryIndex-1,0)*VALUE(OFFSET(TopLightpoint,CountryIndex-1,0)*VALUE(OFFSET(TopSaturation,CountryIndex-1,-4)))) -> 48142819.93 | C158: =(VALUE(OFFSET(TopElecUse,CountryIndex-1,-3)*10^9)*VALUE(OFFSET(TopSectoralElec,CountryIndex-1,0))*VALUE(OFFSET(TopElecLighting,CountryIndex-1,0)))/VALUE(OFFSET(TopUEC2015,CountryIndex-1,0)) -> 27629197.63 | D158: =(VALUE(OFFSET(TopElecUse,CountryIndex-1,-3)*10^9)*VALUE(OFFSET(TopSectoralElec,CountryIndex-1,1))*VALUE(OFFSET(TopElecLighting,CountryIndex-1,1)))/VALUE(OFFSET(TopUEC2015,CountryIndex-1,1)) -> 4262676.767 | E158: =(VALUE(OFFSET(TopElecUse,CountryIndex-1,-3)*10^9)*VALUE(OFFSET(TopElecLighting,CountryIndex-1,2)))/VALUE(OFFSET(TopUEC2015,CountryIndex-1,2)) -> 736108.4192 | G158: 1995 | H158: 1.94883985 | I158: 1.573870332 | J158: 0.8215266477 | K158: 0.4629030389
A159: 1994 | B159: =($A159-$A$163)/($A$158-$A$163)*($B$158-$B$163)+$B$163 -> 44723661.74 | C159: =($A159-$A$163)/($A$158-$A$163)*(C$158-C$163)+C$163 -> 24788340.13 | D159: =($A159-$A$163)/($A$158-$A$163)*(D$158-D$163)+D$163 -> 3824384.732 | E159: =($A159-$A$163)/($A$158-$A$163)*(E$158-E$163)+E$163 -> 660421.128 | G159: 1994 | H159: 1.810431013 | I159: 1.412043652 | J159: 0.737056582 | K159: 0.4153069564
A160: 1993 | B160: =($A160-$A$163)/($A$158-$A$163)*($B$158-$B$163)+$B$163 -> 41304503.54 | C160: =($A160-$A$163)/($A$158-$A$163)*(C$158-C$163)+C$163 -> 21947482.63 | D160: 3386092.696 | E160: 584733.8369 | G160: 1993 | H160: 1.672022175 | I160: 1.250216971 | J160: 0.6525865163 | K160: 0.3677108738
A161: 1992 | B161: =($A161-$A$163)/($A$158-$A$163)*($B$158-$B$163)+$B$163 -> 37885345.34 | C161: 19106625.13 | D161: 2947800.661 | E161: 509046.5458 | G161: 1992 | H161: 1.533613337 | I161: 1.088390291 | J161: 0.5681164506 | K161: 0.3201147913
A162: 1991 | B162: =($A162-$A$163)/($A$158-$A$163)*($B$158-$B$163)+$B$163 -> 34466187.14 | C162: 16265767.63 | D162: 2509508.625 | E162: 433359.2547 | G162: 1991 | H162: 1.3952045 | I162: 0.92656361 | J162: 0.4836463849 | K162: 0.2725187088
A163: 1990 | B163: =(VALUE(OFFSET(TopPop,CountryIndex-1,-4)*1000)/VALUE(OFFSET(HHsize,CountryIndex-1,-4)))*VALUE(OFFSET(TopElecRate,CountryIndex-1,0)*VALUE(OFFSET(TopLightpoint,CountryIndex-1,0)*VALUE(OFFSET(TopSaturation,CountryIndex-1,-5)))) -> 31047028.95 | C163: =(VALUE(OFFSET(TopElecUse,CountryIndex-1,-4)*10^9)*VALUE(OFFSET(TopSectoralElec,CountryIndex-1,0))*VALUE(OFFSET(TopElecLighting,CountryIndex-1,0)))/VALUE(OFFSET(TopUEC2015,CountryIndex-1,0)) -> 13424910.13 | D163: =(VALUE(OFFSET(TopElecUse,CountryIndex-1,-4)*10^9)*VALUE(OFFSET(TopSectoralElec,CountryIndex-1,1))*VALUE(OFFSET(TopElecLighting,CountryIndex-1,1)))/VALUE(OFFSET(TopUEC2015,CountryIndex-1,1)) -> 2071216.59 | E163: =(VALUE(OFFSET(TopElecUse,CountryIndex-1,-4)*10^9)*VALUE(OFFSET(TopElecLighting,CountryIndex-1,2)))/VALUE(OFFSET(TopUEC2015,CountryIndex-1,2)) -> 357671.9636 | G163: 1990 | H163: 1.256795662 | I163: 0.7647369294 | J163: 0.3991763191 | K163: 0.2249226263
A164: 1989 | B164: =($A164-$A$173)/($A$163-$A$173)*($B$163-$B$173)+$B$173 -> 29064512.47 | C164: =($A164-$A$173)/($A$163-$A$173)*(C$163-C$173)+C$173 -> 12887913.72 | D164: =($A164-$A$173)/($A$163-$A$173)*(D$163-D$173)+D$173 -> 2102175.559 | E164: =($A164-$A$173)/($A$163-$A$173)*(E$163-E$173)+E$173 -> 343365.0851 | G164: 1989 | H164: 1.176542633 | I164: 0.7341474522 | J164: 0.405142903 | K164: 0.2159257212
A165: 1988 | B165: =($A165-$A$173)/($A$163-$A$173)*($B$163-$B$173)+$B$173 -> 27081996 | C165: =($A165-$A$173)/($A$163-$A$173)*(C$163-C$173)+C$173 -> 12350917.32 | D165: 2133134.529 | E165: 329058.2065 | G165: 1988 | H165: 1.096289605 | I165: 0.7035579751 | J165: 0.4111094868 | K165: 0.2069288162
A166: 1987 | B166: 25099479.53 | C166: 11813920.91 | D166: 2164093.498 | E166: 314751.328 | G166: 1987 | H166: 1.016036576 | I166: 0.6729684979 | J166: 0.4170760707 | K166: 0.1979319111
A167: 1986 | B167: 23116963.05 | C167: 11276924.51 | D167: 2195052.467 | E167: 300444.4494 | G167: 1986 | H167: 0.9357835473 | I167: 0.6423790207 | J167: 0.4230426545 | K167: 0.1889350061
A168: 1985 | B168: 21134446.58 | C168: 10739928.1 | D168: 2226011.437 | E168: 286137.5709 | G168: 1985 | H168: 0.8555305187 | I168: 0.6117895435 | J168: 0.4290092384 | K168: 0.179938101
A169: 1984 | B169: 19151930.11 | C169: 10202931.7 | D169: 2256970.406 | E169: 271830.6923 | G169: 1984 | H169: 0.77527749 | I169: 0.5812000664 | J169: 0.4349758222 | K169: 0.170941196
A170: 1983 | B170: 17169413.63 | C170: 9665935.29 | D170: 2287929.376 | E170: 257523.8138 | G170: 1983 | H170: 0.6950244614 | I170: 0.5506105892 | J170: 0.4409424061 | K170: 0.1619442909
A171: 1982 | B171: 15186897.16 | C171: 9128938.885 | D171: 2318888.345 | E171: 243216.9353 | G171: 1982 | H171: 0.6147714328 | I171: 0.520021112 | J171: 0.4469089899 | K171: 0.1529473859
A172: 1981 | B172: 13204380.69 | C172: 8591942.48 | D172: 2349847.314 | E172: 228910.0567 | G172: 1981 | H172: 0.5345184041 | I172: 0.4894316348 | J172: 0.4528755738 | K172: 0.1439504808
A173: 1980 | B173: =(VALUE(OFFSET(TopPop,CountryIndex-1,-5)*1000)/VALUE(OFFSET(HHsize,CountryIndex-1,-5)))*VALUE(OFFSET(TopElecRate,CountryIndex-1,0)*VALUE(OFFSET(TopLightpoint,CountryIndex-1,0)*VALUE(OFFSET(TopSaturation,CountryIndex-1,-6)))) -> 11221864.21 | C173: =(VALUE(OFFSET(TopElecUse,CountryIndex-1,-4)*10^9*60%)*VALUE(OFFSET(TopSectoralElec,CountryIndex-1,0))*VALUE(OFFSET(TopElecLighting,CountryIndex-1,0)))/VALUE(OFFSET(TopUEC2015,CountryIndex-1,0)) -> 8054946.075 | D173: =(VALUE(OFFSET(TopElecUse,CountryIndex-1,-4)*10^9*60%)*VALUE(OFFSET(TopSectoralElec,CountryIndex-1,0))*VALUE(OFFSET(TopElecLighting,CountryIndex-1,0)))/VALUE(OFFSET(TopUEC2015,CountryIndex-1,1)) -> 2380806.284 | E173: =(VALUE(OFFSET(TopElecUse,CountryIndex-1,-4)*10^9*60%)*VALUE(OFFSET(TopElecLighting,CountryIndex-1,2)))/VALUE(OFFSET(TopUEC2015,CountryIndex-1,2)) -> 214603.1782 | G173: 1980 | H173: 0.4542653755 | I173: 0.4588421576 | J173: 0.4588421576 | K173: 0.1349535758
A174: 1979 | B174: =($A174-$A$203)/($A$173-$A$203)*($B$173-$B$203)+$B$203 -> 10887154.88 | C174: =($A174-$A$203)/($A$173-$A$203)*(C$173-C$203)+C$203 -> 7875947.273 | D174: =($A174-$A$203)/($A$173-$A$203)*(D$173-D$203)+D$203 -> 2315254.185 | E174: =($A174-$A$203)/($A$173-$A$203)*(E$173-E$203)+E$203 -> 208045.8588 | G174: 1979 | H174: 0.4407162129 | I174: 0.4486456653 | J174: 0.4462085945 | K174: 0.1308299943
A175: 1978 | B175: =($A175-$A$203)/($A$173-$A$203)*($B$173-$B$203)+$B$203 -> 10552445.54 | C175: =($A175-$A$203)/($A$173-$A$203)*(C$173-C$203)+C$203 -> 7696948.472 | D175: 2249702.086 | E175: 201488.5395 | G175: 1978 | H175: 0.4271670504 | I175: 0.4384491729 | J175: 0.4335750314 | K175: 0.1267064128
A176: 1977 | B176: 10217736.2 | C176: 7517949.67 | D176: 2184149.987 | E176: 194931.2202 | G176: 1977 | H176: 0.4136178878 | I176: 0.4282526805 | J176: 0.4209414683 | K176: 0.1225828313
A177: 1976 | B177: 9883026.869 | C177: 7338950.868 | D177: 2118597.888 | E177: 188373.9008 | G177: 1976 | H177: 0.4000687253 | I177: 0.4180561881 | J177: 0.4083079051 | K177: 0.1184592499
A178: 1975 | B178: 9548317.532 | C178: 7159952.067 | D178: 2053045.79 | E178: 181816.5815 | G178: 1975 | H178: 0.3865195627 | I178: 0.4078596957 | J178: 0.395674342 | K178: 0.1143356684
A179: 1974 | B179: 9213608.196 | C179: 6980953.265 | D179: 1987493.691 | E179: 175259.2622 | G179: 1974 | H179: 0.3729704002 | I179: 0.3976632033 | J179: 0.3830407789 | K179: 0.1102120869
A180: 1973 | B180: 8878898.86 | C180: 6801954.463 | D180: 1921941.592 | E180: 168701.9428 | G180: 1973 | H180: 0.3594212377 | I180: 0.3874667109 | J180: 0.3704072158 | K180: 0.1060885054
A181: 1972 | B181: 8544189.524 | C181: 6622955.662 | D181: 1856389.493 | E181: 162144.6235 | G181: 1972 | H181: 0.3458720751 | I181: 0.3772702185 | J181: 0.3577736526 | K181: 0.1019649239
A182: 1971 | B182: 8209480.187 | C182: 6443956.86 | D182: 1790837.394 | E182: 155587.3042 | G182: 1971 | H182: 0.3323229126 | I182: 0.3670737261 | J182: 0.3451400895 | K182: 0.09784134244
A183: 1970 | B183: 7874770.851 | C183: 6264958.058 | D183: 1725285.295 | E183: 149029.9848 | G183: 1970 | H183: 0.31877375 | I183: 0.3568772337 | J183: 0.3325065264 | K183: 0.09371776096
A184: 1969 | B184: 7540061.515 | C184: 6085959.257 | D184: 1659733.196 | E184: 142472.6655 | G184: 1969 | H184: 0.3052245875 | I184: 0.3466807413 | J184: 0.3198729632 | K184: 0.08959417948
A185: 1968 | B185: 7205352.179 | C185: 5906960.455 | D185: 1594181.097 | E185: 135915.3462 | G185: 1968 | H185: 0.2916754249 | I185: 0.3364842489 | J185: 0.3072394001 | K185: 0.08547059799
A186: 1967 | B186: 6870642.842 | C186: 5727961.653 | D186: 1528628.999 | E186: 129358.0268 | G186: 1967 | H186: 0.2781262624 | I186: 0.3262877565 | J186: 0.294605837 | K186: 0.08134701651
A187: 1966 | B187: 6535933.506 | C187: 5548962.852 | D187: 1463076.9 | E187: 122800.7075 | G187: 1966 | H187: =VALUE(OFFSET(TopUEC2015,CountryIndex-1,-1))*B187/10^9 -> 0.2645770998 | I187: =VALUE(OFFSET(TopUEC2015,CountryIndex-1,0))*$C187/10^9 -> 0.3160912642 | J187: =VALUE(OFFSET(TopUEC2015,CountryIndex-1,1))*$D187/10^9 -> 0.2819722739 | K187: =VALUE(OFFSET(TopUEC2015,CountryIndex-1,2))*$E187/10^9 -> 0.07722343503
A188: 1965 | B188: 6201224.17 | C188: 5369964.05 | D188: 1397524.801 | E188: 116243.3882 | G188: 1965 | H188: 0.2510279373 | I188: 0.3058947718 | J188: 0.2693387107 | K188: 0.07309985355
A189: 1964 | B189: 5866514.834 | C189: 5190965.248 | D189: 1331972.702 | E189: 109686.0688 | G189: 1964 | H189: 0.2374787747 | I189: 0.2956982794 | J189: 0.2567051476 | K189: 0.06897627206
A190: 1963 | B190: 5531805.498 | C190: 5011966.447 | D190: 1266420.603 | E190: 103128.7495 | G190: 1963 | H190: 0.2239296122 | I190: 0.285501787 | J190: 0.2440715845 | K190: 0.06485269058
A191: 1962 | B191: 5197096.161 | C191: 4832967.645 | D191: 1200868.504 | E191: 96571.43018 | G191: 1962 | H191: 0.2103804496 | I191: 0.2753052946 | J191: 0.2314380214 | K191: 0.0607291091
A192: 1961 | B192: 4862386.825 | C192: 4653968.843 | D192: 1135316.405 | E192: 90014.11084 | G192: 1961 | H192: 0.1968312871 | I192: 0.2651088022 | J192: 0.2188044582 | K192: 0.05660552762
A193: 1960 | B193: 4527677.489 | C193: 4474970.042 | D193: 1069764.307 | E193: 83456.79151 | G193: 1960 | H193: 0.1832821245 | I193: 0.2549123098 | J193: 0.2061708951 | K193: 0.05248194614
A194: 1959 | B194: 4192968.153 | C194: 4295971.24 | D194: 1004212.208 | E194: 76899.47218 | G194: 1959 | H194: 0.169732962 | I194: 0.2447158174 | J194: 0.193537332 | K194: 0.04835836465
A195: 1958 | B195: 3858258.816 | C195: 4116972.438 | D195: 938660.1089 | E195: 70342.15284 | G195: 1958 | H195: 0.1561837995 | I195: 0.234519325 | J195: 0.1809037688 | K195: 0.04423478317
A196: 1957 | B196: 3523549.48 | C196: 3937973.637 | D196: 873108.01 | E196: 63784.83351 | G196: 1957 | H196: 0.1426346369 | I196: 0.2243228326 | J196: 0.1682702057 | K196: 0.04011120169
A197: 1956 | B197: 3188840.144 | C197: 3758974.835 | D197: 807555.9111 | E197: 57227.51418 | G197: 1956 | H197: 0.1290854744 | I197: 0.2141263402 | J197: 0.1556366426 | K197: 0.03598762021
A198: 1955 | B198: 2854130.808 | C198: 3579976.033 | D198: 742003.8123 | E198: 50670.19485 | G198: 1955 | H198: 0.1155363118 | I198: 0.2039298478 | J198: 0.1430030795 | K198: 0.03186403873
A199: 1954 | B199: 2519421.471 | C199: 3400977.232 | D199: 676451.7134 | E199: 44112.87551 | G199: 1954 | H199: 0.1019871493 | I199: 0.1937333555 | J199: 0.1303695163 | K199: 0.02774045724
A200: 1953 | B200: 2184712.135 | C200: 3221978.43 | D200: 610899.6145 | E200: 37555.55618 | G200: 1953 | H200: 0.08843798672 | I200: 0.1835368631 | J200: 0.1177359532 | K200: 0.02361687576
A201: 1952 | B201: 1850002.799 | C201: 3042979.628 | D201: 545347.5157 | E201: 30998.23685 | G201: 1952 | H201: 0.07488882418 | I201: 0.1733403707 | J201: 0.1051023901 | K201: 0.01949329428
A202: 1951 | B202: 1515293.463 | C202: 2863980.827 | D202: 479795.4168 | E202: 24440.91751 | G202: 1951 | H202: 0.06133966163 | I202: 0.1631438783 | J202: 0.09246882696 | K202: 0.0153697128
A203: 1950 | B203: =(VALUE(OFFSET(TopPop,CountryIndex-1,-6)*1000)/VALUE(OFFSET(HHsize,CountryIndex-1,-5))*1.1)*VALUE(OFFSET(TopElecRate,CountryIndex-1,0)*VALUE(OFFSET(TopLightpoint,CountryIndex-1,0)*VALUE(OFFSET(TopSaturation,CountryIndex-1,-7)))) -> 1180584.126 | C203: =(VALUE(OFFSET(TopElecUse,CountryIndex-1,-4)*10^9*20%)*VALUE(OFFSET(TopSectoralElec,CountryIndex-1,0))*VALUE(OFFSET(TopElecLighting,CountryIndex-1,0)))/VALUE(OFFSET(TopUEC2015,CountryIndex-1,0)) -> 2684982.025 | D203: =(VALUE(OFFSET(TopElecUse,CountryIndex-1,-4)*10^9*20%)*VALUE(OFFSET(TopSectoralElec,CountryIndex-1,1))*VALUE(OFFSET(TopElecLighting,CountryIndex-1,1)))/VALUE(OFFSET(TopUEC2015,CountryIndex-1,1)) -> 414243.3179 | E203: =(VALUE(OFFSET(TopElecUse,CountryIndex-1,-4)*10^9*5%)*VALUE(OFFSET(TopElecLighting,CountryIndex-1,2)))/VALUE(OFFSET(TopUEC2015,CountryIndex-1,2)) -> 17883.59818 | G203: 1950 | H203: 0.04779049908 | I203: 0.1529473859 | J203: 0.07983526383 | K203: 0.01124613131
B205: Lamp stock by type
B207: Lamp Type | C207: Residential | D207: Professional | E207: Outdoor | F207: Total
D208: =C215 -> 150.5791777 | E208: =$D$208+$D$215 -> 273.7941862
B209: Incandescent | C209: =HLOOKUP(CountryIndex,BaseLSRes2015,3)*VLOOKUP(AnalysisYear,Database!$A$123:$E$203,2,FALSE)/10^6 -> 2.720290379 | D209: =SUM((HLOOKUP(CountryIndex,BaseLSCom2015,2)*VLOOKUP(AnalysisYear,Database!$A$123:$E$203,3,FALSE)/10^6),(HLOOKUP(CountryIndex,BaseLSIndus2015,3)*VLOOKUP(AnalysisYear,Database!$A$123:$E$203,4,FALSE)/10^6)) -> 0.01646895217 | E209: =(HLOOKUP(CountryIndex,BaseLSOutdoor2015,2)*VLOOKUP(AnalysisYear,Database!$A$123:$E$203,5,FALSE)/10^6) -> 0 | F209: =SUM(C209:E209) -> 2.736759331
B210: Halogen | C210: =HLOOKUP(CountryIndex,BaseLSRes2015,4)*VLOOKUP(AnalysisYear,Database!$A$123:$E$203,2,FALSE)/10^6 -> 9.120973624 | D210: =SUM((HLOOKUP(CountryIndex,BaseLSCom2015,3)*VLOOKUP(AnalysisYear,Database!$A$123:$E$203,3,FALSE)/10^6),(HLOOKUP(CountryIndex,BaseLSIndus2015,4)*VLOOKUP(AnalysisYear,Database!$A$123:$E$203,4,FALSE)/10^6)) -> 2.151390078 | E210: =(HLOOKUP(CountryIndex,BaseLSOutdoor2015,3)*VLOOKUP(AnalysisYear,Database!$A$123:$E$203,5,FALSE)/10^6) -> 0 | F210: 11.2723637
B211: CFL | C211: =HLOOKUP(CountryIndex,BaseLSRes2015,5)*VLOOKUP(AnalysisYear,Database!$A$123:$E$203,2,FALSE)/10^6 -> 63.20674705 | D211: =SUM((HLOOKUP(CountryIndex,BaseLSCom2015,4)*VLOOKUP(AnalysisYear,Database!$A$123:$E$203,3,FALSE)/10^6),(HLOOKUP(CountryIndex,BaseLSIndus2015,5)*VLOOKUP(AnalysisYear,Database!$A$123:$E$203,4,FALSE)/10^6)) -> 44.65822783 | E211: =(HLOOKUP(CountryIndex,BaseLSOutdoor2015,4)*VLOOKUP(AnalysisYear,Database!$A$123:$E$203,5,FALSE)/10^6) -> 0 | F211: 107.8649749
B212: Linear fluorescent | C212: =SUM(HLOOKUP(CountryIndex,BaseLSRes2015,6),HLOOKUP(CountryIndex,BaseLSRes2015,7),HLOOKUP(CountryIndex,BaseLSRes2015,8),HLOOKUP(CountryIndex,BaseLSRes2015,9))*VLOOKUP(AnalysisYear,Database!$A$123:$E$203,2,FALSE)/10^6 -> 58.88628586 | D212: =(SUM(HLOOKUP(CountryIndex,BaseLSCom2015,5),HLOOKUP(CountryIndex,BaseLSCom2015,6),HLOOKUP(CountryIndex,BaseLSCom2015,7),HLOOKUP(CountryIndex,BaseLSCom2015,8))*VLOOKUP(AnalysisYear,Database!$A$123:$E$203,3,FALSE)/10^6)+(SUM(HLOOKUP(CountryIndex,BaseLSIndus2015,6),HLOOKUP(CountryIndex,BaseLSIndus2015,7),HLOOKUP(CountryIndex,BaseLSIndus2015,8),HLOOKUP(CountryIndex,BaseLSIndus2015,9))*VLOOKUP(AnalysisYear,Database!$A$123:$E$203,4,FALSE)/10^6) -> 60.35216139 | E212: =SUM(HLOOKUP(CountryIndex,BaseLSOutdoor2015,5),HLOOKUP(CountryIndex,BaseLSOutdoor2015,6),HLOOKUP(CountryIndex,BaseLSOutdoor2015,7),HLOOKUP(CountryIndex,BaseLSOutdoor2015,8))*VLOOKUP(AnalysisYear,Database!$A$123:$E$203,5,FALSE)/10^6 -> 0.534666779 | F212: 119.773114
B213: LED | C213: =SUM(HLOOKUP(CountryIndex,BaseLSRes2015,10),HLOOKUP(CountryIndex,BaseLSRes2015,11),HLOOKUP(CountryIndex,BaseLSRes2015,12))*VLOOKUP(AnalysisYear,Database!$A$123:$E$203,2,FALSE)/10^6 -> 16.64488077 | D213: =(SUM(HLOOKUP(CountryIndex,BaseLSCom2015,9),HLOOKUP(CountryIndex,BaseLSCom2015,10),HLOOKUP(CountryIndex,BaseLSCom2015,11))*VLOOKUP(AnalysisYear,Database!$A$123:$E$203,3,FALSE)/10^6)+(SUM(HLOOKUP(CountryIndex,BaseLSIndus2015,10),HLOOKUP(CountryIndex,BaseLSIndus2015,11),HLOOKUP(CountryIndex,BaseLSIndus2015,12))*VLOOKUP(AnalysisYear,Database!$A$123:$E$203,4,FALSE)/10^6) -> 12.11714961 | E213: =SUM(HLOOKUP(CountryIndex,BaseLSOutdoor2015,9),HLOOKUP(CountryIndex,BaseLSOutdoor2015,10),HLOOKUP(CountryIndex,BaseLSOutdoor2015,11),HLOOKUP(CountryIndex,BaseLSOutdoor2015,15))*VLOOKUP(AnalysisYear,Database!$A$123:$E$203,5,FALSE)/10^6 -> 0.05403547234 | F213: 28.81606585
B214: HID | C214: =SUM(HLOOKUP(CountryIndex,BaseLSRes2015,13),HLOOKUP(CountryIndex,BaseLSRes2015,14),HLOOKUP(CountryIndex,BaseLSRes2015,15))*VLOOKUP(AnalysisYear,Database!$A$123:$E$203,2,FALSE)/10^6 -> 0 | D214: =(SUM(HLOOKUP(CountryIndex,BaseLSCom2015,12),HLOOKUP(CountryIndex,BaseLSCom2015,13),HLOOKUP(CountryIndex,BaseLSCom2015,14))*VLOOKUP(AnalysisYear,Database!$A$123:$E$203,3,FALSE)/10^6)+(SUM(HLOOKUP(CountryIndex,BaseLSIndus2015,13),HLOOKUP(CountryIndex,BaseLSIndus2015,14),HLOOKUP(CountryIndex,BaseLSIndus2015,15))*VLOOKUP(AnalysisYear,Database!$A$123:$E$203,4,FALSE)/10^6) -> 3.919610616 | E214: =(SUM(HLOOKUP(CountryIndex,BaseLSOutdoor2015,12),HLOOKUP(CountryIndex,BaseLSOutdoor2015,13),HLOOKUP(CountryIndex,BaseLSOutdoor2015,14))*VLOOKUP(AnalysisYear,Database!$A$123:$E$203,5,FALSE)/10^6) -> 2.255269977 | F214: 6.174880593
C215: =SUM(C209:C214) -> 150.5791777 | D215: =SUM(D209:D214) -> 123.2150085 | E215: =SUM(E209:E214) -> 2.843972229 | F215: =SUM(F209:F214) -> 276.6381584

Sheet Policy Scenarios
B1: Policy Scenarios | D1: Business As Usual (BAU)
D2: Energy Efficiency | AP2: Policy selection
D3: Best Available Technologies | AP3: MEPS for Ils | AQ3: TRUE
U4: Typical wattage | Y4: Operating hours (default vaule by country) | AI4: Utilisation (%) | AP4: MEPS for CFLs | AQ4: TRUE
C5: CountryIndex: | E5: 5 | U5: Lamp type | V5: Commercial (W) | W5: Industrial (W) | X5: Outdoor (W) | Y5: BRN | Z5: KHM | AA5: IDN | AB5: LAO | AC5: MYS | AD5: MMR | AE5: PHL | AF5: SGP | AG5: THA | AH5: VNM | AI5: Commercial | AJ5: Industrial | AK5: Outdoor | AP5: MEPS for LFLs | AQ5: TRUE
U6: Incandescent | V6: =Database!T6 -> 60 | W6: =Database!U6 -> 60 | X6: =Database!V6 -> 100 | Y6: =Database!W6 -> 6.5 | Z6: =Database!X6 -> 7.1 | AA6: =Database!Y6 -> 7.1 | AB6: =Database!Z6 -> 7.1 | AC6: =Database!AA6 -> 7.1 | AD6: =Database!AB6 -> 7.1 | AE6: =Database!AC6 -> 7.1 | AF6: =Database!AD6 -> 6.5 | AG6: =Database!AE6 -> 7.1 | AH6: =Database!AF6 -> 7.1 | AI6: =Database!AG6 -> 0.6643835616 | AJ6: =Database!AH6 -> 0.8383561644 | AK6: =Database!AI6 -> 1 | AP6: MEPS for HID | AQ6: TRUE
C7: EcoIndex: | E7: 1 | U7: Halogen | V7: =Database!T7 -> 50 | W7: =Database!U7 -> 50 | X7: =Database!V7 -> 80 | Y7: =Database!W7 -> 9 | Z7: =Database!X7 -> 9.4 | AA7: =Database!Y7 -> 9.4 | AB7: =Database!Z7 -> 9.4 | AC7: =Database!AA7 -> 9.4 | AD7: =Database!AB7 -> 9.4 | AE7: =Database!AC7 -> 9.4 | AF7: =Database!AD7 -> 9 | AG7: =Database!AE7 -> 9.4 | AH7: =Database!AF7 -> 9.4 | AI7: =Database!AG7 -> 0.6643835616 | AJ7: =Database!AH7 -> 0.8383561644 | AK7: =Database!AI7 -> 1 | AP7: Labelling programme for CFLs | AQ7: TRUE
E8: 15 | U8: CFL | V8: =Database!T8 -> 14 | W8: =Database!U8 -> 24 | X8: =Database!V8 -> 25 | Y8: =Database!W8 -> 9.5 | Z8: =Database!X8 -> 10.7 | AA8: =Database!Y8 -> 10.7 | AB8: =Database!Z8 -> 10.7 | AC8: =Database!AA8 -> 10.7 | AD8: =Database!AB8 -> 10.7 | AE8: =Database!AC8 -> 10.7 | AF8: =Database!AD8 -> 9.5 | AG8: =Database!AE8 -> 10.7 | AH8: =Database!AF8 -> 10.7 | AI8: =Database!AG8 -> 0.6643835616 | AJ8: =Database!AH8 -> 0.8383561644 | AK8: =Database!AI8 -> 1
C9: AnalyIndex: | E9: =2031-$E$8 -> 2016 | U9: LFL - T5 | V9: =Database!T9 -> 26 | W9: =Database!U9 -> 26 | X9: =Database!V9 -> 28 | Y9: =Database!W9 -> 11.1 | Z9: =Database!X9 -> 11.1 | AA9: =Database!Y9 -> 11.1 | AB9: =Database!Z9 -> 11.1 | AC9: =Database!AA9 -> 11.1 | AD9: =Database!AB9 -> 11.1 | AE9: =Database!AC9 -> 11.1 | AF9: =Database!AD9 -> 11.1 | AG9: =Database!AE9 -> 11.1 | AH9: =Database!AF9 -> 11.1 | AI9: =Database!AG9 -> 0.6643835616 | AJ9: =Database!AH9 -> 0.8383561644 | AK9: =Database!AI9 -> 1
U10: LFL - T8 | V10: =Database!T10 -> 32 | W10: =Database!U10 -> 36 | X10: =Database!V10 -> 32 | Y10: =Database!W10 -> 9.5 | Z10: =Database!X10 -> 10.5 | AA10: =Database!Y10 -> 10.5 | AB10: =Database!Z10 -> 10.5 | AC10: =Database!AA10 -> 10.5 | AD10: =Database!AB10 -> 10.5 | AE10: =Database!AC10 -> 10.5 | AF10: =Database!AD10 -> 9.5 | AG10: =Database!AE10 -> 10.5 | AH10: =Database!AF10 -> 10.5 | AI10: =Database!AG10 -> 0.6643835616 | AJ10: =Database!AH10 -> 0.8383561644 | AK10: =Database!AI10 -> 1
C11: PolicyIndex: | E11: 2 | U11: LFL - T12 | V11: =Database!T11 -> 40 | W11: =Database!U11 -> 40 | X11: =Database!V11 -> 40 | Y11: 9.1 | Z11: =Database!X11 -> 9.1 | AA11: =Database!Y11 -> 9.1 | AB11: =Database!Z11 -> 9.1 | AC11: =Database!AA11 -> 9.1 | AD11: =Database!AB11 -> 9.1 | AE11: =Database!AC11 -> 9.1 | AF11: 9.1 | AG11: =Database!AE11 -> 9.1 | AH11: =Database!AF11 -> 9.1 | AI11: =Database!AG11 -> 0.6643835616 | AJ11: =Database!AH11 -> 0.8383561644 | AK11: =Database!AI11 -> 1
U12: LFL - Circular | V12: =Database!T12 -> 28 | W12: =Database!U12 -> 32 | X12: =Database!V12 -> 28 | Y12: =Database!W12 -> 7.5 | Z12: =Database!X12 -> 9.3 | AA12: =Database!Y12 -> 9.3 | AB12: =Database!Z12 -> 9.3 | AC12: =Database!AA12 -> 9.3 | AD12: =Database!AB12 -> 9.3 | AE12: =Database!AC12 -> 9.3 | AF12: =Database!AD12 -> 6.5 | AG12: =Database!AE12 -> 9.3 | AH12: =Database!AF12 -> 9.3 | AI12: =Database!AG12 -> 0.6643835616 | AJ12: =Database!AH12 -> 0.8383561644 | AK12: =Database!AI12 -> 1
U13: LED omni | V13: =Database!T13 -> 7.2 | W13: =Database!U13 -> 10 | X13: =Database!V13 -> 16.5 | Y13: =Database!W13 -> 11.4 | Z13: =Database!X13 -> 11.4 | AA13: =Database!Y13 -> 11.4 | AB13: =Database!Z13 -> 11.4 | AC13: =Database!AA13 -> 11.4 | AD13: =Database!AB13 -> 11.4 | AE13: =Database!AC13 -> 11.4 | AF13: =Database!AD13 -> 11.4 | AG13: =Database!AE13 -> 11.4 | AH13: =Database!AF13 -> 11.4 | AI13: =Database!AG13 -> 0.6643835616 | AJ13: =Database!AH13 -> 0.8383561644 | AK13: =Database!AI13 -> 1
U14: LED tube | V14: =Database!T14 -> 14 | W14: =Database!U14 -> 16 | X14: =Database!V14 -> 16.5 | Y14: =Database!W14 -> 12.9 | Z14: =Database!X14 -> 12.9 | AA14: =Database!Y14 -> 12.9 | AB14: =Database!Z14 -> 12.9 | AC14: =Database!AA14 -> 12.9 | AD14: =Database!AB14 -> 12.9 | AE14: =Database!AC14 -> 12.9 | AF14: =Database!AD14 -> 12.9 | AG14: =Database!AE14 -> 12.9 | AH14: =Database!AF14 -> 12.9 | AI14: =Database!AG14 -> 0.6643835616 | AJ14: =Database!AH14 -> 0.8383561644 | AK14: =Database!AI14 -> 1
B15: Framework for technology substitution in BAU scenario | U15: LED others | V15: =Database!T15 -> 14 | W15: =Database!U15 -> 20 | X15: =Database!V15 -> 16.5 | Y15: =Database!W15 -> 11.8 | Z15: =Database!X15 -> 11.8 | AA15: =Database!Y15 -> 11.8 | AB15: =Database!Z15 -> 11.8 | AC15: =Database!AA15 -> 11.8 | AD15: =Database!AB15 -> 11.8 | AE15: =Database!AC15 -> 11.8 | AF15: =Database!AD15 -> 11.8 | AG15: =Database!AE15 -> 11.8 | AH15: =Database!AF15 -> 11.8 | AI15: =Database!AG15 -> 0.6643835616 | AJ15: =Database!AH15 -> 0.8383561644 | AK15: =Database!AI15 -> 1
B16: Natural uptake of efficient lighting technologies based on historical data (till 2030) | U16: HID - HPS | V16: =Database!T16 -> 120 | W16: =Database!U16 -> 150 | X16: =Database!V16 -> 180 | Y16: =Database!W16 -> 11.5 | Z16: =Database!X16 -> 11.5 | AA16: =Database!Y16 -> 11.5 | AB16: =Database!Z16 -> 11.5 | AC16: =Database!AA16 -> 11.5 | AD16: =Database!AB16 -> 11.5 | AE16: =Database!AC16 -> 11.5 | AF16: =Database!AD16 -> 11.5 | AG16: =Database!AE16 -> 11.5 | AH16: =Database!AF16 -> 11.5 | AI16: =Database!AG16 -> 0.6643835616 | AJ16: =Database!AH16 -> 0.8383561644 | AK16: =Database!AI16 -> 1
C17: Incandescent | D17: Halogen | E17: CFL | F17: LFL - T5 | G17: LFL - T8 | H17: LFL - T12 | I17: LFL - Circular | J17: LED omni | K17: LED tube | L17: LED others | M17: HID - HPS | N17: HID - Mercury Vapour | O17: HID - Metal Halide | P17: LED street | R17: Technology substitution | U17: HID - Mercury Vapour | V17: =Database!T17 -> 120 | W17: =Database!U17 -> 150 | X17: =Database!V17 -> 180 | Y17: =Database!W17 -> 11.5 | Z17: =Database!X17 -> 11.5 | AA17: =Database!Y17 -> 11.5 | AB17: =Database!Z17 -> 11.5 | AC17: =Database!AA17 -> 11.5 | AD17: =Database!AB17 -> 11.5 | AE17: =Database!AC17 -> 11.5 | AF17: =Database!AD17 -> 11.5 | AG17: =Database!AE17 -> 11.5 | AH17: =Database!AF17 -> 11.5 | AI17: =Database!AG17 -> 0.6643835616 | AJ17: =Database!AH17 -> 0.8383561644 | AK17: =Database!AI17 -> 1
B18: Incandescent | C18: =((1+$S$18)^15) -> 0.3367008621 | R18: Incandescent | S18: =IF('User Inputs'!G50<>0,VLOOKUP('Policy Scenarios'!R18,UserAnnualLampdecrease,2,FALSE),-7%) -> -0.07 | U18: HID - Metal Halide | V18: =Database!T18 -> 120 | W18: =Database!U18 -> 150 | X18: =Database!V18 -> 180 | Y18: =Database!W18 -> 11.5 | Z18: =Database!X18 -> 11.5 | AA18: =Database!Y18 -> 11.5 | AB18: =Database!Z18 -> 11.5 | AC18: =Database!AA18 -> 11.5 | AD18: =Database!AB18 -> 11.5 | AE18: =Database!AC18 -> 11.5 | AF18: =Database!AD18 -> 11.5 | AG18: =Database!AE18 -> 11.5 | AH18: =Database!AF18 -> 11.5 | AI18: =Database!AG18 -> 0.6643835616 | AJ18: =Database!AH18 -> 0.8383561644 | AK18: =Database!AI18 -> 1
B19: Halogen | D19: =((1+$S$19)^15) -> 0.6235289981 | R19: Halogen | S19: =IF('User Inputs'!$G$51<>0,VLOOKUP('Policy Scenarios'!R19,UserAnnualLampdecrease,2,FALSE),-3.1%) -> -0.031 | U19: LED street light | V19: =Database!T19 -> 30 | W19: =Database!U19 -> 70 | X19: =Database!V19 -> 90 | Y19: =Database!W19 -> 11.5 | Z19: =Database!X19 -> 11.5 | AA19: =Database!Y19 -> 11.5 | AB19: =Database!Z19 -> 11.5 | AC19: =Database!AA19 -> 11.5 | AD19: =Database!AB19 -> 11.5 | AE19: =Database!AC19 -> 11.5 | AF19: =Database!AD19 -> 11.5 | AG19: =Database!AE19 -> 11.5 | AH19: =Database!AF19 -> 11.5 | AI19: =Database!AG19 -> 0.6643835616 | AJ19: =Database!AH19 -> 0.8383561644 | AK19: =Database!AI19 -> 1
B20: CFL | C20: =(1-$C$18)/3 -> 0.2210997126 | E20: =((1+$S$20)^15) -> 0.7385691026 | R20: CFL | S20: =IF('User Inputs'!$G$52<>0,VLOOKUP('Policy Scenarios'!R20,UserAnnualLampdecrease,2,FALSE),-2%) -> -0.02
B21: LFL - T5 | F21: =((1+$S$21)^15) -> 0.7971562536 | G21: =(1-$G$22)*1/4 -> 0.09411775048 | H21: =(1-$H$23)*2/10 -> 0.1996875861 | R21: LFL - T5 | S21: =IF('User Inputs'!$G$53<>0,VLOOKUP('Policy Scenarios'!R21,UserAnnualLampdecrease,2,FALSE),-1.5%) -> -0.015 | U21: Baseline substitution in 2000
B22: LFL - T8 | G22: =((1+$S$22)^15) -> 0.6235289981 | H22: =(1-$H$23)*5/10 -> 0.4992189653 | R22: LFL - T8 | S22: =IF('User Inputs'!$G$54<>0,VLOOKUP('Policy Scenarios'!R22,UserAnnualLampdecrease,2,FALSE),-3.1%) -> -0.031 | V22: Incandescent | W22: Halogen | X22: CFL | Y22: LFL - T5 | Z22: LFL - T8 | AA22: LFL - T12 | AB22: LFL - Circular | AC22: LED omni | AD22: LED tube | AE22: LED others | AF22: HID - HPS | AG22: HID - Mercury Vapour | AH22: HID - Metal Halide | AI22: LED street
B23: LFL - T12 | H23: =((1+$S$23)^15) -> 0.001562069489 | R23: LFL - T12 | S23: =IF('User Inputs'!$G$55<>0,VLOOKUP('Policy Scenarios'!R23,UserAnnualLampdecrease,2,FALSE),-35%) -> -0.35 | U23: Incandescent | V23: 1 | X23: 0.4 | AC23: 0.2 | AD23: 0.2 | AE23: 0.3
B24: LFL - Circular | I24: =((1+$S$24)^15) -> 0.7053723891 | R24: LFL - Circular | S24: =IF('User Inputs'!$G$56<>0,VLOOKUP('Policy Scenarios'!R24,UserAnnualLampdecrease,2,FALSE),-2.3%) -> -0.023 | U24: Halogen | W24: 1 | X24: 0.1 | AC24: 0.2 | AD24: 0.1 | AE24: 0.1
B25: LED omni | C25: =(1-$C$18)/3 -> 0.2210997126 | D25: =(1-$D$19)/2 -> 0.188235501 | E25: =(1-$E$20)*2/3 -> 0.1742872649 | J25: 1 | R25: HID | S25: =IF('User Inputs'!$G$57<>0,VLOOKUP('Policy Scenarios'!R25,UserAnnualLampdecrease,2,FALSE),-0.35%) -> -0.0035 | U25: CFL | X25: 0.25 | AE25: 0.05
B26: LED tube | E26: =(1-$E$20)*1/3 -> 0.08714363245 | F26: =(1-$F$21) -> 0.2028437464 | G26: =(1-$G$22)*3/4 -> 0.2823532514 | H26: =(1-$H$23)*3/10 -> 0.2995313792 | I26: =(1-$I$24)*1/3 -> 0.09820920362 | K26: 1 | U26: LFL - T5 | AL26: RESIDENTIAL | AM26: 1 | AN26: 2 | AO26: 3 | AP26: 4 | AQ26: 5 | AR26: 6 | AS26: 7 | AT26: 8 | AU26: 9 | AV26: 10
B27: LED others | C27: =(1-$C$18)/3 -> 0.2210997126 | D27: =(1-$D$19)/2 -> 0.188235501 | I27: =(1-$I$24)*2/3 -> 0.1964184072 | L27: 1 | U27: LFL - T8 | X27: 0.15 | Y27: 0.5 | Z27: 1 | AD27: 0.4 | AE27: 0.25 | AL27: Lamp type | AM27: BRN | AN27: KHM | AO27: IDN | AP27: LAO | AQ27: MYS | AR27: MMR | AS27: PHL | AT27: SGP | AU27: THA | AV27: VNM
B28: HID - HPS | M28: =((1+$S$25)^15) -> 0.9487669451 | U28: LFL - T12 | Y28: 0.3 | AA28: 1 | AC28: 0.3 | AD28: 0.2 | AE28: 0.1 | AI28: 0.1 | AL28: Incandescent | AM28: =Database!C25*$V$23+Database!C27*'Policy Scenarios'!$X$23+Database!C32*'Policy Scenarios'!$AC$23+Database!C33*'Policy Scenarios'!$AD$23+Database!C34*'Policy Scenarios'!$AE$23 -> 0.1701 | AN28: =(Database!D25*$V$23+Database!D27*'Policy Scenarios'!$X$23+Database!D32*'Policy Scenarios'!$AC$23+Database!D33*'Policy Scenarios'!$AD$23+Database!D34*'Policy Scenarios'!$AE$23)-0.0128% -> 0.1840825263 | AO28: =Database!E25*$V$23+Database!E27*'Policy Scenarios'!$X$23+Database!E32*'Policy Scenarios'!$AC$23+Database!E33*'Policy Scenarios'!$AD$23+Database!E34*'Policy Scenarios'!$AE$23 -> 0.3379032258 | AP28: =Database!F25*$V$23+Database!F27*'Policy Scenarios'!$X$23+Database!F32*'Policy Scenarios'!$AC$23+Database!F33*'Policy Scenarios'!$AD$23+Database!F34*'Policy Scenarios'!$AE$23 -> 0.08481930889 | AQ28: =Database!G25*$V$23+Database!G27*'Policy Scenarios'!$X$23+Database!G32*'Policy Scenarios'!$AC$23+Database!G33*'Policy Scenarios'!$AD$23+Database!G34*'Policy Scenarios'!$AE$23 -> 0.2133941339 | AR28: =Database!H25*$V$23+Database!H27*'Policy Scenarios'!$X$23+Database!H32*'Policy Scenarios'!$AC$23+Database!H33*'Policy Scenarios'!$AD$23+Database!H34*'Policy Scenarios'!$AE$23 -> 0.24036 | AS28: =Database!I25*$V$23+Database!I27*'Policy Scenarios'!$X$23+Database!I32*'Policy Scenarios'!$AC$23+Database!I33*'Policy Scenarios'!$AD$23+Database!I34*'Policy Scenarios'!$AE$23 -> 0.3006711409 | AT28: =Database!J25*$V$23+Database!J27*'Policy Scenarios'!$X$23+Database!J32*'Policy Scenarios'!$AC$23+Database!J33*'Policy Scenarios'!$AD$23+Database!J34*'Policy Scenarios'!$AE$23 -> 0.1596429172 | AU28: =Database!K25*$V$23+Database!K27*'Policy Scenarios'!$X$23+Database!K32*'Policy Scenarios'!$AC$23+Database!K33*'Policy Scenarios'!$AD$23+Database!K34*'Policy Scenarios'!$AE$23 -> 0.1898101898 | AV28: =Database!L25*$V$23+Database!L27*'Policy Scenarios'!$X$23+Database!L32*'Policy Scenarios'!$AC$23+Database!L33*'Policy Scenarios'!$AD$23+Database!L34*'Policy Scenarios'!$AE$23 -> 0.27313
B29: HID - Mercury Vapour | N29: =((1+$S$25)^15) -> 0.9487669451 | U29: LFL - Circular | X29: 0.1 | Y29: 0.2 | AB29: 1 | AC29: 0.3 | AD29: 0.1 | AE29: 0.2 | AL29: Halogen | AM29: =Database!C26*$W$24+Database!C27*'Policy Scenarios'!$X$24+Database!C32*'Policy Scenarios'!$AC$24+Database!C33*'Policy Scenarios'!$AD$24+Database!C34*'Policy Scenarios'!$AE$24 -> 0.0547 | AN29: =Database!D26*$W$24+Database!D27*'Policy Scenarios'!$X$24+Database!D32*'Policy Scenarios'!$AC$24+Database!D33*'Policy Scenarios'!$AD$24+Database!D34*'Policy Scenarios'!$AE$24 -> 0.05280135823 | AO29: =Database!E26*$W$24+Database!E27*'Policy Scenarios'!$X$24+Database!E32*'Policy Scenarios'!$AC$24+Database!E33*'Policy Scenarios'!$AD$24+Database!E34*'Policy Scenarios'!$AE$24 -> 0.1096774194 | AP29: =Database!F26*$W$24+Database!F27*'Policy Scenarios'!$X$24+Database!F32*'Policy Scenarios'!$AC$24+Database!F33*'Policy Scenarios'!$AD$24+Database!F34*'Policy Scenarios'!$AE$24 -> 0.01581376945 | AQ29: =Database!G26*$W$24+Database!G27*'Policy Scenarios'!$X$24+Database!G32*'Policy Scenarios'!$AC$24+Database!G33*'Policy Scenarios'!$AD$24+Database!G34*'Policy Scenarios'!$AE$24 -> 0.1191327099 | AR29: =Database!H26*$W$24+Database!H27*'Policy Scenarios'!$X$24+Database!H32*'Policy Scenarios'!$AC$24+Database!H33*'Policy Scenarios'!$AD$24+Database!H34*'Policy Scenarios'!$AE$24 -> 0.05986 | AS29: =Database!I26*$W$24+Database!I27*'Policy Scenarios'!$X$24+Database!I32*'Policy Scenarios'!$AC$24+Database!I33*'Policy Scenarios'!$AD$24+Database!I34*'Policy Scenarios'!$AE$24 -> 0.08624161074 | AT29: =Database!J26*$W$24+Database!J27*'Policy Scenarios'!$X$24+Database!J32*'Policy Scenarios'!$AC$24+Database!J33*'Policy Scenarios'!$AD$24+Database!J34*'Policy Scenarios'!$AE$24 -> 0.1643674439 | AU29: =Database!K26*$W$24+Database!K27*'Policy Scenarios'!$X$24+Database!K32*'Policy Scenarios'!$AC$24+Database!K33*'Policy Scenarios'!$AD$24+Database!K34*'Policy Scenarios'!$AE$24 -> 0.05154845155 | AV29: =Database!L26*$W$24+Database!L27*'Policy Scenarios'!$X$24+Database!L32*'Policy Scenarios'!$AC$24+Database!L33*'Policy Scenarios'!$AD$24+Database!L34*'Policy Scenarios'!$AE$24 -> 0.07363
B30: HID - Metal Halide | O30: =((1+$S$25)^15) -> 0.9487669451 | U30: LED omni | AL30: CFL | AM30: =Database!C27*$X$25+Database!C34*'Policy Scenarios'!$AE$25 -> 0.0741 | AN30: =Database!D27*$X$25+Database!D34*'Policy Scenarios'!$AE$25 -> 0.1056876061 | AO30: =Database!E27*$X$25+Database!E34*'Policy Scenarios'!$AE$25 -> 0.1935483871 | AP30: =Database!F27*$X$25+Database!F34*'Policy Scenarios'!$AE$25 -> 0.03514903719 | AQ30: =Database!G27*$X$25+Database!G34*'Policy Scenarios'!$AE$25 -> 0.1075982997 | AR30: =Database!H27*$X$25+Database!H34*'Policy Scenarios'!$AE$25 -> 0.10341 | AS30: =Database!I27*$X$25+Database!I34*'Policy Scenarios'!$AE$25 -> 0.1535234899 | AT30: =Database!J27*$X$25+Database!J34*'Policy Scenarios'!$AE$25 -> 0.04560105919 | AU30: =Database!K27*$X$25+Database!K34*'Policy Scenarios'!$AE$25 -> 0.08201798202 | AV30: =Database!L27*$X$25+Database!L34*'Policy Scenarios'!$AE$25 -> 0.08012
B31: LED Street lighting | M31: =(1-M28) -> 0.05123305486 | N31: =(1-N29) -> 0.05123305486 | O31: =(1-O30) -> 0.05123305486 | P31: 1 | U31: LED tube | AL31: LFL - T5 | AM31: =Database!C28*$Y$26 -> 0 | AN31: =Database!D28*$Y$26 -> 0 | AO31: =Database!E28*$Y$26 -> 0 | AP31: =Database!F28*$Y$26 -> 0 | AQ31: =Database!G28*$Y$26 -> 0 | AR31: =Database!H28*$Y$26 -> 0 | AS31: =Database!I28*$Y$26 -> 0 | AT31: =Database!J28*$Y$26 -> 0 | AU31: =Database!K28*$Y$26 -> 0 | AV31: =Database!L28*$Y$26 -> 0
U32: LED others | AL32: LFL - T8 | AM32: =Database!C29*$Z$27+Database!C27*'Policy Scenarios'!$X$27+Database!C28*'Policy Scenarios'!$Y$27+Database!C33*'Policy Scenarios'!$AD$27+Database!C34*'Policy Scenarios'!$AE$27 -> 0.561 | AN32: =Database!D29*$Z$27+Database!D27*'Policy Scenarios'!$X$27+Database!D28*'Policy Scenarios'!$Y$27+Database!D33*'Policy Scenarios'!$AD$27+Database!D34*'Policy Scenarios'!$AE$27 -> 0.5372665535 | AO32: =Database!E29*$Z$27+Database!E27*'Policy Scenarios'!$X$27+Database!E28*'Policy Scenarios'!$Y$27+Database!E33*'Policy Scenarios'!$AD$27+Database!E34*'Policy Scenarios'!$AE$27 -> 0.1584677419 | AP32: =Database!F29*$Z$27+Database!F27*'Policy Scenarios'!$X$27+Database!F28*'Policy Scenarios'!$Y$27+Database!F33*'Policy Scenarios'!$AD$27+Database!F34*'Policy Scenarios'!$AE$27 -> 0.7129512002 | AQ32: =Database!G29*$Z$27+Database!G27*'Policy Scenarios'!$X$27+Database!G28*'Policy Scenarios'!$Y$27+Database!G33*'Policy Scenarios'!$AD$27+Database!G34*'Policy Scenarios'!$AE$27 -> 0.3693411265 | AR32: =Database!H29*$Z$27+Database!H27*'Policy Scenarios'!$X$27+Database!H28*'Policy Scenarios'!$Y$27+Database!H33*'Policy Scenarios'!$AD$27+Database!H34*'Policy Scenarios'!$AE$27 -> 0.22657 | AS32: =Database!I29*$Z$27+Database!I27*'Policy Scenarios'!$X$27+Database!I28*'Policy Scenarios'!$Y$27+Database!I33*'Policy Scenarios'!$AD$27+Database!I34*'Policy Scenarios'!$AE$27 -> 0.1625838926 | AT32: =Database!J29*$Z$27+Database!J27*'Policy Scenarios'!$X$27+Database!J28*'Policy Scenarios'!$Y$27+Database!J33*'Policy Scenarios'!$AD$27+Database!J34*'Policy Scenarios'!$AE$27 -> 0.4784756023 | AU32: =Database!K29*$Z$27+Database!K27*'Policy Scenarios'!$X$27+Database!K28*'Policy Scenarios'!$Y$27+Database!K33*'Policy Scenarios'!$AD$27+Database!K34*'Policy Scenarios'!$AE$27 -> 0.5120879121 | AV32: =Database!L29*$Z$27+Database!L27*'Policy Scenarios'!$X$27+Database!L28*'Policy Scenarios'!$Y$27+Database!L33*'Policy Scenarios'!$AD$27+Database!L34*'Policy Scenarios'!$AE$27 -> 0.39763
U33: HID - HPS | AF33: 1 | AI33: 0.3 | AL33: LFL - T12 | AM33: =Database!C30*$AA$28+Database!C28*'Policy Scenarios'!$Y$28+Database!C32*'Policy Scenarios'!$AC$28+Database!C33*'Policy Scenarios'!$AD$28+Database!C34*'Policy Scenarios'!$AE$28 -> 0.056 | AN33: =Database!D30*$AA$28+Database!D28*'Policy Scenarios'!$Y$28+Database!D32*'Policy Scenarios'!$AC$28+Database!D33*'Policy Scenarios'!$AD$28+Database!D34*'Policy Scenarios'!$AE$28 -> 0.01154499151 | AO33: =Database!E30*$AA$28+Database!E28*'Policy Scenarios'!$Y$28+Database!E32*'Policy Scenarios'!$AC$28+Database!E33*'Policy Scenarios'!$AD$28+Database!E34*'Policy Scenarios'!$AE$28 -> 0.06532258065 | AP33: =Database!F30*$AA$28+Database!F28*'Policy Scenarios'!$Y$28+Database!F32*'Policy Scenarios'!$AC$28+Database!F33*'Policy Scenarios'!$AD$28+Database!F34*'Policy Scenarios'!$AE$28 -> 0.005417251385 | AQ33: =Database!G30*$AA$28+Database!G28*'Policy Scenarios'!$Y$28+Database!G32*'Policy Scenarios'!$AC$28+Database!G33*'Policy Scenarios'!$AD$28+Database!G34*'Policy Scenarios'!$AE$28 -> 0.05420384697 | AR33: =Database!H30*$AA$28+Database!H28*'Policy Scenarios'!$Y$28+Database!H32*'Policy Scenarios'!$AC$28+Database!H33*'Policy Scenarios'!$AD$28+Database!H34*'Policy Scenarios'!$AE$28 -> 0.29014 | AS33: =Database!I30*$AA$28+Database!I28*'Policy Scenarios'!$Y$28+Database!I32*'Policy Scenarios'!$AC$28+Database!I33*'Policy Scenarios'!$AD$28+Database!I34*'Policy Scenarios'!$AE$28 -> 0.1063758389 | AT33: =Database!J30*$AA$28+Database!J28*'Policy Scenarios'!$Y$28+Database!J32*'Policy Scenarios'!$AC$28+Database!J33*'Policy Scenarios'!$AD$28+Database!J34*'Policy Scenarios'!$AE$28 -> 0.05001301898 | AU33: =Database!K30*$AA$28+Database!K28*'Policy Scenarios'!$Y$28+Database!K32*'Policy Scenarios'!$AC$28+Database!K33*'Policy Scenarios'!$AD$28+Database!K34*'Policy Scenarios'!$AE$28 -> 0.01718281718 | AV33: =Database!L30*$AA$28+Database!L28*'Policy Scenarios'!$Y$28+Database!L32*'Policy Scenarios'!$AC$28+Database!L33*'Policy Scenarios'!$AD$28+Database!L34*'Policy Scenarios'!$AE$28 -> 0.05016
U34: HID - Mercury Vapour | AG34: 1 | AI34: 0.3 | AL34: LFL - Circular | AM34: =Database!C31*$AB$29+Database!C27*'Policy Scenarios'!$X$29+Database!C28*'Policy Scenarios'!$Y$29+Database!C32*'Policy Scenarios'!$AC$29+Database!C33*'Policy Scenarios'!$AD$29+Database!C34*'Policy Scenarios'!$AE$29 -> 0.0841 | AN34: =Database!D31*$AB$29+Database!D27*'Policy Scenarios'!$X$29+Database!D28*'Policy Scenarios'!$Y$29+Database!D32*'Policy Scenarios'!$AC$29+Database!D33*'Policy Scenarios'!$AD$29+Database!D34*'Policy Scenarios'!$AE$29 -> 0.1084889643 | AO34: =Database!E31*$AB$29+Database!E27*'Policy Scenarios'!$X$29+Database!E28*'Policy Scenarios'!$Y$29+Database!E32*'Policy Scenarios'!$AC$29+Database!E33*'Policy Scenarios'!$AD$29+Database!E34*'Policy Scenarios'!$AE$29 -> 0.1350806452 | AP34: =Database!F31*$AB$29+Database!F27*'Policy Scenarios'!$X$29+Database!F28*'Policy Scenarios'!$Y$29+Database!F32*'Policy Scenarios'!$AC$29+Database!F33*'Policy Scenarios'!$AD$29+Database!F34*'Policy Scenarios'!$AE$29 -> 0.1458494329 | AQ34: =Database!G31*$AB$29+Database!G27*'Policy Scenarios'!$X$29+Database!G28*'Policy Scenarios'!$Y$29+Database!G32*'Policy Scenarios'!$AC$29+Database!G33*'Policy Scenarios'!$AD$29+Database!G34*'Policy Scenarios'!$AE$29 -> 0.1363504995 | AR34: =Database!H31*$AB$29+Database!H27*'Policy Scenarios'!$X$29+Database!H28*'Policy Scenarios'!$Y$29+Database!H32*'Policy Scenarios'!$AC$29+Database!H33*'Policy Scenarios'!$AD$29+Database!H34*'Policy Scenarios'!$AE$29 -> 0.07966 | AS34: =Database!I31*$AB$29+Database!I27*'Policy Scenarios'!$X$29+Database!I28*'Policy Scenarios'!$Y$29+Database!I32*'Policy Scenarios'!$AC$29+Database!I33*'Policy Scenarios'!$AD$29+Database!I34*'Policy Scenarios'!$AE$29 -> 0.1906040268 | AT34: =Database!J31*$AB$29+Database!J27*'Policy Scenarios'!$X$29+Database!J28*'Policy Scenarios'!$Y$29+Database!J32*'Policy Scenarios'!$AC$29+Database!J33*'Policy Scenarios'!$AD$29+Database!J34*'Policy Scenarios'!$AE$29 -> 0.1018998415 | AU34: =Database!K31*$AB$29+Database!K27*'Policy Scenarios'!$X$29+Database!K28*'Policy Scenarios'!$Y$29+Database!K32*'Policy Scenarios'!$AC$29+Database!K33*'Policy Scenarios'!$AD$29+Database!K34*'Policy Scenarios'!$AE$29 -> 0.1473526474 | AV34: =Database!L31*$AB$29+Database!L27*'Policy Scenarios'!$X$29+Database!L28*'Policy Scenarios'!$Y$29+Database!L32*'Policy Scenarios'!$AC$29+Database!L33*'Policy Scenarios'!$AD$29+Database!L34*'Policy Scenarios'!$AE$29 -> 0.12533
U35: HID - Metal Halide | AH35: 1 | AI35: 0.3 | AL35: LED omni | AM35: =Database!C32*$AC$30 -> 0 | AN35: =Database!D32*$AC$30 -> 0 | AO35: =Database!E32*$AC$30 -> 0 | AP35: =Database!F32*$AC$30 -> 0 | AQ35: =Database!G32*$AC$30 -> 0 | AR35: =Database!H32*$AC$30 -> 0 | AS35: =Database!I32*$AC$30 -> 0 | AT35: =Database!J32*$AC$30 -> 0 | AU35: =Database!K32*$AC$30 -> 0 | AV35: =Database!L32*$AC$30 -> 0
B36: Framework for technology substitution in Energy Efficiency scenario | U36: LED Street lighting | AL36: LED tube | AM36: =Database!C33*$AD$31 -> 0 | AN36: =Database!D33*$AD$31 -> 0 | AO36: =Database!E33*$AD$31 -> 0 | AP36: =Database!F33*$AD$31 -> 0 | AQ36: =Database!G33*$AD$31 -> 0 | AR36: =Database!H33*$AD$31 -> 0 | AS36: =Database!I33*$AD$31 -> 0 | AT36: =Database!J33*$AD$31 -> 0 | AU36: =Database!K33*$AD$31 -> 0 | AV36: =Database!L33*$AD$31 -> 0
C37: Incandescent | D37: Halogen | E37: CFL | F37: LFL - T5 | G37: LFL - T8 | H37: LFL - T12 | I37: LFL - Circular | J37: LED omni | K37: LED tube | L37: LED others | M37: HID - HPS | N37: HID - Mercury Vapour | O37: HID - Metal Halide | P37: LED street | R37: Tech substitution (EE) | AL37: LED others | AM37: =Database!C34*$AE$32 -> 0 | AN37: =Database!D34*$AE$32 -> 0 | AO37: =Database!E34*$AE$32 -> 0 | AP37: =Database!F34*$AE$32 -> 0 | AQ37: =Database!G34*$AE$32 -> 0 | AR37: =Database!H34*$AE$32 -> 0 | AS37: =Database!I34*$AE$32 -> 0 | AT37: =Database!J34*$AE$32 -> 0 | AU37: =Database!K34*$AE$32 -> 0 | AV37: =Database!L34*$AE$32 -> 0
B38: Incandescent | C38: =((1+$S$38)^15) -> 3.051757812e-05 | R38: Incandescent | S38: =IF(AQ3=TRUE,-50%,S18) -> -0.5 | AL38: HID - HPS | AM38: =Database!C35*$AF$33 -> 0 | AN38: =Database!D35*$AF$33 -> 0 | AO38: =Database!E35*$AF$33 -> 0 | AP38: =Database!F35*$AF$33 -> 0 | AQ38: =Database!G35*$AF$33 -> 0 | AR38: =Database!H35*$AF$33 -> 0 | AS38: =Database!I35*$AF$33 -> 0 | AT38: =Database!J35*$AF$33 -> 0 | AU38: =Database!K35*$AF$33 -> 0 | AV38: =Database!L35*$AF$33 -> 0
B39: Halogen | D39: =((1+$S$39)^15) -> 0.6235289981 | R39: Halogen | S39: =IF('User Inputs'!$G$51<>0,VLOOKUP('Policy Scenarios'!R39,UserAnnualLampdecrease,2,FALSE),-3.1%) -> -0.031 | AL39: HID - Mercury Vapour | AM39: =Database!C36*$AG$34 -> 0 | AN39: =Database!D36*$AG$34 -> 0 | AO39: =Database!E36*$AG$34 -> 0 | AP39: =Database!F36*$AG$34 -> 0 | AQ39: =Database!G36*$AG$34 -> 0 | AR39: =Database!H36*$AG$34 -> 0 | AS39: =Database!I36*$AG$34 -> 0 | AT39: =Database!J36*$AG$34 -> 0 | AU39: =Database!K36*$AG$34 -> 0 | AV39: =Database!L36*$AG$34 -> 0
B40: CFL | C40: =IF(AND(PolicyIndex=2,AQ3=TRUE),(1-$C$38)*1/10,IF(PolicyIndex=3,(1-$C$38)*2/10,(1-$C$38)/3)) -> 0.09999694824 | E40: =((1+$S$40)^15) -> 0.6045011219 | R40: CFL | S40: =IF('User Inputs'!$G$52<>0,VLOOKUP('Policy Scenarios'!R40,UserAnnualLampdecrease,2,FALSE),IF(AQ4=TRUE,-3.3%,S20)) -> -0.033 | AL40: HID - Metal Halide | AM40: =Database!C37*$AH$35 -> 0 | AN40: =Database!D37*$AH$35 -> 0 | AO40: =Database!E37*$AH$35 -> 0 | AP40: =Database!F37*$AH$35 -> 0 | AQ40: =Database!G37*$AH$35 -> 0 | AR40: =Database!H37*$AH$35 -> 0 | AS40: =Database!I37*$AH$35 -> 0 | AT40: =Database!J37*$AH$35 -> 0 | AU40: =Database!K37*$AH$35 -> 0 | AV40: =Database!L37*$AH$35 -> 0
B41: LFL - T5 | F41: =((1+$S$41)^15) -> 0.7971562536 | G41: =(1-$G$42)*1/4 -> 0.1463389987 | H41: =IF(AND(PolicyIndex=2,AQ5=TRUE),(1-$H$43)*3/10,IF(PolicyIndex=3,(1-$H$43)*2/10,(1-$H$43)*2/10)) -> 0.2998589445 | R41: LFL - T5 | S41: =IF('User Inputs'!$G$53<>0,VLOOKUP('Policy Scenarios'!R41,UserAnnualLampdecrease,2,FALSE),IF(AQ5=TRUE,-1.5%,S21)) -> -0.015 | AL41: COMMERCIAL | AM41: 1 | AN41: 2 | AO41: 3 | AP41: 4 | AQ41: 5 | AR41: 6 | AS41: 7 | AT41: 8 | AU41: 9 | AV41: 10
B42: LFL - T8 | G42: =((1+$S$42)^15) -> 0.4146440054 | H42: =IF(AND(PolicyIndex=2,AQ5=TRUE),(1-$H$43)*2/10,IF(PolicyIndex=3,(1-$H$43)*2/10,(1-$H$43)*5/10)) -> 0.199905963 | R42: LFL - T8 | S42: =IF('User Inputs'!$G$54<>0,VLOOKUP('Policy Scenarios'!R42,UserAnnualLampdecrease,2,FALSE),IF(AQ5=TRUE,-5.7%,S22)) -> -0.057 | AL42: Incandescent | AM42: =Database!C39*$V$23+Database!C41*'Policy Scenarios'!$X$23+Database!C46*'Policy Scenarios'!$AC$23+Database!C47*'Policy Scenarios'!$AD$23+Database!C48*'Policy Scenarios'!$AE$23 -> 0.1808 | AN42: =Database!D39*$V$23+Database!D41*'Policy Scenarios'!$X$23+Database!D46*'Policy Scenarios'!$AC$23+Database!D47*'Policy Scenarios'!$AD$23+Database!D48*'Policy Scenarios'!$AE$23 -> 0.1474 | AO42: =Database!E39*$V$23+Database!E41*'Policy Scenarios'!$X$23+Database!E46*'Policy Scenarios'!$AC$23+Database!E47*'Policy Scenarios'!$AD$23+Database!E48*'Policy Scenarios'!$AE$23 -> 0.1795 | AP42: =Database!F39*$V$23+Database!F41*'Policy Scenarios'!$X$23+Database!F46*'Policy Scenarios'!$AC$23+Database!F47*'Policy Scenarios'!$AD$23+Database!F48*'Policy Scenarios'!$AE$23 -> 0.12662 | AQ42: =Database!G39*$V$23+Database!G41*'Policy Scenarios'!$X$23+Database!G46*'Policy Scenarios'!$AC$23+Database!G47*'Policy Scenarios'!$AD$23+Database!G48*'Policy Scenarios'!$AE$23 -> 0.1795 | AR42: =Database!H39*$V$23+Database!H41*'Policy Scenarios'!$X$23+Database!H46*'Policy Scenarios'!$AC$23+Database!H47*'Policy Scenarios'!$AD$23+Database!H48*'Policy Scenarios'!$AE$23 -> 0.1787 | AS42: =Database!I39*$V$23+Database!I41*'Policy Scenarios'!$X$23+Database!I46*'Policy Scenarios'!$AC$23+Database!I47*'Policy Scenarios'!$AD$23+Database!I48*'Policy Scenarios'!$AE$23 -> 0.0941 | AT42: =Database!J39*$V$23+Database!J41*'Policy Scenarios'!$X$23+Database!J46*'Policy Scenarios'!$AC$23+Database!J47*'Policy Scenarios'!$AD$23+Database!J48*'Policy Scenarios'!$AE$23 -> 0.1795 | AU42: =Database!K39*$V$23+Database!K41*'Policy Scenarios'!$X$23+Database!K46*'Policy Scenarios'!$AC$23+Database!K47*'Policy Scenarios'!$AD$23+Database!K48*'Policy Scenarios'!$AE$23 -> 0.12648 | AV42: =Database!L39*$V$23+Database!L41*'Policy Scenarios'!$X$23+Database!L46*'Policy Scenarios'!$AC$23+Database!L47*'Policy Scenarios'!$AD$23+Database!L48*'Policy Scenarios'!$AE$23 -> 0.135
B43: LFL - T12 | H43: =((1+$S$43)^15) -> 0.0004701849846 | R43: LFL - T12 | S43: =IF(AQ5=TRUE,-40%,S23) -> -0.4 | AL43: Halogen | AM43: =Database!C40*$W$24+Database!C41*'Policy Scenarios'!$X$24+Database!C46*'Policy Scenarios'!$AC$24+Database!C47*'Policy Scenarios'!$AD$24+Database!C48*'Policy Scenarios'!$AE$24 -> 0.0567 | AN43: =Database!D40*$W$24+Database!D41*'Policy Scenarios'!$X$24+Database!D46*'Policy Scenarios'!$AC$24+Database!D47*'Policy Scenarios'!$AD$24+Database!D48*'Policy Scenarios'!$AE$24 -> 0.0542 | AO43: =Database!E40*$W$24+Database!E41*'Policy Scenarios'!$X$24+Database!E46*'Policy Scenarios'!$AC$24+Database!E47*'Policy Scenarios'!$AD$24+Database!E48*'Policy Scenarios'!$AE$24 -> 0.076 | AP43: =Database!F40*$W$24+Database!F41*'Policy Scenarios'!$X$24+Database!F46*'Policy Scenarios'!$AC$24+Database!F47*'Policy Scenarios'!$AD$24+Database!F48*'Policy Scenarios'!$AE$24 -> 0.09321 | AQ43: =Database!G40*$W$24+Database!G41*'Policy Scenarios'!$X$24+Database!G46*'Policy Scenarios'!$AC$24+Database!G47*'Policy Scenarios'!$AD$24+Database!G48*'Policy Scenarios'!$AE$24 -> 0.076 | AR43: =Database!H40*$W$24+Database!H41*'Policy Scenarios'!$X$24+Database!H46*'Policy Scenarios'!$AC$24+Database!H47*'Policy Scenarios'!$AD$24+Database!H48*'Policy Scenarios'!$AE$24 -> 0.0908 | AS43: =Database!I40*$W$24+Database!I41*'Policy Scenarios'!$X$24+Database!I46*'Policy Scenarios'!$AC$24+Database!I47*'Policy Scenarios'!$AD$24+Database!I48*'Policy Scenarios'!$AE$24 -> 0.0462 | AT43: =Database!J40*$W$24+Database!J41*'Policy Scenarios'!$X$24+Database!J46*'Policy Scenarios'!$AC$24+Database!J47*'Policy Scenarios'!$AD$24+Database!J48*'Policy Scenarios'!$AE$24 -> 0.076 | AU43: =Database!K40*$W$24+Database!K41*'Policy Scenarios'!$X$24+Database!K46*'Policy Scenarios'!$AC$24+Database!K47*'Policy Scenarios'!$AD$24+Database!K48*'Policy Scenarios'!$AE$24 -> 0.06776 | AV43: =Database!L40*$W$24+Database!L41*'Policy Scenarios'!$X$24+Database!L46*'Policy Scenarios'!$AC$24+Database!L47*'Policy Scenarios'!$AD$24+Database!L48*'Policy Scenarios'!$AE$24 -> 0.03681
B44: LFL - Circular | I44: =((1+$S$44)^15) -> 0.517224474 | R44: LFL - Circular | S44: =IF('User Inputs'!$G$56<>0,VLOOKUP('Policy Scenarios'!R44,UserAnnualLampdecrease,2,FALSE),IF(AQ5=TRUE,-4.3%,S24)) -> -0.043 | AL44: CFL | AM44: =Database!C41*$X$25+Database!C48*'Policy Scenarios'!$AE$25 -> 0.1004 | AN44: =Database!D41*$X$25+Database!D48*'Policy Scenarios'!$AE$25 -> 0.085 | AO44: =Database!E41*$X$25+Database!E48*'Policy Scenarios'!$AE$25 -> 0.10025 | AP44: =Database!F41*$X$25+Database!F48*'Policy Scenarios'!$AE$25 -> 0.05031 | AQ44: =Database!G41*$X$25+Database!G48*'Policy Scenarios'!$AE$25 -> 0.10025 | AR44: =Database!H41*$X$25+Database!H48*'Policy Scenarios'!$AE$25 -> 0.0867 | AS44: =Database!I41*$X$25+Database!I48*'Policy Scenarios'!$AE$25 -> 0.0429 | AT44: =Database!J41*$X$25+Database!J48*'Policy Scenarios'!$AE$25 -> 0.10025 | AU44: =Database!K41*$X$25+Database!K48*'Policy Scenarios'!$AE$25 -> 0.05313 | AV44: =Database!L41*$X$25+Database!L48*'Policy Scenarios'!$AE$25 -> 0.06135
B45: LED omni | C45: =IF(AND(PolicyIndex=2,AQ3=TRUE),(1-$C$38)*7/10,IF(PolicyIndex=3,(1-$C$38)*2/10,(1-$C$38)/3)) -> 0.6999786377 | D45: =(1-$D$39)/2 -> 0.188235501 | E45: =(1-$E$40)*2/3 -> 0.2636659187 | J45: 1 | R45: HID | S45: =IF('User Inputs'!$G$57<>0,VLOOKUP('Policy Scenarios'!R45,UserAnnualLampdecrease,2,FALSE),IF(AQ6=TRUE,-3.3%,S25)) -> -0.033 | AL45: LFL - T5 | AM45: =Database!C42*$Y$26 -> 0 | AN45: =Database!D42*$Y$26 -> 0 | AO45: =Database!E42*$Y$26 -> 0 | AP45: =Database!F42*$Y$26 -> 0 | AQ45: =Database!G42*$Y$26 -> 0 | AR45: =Database!H42*$Y$26 -> 0 | AS45: =Database!I42*$Y$26 -> 0 | AT45: =Database!J42*$Y$26 -> 0 | AU45: =Database!K42*$Y$26 -> 0 | AV45: =Database!L42*$Y$26 -> 0
B46: LED tube | E46: =(1-$E$40)*1/3 -> 0.1318329594 | F46: =1-F41 -> 0.2028437464 | G46: =(1-$G$42)*3/4 -> 0.439016996 | H46: =IF(AND(PolicyIndex=2,AQ5=TRUE),(1-$H$43)*5/10,IF(PolicyIndex=3,(1-$H$43)*2/10,(1-$H$43)*3/10)) -> 0.4997649075 | I46: =(1-$I$44)*1/3 -> 0.1609251753 | K46: 1 | AL46: LFL - T8 | AM46: =Database!C43*$Z$27+Database!C41*'Policy Scenarios'!$X$27+Database!C42*'Policy Scenarios'!$Y$27+Database!C47*'Policy Scenarios'!$AD$27+Database!C48*'Policy Scenarios'!$AE$27 -> 0.5145 | AN46: =Database!D43*$Z$27+Database!D41*'Policy Scenarios'!$X$27+Database!D42*'Policy Scenarios'!$Y$27+Database!D47*'Policy Scenarios'!$AD$27+Database!D48*'Policy Scenarios'!$AE$27 -> 0.5758 | AO46: =Database!E43*$Z$27+Database!E41*'Policy Scenarios'!$X$27+Database!E42*'Policy Scenarios'!$Y$27+Database!E47*'Policy Scenarios'!$AD$27+Database!E48*'Policy Scenarios'!$AE$27 -> 0.45875 | AP46: =Database!F43*$Z$27+Database!F41*'Policy Scenarios'!$X$27+Database!F42*'Policy Scenarios'!$Y$27+Database!F47*'Policy Scenarios'!$AD$27+Database!F48*'Policy Scenarios'!$AE$27 -> 0.59273 | AQ46: =Database!G43*$Z$27+Database!G41*'Policy Scenarios'!$X$27+Database!G42*'Policy Scenarios'!$Y$27+Database!G47*'Policy Scenarios'!$AD$27+Database!G48*'Policy Scenarios'!$AE$27 -> 0.45875 | AR46: =Database!H43*$Z$27+Database!H41*'Policy Scenarios'!$X$27+Database!H42*'Policy Scenarios'!$Y$27+Database!H47*'Policy Scenarios'!$AD$27+Database!H48*'Policy Scenarios'!$AE$27 -> 0.4253 | AS46: =Database!I43*$Z$27+Database!I41*'Policy Scenarios'!$X$27+Database!I42*'Policy Scenarios'!$Y$27+Database!I47*'Policy Scenarios'!$AD$27+Database!I48*'Policy Scenarios'!$AE$27 -> 0.6771 | AT46: =Database!J43*$Z$27+Database!J41*'Policy Scenarios'!$X$27+Database!J42*'Policy Scenarios'!$Y$27+Database!J47*'Policy Scenarios'!$AD$27+Database!J48*'Policy Scenarios'!$AE$27 -> 0.45875 | AU46: =Database!K43*$Z$27+Database!K41*'Policy Scenarios'!$X$27+Database!K42*'Policy Scenarios'!$Y$27+Database!K47*'Policy Scenarios'!$AD$27+Database!K48*'Policy Scenarios'!$AE$27 -> 0.61915 | AV46: =Database!L43*$Z$27+Database!L41*'Policy Scenarios'!$X$27+Database!L42*'Policy Scenarios'!$Y$27+Database!L47*'Policy Scenarios'!$AD$27+Database!L48*'Policy Scenarios'!$AE$27 -> 0.69939
B47: LED others | C47: =IF(AND(PolicyIndex=2,AQ3=TRUE),(1-$C$38)*2/10,IF(PolicyIndex=3,(1-$C$38)*2/10,(1-$C$38)/3)) -> 0.1999938965 | D47: =(1-$D$39)/2 -> 0.188235501 | I47: =(1-$I$44)*2/3 -> 0.3218503506 | L47: 1 | AL47: LFL - T12 | AM47: =Database!C44*$AA$28+Database!C42*'Policy Scenarios'!$Y$28+Database!C46*'Policy Scenarios'!$AC$28+Database!C47*'Policy Scenarios'!$AD$28+Database!C48*'Policy Scenarios'!$AE$28 -> 0.0554 | AN47: =Database!D44*$AA$28+Database!D42*'Policy Scenarios'!$Y$28+Database!D46*'Policy Scenarios'!$AC$28+Database!D47*'Policy Scenarios'!$AD$28+Database!D48*'Policy Scenarios'!$AE$28 -> 0.0253 | AO47: =Database!E44*$AA$28+Database!E42*'Policy Scenarios'!$Y$28+Database!E46*'Policy Scenarios'!$AC$28+Database!E47*'Policy Scenarios'!$AD$28+Database!E48*'Policy Scenarios'!$AE$28 -> 0.0675 | AP47: =Database!F44*$AA$28+Database!F42*'Policy Scenarios'!$Y$28+Database!F46*'Policy Scenarios'!$AC$28+Database!F47*'Policy Scenarios'!$AD$28+Database!F48*'Policy Scenarios'!$AE$28 -> 0.03089 | AQ47: =Database!G44*$AA$28+Database!G42*'Policy Scenarios'!$Y$28+Database!G46*'Policy Scenarios'!$AC$28+Database!G47*'Policy Scenarios'!$AD$28+Database!G48*'Policy Scenarios'!$AE$28 -> 0.0675 | AR47: =Database!H44*$AA$28+Database!H42*'Policy Scenarios'!$Y$28+Database!H46*'Policy Scenarios'!$AC$28+Database!H47*'Policy Scenarios'!$AD$28+Database!H48*'Policy Scenarios'!$AE$28 -> 0.1037 | AS47: =Database!I44*$AA$28+Database!I42*'Policy Scenarios'!$Y$28+Database!I46*'Policy Scenarios'!$AC$28+Database!I47*'Policy Scenarios'!$AD$28+Database!I48*'Policy Scenarios'!$AE$28 -> 0.0617 | AT47: =Database!J44*$AA$28+Database!J42*'Policy Scenarios'!$Y$28+Database!J46*'Policy Scenarios'!$AC$28+Database!J47*'Policy Scenarios'!$AD$28+Database!J48*'Policy Scenarios'!$AE$28 -> 0.0675 | AU47: =Database!K44*$AA$28+Database!K42*'Policy Scenarios'!$Y$28+Database!K46*'Policy Scenarios'!$AC$28+Database!K47*'Policy Scenarios'!$AD$28+Database!K48*'Policy Scenarios'!$AE$28 -> 0.05546 | AV47: =Database!L44*$AA$28+Database!L42*'Policy Scenarios'!$Y$28+Database!L46*'Policy Scenarios'!$AC$28+Database!L47*'Policy Scenarios'!$AD$28+Database!L48*'Policy Scenarios'!$AE$28 -> 0.03064
B48: HID - HPS | M48: =((1+$S$45)^15) -> 0.6045011219 | AL48: LFL - Circular | AM48: =Database!C45*$AB$29+Database!C41*'Policy Scenarios'!$X$29+Database!C42*'Policy Scenarios'!$Y$29+Database!C46*'Policy Scenarios'!$AC$29+Database!C47*'Policy Scenarios'!$AD$29+Database!C48*'Policy Scenarios'!$AE$29 -> 0.0922 | AN48: =Database!D45*$AB$29+Database!D41*'Policy Scenarios'!$X$29+Database!D42*'Policy Scenarios'!$Y$29+Database!D46*'Policy Scenarios'!$AC$29+Database!D47*'Policy Scenarios'!$AD$29+Database!D48*'Policy Scenarios'!$AE$29 -> 0.1123 | AO48: =Database!E45*$AB$29+Database!E41*'Policy Scenarios'!$X$29+Database!E42*'Policy Scenarios'!$Y$29+Database!E46*'Policy Scenarios'!$AC$29+Database!E47*'Policy Scenarios'!$AD$29+Database!E48*'Policy Scenarios'!$AE$29 -> 0.118 | AP48: =Database!F45*$AB$29+Database!F41*'Policy Scenarios'!$X$29+Database!F42*'Policy Scenarios'!$Y$29+Database!F46*'Policy Scenarios'!$AC$29+Database!F47*'Policy Scenarios'!$AD$29+Database!F48*'Policy Scenarios'!$AE$29 -> 0.10624 | AQ48: =Database!G45*$AB$29+Database!G41*'Policy Scenarios'!$X$29+Database!G42*'Policy Scenarios'!$Y$29+Database!G46*'Policy Scenarios'!$AC$29+Database!G47*'Policy Scenarios'!$AD$29+Database!G48*'Policy Scenarios'!$AE$29 -> 0.118 | AR48: =Database!H45*$AB$29+Database!H41*'Policy Scenarios'!$X$29+Database!H42*'Policy Scenarios'!$Y$29+Database!H46*'Policy Scenarios'!$AC$29+Database!H47*'Policy Scenarios'!$AD$29+Database!H48*'Policy Scenarios'!$AE$29 -> 0.1107 | AS48: =Database!I45*$AB$29+Database!I41*'Policy Scenarios'!$X$29+Database!I42*'Policy Scenarios'!$Y$29+Database!I46*'Policy Scenarios'!$AC$29+Database!I47*'Policy Scenarios'!$AD$29+Database!I48*'Policy Scenarios'!$AE$29 -> 0.055 | AT48: =Database!J45*$AB$29+Database!J41*'Policy Scenarios'!$X$29+Database!J42*'Policy Scenarios'!$Y$29+Database!J46*'Policy Scenarios'!$AC$29+Database!J47*'Policy Scenarios'!$AD$29+Database!J48*'Policy Scenarios'!$AE$29 -> 0.118 | AU48: =Database!K45*$AB$29+Database!K41*'Policy Scenarios'!$X$29+Database!K42*'Policy Scenarios'!$Y$29+Database!K46*'Policy Scenarios'!$AC$29+Database!K47*'Policy Scenarios'!$AD$29+Database!K48*'Policy Scenarios'!$AE$29 -> 0.07312 | AV48: =Database!L45*$AB$29+Database!L41*'Policy Scenarios'!$X$29+Database!L42*'Policy Scenarios'!$Y$29+Database!L46*'Policy Scenarios'!$AC$29+Database!L47*'Policy Scenarios'!$AD$29+Database!L48*'Policy Scenarios'!$AE$29 -> 0.03681
B49: HID - Mercury Vapour | N49: =((1+$S$45)^15) -> 0.6045011219 | AL49: LED omni | AM49: =Database!C46*$AC$30 -> 0 | AN49: =Database!D46*$AC$30 -> 0 | AO49: =Database!E46*$AC$30 -> 0 | AP49: =Database!F46*$AC$30 -> 0 | AQ49: =Database!G46*$AC$30 -> 0 | AR49: =Database!H46*$AC$30 -> 0 | AS49: =Database!I46*$AC$30 -> 0 | AT49: =Database!J46*$AC$30 -> 0 | AU49: =Database!K46*$AC$30 -> 0 | AV49: =Database!L46*$AC$30 -> 0
B50: HID - Metal Halide | O50: =((1+$S$45)^15) -> 0.6045011219 | AL50: LED tube | AM50: =Database!C47*$AD$31 -> 0 | AN50: =Database!D47*$AD$31 -> 0 | AO50: =Database!E47*$AD$31 -> 0 | AP50: =Database!F47*$AD$31 -> 0 | AQ50: =Database!G47*$AD$31 -> 0 | AR50: =Database!H47*$AD$31 -> 0 | AS50: =Database!I47*$AD$31 -> 0 | AT50: =Database!J47*$AD$31 -> 0 | AU50: =Database!K47*$AD$31 -> 0 | AV50: =Database!L47*$AD$31 -> 0
B51: LED Street lighting | M51: =(1-M48) -> 0.3954988781 | N51: =(1-N49) -> 0.3954988781 | O51: =(1-O50) -> 0.3954988781 | P51: 1 | AL51: LED others | AM51: =Database!C48*$AE$32 -> 0 | AN51: =Database!D48*$AE$32 -> 0 | AO51: =Database!E48*$AE$32 -> 0 | AP51: =Database!F48*$AE$32 -> 0 | AQ51: =Database!G48*$AE$32 -> 0 | AR51: =Database!H48*$AE$32 -> 0 | AS51: =Database!I48*$AE$32 -> 0 | AT51: =Database!J48*$AE$32 -> 0 | AU51: =Database!K48*$AE$32 -> 0 | AV51: =Database!L48*$AE$32 -> 0
AL52: HID - HPS | AM52: =Database!C49*$AF$33 -> 0 | AN52: =Database!D49*$AF$33 -> 0 | AO52: =Database!E49*$AF$33 -> 0 | AP52: =Database!F49*$AF$33 -> 0 | AQ52: =Database!G49*$AF$33 -> 0 | AR52: =Database!H49*$AF$33 -> 0.0015 | AS52: =Database!I49*$AF$33 -> 0.005 | AT52: =Database!J49*$AF$33 -> 0 | AU52: =Database!K49*$AF$33 -> 0.0012 | AV52: =Database!L49*$AF$33 -> 0
AL53: HID - Mercury Vapour | AM53: =Database!C50*$AG$34 -> 0 | AN53: =Database!D50*$AG$34 -> 0 | AO53: =Database!E50*$AG$34 -> 0 | AP53: =Database!F50*$AG$34 -> 0 | AQ53: =Database!G50*$AG$34 -> 0 | AR53: =Database!H50*$AG$34 -> 0.0014 | AS53: =Database!I50*$AG$34 -> 0.013 | AT53: =Database!J50*$AG$34 -> 0 | AU53: =Database!K50*$AG$34 -> 0.0012 | AV53: =Database!L50*$AG$34 -> 0
AL54: HID - Metal Halide | AM54: =Database!C51*$AH$35 -> 0 | AN54: =Database!D51*$AH$35 -> 0 | AO54: =Database!E51*$AH$35 -> 0 | AP54: =Database!F51*$AH$35 -> 0 | AQ54: =Database!G51*$AH$35 -> 0 | AR54: =Database!H51*$AH$35 -> 0.0012 | AS54: =Database!I51*$AH$35 -> 0.005 | AT54: =Database!J51*$AH$35 -> 0 | AU54: =Database!K51*$AH$35 -> 0.0025 | AV54: =Database!L51*$AH$35 -> 0
AM55: 1 | AN55: 2 | AO55: 3 | AP55: 4 | AQ55: 5 | AR55: 6 | AS55: 7 | AT55: 8 | AU55: 9 | AV55: 10
AL56: INDUSTRIAL (assumption) | AM56: BRN | AN56: KHM | AO56: IDN | AP56: LAO | AQ56: MYS | AR56: MMR | AS56: PHL | AT56: SGP | AU56: THA | AV56: VNM
B57: Framework for technology substitution in Best Available Technology scenario | AL57: Incandescent | AM57: =(Database!C54*$V$23+Database!C56*'Policy Scenarios'!$X$23+Database!C61*'Policy Scenarios'!$AC$23+Database!C62*'Policy Scenarios'!$AD$23+Database!C63*'Policy Scenarios'!$AE$23)-0.1% -> 0.0736 | AN57: =(Database!D54*$V$23+Database!D56*'Policy Scenarios'!$X$23+Database!D61*'Policy Scenarios'!$AC$23+Database!D62*'Policy Scenarios'!$AD$23+Database!D63*'Policy Scenarios'!$AE$23)-0.1% -> 0.0736 | AO57: =(Database!E54*$V$23+Database!E56*'Policy Scenarios'!$X$23+Database!E61*'Policy Scenarios'!$AC$23+Database!E62*'Policy Scenarios'!$AD$23+Database!E63*'Policy Scenarios'!$AE$23)-0.1% -> 0.0736 | AP57: =(Database!F54*$V$23+Database!F56*'Policy Scenarios'!$X$23+Database!F61*'Policy Scenarios'!$AC$23+Database!F62*'Policy Scenarios'!$AD$23+Database!F63*'Policy Scenarios'!$AE$23)-0.1% -> 0.0736 | AQ57: =(Database!G54*$V$23+Database!G56*'Policy Scenarios'!$X$23+Database!G61*'Policy Scenarios'!$AC$23+Database!G62*'Policy Scenarios'!$AD$23+Database!G63*'Policy Scenarios'!$AE$23)-0.1% -> 0.0736 | AR57: =(Database!H54*$V$23+Database!H56*'Policy Scenarios'!$X$23+Database!H61*'Policy Scenarios'!$AC$23+Database!H62*'Policy Scenarios'!$AD$23+Database!H63*'Policy Scenarios'!$AE$23)-0.1% -> 0.0736 | AS57: =(Database!I54*$V$23+Database!I56*'Policy Scenarios'!$X$23+Database!I61*'Policy Scenarios'!$AC$23+Database!I62*'Policy Scenarios'!$AD$23+Database!I63*'Policy Scenarios'!$AE$23)-0.1% -> 0.0736 | AT57: =(Database!J54*$V$23+Database!J56*'Policy Scenarios'!$X$23+Database!J61*'Policy Scenarios'!$AC$23+Database!J62*'Policy Scenarios'!$AD$23+Database!J63*'Policy Scenarios'!$AE$23)-0.1% -> 0.0736 | AU57: =(Database!K54*$V$23+Database!K56*'Policy Scenarios'!$X$23+Database!K61*'Policy Scenarios'!$AC$23+Database!K62*'Policy Scenarios'!$AD$23+Database!K63*'Policy Scenarios'!$AE$23)-0.1% -> 0.0736 | AV57: =(Database!L54*$V$23+Database!L56*'Policy Scenarios'!$X$23+Database!L61*'Policy Scenarios'!$AC$23+Database!L62*'Policy Scenarios'!$AD$23+Database!L63*'Policy Scenarios'!$AE$23)-0.1% -> 0.0736
C58: Incandescent | D58: Halogen | E58: CFL | F58: LFL - T5 | G58: LFL - T8 | H58: LFL - T12 | I58: LFL - Circular | J58: LED omni | K58: LED tube | L58: LED others | M58: HID - HPS | N58: HID - Mercury Vapour | O58: HID - Metal Halide | P58: LED street | R58: Technology substitution (BAT) | AL58: Halogen | AM58: =Database!C55*$W$24+Database!C56*'Policy Scenarios'!$X$24+Database!C61*'Policy Scenarios'!$AC$24+Database!C62*'Policy Scenarios'!$AD$24+Database!C63*'Policy Scenarios'!$AE$24 -> 0.0299 | AN58: =Database!D55*$W$24+Database!D56*'Policy Scenarios'!$X$24+Database!D61*'Policy Scenarios'!$AC$24+Database!D62*'Policy Scenarios'!$AD$24+Database!D63*'Policy Scenarios'!$AE$24 -> 0.0299 | AO58: =Database!E55*$W$24+Database!E56*'Policy Scenarios'!$X$24+Database!E61*'Policy Scenarios'!$AC$24+Database!E62*'Policy Scenarios'!$AD$24+Database!E63*'Policy Scenarios'!$AE$24 -> 0.0299 | AP58: =Database!F55*$W$24+Database!F56*'Policy Scenarios'!$X$24+Database!F61*'Policy Scenarios'!$AC$24+Database!F62*'Policy Scenarios'!$AD$24+Database!F63*'Policy Scenarios'!$AE$24 -> 0.0299 | AQ58: =Database!G55*$W$24+Database!G56*'Policy Scenarios'!$X$24+Database!G61*'Policy Scenarios'!$AC$24+Database!G62*'Policy Scenarios'!$AD$24+Database!G63*'Policy Scenarios'!$AE$24 -> 0.0299 | AR58: =Database!H55*$W$24+Database!H56*'Policy Scenarios'!$X$24+Database!H61*'Policy Scenarios'!$AC$24+Database!H62*'Policy Scenarios'!$AD$24+Database!H63*'Policy Scenarios'!$AE$24 -> 0.0299 | AS58: =Database!I55*$W$24+Database!I56*'Policy Scenarios'!$X$24+Database!I61*'Policy Scenarios'!$AC$24+Database!I62*'Policy Scenarios'!$AD$24+Database!I63*'Policy Scenarios'!$AE$24 -> 0.0299 | AT58: =Database!J55*$W$24+Database!J56*'Policy Scenarios'!$X$24+Database!J61*'Policy Scenarios'!$AC$24+Database!J62*'Policy Scenarios'!$AD$24+Database!J63*'Policy Scenarios'!$AE$24 -> 0.0299 | AU58: =Database!K55*$W$24+Database!K56*'Policy Scenarios'!$X$24+Database!K61*'Policy Scenarios'!$AC$24+Database!K62*'Policy Scenarios'!$AD$24+Database!K63*'Policy Scenarios'!$AE$24 -> 0.0299 | AV58: =Database!L55*$W$24+Database!L56*'Policy Scenarios'!$X$24+Database!L61*'Policy Scenarios'!$AC$24+Database!L62*'Policy Scenarios'!$AD$24+Database!L63*'Policy Scenarios'!$AE$24 -> 0.0299
B59: Incandescent | C59: =((1+$S$59)^15) -> 3.051757812e-05 | R59: Incandescent | S59: -0.5 | AL59: CFL | AM59: =Database!C56*$X$25+Database!C63*'Policy Scenarios'!$AE$25 -> 0.03075 | AN59: =Database!D56*$X$25+Database!D63*'Policy Scenarios'!$AE$25 -> 0.03075 | AO59: =Database!E56*$X$25+Database!E63*'Policy Scenarios'!$AE$25 -> 0.03075 | AP59: =Database!F56*$X$25+Database!F63*'Policy Scenarios'!$AE$25 -> 0.03075 | AQ59: =Database!G56*$X$25+Database!G63*'Policy Scenarios'!$AE$25 -> 0.03075 | AR59: =Database!H56*$X$25+Database!H63*'Policy Scenarios'!$AE$25 -> 0.03075 | AS59: =Database!I56*$X$25+Database!I63*'Policy Scenarios'!$AE$25 -> 0.03075 | AT59: =Database!J56*$X$25+Database!J63*'Policy Scenarios'!$AE$25 -> 0.03075 | AU59: =Database!K56*$X$25+Database!K63*'Policy Scenarios'!$AE$25 -> 0.03075 | AV59: =Database!L56*$X$25+Database!L63*'Policy Scenarios'!$AE$25 -> 0.03075
B60: Halogen | D60: =((1+$S$60)^15) -> 3.051757812e-05 | R60: Halogen | S60: -0.5 | AL60: LFL - T5 | AM60: =Database!C57*$Y$26 -> 0 | AN60: =Database!D57*$Y$26 -> 0 | AO60: =Database!E57*$Y$26 -> 0 | AP60: =Database!F57*$Y$26 -> 0 | AQ60: =Database!G57*$Y$26 -> 0 | AR60: =Database!H57*$Y$26 -> 0 | AS60: =Database!I57*$Y$26 -> 0 | AT60: =Database!J57*$Y$26 -> 0 | AU60: =Database!K57*$Y$26 -> 0 | AV60: =Database!L57*$Y$26 -> 0
B61: CFL | C61: =(1-$C$59)*0/10 -> 0 | E61: =((1+$S$61)^15) -> 0.1041062417 | R61: CFL | S61: -0.14 | AL61: LFL - T8 | AM61: =Database!C58*$Z$27+Database!C56*'Policy Scenarios'!$X$27+Database!C57*'Policy Scenarios'!$Y$27+Database!C62*'Policy Scenarios'!$AD$27+Database!C63*'Policy Scenarios'!$AE$27 -> 0.49285 | AN61: =Database!D58*$Z$27+Database!D56*'Policy Scenarios'!$X$27+Database!D57*'Policy Scenarios'!$Y$27+Database!D62*'Policy Scenarios'!$AD$27+Database!D63*'Policy Scenarios'!$AE$27 -> 0.49285 | AO61: =Database!E58*$Z$27+Database!E56*'Policy Scenarios'!$X$27+Database!E57*'Policy Scenarios'!$Y$27+Database!E62*'Policy Scenarios'!$AD$27+Database!E63*'Policy Scenarios'!$AE$27 -> 0.49285 | AP61: =Database!F58*$Z$27+Database!F56*'Policy Scenarios'!$X$27+Database!F57*'Policy Scenarios'!$Y$27+Database!F62*'Policy Scenarios'!$AD$27+Database!F63*'Policy Scenarios'!$AE$27 -> 0.49285 | AQ61: =Database!G58*$Z$27+Database!G56*'Policy Scenarios'!$X$27+Database!G57*'Policy Scenarios'!$Y$27+Database!G62*'Policy Scenarios'!$AD$27+Database!G63*'Policy Scenarios'!$AE$27 -> 0.49285 | AR61: =Database!H58*$Z$27+Database!H56*'Policy Scenarios'!$X$27+Database!H57*'Policy Scenarios'!$Y$27+Database!H62*'Policy Scenarios'!$AD$27+Database!H63*'Policy Scenarios'!$AE$27 -> 0.49285 | AS61: =Database!I58*$Z$27+Database!I56*'Policy Scenarios'!$X$27+Database!I57*'Policy Scenarios'!$Y$27+Database!I62*'Policy Scenarios'!$AD$27+Database!I63*'Policy Scenarios'!$AE$27 -> 0.49285 | AT61: =Database!J58*$Z$27+Database!J56*'Policy Scenarios'!$X$27+Database!J57*'Policy Scenarios'!$Y$27+Database!J62*'Policy Scenarios'!$AD$27+Database!J63*'Policy Scenarios'!$AE$27 -> 0.49285 | AU61: =Database!K58*$Z$27+Database!K56*'Policy Scenarios'!$X$27+Database!K57*'Policy Scenarios'!$Y$27+Database!K62*'Policy Scenarios'!$AD$27+Database!K63*'Policy Scenarios'!$AE$27 -> 0.49285 | AV61: =Database!L58*$Z$27+Database!L56*'Policy Scenarios'!$X$27+Database!L57*'Policy Scenarios'!$Y$27+Database!L62*'Policy Scenarios'!$AD$27+Database!L63*'Policy Scenarios'!$AE$27 -> 0.49285
B62: LFL - T5 | F62: =((1+$S$62)^15) -> 0.3006252919 | G62: =(1-$G$63)*0/10 -> 0 | H62: =(1-$H$64)*0/10 -> 0 | R62: LFL - T5 | S62: -0.077 | AL62: LFL - T12 | AM62: =Database!C59*$AA$28+Database!C57*'Policy Scenarios'!$Y$28+Database!C61*'Policy Scenarios'!$AC$28+Database!C62*'Policy Scenarios'!$AD$28+Database!C63*'Policy Scenarios'!$AE$28+0.1% -> 0.059 | AN62: =Database!D59*$AA$28+Database!D57*'Policy Scenarios'!$Y$28+Database!D61*'Policy Scenarios'!$AC$28+Database!D62*'Policy Scenarios'!$AD$28+Database!D63*'Policy Scenarios'!$AE$28+0.1% -> 0.059 | AO62: =Database!E59*$AA$28+Database!E57*'Policy Scenarios'!$Y$28+Database!E61*'Policy Scenarios'!$AC$28+Database!E62*'Policy Scenarios'!$AD$28+Database!E63*'Policy Scenarios'!$AE$28+0.1% -> 0.059 | AP62: =Database!F59*$AA$28+Database!F57*'Policy Scenarios'!$Y$28+Database!F61*'Policy Scenarios'!$AC$28+Database!F62*'Policy Scenarios'!$AD$28+Database!F63*'Policy Scenarios'!$AE$28+0.1% -> 0.059 | AQ62: =Database!G59*$AA$28+Database!G57*'Policy Scenarios'!$Y$28+Database!G61*'Policy Scenarios'!$AC$28+Database!G62*'Policy Scenarios'!$AD$28+Database!G63*'Policy Scenarios'!$AE$28+0.1% -> 0.059 | AR62: =Database!H59*$AA$28+Database!H57*'Policy Scenarios'!$Y$28+Database!H61*'Policy Scenarios'!$AC$28+Database!H62*'Policy Scenarios'!$AD$28+Database!H63*'Policy Scenarios'!$AE$28+0.1% -> 0.059 | AS62: =Database!I59*$AA$28+Database!I57*'Policy Scenarios'!$Y$28+Database!I61*'Policy Scenarios'!$AC$28+Database!I62*'Policy Scenarios'!$AD$28+Database!I63*'Policy Scenarios'!$AE$28+0.1% -> 0.059 | AT62: =Database!J59*$AA$28+Database!J57*'Policy Scenarios'!$Y$28+Database!J61*'Policy Scenarios'!$AC$28+Database!J62*'Policy Scenarios'!$AD$28+Database!J63*'Policy Scenarios'!$AE$28+0.1% -> 0.059 | AU62: =Database!K59*$AA$28+Database!K57*'Policy Scenarios'!$Y$28+Database!K61*'Policy Scenarios'!$AC$28+Database!K62*'Policy Scenarios'!$AD$28+Database!K63*'Policy Scenarios'!$AE$28+0.1% -> 0.059 | AV62: =Database!L59*$AA$28+Database!L57*'Policy Scenarios'!$Y$28+Database!L61*'Policy Scenarios'!$AC$28+Database!L62*'Policy Scenarios'!$AD$28+Database!L63*'Policy Scenarios'!$AE$28+0.1% -> 0.059
B63: LFL - T8 | G63: =((1+$S$63)^15) -> 0.1041062417 | R63: LFL - T8 | S63: -0.14 | AL63: LFL - Circular | AM63: =Database!C60*$AB$29+Database!C56*'Policy Scenarios'!$X$29+Database!C57*'Policy Scenarios'!$Y$29+Database!C61*'Policy Scenarios'!$AC$29+Database!C62*'Policy Scenarios'!$AD$29+Database!C63*'Policy Scenarios'!$AE$29 -> 0.0759 | AN63: =Database!D60*$AB$29+Database!D56*'Policy Scenarios'!$X$29+Database!D57*'Policy Scenarios'!$Y$29+Database!D61*'Policy Scenarios'!$AC$29+Database!D62*'Policy Scenarios'!$AD$29+Database!D63*'Policy Scenarios'!$AE$29 -> 0.0759 | AO63: =Database!E60*$AB$29+Database!E56*'Policy Scenarios'!$X$29+Database!E57*'Policy Scenarios'!$Y$29+Database!E61*'Policy Scenarios'!$AC$29+Database!E62*'Policy Scenarios'!$AD$29+Database!E63*'Policy Scenarios'!$AE$29 -> 0.0759 | AP63: =Database!F60*$AB$29+Database!F56*'Policy Scenarios'!$X$29+Database!F57*'Policy Scenarios'!$Y$29+Database!F61*'Policy Scenarios'!$AC$29+Database!F62*'Policy Scenarios'!$AD$29+Database!F63*'Policy Scenarios'!$AE$29 -> 0.0759 | AQ63: =Database!G60*$AB$29+Database!G56*'Policy Scenarios'!$X$29+Database!G57*'Policy Scenarios'!$Y$29+Database!G61*'Policy Scenarios'!$AC$29+Database!G62*'Policy Scenarios'!$AD$29+Database!G63*'Policy Scenarios'!$AE$29 -> 0.0759 | AR63: =Database!H60*$AB$29+Database!H56*'Policy Scenarios'!$X$29+Database!H57*'Policy Scenarios'!$Y$29+Database!H61*'Policy Scenarios'!$AC$29+Database!H62*'Policy Scenarios'!$AD$29+Database!H63*'Policy Scenarios'!$AE$29 -> 0.0759 | AS63: =Database!I60*$AB$29+Database!I56*'Policy Scenarios'!$X$29+Database!I57*'Policy Scenarios'!$Y$29+Database!I61*'Policy Scenarios'!$AC$29+Database!I62*'Policy Scenarios'!$AD$29+Database!I63*'Policy Scenarios'!$AE$29 -> 0.0759 | AT63: =Database!J60*$AB$29+Database!J56*'Policy Scenarios'!$X$29+Database!J57*'Policy Scenarios'!$Y$29+Database!J61*'Policy Scenarios'!$AC$29+Database!J62*'Policy Scenarios'!$AD$29+Database!J63*'Policy Scenarios'!$AE$29 -> 0.0759 | AU63: =Database!K60*$AB$29+Database!K56*'Policy Scenarios'!$X$29+Database!K57*'Policy Scenarios'!$Y$29+Database!K61*'Policy Scenarios'!$AC$29+Database!K62*'Policy Scenarios'!$AD$29+Database!K63*'Policy Scenarios'!$AE$29 -> 0.0759 | AV63: =Database!L60*$AB$29+Database!L56*'Policy Scenarios'!$X$29+Database!L57*'Policy Scenarios'!$Y$29+Database!L61*'Policy Scenarios'!$AC$29+Database!L62*'Policy Scenarios'!$AD$29+Database!L63*'Policy Scenarios'!$AE$29 -> 0.0759
B64: LFL - T12 | H64: =((1+$S$64)^15) -> 3.051757812e-05 | R64: LFL - T12 | S64: -0.5 | AL64: LED omni | AM64: =Database!C61*$AC$30 -> 0 | AN64: =Database!D61*$AC$30 -> 0 | AO64: =Database!E61*$AC$30 -> 0 | AP64: =Database!F61*$AC$30 -> 0 | AQ64: =Database!G61*$AC$30 -> 0 | AR64: =Database!H61*$AC$30 -> 0 | AS64: =Database!I61*$AC$30 -> 0 | AT64: =Database!J61*$AC$30 -> 0 | AU64: =Database!K61*$AC$30 -> 0 | AV64: =Database!L61*$AC$30 -> 0
B65: LFL - Circular | I65: =((1+$S$65)^15) -> 0.1041062417 | R65: LFL - Circular | S65: -0.14 | AL65: LED tube | AM65: =Database!C62*$AD$31 -> 0 | AN65: =Database!D62*$AD$31 -> 0 | AO65: =Database!E62*$AD$31 -> 0 | AP65: =Database!F62*$AD$31 -> 0 | AQ65: =Database!G62*$AD$31 -> 0 | AR65: =Database!H62*$AD$31 -> 0 | AS65: =Database!I62*$AD$31 -> 0 | AT65: =Database!J62*$AD$31 -> 0 | AU65: =Database!K62*$AD$31 -> 0 | AV65: =Database!L62*$AD$31 -> 0
B66: LED omni | C66: =(1-$C$59)*9/10 -> 0.8999725342 | D66: =(1-$D$60)*6/10 -> 0.5999816895 | E66: =(1-$E$61)*9/10 -> 0.8063043824 | I66: =(1-$I$65)*1/10 -> 0.08958937583 | J66: 1 | R66: HID | S66: -0.078 | AL66: LED others | AM66: =Database!C63*$AE$32 -> 0 | AN66: =Database!D63*$AE$32 -> 0 | AO66: =Database!E63*$AE$32 -> 0 | AP66: =Database!F63*$AE$32 -> 0 | AQ66: =Database!G63*$AE$32 -> 0 | AR66: =Database!H63*$AE$32 -> 0 | AS66: =Database!I63*$AE$32 -> 0 | AT66: =Database!J63*$AE$32 -> 0 | AU66: =Database!K63*$AE$32 -> 0 | AV66: =Database!L63*$AE$32 -> 0
B67: LED tube | E67: =(1-$E$61)*1/10 -> 0.08958937583 | F67: =1-F62 -> 0.6993747081 | G67: =(1-$G$63)*10/10 -> 0.8958937583 | H67: =(1-$H$64)*10/10 -> 0.9999694824 | I67: =(1-I65)*3/10 -> 0.2687681275 | K67: 1 | AL67: HID - HPS | AM67: =Database!C64*$AF$33 -> 0.039 | AN67: =Database!D64*$AF$33 -> 0.039 | AO67: =Database!E64*$AF$33 -> 0.039 | AP67: =Database!F64*$AF$33 -> 0.039 | AQ67: =Database!G64*$AF$33 -> 0.039 | AR67: =Database!H64*$AF$33 -> 0.039 | AS67: =Database!I64*$AF$33 -> 0.039 | AT67: =Database!J64*$AF$33 -> 0.039 | AU67: =Database!K64*$AF$33 -> 0.039 | AV67: =Database!L64*$AF$33 -> 0.039
B68: LED others | C68: =(1-$C$59)*1/10 -> 0.09999694824 | D68: =(1-$D$60)*4/10 -> 0.399987793 | I68: =(1-$I$65)*6/10 -> 0.537536255 | L68: 1 | AL68: HID - Mercury Vapour | AM68: =Database!C65*$AG$34 -> 0.119 | AN68: =Database!D65*$AG$34 -> 0.119 | AO68: =Database!E65*$AG$34 -> 0.119 | AP68: =Database!F65*$AG$34 -> 0.119 | AQ68: =Database!G65*$AG$34 -> 0.119 | AR68: =Database!H65*$AG$34 -> 0.119 | AS68: =Database!I65*$AG$34 -> 0.119 | AT68: =Database!J65*$AG$34 -> 0.119 | AU68: =Database!K65*$AG$34 -> 0.119 | AV68: =Database!L65*$AG$34 -> 0.119
B69: HID - HPS | M69: =((1+$S$66)^15) -> 0.2957766024 | AL69: HID - Metal Halide | AM69: =Database!C66*$AH$35 -> 0.08 | AN69: =Database!D66*$AH$35 -> 0.08 | AO69: =Database!E66*$AH$35 -> 0.08 | AP69: =Database!F66*$AH$35 -> 0.08 | AQ69: =Database!G66*$AH$35 -> 0.08 | AR69: =Database!H66*$AH$35 -> 0.08 | AS69: =Database!I66*$AH$35 -> 0.08 | AT69: =Database!J66*$AH$35 -> 0.08 | AU69: =Database!K66*$AH$35 -> 0.08 | AV69: =Database!L66*$AH$35 -> 0.08
B70: HID - Mercury Vapour | N70: =((1+$S$66)^15) -> 0.2957766024
B71: HID - Metal Halide | O71: =((1+$S$66)^15) -> 0.2957766024 | AL71: STREET&OUTDOOR | AM71: 1 | AN71: 2 | AO71: 3 | AP71: 4 | AQ71: 5 | AR71: 6 | AS71: 7 | AT71: 8 | AU71: 9 | AV71: 10
B72: LED Street lighting | M72: =1-M69 -> 0.7042233976 | N72: =1-N70 -> 0.7042233976 | O72: =1-O71 -> 0.7042233976 | P72: 1 | AL72: Incandescent | AM72: =Database!C69*$V$23+Database!C71*'Policy Scenarios'!$X$23+Database!C76*'Policy Scenarios'!$AC$23+Database!C77*'Policy Scenarios'!$AD$23+Database!C78*'Policy Scenarios'!$AE$23 -> 0.00672 | AN72: =Database!D69*$V$23+Database!D71*'Policy Scenarios'!$X$23+Database!D76*'Policy Scenarios'!$AC$23+Database!D77*'Policy Scenarios'!$AD$23+Database!D78*'Policy Scenarios'!$AE$23 -> 0 | AO72: =Database!E69*$V$23+Database!E71*'Policy Scenarios'!$X$23+Database!E76*'Policy Scenarios'!$AC$23+Database!E77*'Policy Scenarios'!$AD$23+Database!E78*'Policy Scenarios'!$AE$23 -> 0.00317968459 | AP72: =Database!F69*$V$23+Database!F71*'Policy Scenarios'!$X$23+Database!F76*'Policy Scenarios'!$AC$23+Database!F77*'Policy Scenarios'!$AD$23+Database!F78*'Policy Scenarios'!$AE$23 -> 0 | AQ72: =Database!G69*$V$23+Database!G71*'Policy Scenarios'!$X$23+Database!G76*'Policy Scenarios'!$AC$23+Database!G77*'Policy Scenarios'!$AD$23+Database!G78*'Policy Scenarios'!$AE$23 -> 0 | AR72: =Database!H69*$V$23+Database!H71*'Policy Scenarios'!$X$23+Database!H76*'Policy Scenarios'!$AC$23+Database!H77*'Policy Scenarios'!$AD$23+Database!H78*'Policy Scenarios'!$AE$23 -> 0 | AS72: =Database!I69*$V$23+Database!I71*'Policy Scenarios'!$X$23+Database!I76*'Policy Scenarios'!$AC$23+Database!I77*'Policy Scenarios'!$AD$23+Database!I78*'Policy Scenarios'!$AE$23 -> 0.0026 | AT72: =Database!J69*$V$23+Database!J71*'Policy Scenarios'!$X$23+Database!J76*'Policy Scenarios'!$AC$23+Database!J77*'Policy Scenarios'!$AD$23+Database!J78*'Policy Scenarios'!$AE$23 -> 0.00672 | AU72: =Database!K69*$V$23+Database!K71*'Policy Scenarios'!$X$23+Database!K76*'Policy Scenarios'!$AC$23+Database!K77*'Policy Scenarios'!$AD$23+Database!K78*'Policy Scenarios'!$AE$23 -> 0 | AV72: =Database!L69*$V$23+Database!L71*'Policy Scenarios'!$X$23+Database!L76*'Policy Scenarios'!$AC$23+Database!L77*'Policy Scenarios'!$AD$23+Database!L78*'Policy Scenarios'!$AE$23 -> 0.0552
AL73: Halogen | AM73: =Database!C70*$W$24+Database!C71*'Policy Scenarios'!$X$24+Database!C76*'Policy Scenarios'!$AC$24+Database!C77*'Policy Scenarios'!$AD$24+Database!C78*'Policy Scenarios'!$AE$24 -> 0.00183 | AN73: =Database!D70*$W$24+Database!D71*'Policy Scenarios'!$X$24+Database!D76*'Policy Scenarios'!$AC$24+Database!D77*'Policy Scenarios'!$AD$24+Database!D78*'Policy Scenarios'!$AE$24 -> 0 | AO73: =Database!E70*$W$24+Database!E71*'Policy Scenarios'!$X$24+Database!E76*'Policy Scenarios'!$AC$24+Database!E77*'Policy Scenarios'!$AD$24+Database!E78*'Policy Scenarios'!$AE$24 -> 0.001 | AP73: =Database!F70*$W$24+Database!F71*'Policy Scenarios'!$X$24+Database!F76*'Policy Scenarios'!$AC$24+Database!F77*'Policy Scenarios'!$AD$24+Database!F78*'Policy Scenarios'!$AE$24 -> 0 | AQ73: =Database!G70*$W$24+Database!G71*'Policy Scenarios'!$X$24+Database!G76*'Policy Scenarios'!$AC$24+Database!G77*'Policy Scenarios'!$AD$24+Database!G78*'Policy Scenarios'!$AE$24 -> 0 | AR73: =Database!H70*$W$24+Database!H71*'Policy Scenarios'!$X$24+Database!H76*'Policy Scenarios'!$AC$24+Database!H77*'Policy Scenarios'!$AD$24+Database!H78*'Policy Scenarios'!$AE$24 -> 0 | AS73: =Database!I70*$W$24+Database!I71*'Policy Scenarios'!$X$24+Database!I76*'Policy Scenarios'!$AC$24+Database!I77*'Policy Scenarios'!$AD$24+Database!I78*'Policy Scenarios'!$AE$24 -> 0.0008 | AT73: =Database!J70*$W$24+Database!J71*'Policy Scenarios'!$X$24+Database!J76*'Policy Scenarios'!$AC$24+Database!J77*'Policy Scenarios'!$AD$24+Database!J78*'Policy Scenarios'!$AE$24 -> 0.00183 | AU73: =Database!K70*$W$24+Database!K71*'Policy Scenarios'!$X$24+Database!K76*'Policy Scenarios'!$AC$24+Database!K77*'Policy Scenarios'!$AD$24+Database!K78*'Policy Scenarios'!$AE$24 -> 0 | AV73: =Database!L70*$W$24+Database!L71*'Policy Scenarios'!$X$24+Database!L76*'Policy Scenarios'!$AC$24+Database!L77*'Policy Scenarios'!$AD$24+Database!L78*'Policy Scenarios'!$AE$24 -> 0.0131
AL74: CFL | AM74: =Database!C71*$X$25+Database!C78*'Policy Scenarios'!$AE$25 -> 0.003825 | AN74: =Database!D71*$X$25+Database!D78*'Policy Scenarios'!$AE$25 -> 0 | AO74: =Database!E71*$X$25+Database!E78*'Policy Scenarios'!$AE$25 -> 0 | AP74: =Database!F71*$X$25+Database!F78*'Policy Scenarios'!$AE$25 -> 0 | AQ74: =Database!G71*$X$25+Database!G78*'Policy Scenarios'!$AE$25 -> 0 | AR74: =Database!H71*$X$25+Database!H78*'Policy Scenarios'!$AE$25 -> 0 | AS74: =Database!I71*$X$25+Database!I78*'Policy Scenarios'!$AE$25 -> 0.00125 | AT74: =Database!J71*$X$25+Database!J78*'Policy Scenarios'!$AE$25 -> 0.003825 | AU74: =Database!K71*$X$25+Database!K78*'Policy Scenarios'!$AE$25 -> 0 | AV74: =Database!L71*$X$25+Database!L78*'Policy Scenarios'!$AE$25 -> 0.03
B75: Policy scenarios toward 2030 | AL75: LFL - T5 | AM75: =Database!C72*$Y$26 -> 0 | AN75: =Database!D72*$Y$26 -> 0 | AO75: =Database!E72*$Y$26 -> 0 | AP75: =Database!F72*$Y$26 -> 0 | AQ75: =Database!G72*$Y$26 -> 0 | AR75: =Database!H72*$Y$26 -> 0 | AS75: =Database!I72*$Y$26 -> 0 | AT75: =Database!J72*$Y$26 -> 0 | AU75: =Database!K72*$Y$26 -> 0 | AV75: =Database!L72*$Y$26 -> 0
B76: RESIDENTIAL | C76: 1 | D76: 2 | E76: 3 | F76: 4 | G76: 5 | H76: 6 | I76: 7 | J76: 8 | K76: 9 | L76: 10 | AL76: LFL - T8 | AM76: =Database!C73*$Z$27+Database!C71*'Policy Scenarios'!$X$27+Database!C72*'Policy Scenarios'!$Y$27+Database!C77*'Policy Scenarios'!$AD$27+Database!C78*'Policy Scenarios'!$AE$27 -> 0.066595 | AN76: =Database!D73*$Z$27+Database!D71*'Policy Scenarios'!$X$27+Database!D72*'Policy Scenarios'!$Y$27+Database!D77*'Policy Scenarios'!$AD$27+Database!D78*'Policy Scenarios'!$AE$27 -> 0.065 | AO76: =Database!E73*$Z$27+Database!E71*'Policy Scenarios'!$X$27+Database!E72*'Policy Scenarios'!$Y$27+Database!E77*'Policy Scenarios'!$AD$27+Database!E78*'Policy Scenarios'!$AE$27 -> 0.05977286587 | AP76: =Database!F73*$Z$27+Database!F71*'Policy Scenarios'!$X$27+Database!F72*'Policy Scenarios'!$Y$27+Database!F77*'Policy Scenarios'!$AD$27+Database!F78*'Policy Scenarios'!$AE$27 -> 0.19 | AQ76: =Database!G73*$Z$27+Database!G71*'Policy Scenarios'!$X$27+Database!G72*'Policy Scenarios'!$Y$27+Database!G77*'Policy Scenarios'!$AD$27+Database!G78*'Policy Scenarios'!$AE$27 -> 0.159 | AR76: =Database!H73*$Z$27+Database!H71*'Policy Scenarios'!$X$27+Database!H72*'Policy Scenarios'!$Y$27+Database!H77*'Policy Scenarios'!$AD$27+Database!H78*'Policy Scenarios'!$AE$27 -> 0.065 | AS76: =Database!I73*$Z$27+Database!I71*'Policy Scenarios'!$X$27+Database!I72*'Policy Scenarios'!$Y$27+Database!I77*'Policy Scenarios'!$AD$27+Database!I78*'Policy Scenarios'!$AE$27 -> 0.03895 | AT76: =Database!J73*$Z$27+Database!J71*'Policy Scenarios'!$X$27+Database!J72*'Policy Scenarios'!$Y$27+Database!J77*'Policy Scenarios'!$AD$27+Database!J78*'Policy Scenarios'!$AE$27 -> 0.066595 | AU76: =Database!K73*$Z$27+Database!K71*'Policy Scenarios'!$X$27+Database!K72*'Policy Scenarios'!$Y$27+Database!K77*'Policy Scenarios'!$AD$27+Database!K78*'Policy Scenarios'!$AE$27 -> 0.159 | AV76: =Database!L73*$Z$27+Database!L71*'Policy Scenarios'!$X$27+Database!L72*'Policy Scenarios'!$Y$27+Database!L77*'Policy Scenarios'!$AD$27+Database!L78*'Policy Scenarios'!$AE$27 -> 0.0639
B77: Lamp type | C77: BRN | D77: KHM | E77: IDN | F77: LAO | G77: MYS | H77: MMR | I77: PHL | J77: SGP | K77: THA | L77: VNM | AL77: LFL - T12 | AM77: =Database!C74*$AA$28+Database!C72*'Policy Scenarios'!$Y$28+Database!C76*'Policy Scenarios'!$AC$28+Database!C77*'Policy Scenarios'!$AD$28+Database!C78*'Policy Scenarios'!$AE$28+Database!C82*'Policy Scenarios'!$AI$28 -> 0.01585 | AN77: =Database!D74*$AA$28+Database!D72*'Policy Scenarios'!$Y$28+Database!D76*'Policy Scenarios'!$AC$28+Database!D77*'Policy Scenarios'!$AD$28+Database!D78*'Policy Scenarios'!$AE$28+Database!D82*'Policy Scenarios'!$AI$28 -> 0.0019 | AO77: =Database!E74*$AA$28+Database!E72*'Policy Scenarios'!$Y$28+Database!E76*'Policy Scenarios'!$AC$28+Database!E77*'Policy Scenarios'!$AD$28+Database!E78*'Policy Scenarios'!$AE$28+Database!E82*'Policy Scenarios'!$AI$28 -> 0.008389930599 | AP77: =Database!F74*$AA$28+Database!F72*'Policy Scenarios'!$Y$28+Database!F76*'Policy Scenarios'!$AC$28+Database!F77*'Policy Scenarios'!$AD$28+Database!F78*'Policy Scenarios'!$AE$28+Database!F82*'Policy Scenarios'!$AI$28 -> 0.003 | AQ77: =Database!G74*$AA$28+Database!G72*'Policy Scenarios'!$Y$28+Database!G76*'Policy Scenarios'!$AC$28+Database!G77*'Policy Scenarios'!$AD$28+Database!G78*'Policy Scenarios'!$AE$28+Database!G82*'Policy Scenarios'!$AI$28 -> 0.0193 | AR77: =Database!H74*$AA$28+Database!H72*'Policy Scenarios'!$Y$28+Database!H76*'Policy Scenarios'!$AC$28+Database!H77*'Policy Scenarios'!$AD$28+Database!H78*'Policy Scenarios'!$AE$28+Database!H82*'Policy Scenarios'!$AI$28 -> 0.0019 | AS77: =Database!I74*$AA$28+Database!I72*'Policy Scenarios'!$Y$28+Database!I76*'Policy Scenarios'!$AC$28+Database!I77*'Policy Scenarios'!$AD$28+Database!I78*'Policy Scenarios'!$AE$28+Database!I82*'Policy Scenarios'!$AI$28 -> 0.006 | AT77: =Database!J74*$AA$28+Database!J72*'Policy Scenarios'!$Y$28+Database!J76*'Policy Scenarios'!$AC$28+Database!J77*'Policy Scenarios'!$AD$28+Database!J78*'Policy Scenarios'!$AE$28+Database!J82*'Policy Scenarios'!$AI$28 -> 0.01585 | AU77: =Database!K74*$AA$28+Database!K72*'Policy Scenarios'!$Y$28+Database!K76*'Policy Scenarios'!$AC$28+Database!K77*'Policy Scenarios'!$AD$28+Database!K78*'Policy Scenarios'!$AE$28+Database!K82*'Policy Scenarios'!$AI$28 -> 0.0193 | AV77: =Database!L74*$AA$28+Database!L72*'Policy Scenarios'!$Y$28+Database!L76*'Policy Scenarios'!$AC$28+Database!L77*'Policy Scenarios'!$AD$28+Database!L78*'Policy Scenarios'!$AE$28+Database!L82*'Policy Scenarios'!$AI$28 -> 0.0095
B78: Incandescent | C78: =IF(PolicyIndex=1,Database!C25*$C$18,IF(PolicyIndex=2,Database!C25*'Policy Scenarios'!$C$38,IF(PolicyIndex=3,Database!C25*'Policy Scenarios'!$C$59,""))) -> 1.220703125e-06 | D78: =IF(PolicyIndex=1,Database!D25*$C$18,IF(PolicyIndex=2,Database!D25*'Policy Scenarios'!$C$38,IF(PolicyIndex=3,Database!D25*'Policy Scenarios'!$C$59,""))) -> 2.072501061e-07 | E78: =IF(PolicyIndex=1,Database!E25*$C$18,IF(PolicyIndex=2,Database!E25*'Policy Scenarios'!$C$38,IF(PolicyIndex=3,Database!E25*'Policy Scenarios'!$C$59,""))) -> 0 | F78: =IF(PolicyIndex=1,Database!F25*$C$18,IF(PolicyIndex=2,Database!F25*'Policy Scenarios'!$C$38,IF(PolicyIndex=3,Database!F25*'Policy Scenarios'!$C$59,""))) -> 8.641682964e-07 | G78: =IF(PolicyIndex=1,Database!G25*$C$18,IF(PolicyIndex=2,Database!G25*'Policy Scenarios'!$C$38,IF(PolicyIndex=3,Database!G25*'Policy Scenarios'!$C$59,""))) -> 5.513271287e-07 | H78: =IF(PolicyIndex=1,Database!H25*$C$18,IF(PolicyIndex=2,Database!H25*'Policy Scenarios'!$C$38,IF(PolicyIndex=3,Database!H25*'Policy Scenarios'!$C$59,""))) -> 1.898193359e-06 | I78: =IF(PolicyIndex=1,Database!I25*$C$18,IF(PolicyIndex=2,Database!I25*'Policy Scenarios'!$C$38,IF(PolicyIndex=3,Database!I25*'Policy Scenarios'!$C$59,""))) -> 1.126487783e-06 | J78: =IF(PolicyIndex=1,Database!J25*$C$18,IF(PolicyIndex=2,Database!J25*'Policy Scenarios'!$C$38,IF(PolicyIndex=3,Database!J25*'Policy Scenarios'!$C$59,""))) -> 1.845398253e-06 | K78: =IF(PolicyIndex=1,Database!K25*$C$18,IF(PolicyIndex=2,Database!K25*'Policy Scenarios'!$C$38,IF(PolicyIndex=3,Database!K25*'Policy Scenarios'!$C$59,""))) -> 1.524354552e-06 | L78: =IF(PolicyIndex=1,Database!L25*$C$18,IF(PolicyIndex=2,Database!L25*'Policy Scenarios'!$C$38,IF(PolicyIndex=3,Database!L25*'Policy Scenarios'!$C$59,""))) -> 3.359985352e-06 | AL78: LFL - Circular | AM78: =Database!C75*$AB$29+Database!C71*'Policy Scenarios'!$X$29+Database!C72*'Policy Scenarios'!$Y$29+Database!C76*'Policy Scenarios'!$AC$29+Database!C77*'Policy Scenarios'!$AD$29+Database!C78*'Policy Scenarios'!$AE$29 -> 0.00551 | AN78: =Database!D75*$AB$29+Database!D71*'Policy Scenarios'!$X$29+Database!D72*'Policy Scenarios'!$Y$29+Database!D76*'Policy Scenarios'!$AC$29+Database!D77*'Policy Scenarios'!$AD$29+Database!D78*'Policy Scenarios'!$AE$29 -> 0 | AO78: =Database!E75*$AB$29+Database!E71*'Policy Scenarios'!$X$29+Database!E72*'Policy Scenarios'!$Y$29+Database!E76*'Policy Scenarios'!$AC$29+Database!E77*'Policy Scenarios'!$AD$29+Database!E78*'Policy Scenarios'!$AE$29 -> 0.001578114436 | AP78: =Database!F75*$AB$29+Database!F71*'Policy Scenarios'!$X$29+Database!F72*'Policy Scenarios'!$Y$29+Database!F76*'Policy Scenarios'!$AC$29+Database!F77*'Policy Scenarios'!$AD$29+Database!F78*'Policy Scenarios'!$AE$29 -> 0 | AQ78: =Database!G75*$AB$29+Database!G71*'Policy Scenarios'!$X$29+Database!G72*'Policy Scenarios'!$Y$29+Database!G76*'Policy Scenarios'!$AC$29+Database!G77*'Policy Scenarios'!$AD$29+Database!G78*'Policy Scenarios'!$AE$29 -> 0.0116 | AR78: =Database!H75*$AB$29+Database!H71*'Policy Scenarios'!$X$29+Database!H72*'Policy Scenarios'!$Y$29+Database!H76*'Policy Scenarios'!$AC$29+Database!H77*'Policy Scenarios'!$AD$29+Database!H78*'Policy Scenarios'!$AE$29 -> 0 | AS78: =Database!I75*$AB$29+Database!I71*'Policy Scenarios'!$X$29+Database!I72*'Policy Scenarios'!$Y$29+Database!I76*'Policy Scenarios'!$AC$29+Database!I77*'Policy Scenarios'!$AD$29+Database!I78*'Policy Scenarios'!$AE$29 -> 0.0016 | AT78: =Database!J75*$AB$29+Database!J71*'Policy Scenarios'!$X$29+Database!J72*'Policy Scenarios'!$Y$29+Database!J76*'Policy Scenarios'!$AC$29+Database!J77*'Policy Scenarios'!$AD$29+Database!J78*'Policy Scenarios'!$AE$29 -> 0.00551 | AU78: =Database!K75*$AB$29+Database!K71*'Policy Scenarios'!$X$29+Database!K72*'Policy Scenarios'!$Y$29+Database!K76*'Policy Scenarios'!$AC$29+Database!K77*'Policy Scenarios'!$AD$29+Database!K78*'Policy Scenarios'!$AE$29 -> 0.0116 | AV78: =Database!L75*$AB$29+Database!L71*'Policy Scenarios'!$X$29+Database!L72*'Policy Scenarios'!$Y$29+Database!L76*'Policy Scenarios'!$AC$29+Database!L77*'Policy Scenarios'!$AD$29+Database!L78*'Policy Scenarios'!$AE$29 -> 0.0141
B79: Halogen | C79: =IF(PolicyIndex=1,Database!C26*$D$19,IF(PolicyIndex=2,Database!C26*'Policy Scenarios'!$D$39,IF(PolicyIndex=3,Database!C26*'Policy Scenarios'!$D$60,""))) -> 0.009352934971 | D79: =IF(PolicyIndex=1,Database!D26*$D$19,IF(PolicyIndex=2,Database!D26*'Policy Scenarios'!$D$39,IF(PolicyIndex=3,Database!D26*'Policy Scenarios'!$D$60,""))) -> 0.002117246173 | E79: =IF(PolicyIndex=1,Database!E26*$D$19,IF(PolicyIndex=2,Database!E26*'Policy Scenarios'!$D$39,IF(PolicyIndex=3,Database!E26*'Policy Scenarios'!$D$60,""))) -> 0.002514229831 | F79: =IF(PolicyIndex=1,Database!F26*$D$19,IF(PolicyIndex=2,Database!F26*'Policy Scenarios'!$D$39,IF(PolicyIndex=3,Database!F26*'Policy Scenarios'!$D$60,""))) -> 0.0009292901185 | G79: =IF(PolicyIndex=1,Database!G26*$D$19,IF(PolicyIndex=2,Database!G26*'Policy Scenarios'!$D$39,IF(PolicyIndex=3,Database!G26*'Policy Scenarios'!$D$60,""))) -> 0.03776955674 | H79: =IF(PolicyIndex=1,Database!H26*$D$19,IF(PolicyIndex=2,Database!H26*'Policy Scenarios'!$D$39,IF(PolicyIndex=3,Database!H26*'Policy Scenarios'!$D$60,""))) -> 0.004988231985 | I79: =IF(PolicyIndex=1,Database!I26*$D$19,IF(PolicyIndex=2,Database!I26*'Policy Scenarios'!$D$39,IF(PolicyIndex=3,Database!I26*'Policy Scenarios'!$D$60,""))) -> 0.004184758376 | J79: =IF(PolicyIndex=1,Database!J26*$D$19,IF(PolicyIndex=2,Database!J26*'Policy Scenarios'!$D$39,IF(PolicyIndex=3,Database!J26*'Policy Scenarios'!$D$60,""))) -> 0.0773107438 | K79: =IF(PolicyIndex=1,Database!K26*$D$19,IF(PolicyIndex=2,Database!K26*'Policy Scenarios'!$D$39,IF(PolicyIndex=3,Database!K26*'Policy Scenarios'!$D$60,""))) -> 0.006851967012 | L79: =IF(PolicyIndex=1,Database!L26*$D$19,IF(PolicyIndex=2,Database!L26*'Policy Scenarios'!$D$39,IF(PolicyIndex=3,Database!L26*'Policy Scenarios'!$D$60,""))) -> 0.008667053074 | AL79: LED omni | AM79: =Database!C76*$AC$30 -> 0 | AN79: =Database!D76*$AC$30 -> 0 | AO79: =Database!E76*$AC$30 -> 0 | AP79: =Database!F76*$AC$30 -> 0 | AQ79: =Database!G76*$AC$30 -> 0 | AR79: =Database!H76*$AC$30 -> 0 | AS79: =Database!I76*$AC$30 -> 0 | AT79: =Database!J76*$AC$30 -> 0 | AU79: =Database!K76*$AC$30 -> 0 | AV79: =Database!L76*$AC$30 -> 0
B80: CFL | C80: =IF(PolicyIndex=1,Database!C27*$E$20+Database!C25*'Policy Scenarios'!$C$20,IF(PolicyIndex=2,Database!C27*'Policy Scenarios'!$E$40+Database!C25*'Policy Scenarios'!$C$40,IF(PolicyIndex=3,Database!C27*'Policy Scenarios'!$E$61+Database!C25*'Policy Scenarios'!$C$61,""))) -> 0.1823277089 | D80: =IF(PolicyIndex=1,Database!D27*$E$20+Database!D25*'Policy Scenarios'!$C$20,IF(PolicyIndex=2,Database!D27*'Policy Scenarios'!$E$40+Database!D25*'Policy Scenarios'!$C$40,IF(PolicyIndex=3,Database!D27*'Policy Scenarios'!$E$61+Database!D25*'Policy Scenarios'!$C$61,""))) -> 0.2552058846 | E80: =IF(PolicyIndex=1,Database!E27*$E$20+Database!E25*'Policy Scenarios'!$C$20,IF(PolicyIndex=2,Database!E27*'Policy Scenarios'!$E$40+Database!E25*'Policy Scenarios'!$C$40,IF(PolicyIndex=3,Database!E27*'Policy Scenarios'!$E$61+Database!E25*'Policy Scenarios'!$C$61,""))) -> 0.4680008686 | F80: =IF(PolicyIndex=1,Database!F27*$E$20+Database!F25*'Policy Scenarios'!$C$20,IF(PolicyIndex=2,Database!F27*'Policy Scenarios'!$E$40+Database!F25*'Policy Scenarios'!$C$40,IF(PolicyIndex=3,Database!F27*'Policy Scenarios'!$E$61+Database!F25*'Policy Scenarios'!$C$61,""))) -> 0.08782214993 | G80: =IF(PolicyIndex=1,Database!G27*$E$20+Database!G25*'Policy Scenarios'!$C$20,IF(PolicyIndex=2,Database!G27*'Policy Scenarios'!$E$40+Database!G25*'Policy Scenarios'!$C$40,IF(PolicyIndex=3,Database!G27*'Policy Scenarios'!$E$61+Database!G25*'Policy Scenarios'!$C$61,""))) -> 0.2555556762 | H80: =IF(PolicyIndex=1,Database!H27*$E$20+Database!H25*'Policy Scenarios'!$C$20,IF(PolicyIndex=2,Database!H27*'Policy Scenarios'!$E$40+Database!H25*'Policy Scenarios'!$C$40,IF(PolicyIndex=3,Database!H27*'Policy Scenarios'!$E$61+Database!H25*'Policy Scenarios'!$C$61,""))) -> 0.2549115718 | I80: =IF(PolicyIndex=1,Database!I27*$E$20+Database!I25*'Policy Scenarios'!$C$20,IF(PolicyIndex=2,Database!I27*'Policy Scenarios'!$E$40+Database!I25*'Policy Scenarios'!$C$40,IF(PolicyIndex=3,Database!I27*'Policy Scenarios'!$E$61+Database!I25*'Policy Scenarios'!$C$61,""))) -> 0.3749116502 | J80: =IF(PolicyIndex=1,Database!J27*$E$20+Database!J25*'Policy Scenarios'!$C$20,IF(PolicyIndex=2,Database!J27*'Policy Scenarios'!$E$40+Database!J25*'Policy Scenarios'!$C$40,IF(PolicyIndex=3,Database!J27*'Policy Scenarios'!$E$61+Database!J25*'Policy Scenarios'!$C$61,""))) -> 0.1152017248 | K80: =IF(PolicyIndex=1,Database!K27*$E$20+Database!K25*'Policy Scenarios'!$C$20,IF(PolicyIndex=2,Database!K27*'Policy Scenarios'!$E$40+Database!K25*'Policy Scenarios'!$C$40,IF(PolicyIndex=3,Database!K27*'Policy Scenarios'!$E$61+Database!K25*'Policy Scenarios'!$C$61,""))) -> 0.2030731423 | L80: =IF(PolicyIndex=1,Database!L27*$E$20+Database!L25*'Policy Scenarios'!$C$20,IF(PolicyIndex=2,Database!L27*'Policy Scenarios'!$E$40+Database!L25*'Policy Scenarios'!$C$40,IF(PolicyIndex=3,Database!L27*'Policy Scenarios'!$E$61+Database!L25*'Policy Scenarios'!$C$61,""))) -> 0.201729768 | AL80: LED tube | AM80: =Database!C77*$AD$31 -> 0 | AN80: =Database!D77*$AD$31 -> 0 | AO80: =Database!E77*$AD$31 -> 0 | AP80: =Database!F77*$AD$31 -> 0 | AQ80: =Database!G77*$AD$31 -> 0 | AR80: =Database!H77*$AD$31 -> 0 | AS80: =Database!I77*$AD$31 -> 0 | AT80: =Database!J77*$AD$31 -> 0 | AU80: =Database!K77*$AD$31 -> 0 | AV80: =Database!L77*$AD$31 -> 0
B81: LFL - T5 | C81: =IF(PolicyIndex=1,(Database!C28*$F$21+(Database!C29*'Policy Scenarios'!$G$21)+(Database!C30*'Policy Scenarios'!$H$21)),IF(PolicyIndex=2,(Database!C28*$F$41+(Database!C29*'Policy Scenarios'!$G$41)+(Database!C30*'Policy Scenarios'!$H$41)),IF(PolicyIndex=3,(Database!C28*$F$62+(Database!C29*'Policy Scenarios'!$G$62)+(Database!C30*'Policy Scenarios'!$H$62)),""))) -> 0.1164714885 | D81: =IF(PolicyIndex=1,(Database!D28*$F$21+(Database!D29*'Policy Scenarios'!$G$21)+(Database!D30*'Policy Scenarios'!$H$21)),IF(PolicyIndex=2,(Database!D28*$F$41+(Database!D29*'Policy Scenarios'!$G$41)+(Database!D30*'Policy Scenarios'!$H$41)),IF(PolicyIndex=3,(Database!D28*$F$62+(Database!D29*'Policy Scenarios'!$G$62)+(Database!D30*'Policy Scenarios'!$H$62)),""))) -> 0.07152837884 | E81: =IF(PolicyIndex=1,(Database!E28*$F$21+(Database!E29*'Policy Scenarios'!$G$21)+(Database!E30*'Policy Scenarios'!$H$21)),IF(PolicyIndex=2,(Database!E28*$F$41+(Database!E29*'Policy Scenarios'!$G$41)+(Database!E30*'Policy Scenarios'!$H$41)),IF(PolicyIndex=3,(Database!E28*$F$62+(Database!E29*'Policy Scenarios'!$G$62)+(Database!E30*'Policy Scenarios'!$H$62)),""))) -> 0.06166253152 | F81: =IF(PolicyIndex=1,(Database!F28*$F$21+(Database!F29*'Policy Scenarios'!$G$21)+(Database!F30*'Policy Scenarios'!$H$21)),IF(PolicyIndex=2,(Database!F28*$F$41+(Database!F29*'Policy Scenarios'!$G$41)+(Database!F30*'Policy Scenarios'!$H$41)),IF(PolicyIndex=3,(Database!F28*$F$62+(Database!F29*'Policy Scenarios'!$G$62)+(Database!F30*'Policy Scenarios'!$H$62)),""))) -> 0.1045209169 | G81: =IF(PolicyIndex=1,(Database!G28*$F$21+(Database!G29*'Policy Scenarios'!$G$21)+(Database!G30*'Policy Scenarios'!$H$21)),IF(PolicyIndex=2,(Database!G28*$F$41+(Database!G29*'Policy Scenarios'!$G$41)+(Database!G30*'Policy Scenarios'!$H$41)),IF(PolicyIndex=3,(Database!G28*$F$62+(Database!G29*'Policy Scenarios'!$G$62)+(Database!G30*'Policy Scenarios'!$H$62)),""))) -> 0.0860153523 | H81: =IF(PolicyIndex=1,(Database!H28*$F$21+(Database!H29*'Policy Scenarios'!$G$21)+(Database!H30*'Policy Scenarios'!$H$21)),IF(PolicyIndex=2,(Database!H28*$F$41+(Database!H29*'Policy Scenarios'!$G$41)+(Database!H30*'Policy Scenarios'!$H$41)),IF(PolicyIndex=3,(Database!H28*$F$62+(Database!H29*'Policy Scenarios'!$G$62)+(Database!H30*'Policy Scenarios'!$H$62)),""))) -> 0.1239792218 | I81: =IF(PolicyIndex=1,(Database!I28*$F$21+(Database!I29*'Policy Scenarios'!$G$21)+(Database!I30*'Policy Scenarios'!$H$21)),IF(PolicyIndex=2,(Database!I28*$F$41+(Database!I29*'Policy Scenarios'!$G$41)+(Database!I30*'Policy Scenarios'!$H$41)),IF(PolicyIndex=3,(Database!I28*$F$62+(Database!I29*'Policy Scenarios'!$G$62)+(Database!I30*'Policy Scenarios'!$H$62)),""))) -> 0.03831492686 | J81: =IF(PolicyIndex=1,(Database!J28*$F$21+(Database!J29*'Policy Scenarios'!$G$21)+(Database!J30*'Policy Scenarios'!$H$21)),IF(PolicyIndex=2,(Database!J28*$F$41+(Database!J29*'Policy Scenarios'!$G$41)+(Database!J30*'Policy Scenarios'!$H$41)),IF(PolicyIndex=3,(Database!J28*$F$62+(Database!J29*'Policy Scenarios'!$G$62)+(Database!J30*'Policy Scenarios'!$H$62)),""))) -> 0.09539249468 | K81: =IF(PolicyIndex=1,(Database!K28*$F$21+(Database!K29*'Policy Scenarios'!$G$21)+(Database!K30*'Policy Scenarios'!$H$21)),IF(PolicyIndex=2,(Database!K28*$F$41+(Database!K29*'Policy Scenarios'!$G$41)+(Database!K30*'Policy Scenarios'!$H$41)),IF(PolicyIndex=3,(Database!K28*$F$62+(Database!K29*'Policy Scenarios'!$G$62)+(Database!K30*'Policy Scenarios'!$H$62)),""))) -> 0.06954284751 | L81: =IF(PolicyIndex=1,(Database!L28*$F$21+(Database!L29*'Policy Scenarios'!$G$21)+(Database!L30*'Policy Scenarios'!$H$21)),IF(PolicyIndex=2,(Database!L28*$F$41+(Database!L29*'Policy Scenarios'!$G$41)+(Database!L30*'Policy Scenarios'!$H$41)),IF(PolicyIndex=3,(Database!L28*$F$62+(Database!L29*'Policy Scenarios'!$G$62)+(Database!L30*'Policy Scenarios'!$H$62)),""))) -> 0.05039303645 | AL81: LED others | AM81: =Database!C78*$AE$32 -> 0 | AN81: =Database!D78*$AE$32 -> 0 | AO81: =Database!E78*$AE$32 -> 0 | AP81: =Database!F78*$AE$32 -> 0 | AQ81: =Database!G78*$AE$32 -> 0 | AR81: =Database!H78*$AE$32 -> 0 | AS81: =Database!I78*$AE$32 -> 0 | AT81: =Database!J78*$AE$32 -> 0 | AU81: =Database!K78*$AE$32 -> 0 | AV81: =Database!L78*$AE$32 -> 0
B82: LFL - T8 | C82: =IF(PolicyIndex=1,(Database!C29*$G$22+(Database!C30*'Policy Scenarios'!$H$22)),IF(PolicyIndex=2,(Database!C29*$G$42+(Database!C30*'Policy Scenarios'!$H$42)),IF(PolicyIndex=3,(Database!C29*$G$63+(Database!C30*'Policy Scenarios'!$H$63)),""))) -> 0.2085730236 | D82: =IF(PolicyIndex=1,(Database!D29*$G$22+(Database!D30*'Policy Scenarios'!$H$22)),IF(PolicyIndex=2,(Database!D29*$G$42+(Database!D30*'Policy Scenarios'!$H$42)),IF(PolicyIndex=3,(Database!D29*$G$63+(Database!D30*'Policy Scenarios'!$H$63)),""))) -> 0.1950023591 | E82: =IF(PolicyIndex=1,(Database!E29*$G$22+(Database!E30*'Policy Scenarios'!$H$22)),IF(PolicyIndex=2,(Database!E29*$G$42+(Database!E30*'Policy Scenarios'!$H$42)),IF(PolicyIndex=3,(Database!E29*$G$63+(Database!E30*'Policy Scenarios'!$H$63)),""))) -> 0.001671951635 | F82: =IF(PolicyIndex=1,(Database!F29*$G$22+(Database!F30*'Policy Scenarios'!$H$22)),IF(PolicyIndex=2,(Database!F29*$G$42+(Database!F30*'Policy Scenarios'!$H$42)),IF(PolicyIndex=3,(Database!F29*$G$63+(Database!F30*'Policy Scenarios'!$H$63)),""))) -> 0.2871344951 | G82: =IF(PolicyIndex=1,(Database!G29*$G$22+(Database!G30*'Policy Scenarios'!$H$22)),IF(PolicyIndex=2,(Database!G29*$G$42+(Database!G30*'Policy Scenarios'!$H$42)),IF(PolicyIndex=3,(Database!G29*$G$63+(Database!G30*'Policy Scenarios'!$H$63)),""))) -> 0.1133470678 | H82: =IF(PolicyIndex=1,(Database!H29*$G$22+(Database!H30*'Policy Scenarios'!$H$22)),IF(PolicyIndex=2,(Database!H29*$G$42+(Database!H30*'Policy Scenarios'!$H$42)),IF(PolicyIndex=3,(Database!H29*$G$63+(Database!H30*'Policy Scenarios'!$H$63)),""))) -> 0.1132184046 | I82: =IF(PolicyIndex=1,(Database!I29*$G$22+(Database!I30*'Policy Scenarios'!$H$22)),IF(PolicyIndex=2,(Database!I29*$G$42+(Database!I30*'Policy Scenarios'!$H$42)),IF(PolicyIndex=3,(Database!I29*$G$63+(Database!I30*'Policy Scenarios'!$H$63)),""))) -> 0.04325744046 | J82: =IF(PolicyIndex=1,(Database!J29*$G$22+(Database!J30*'Policy Scenarios'!$H$22)),IF(PolicyIndex=2,(Database!J29*$G$42+(Database!J30*'Policy Scenarios'!$H$42)),IF(PolicyIndex=3,(Database!J29*$G$63+(Database!J30*'Policy Scenarios'!$H$63)),""))) -> 0.1734805815 | K82: =IF(PolicyIndex=1,(Database!K29*$G$22+(Database!K30*'Policy Scenarios'!$H$22)),IF(PolicyIndex=2,(Database!K29*$G$42+(Database!K30*'Policy Scenarios'!$H$42)),IF(PolicyIndex=3,(Database!K29*$G$63+(Database!K30*'Policy Scenarios'!$H$63)),""))) -> 0.1915442281 | L82: =IF(PolicyIndex=1,(Database!L29*$G$22+(Database!L30*'Policy Scenarios'!$H$22)),IF(PolicyIndex=2,(Database!L29*$G$42+(Database!L30*'Policy Scenarios'!$H$42)),IF(PolicyIndex=3,(Database!L29*$G$63+(Database!L30*'Policy Scenarios'!$H$63)),""))) -> 0.1380430489 | AL82: HID - HPS | AM82: =Database!C79*$AF$33+Database!C82*'Policy Scenarios'!$AI$33 -> 0.37989 | AN82: =Database!D79*$AF$33+Database!D82*'Policy Scenarios'!$AI$33 -> 0.8247 | AO82: =Database!E79*$AF$33+Database!E82*'Policy Scenarios'!$AI$33 -> 0.6572335913 | AP82: =Database!F79*$AF$33+Database!F82*'Policy Scenarios'!$AI$33 -> 0.349 | AQ82: =Database!G79*$AF$33+Database!G82*'Policy Scenarios'!$AI$33 -> 0.4717 | AR82: =Database!H79*$AF$33+Database!H82*'Policy Scenarios'!$AI$33 -> 0.8247 | AS82: =Database!I79*$AF$33+Database!I82*'Policy Scenarios'!$AI$33 -> 0.4896 | AT82: =Database!J79*$AF$33+Database!J82*'Policy Scenarios'!$AI$33 -> 0.37989 | AU82: =Database!K79*$AF$33+Database!K82*'Policy Scenarios'!$AI$33 -> 0.1717 | AV82: =Database!L79*$AF$33+Database!L82*'Policy Scenarios'!$AI$33 -> 0.6354
B83: LFL - T12 | C83: =IF(PolicyIndex=1,(Database!C30*$H$23),IF(PolicyIndex=2,(Database!C30*$H$43),IF(PolicyIndex=3,(Database!C30*$H$64)))) -> 1.269499458e-05 | D83: =IF(PolicyIndex=1,(Database!D30*$H$23),IF(PolicyIndex=2,(Database!D30*$H$43),IF(PolicyIndex=3,(Database!D30*$H$64)))) -> 0 | E83: =IF(PolicyIndex=1,(Database!E30*$H$23),IF(PolicyIndex=2,(Database!E30*$H$43),IF(PolicyIndex=3,(Database!E30*$H$64)))) -> 0 | F83: =IF(PolicyIndex=1,(Database!F30*$H$23),IF(PolicyIndex=2,(Database!F30*$H$43),IF(PolicyIndex=3,(Database!F30*$H$64)))) -> 1.967558585e-06 | G83: =IF(PolicyIndex=1,(Database!G30*$H$23),IF(PolicyIndex=2,(Database!G30*$H$43),IF(PolicyIndex=3,(Database!G30*$H$64)))) -> 7.4949785e-06 | H83: =IF(PolicyIndex=1,(Database!H30*$H$23),IF(PolicyIndex=2,(Database!H30*$H$43),IF(PolicyIndex=3,(Database!H30*$H$64)))) -> 0.0001248811319 | I83: =IF(PolicyIndex=1,(Database!I30*$H$23),IF(PolicyIndex=2,(Database!I30*$H$43),IF(PolicyIndex=3,(Database!I30*$H$64)))) -> 3.628944512e-05 | J83: =IF(PolicyIndex=1,(Database!J30*$H$23),IF(PolicyIndex=2,(Database!J30*$H$43),IF(PolicyIndex=3,(Database!J30*$H$64)))) -> 1.408206377e-06 | K83: =IF(PolicyIndex=1,(Database!K30*$H$23),IF(PolicyIndex=2,(Database!K30*$H$43),IF(PolicyIndex=3,(Database!K30*$H$64)))) -> 2.348576347e-06 | L83: =IF(PolicyIndex=1,(Database!L30*$H$23),IF(PolicyIndex=2,(Database!L30*$H$43),IF(PolicyIndex=3,(Database!L30*$H$64)))) -> 3.432350387e-06 | AL83: HID - Mercury Vapour | AM83: =Database!C80*$AG$34+Database!C82*'Policy Scenarios'!$AI$34 -> 0.31099 | AN83: =Database!D80*$AG$34+Database!D82*'Policy Scenarios'!$AI$34 -> 0.0597 | AO83: =Database!E80*$AG$34+Database!E82*'Policy Scenarios'!$AI$34 -> 0.2482693682 | AP83: =Database!F80*$AG$34+Database!F82*'Policy Scenarios'!$AI$34 -> 0.329 | AQ83: =Database!G80*$AG$34+Database!G82*'Policy Scenarios'!$AI$34 -> 0.3217 | AR83: =Database!H80*$AG$34+Database!H82*'Policy Scenarios'!$AI$34 -> 0.0597 | AS83: =Database!I80*$AG$34+Database!I82*'Policy Scenarios'!$AI$34 -> 0.2796 | AT83: =Database!J80*$AG$34+Database!J82*'Policy Scenarios'!$AI$34 -> 0.31099 | AU83: =Database!K80*$AG$34+Database!K82*'Policy Scenarios'!$AI$34 -> 0.6217 | AV83: =Database!L80*$AG$34+Database!L82*'Policy Scenarios'!$AI$34 -> 0.1284
B84: LFL - Circular | C84: =IF(PolicyIndex=1,Database!C31*$I$24,IF(PolicyIndex=2,Database!C31*$I$44,IF(PolicyIndex=3,Database!C31*$I$65,""))) -> 0.01551673422 | D84: =IF(PolicyIndex=1,Database!D31*$I$24,IF(PolicyIndex=2,Database!D31*$I$44,IF(PolicyIndex=3,Database!D31*$I$65,""))) -> 0.02810048076 | E84: =IF(PolicyIndex=1,Database!E31*$I$24,IF(PolicyIndex=2,Database!E31*$I$44,IF(PolicyIndex=3,Database!E31*$I$65,""))) -> 0 | F84: =IF(PolicyIndex=1,Database!F31*$I$24,IF(PolicyIndex=2,Database!F31*$I$44,IF(PolicyIndex=3,Database!F31*$I$65,""))) -> 0.06767168006 | G84: =IF(PolicyIndex=1,Database!G31*$I$24,IF(PolicyIndex=2,Database!G31*$I$44,IF(PolicyIndex=3,Database!G31*$I$65,""))) -> 0.02913166538 | H84: =IF(PolicyIndex=1,Database!H31*$I$24,IF(PolicyIndex=2,Database!H31*$I$44,IF(PolicyIndex=3,Database!H31*$I$65,""))) -> 0.008482481374 | I84: =IF(PolicyIndex=1,Database!I31*$I$24,IF(PolicyIndex=2,Database!I31*$I$44,IF(PolicyIndex=3,Database!I31*$I$65,""))) -> 0.05206957792 | J84: =IF(PolicyIndex=1,Database!J31*$I$24,IF(PolicyIndex=2,Database!J31*$I$44,IF(PolicyIndex=3,Database!J31*$I$65,""))) -> 0.02218743148 | K84: =IF(PolicyIndex=1,Database!K31*$I$24,IF(PolicyIndex=2,Database!K31*$I$44,IF(PolicyIndex=3,Database!K31*$I$65,""))) -> 0.05322089993 | L84: =IF(PolicyIndex=1,Database!L31*$I$24,IF(PolicyIndex=2,Database!L31*$I$44,IF(PolicyIndex=3,Database!L31*$I$65,""))) -> 0.0269473951 | AL84: HID - Metal Halide | AM84: =Database!C81*$AH$35+Database!C82*'Policy Scenarios'!$AI$35 -> 0.20879 | AN84: =Database!D81*$AH$35+Database!D82*'Policy Scenarios'!$AI$35 -> 0.0487 | AO84: =Database!E81*$AH$35+Database!E82*'Policy Scenarios'!$AI$35 -> 0.02057644494 | AP84: =Database!F81*$AH$35+Database!F82*'Policy Scenarios'!$AI$35 -> 0.129 | AQ84: =Database!G81*$AH$35+Database!G82*'Policy Scenarios'!$AI$35 -> 0.0167 | AR84: =Database!H81*$AH$35+Database!H82*'Policy Scenarios'!$AI$35 -> 0.0487 | AS84: =Database!I81*$AH$35+Database!I82*'Policy Scenarios'!$AI$35 -> 0.1796 | AT84: =Database!J81*$AH$35+Database!J82*'Policy Scenarios'!$AI$35 -> 0.20879 | AU84: =Database!K81*$AH$35+Database!K82*'Policy Scenarios'!$AI$35 -> 0.0167 | AV84: =Database!L81*$AH$35+Database!L82*'Policy Scenarios'!$AI$35 -> 0.0504
B85: LED omni | C85: =IF(PolicyIndex=1,(Database!C32*$J$25+(Database!C25*'Policy Scenarios'!$C$25)+(Database!C26*'Policy Scenarios'!$D$25)+(Database!C27*'Policy Scenarios'!$E$25)),IF(PolicyIndex=2,(Database!C32*$J$45+(Database!C25*'Policy Scenarios'!$C$45)+(Database!C26*'Policy Scenarios'!$D$45)+(Database!C27*'Policy Scenarios'!$E$45)),IF(PolicyIndex=3,(Database!C32*$J$66+(Database!C25*'Policy Scenarios'!$C$66)+(Database!C26*'Policy Scenarios'!$D$66)+(Database!C27*'Policy Scenarios'!$E$66)+(Database!C31*$I$66)),""))) -> 0.153604124 | D85: =IF(PolicyIndex=1,(Database!D32*$J$25+(Database!D25*'Policy Scenarios'!$C$25)+(Database!D26*'Policy Scenarios'!$D$25)+(Database!D27*'Policy Scenarios'!$E$25)),IF(PolicyIndex=2,(Database!D32*$J$45+(Database!D25*'Policy Scenarios'!$C$45)+(Database!D26*'Policy Scenarios'!$D$45)+(Database!D27*'Policy Scenarios'!$E$45)),IF(PolicyIndex=3,(Database!D32*$J$66+(Database!D25*'Policy Scenarios'!$C$66)+(Database!D26*'Policy Scenarios'!$D$66)+(Database!D27*'Policy Scenarios'!$E$66)+(Database!D31*$I$66)),""))) -> 0.1486681382 | E85: =IF(PolicyIndex=1,(Database!E32*$J$25+(Database!E25*'Policy Scenarios'!$C$25)+(Database!E26*'Policy Scenarios'!$D$25)+(Database!E27*'Policy Scenarios'!$E$25)),IF(PolicyIndex=2,(Database!E32*$J$45+(Database!E25*'Policy Scenarios'!$C$45)+(Database!E26*'Policy Scenarios'!$D$45)+(Database!E27*'Policy Scenarios'!$E$45)),IF(PolicyIndex=3,(Database!E32*$J$66+(Database!E25*'Policy Scenarios'!$C$66)+(Database!E26*'Policy Scenarios'!$D$66)+(Database!E27*'Policy Scenarios'!$E$66)+(Database!E31*$I$66)),""))) -> 0.3460164996 | F85: =IF(PolicyIndex=1,(Database!F32*$J$25+(Database!F25*'Policy Scenarios'!$C$25)+(Database!F26*'Policy Scenarios'!$D$25)+(Database!F27*'Policy Scenarios'!$E$25)),IF(PolicyIndex=2,(Database!F32*$J$45+(Database!F25*'Policy Scenarios'!$C$45)+(Database!F26*'Policy Scenarios'!$D$45)+(Database!F27*'Policy Scenarios'!$E$45)),IF(PolicyIndex=3,(Database!F32*$J$66+(Database!F25*'Policy Scenarios'!$C$66)+(Database!F26*'Policy Scenarios'!$D$66)+(Database!F27*'Policy Scenarios'!$E$66)+(Database!F31*$I$66)),""))) -> 0.05849120865 | G85: =IF(PolicyIndex=1,(Database!G32*$J$25+(Database!G25*'Policy Scenarios'!$C$25)+(Database!G26*'Policy Scenarios'!$D$25)+(Database!G27*'Policy Scenarios'!$E$25)),IF(PolicyIndex=2,(Database!G32*$J$45+(Database!G25*'Policy Scenarios'!$C$45)+(Database!G26*'Policy Scenarios'!$D$45)+(Database!G27*'Policy Scenarios'!$E$45)),IF(PolicyIndex=3,(Database!G32*$J$66+(Database!G25*'Policy Scenarios'!$C$66)+(Database!G26*'Policy Scenarios'!$D$66)+(Database!G27*'Policy Scenarios'!$E$66)+(Database!G31*$I$66)),""))) -> 0.1900069057 | H85: =IF(PolicyIndex=1,(Database!H32*$J$25+(Database!H25*'Policy Scenarios'!$C$25)+(Database!H26*'Policy Scenarios'!$D$25)+(Database!H27*'Policy Scenarios'!$E$25)),IF(PolicyIndex=2,(Database!H32*$J$45+(Database!H25*'Policy Scenarios'!$C$45)+(Database!H26*'Policy Scenarios'!$D$45)+(Database!H27*'Policy Scenarios'!$E$45)),IF(PolicyIndex=3,(Database!H32*$J$66+(Database!H25*'Policy Scenarios'!$C$66)+(Database!H26*'Policy Scenarios'!$D$66)+(Database!H27*'Policy Scenarios'!$E$66)+(Database!H31*$I$66)),""))) -> 0.1983167142 | I85: =IF(PolicyIndex=1,(Database!I32*$J$25+(Database!I25*'Policy Scenarios'!$C$25)+(Database!I26*'Policy Scenarios'!$D$25)+(Database!I27*'Policy Scenarios'!$E$25)),IF(PolicyIndex=2,(Database!I32*$J$45+(Database!I25*'Policy Scenarios'!$C$45)+(Database!I26*'Policy Scenarios'!$D$45)+(Database!I27*'Policy Scenarios'!$E$45)),IF(PolicyIndex=3,(Database!I32*$J$66+(Database!I25*'Policy Scenarios'!$C$66)+(Database!I26*'Policy Scenarios'!$D$66)+(Database!I27*'Policy Scenarios'!$E$66)+(Database!I31*$I$66)),""))) -> 0.279621138 | J85: =IF(PolicyIndex=1,(Database!J32*$J$25+(Database!J25*'Policy Scenarios'!$C$25)+(Database!J26*'Policy Scenarios'!$D$25)+(Database!J27*'Policy Scenarios'!$E$25)),IF(PolicyIndex=2,(Database!J32*$J$45+(Database!J25*'Policy Scenarios'!$C$45)+(Database!J26*'Policy Scenarios'!$D$45)+(Database!J27*'Policy Scenarios'!$E$45)),IF(PolicyIndex=3,(Database!J32*$J$66+(Database!J25*'Policy Scenarios'!$C$66)+(Database!J26*'Policy Scenarios'!$D$66)+(Database!J27*'Policy Scenarios'!$E$66)+(Database!J31*$I$66)),""))) -> 0.2063521001 | K85: =IF(PolicyIndex=1,(Database!K32*$J$25+(Database!K25*'Policy Scenarios'!$C$25)+(Database!K26*'Policy Scenarios'!$D$25)+(Database!K27*'Policy Scenarios'!$E$25)),IF(PolicyIndex=2,(Database!K32*$J$45+(Database!K25*'Policy Scenarios'!$C$45)+(Database!K26*'Policy Scenarios'!$D$45)+(Database!K27*'Policy Scenarios'!$E$45)),IF(PolicyIndex=3,(Database!K32*$J$66+(Database!K25*'Policy Scenarios'!$C$66)+(Database!K26*'Policy Scenarios'!$D$66)+(Database!K27*'Policy Scenarios'!$E$66)+(Database!K31*$I$66)),""))) -> 0.1583935502 | L85: =IF(PolicyIndex=1,(Database!L32*$J$25+(Database!L25*'Policy Scenarios'!$C$25)+(Database!L26*'Policy Scenarios'!$D$25)+(Database!L27*'Policy Scenarios'!$E$25)),IF(PolicyIndex=2,(Database!L32*$J$45+(Database!L25*'Policy Scenarios'!$C$45)+(Database!L26*'Policy Scenarios'!$D$45)+(Database!L27*'Policy Scenarios'!$E$45)),IF(PolicyIndex=3,(Database!L32*$J$66+(Database!L25*'Policy Scenarios'!$C$66)+(Database!L26*'Policy Scenarios'!$D$66)+(Database!L27*'Policy Scenarios'!$E$66)+(Database!L31*$I$66)),""))) -> 0.2729707188 | AL85: LED Street lighting | AM85: =Database!C82*$AI$36 -> 0 | AN85: =Database!D82*$AI$36 -> 0 | AO85: =Database!E82*$AI$36 -> 0 | AP85: =Database!F82*$AI$36 -> 0 | AQ85: =Database!G82*$AI$36 -> 0 | AR85: =Database!H82*$AI$36 -> 0 | AS85: =Database!I82*$AI$36 -> 0 | AT85: =Database!J82*$AI$36 -> 0 | AU85: =Database!K82*$AI$36 -> 0 | AV85: =Database!L82*$AI$36 -> 0
B86: LED tube | C86: =IF(PolicyIndex=1,(Database!C33*$K$26+(Database!C27*'Policy Scenarios'!$E$26)+(Database!C28*'Policy Scenarios'!$F$26)+(Database!C29*'Policy Scenarios'!$G$26)+(Database!C30*'Policy Scenarios'!$H$26)+(Database!C31*'Policy Scenarios'!$I$26)),IF(PolicyIndex=2,(Database!C33*$K$26+(Database!C27*'Policy Scenarios'!$E$46)+(Database!C28*'Policy Scenarios'!$F$46)+(Database!C29*'Policy Scenarios'!$G$46)+(Database!C30*'Policy Scenarios'!$H$46)+(Database!C31*'Policy Scenarios'!$I$46)),IF(PolicyIndex=3,(Database!C33*$K$67+(Database!C27*'Policy Scenarios'!$E$67)+(Database!C28*'Policy Scenarios'!$F$67)+(Database!C29*'Policy Scenarios'!$G$67)+(Database!C30*'Policy Scenarios'!$H$67)+(Database!C31*'Policy Scenarios'!$I$67)),""))) -> 0.2866612711 | D86: =IF(PolicyIndex=1,(Database!D33*$K$26+(Database!D27*'Policy Scenarios'!$E$26)+(Database!D28*'Policy Scenarios'!$F$26)+(Database!D29*'Policy Scenarios'!$G$26)+(Database!D30*'Policy Scenarios'!$H$26)+(Database!D31*'Policy Scenarios'!$I$26)),IF(PolicyIndex=2,(Database!D33*$K$26+(Database!D27*'Policy Scenarios'!$E$46)+(Database!D28*'Policy Scenarios'!$F$46)+(Database!D29*'Policy Scenarios'!$G$46)+(Database!D30*'Policy Scenarios'!$H$46)+(Database!D31*'Policy Scenarios'!$I$46)),IF(PolicyIndex=3,(Database!D33*$K$67+(Database!D27*'Policy Scenarios'!$E$67)+(Database!D28*'Policy Scenarios'!$F$67)+(Database!D29*'Policy Scenarios'!$G$67)+(Database!D30*'Policy Scenarios'!$H$67)+(Database!D31*'Policy Scenarios'!$I$67)),""))) -> 0.2714050508 | E86: =IF(PolicyIndex=1,(Database!E33*$K$26+(Database!E27*'Policy Scenarios'!$E$26)+(Database!E28*'Policy Scenarios'!$F$26)+(Database!E29*'Policy Scenarios'!$G$26)+(Database!E30*'Policy Scenarios'!$H$26)+(Database!E31*'Policy Scenarios'!$I$26)),IF(PolicyIndex=2,(Database!E33*$K$26+(Database!E27*'Policy Scenarios'!$E$46)+(Database!E28*'Policy Scenarios'!$F$46)+(Database!E29*'Policy Scenarios'!$G$46)+(Database!E30*'Policy Scenarios'!$H$46)+(Database!E31*'Policy Scenarios'!$I$46)),IF(PolicyIndex=3,(Database!E33*$K$67+(Database!E27*'Policy Scenarios'!$E$67)+(Database!E28*'Policy Scenarios'!$F$67)+(Database!E29*'Policy Scenarios'!$G$67)+(Database!E30*'Policy Scenarios'!$H$67)+(Database!E31*'Policy Scenarios'!$I$67)),""))) -> 0.1193749047 | F86: =IF(PolicyIndex=1,(Database!F33*$K$26+(Database!F27*'Policy Scenarios'!$E$26)+(Database!F28*'Policy Scenarios'!$F$26)+(Database!F29*'Policy Scenarios'!$G$26)+(Database!F30*'Policy Scenarios'!$H$26)+(Database!F31*'Policy Scenarios'!$I$26)),IF(PolicyIndex=2,(Database!F33*$K$26+(Database!F27*'Policy Scenarios'!$E$46)+(Database!F28*'Policy Scenarios'!$F$46)+(Database!F29*'Policy Scenarios'!$G$46)+(Database!F30*'Policy Scenarios'!$H$46)+(Database!F31*'Policy Scenarios'!$I$46)),IF(PolicyIndex=3,(Database!F33*$K$67+(Database!F27*'Policy Scenarios'!$E$67)+(Database!F28*'Policy Scenarios'!$F$67)+(Database!F29*'Policy Scenarios'!$G$67)+(Database!F30*'Policy Scenarios'!$H$67)+(Database!F31*'Policy Scenarios'!$I$67)),""))) -> 0.3453739721 | G86: =IF(PolicyIndex=1,(Database!G33*$K$26+(Database!G27*'Policy Scenarios'!$E$26)+(Database!G28*'Policy Scenarios'!$F$26)+(Database!G29*'Policy Scenarios'!$G$26)+(Database!G30*'Policy Scenarios'!$H$26)+(Database!G31*'Policy Scenarios'!$I$26)),IF(PolicyIndex=2,(Database!G33*$K$26+(Database!G27*'Policy Scenarios'!$E$46)+(Database!G28*'Policy Scenarios'!$F$46)+(Database!G29*'Policy Scenarios'!$G$46)+(Database!G30*'Policy Scenarios'!$H$46)+(Database!G31*'Policy Scenarios'!$I$46)),IF(PolicyIndex=3,(Database!G33*$K$67+(Database!G27*'Policy Scenarios'!$E$67)+(Database!G28*'Policy Scenarios'!$F$67)+(Database!G29*'Policy Scenarios'!$G$67)+(Database!G30*'Policy Scenarios'!$H$67)+(Database!G31*'Policy Scenarios'!$I$67)),""))) -> 0.2019085687 | H86: =IF(PolicyIndex=1,(Database!H33*$K$26+(Database!H27*'Policy Scenarios'!$E$26)+(Database!H28*'Policy Scenarios'!$F$26)+(Database!H29*'Policy Scenarios'!$G$26)+(Database!H30*'Policy Scenarios'!$H$26)+(Database!H31*'Policy Scenarios'!$I$26)),IF(PolicyIndex=2,(Database!H33*$K$26+(Database!H27*'Policy Scenarios'!$E$46)+(Database!H28*'Policy Scenarios'!$F$46)+(Database!H29*'Policy Scenarios'!$G$46)+(Database!H30*'Policy Scenarios'!$H$46)+(Database!H31*'Policy Scenarios'!$I$46)),IF(PolicyIndex=3,(Database!H33*$K$67+(Database!H27*'Policy Scenarios'!$E$67)+(Database!H28*'Policy Scenarios'!$F$67)+(Database!H29*'Policy Scenarios'!$G$67)+(Database!H30*'Policy Scenarios'!$H$67)+(Database!H31*'Policy Scenarios'!$I$67)),""))) -> 0.2655527448 | I86: =IF(PolicyIndex=1,(Database!I33*$K$26+(Database!I27*'Policy Scenarios'!$E$26)+(Database!I28*'Policy Scenarios'!$F$26)+(Database!I29*'Policy Scenarios'!$G$26)+(Database!I30*'Policy Scenarios'!$H$26)+(Database!I31*'Policy Scenarios'!$I$26)),IF(PolicyIndex=2,(Database!I33*$K$26+(Database!I27*'Policy Scenarios'!$E$46)+(Database!I28*'Policy Scenarios'!$F$46)+(Database!I29*'Policy Scenarios'!$G$46)+(Database!I30*'Policy Scenarios'!$H$46)+(Database!I31*'Policy Scenarios'!$I$46)),IF(PolicyIndex=3,(Database!I33*$K$67+(Database!I27*'Policy Scenarios'!$E$67)+(Database!I28*'Policy Scenarios'!$F$67)+(Database!I29*'Policy Scenarios'!$G$67)+(Database!I30*'Policy Scenarios'!$H$67)+(Database!I31*'Policy Scenarios'!$I$67)),""))) -> 0.1665563997 | J86: =IF(PolicyIndex=1,(Database!J33*$K$26+(Database!J27*'Policy Scenarios'!$E$26)+(Database!J28*'Policy Scenarios'!$F$26)+(Database!J29*'Policy Scenarios'!$G$26)+(Database!J30*'Policy Scenarios'!$H$26)+(Database!J31*'Policy Scenarios'!$I$26)),IF(PolicyIndex=2,(Database!J33*$K$26+(Database!J27*'Policy Scenarios'!$E$46)+(Database!J28*'Policy Scenarios'!$F$46)+(Database!J29*'Policy Scenarios'!$G$46)+(Database!J30*'Policy Scenarios'!$H$46)+(Database!J31*'Policy Scenarios'!$I$46)),IF(PolicyIndex=3,(Database!J33*$K$67+(Database!J27*'Policy Scenarios'!$E$67)+(Database!J28*'Policy Scenarios'!$F$67)+(Database!J29*'Policy Scenarios'!$G$67)+(Database!J30*'Policy Scenarios'!$H$67)+(Database!J31*'Policy Scenarios'!$I$67)),""))) -> 0.2516623191 | K86: =IF(PolicyIndex=1,(Database!K33*$K$26+(Database!K27*'Policy Scenarios'!$E$26)+(Database!K28*'Policy Scenarios'!$F$26)+(Database!K29*'Policy Scenarios'!$G$26)+(Database!K30*'Policy Scenarios'!$H$26)+(Database!K31*'Policy Scenarios'!$I$26)),IF(PolicyIndex=2,(Database!K33*$K$26+(Database!K27*'Policy Scenarios'!$E$46)+(Database!K28*'Policy Scenarios'!$F$46)+(Database!K29*'Policy Scenarios'!$G$46)+(Database!K30*'Policy Scenarios'!$H$46)+(Database!K31*'Policy Scenarios'!$I$46)),IF(PolicyIndex=3,(Database!K33*$K$67+(Database!K27*'Policy Scenarios'!$E$67)+(Database!K28*'Policy Scenarios'!$F$67)+(Database!K29*'Policy Scenarios'!$G$67)+(Database!K30*'Policy Scenarios'!$H$67)+(Database!K31*'Policy Scenarios'!$I$67)),""))) -> 0.2701957944 | L86: =IF(PolicyIndex=1,(Database!L33*$K$26+(Database!L27*'Policy Scenarios'!$E$26)+(Database!L28*'Policy Scenarios'!$F$26)+(Database!L29*'Policy Scenarios'!$G$26)+(Database!L30*'Policy Scenarios'!$H$26)+(Database!L31*'Policy Scenarios'!$I$26)),IF(PolicyIndex=2,(Database!L33*$K$26+(Database!L27*'Policy Scenarios'!$E$46)+(Database!L28*'Policy Scenarios'!$F$46)+(Database!L29*'Policy Scenarios'!$G$46)+(Database!L30*'Policy Scenarios'!$H$46)+(Database!L31*'Policy Scenarios'!$I$46)),IF(PolicyIndex=3,(Database!L33*$K$67+(Database!L27*'Policy Scenarios'!$E$67)+(Database!L28*'Policy Scenarios'!$F$67)+(Database!L29*'Policy Scenarios'!$G$67)+(Database!L30*'Policy Scenarios'!$H$67)+(Database!L31*'Policy Scenarios'!$I$67)),""))) -> 0.2349379826
B87: LED others | C87: =IF(PolicyIndex=1,(Database!C34*$L$27+(Database!C25*'Policy Scenarios'!$C$27)+(Database!C26*'Policy Scenarios'!$D$27)+(Database!C31*'Policy Scenarios'!$I$27)),IF(PolicyIndex=2,(Database!C34*$L$47+(Database!C25*'Policy Scenarios'!$C$47)+(Database!C26*'Policy Scenarios'!$D$47)+(Database!C31*'Policy Scenarios'!$I$47)),IF(PolicyIndex=3,(Database!C34*$L$68+(Database!C25*'Policy Scenarios'!$C$68)+(Database!C26*'Policy Scenarios'!$D$68)+(Database!C31*'Policy Scenarios'!$I$68)),""))) -> 0.02747879889 | D87: =IF(PolicyIndex=1,(Database!D34*$L$27+(Database!D25*'Policy Scenarios'!$C$27)+(Database!D26*'Policy Scenarios'!$D$27)+(Database!D31*'Policy Scenarios'!$I$27)),IF(PolicyIndex=2,(Database!D34*$L$47+(Database!D25*'Policy Scenarios'!$C$47)+(Database!D26*'Policy Scenarios'!$D$47)+(Database!D31*'Policy Scenarios'!$I$47)),IF(PolicyIndex=3,(Database!D34*$L$68+(Database!D25*'Policy Scenarios'!$C$68)+(Database!D26*'Policy Scenarios'!$D$68)+(Database!D31*'Policy Scenarios'!$I$68)),""))) -> 0.02797225434 | E87: =IF(PolicyIndex=1,(Database!E34*$L$27+(Database!E25*'Policy Scenarios'!$C$27)+(Database!E26*'Policy Scenarios'!$D$27)+(Database!E31*'Policy Scenarios'!$I$27)),IF(PolicyIndex=2,(Database!E34*$L$47+(Database!E25*'Policy Scenarios'!$C$47)+(Database!E26*'Policy Scenarios'!$D$47)+(Database!E31*'Policy Scenarios'!$I$47)),IF(PolicyIndex=3,(Database!E34*$L$68+(Database!E25*'Policy Scenarios'!$C$68)+(Database!E26*'Policy Scenarios'!$D$68)+(Database!E31*'Policy Scenarios'!$I$68)),""))) -> 0.0007590141167 | F87: =IF(PolicyIndex=1,(Database!F34*$L$27+(Database!F25*'Policy Scenarios'!$C$27)+(Database!F26*'Policy Scenarios'!$D$27)+(Database!F31*'Policy Scenarios'!$I$27)),IF(PolicyIndex=2,(Database!F34*$L$47+(Database!F25*'Policy Scenarios'!$C$47)+(Database!F26*'Policy Scenarios'!$D$47)+(Database!F31*'Policy Scenarios'!$I$47)),IF(PolicyIndex=3,(Database!F34*$L$68+(Database!F25*'Policy Scenarios'!$C$68)+(Database!F26*'Policy Scenarios'!$D$68)+(Database!F31*'Policy Scenarios'!$I$68)),""))) -> 0.04805345536 | G87: =IF(PolicyIndex=1,(Database!G34*$L$27+(Database!G25*'Policy Scenarios'!$C$27)+(Database!G26*'Policy Scenarios'!$D$27)+(Database!G31*'Policy Scenarios'!$I$27)),IF(PolicyIndex=2,(Database!G34*$L$47+(Database!G25*'Policy Scenarios'!$C$47)+(Database!G26*'Policy Scenarios'!$D$47)+(Database!G31*'Policy Scenarios'!$I$47)),IF(PolicyIndex=3,(Database!G34*$L$68+(Database!G25*'Policy Scenarios'!$C$68)+(Database!G26*'Policy Scenarios'!$D$68)+(Database!G31*'Policy Scenarios'!$I$68)),""))) -> 0.08627777724 | H87: =IF(PolicyIndex=1,(Database!H34*$L$27+(Database!H25*'Policy Scenarios'!$C$27)+(Database!H26*'Policy Scenarios'!$D$27)+(Database!H31*'Policy Scenarios'!$I$27)),IF(PolicyIndex=2,(Database!H34*$L$47+(Database!H25*'Policy Scenarios'!$C$47)+(Database!H26*'Policy Scenarios'!$D$47)+(Database!H31*'Policy Scenarios'!$I$47)),IF(PolicyIndex=3,(Database!H34*$L$68+(Database!H25*'Policy Scenarios'!$C$68)+(Database!H26*'Policy Scenarios'!$D$68)+(Database!H31*'Policy Scenarios'!$I$68)),""))) -> 0.03042385012 | I87: =IF(PolicyIndex=1,(Database!I34*$L$27+(Database!I25*'Policy Scenarios'!$C$27)+(Database!I26*'Policy Scenarios'!$D$27)+(Database!I31*'Policy Scenarios'!$I$27)),IF(PolicyIndex=2,(Database!I34*$L$47+(Database!I25*'Policy Scenarios'!$C$47)+(Database!I26*'Policy Scenarios'!$D$47)+(Database!I31*'Policy Scenarios'!$I$47)),IF(PolicyIndex=3,(Database!I34*$L$68+(Database!I25*'Policy Scenarios'!$C$68)+(Database!I26*'Policy Scenarios'!$D$68)+(Database!I31*'Policy Scenarios'!$I$68)),""))) -> 0.04104669256 | J87: =IF(PolicyIndex=1,(Database!J34*$L$27+(Database!J25*'Policy Scenarios'!$C$27)+(Database!J26*'Policy Scenarios'!$D$27)+(Database!J31*'Policy Scenarios'!$I$27)),IF(PolicyIndex=2,(Database!J34*$L$47+(Database!J25*'Policy Scenarios'!$C$47)+(Database!J26*'Policy Scenarios'!$D$47)+(Database!J31*'Policy Scenarios'!$I$47)),IF(PolicyIndex=3,(Database!J34*$L$68+(Database!J25*'Policy Scenarios'!$C$68)+(Database!J26*'Policy Scenarios'!$D$68)+(Database!J31*'Policy Scenarios'!$I$68)),""))) -> 0.0584092341 | K87: =IF(PolicyIndex=1,(Database!K34*$L$27+(Database!K25*'Policy Scenarios'!$C$27)+(Database!K26*'Policy Scenarios'!$D$27)+(Database!K31*'Policy Scenarios'!$I$27)),IF(PolicyIndex=2,(Database!K34*$L$47+(Database!K25*'Policy Scenarios'!$C$47)+(Database!K26*'Policy Scenarios'!$D$47)+(Database!K31*'Policy Scenarios'!$I$47)),IF(PolicyIndex=3,(Database!K34*$L$68+(Database!K25*'Policy Scenarios'!$C$68)+(Database!K26*'Policy Scenarios'!$D$68)+(Database!K31*'Policy Scenarios'!$I$68)),""))) -> 0.04717369775 | L87: =IF(PolicyIndex=1,(Database!L34*$L$27+(Database!L25*'Policy Scenarios'!$C$27)+(Database!L26*'Policy Scenarios'!$D$27)+(Database!L31*'Policy Scenarios'!$I$27)),IF(PolicyIndex=2,(Database!L34*$L$47+(Database!L25*'Policy Scenarios'!$C$47)+(Database!L26*'Policy Scenarios'!$D$47)+(Database!L31*'Policy Scenarios'!$I$47)),IF(PolicyIndex=3,(Database!L34*$L$68+(Database!L25*'Policy Scenarios'!$C$68)+(Database!L26*'Policy Scenarios'!$D$68)+(Database!L31*'Policy Scenarios'!$I$68)),""))) -> 0.06630420473
B88: HID - HPS | C88: =IF(PolicyIndex=1,Database!C35*$M$28,IF(PolicyIndex=2,Database!C35*$M$48,IF(PolicyIndex=3,Database!C35*$M$69,""))) -> 0 | D88: =IF(PolicyIndex=1,Database!D35*$M$28,IF(PolicyIndex=2,Database!D35*$M$48,IF(PolicyIndex=3,Database!D35*$M$69,""))) -> 0 | E88: =IF(PolicyIndex=1,Database!E35*$M$28,IF(PolicyIndex=2,Database!E35*$M$48,IF(PolicyIndex=3,Database!E35*$M$69,""))) -> 0 | F88: =IF(PolicyIndex=1,Database!F35*$M$28,IF(PolicyIndex=2,Database!F35*$M$48,IF(PolicyIndex=3,Database!F35*$M$69,""))) -> 0 | G88: =IF(PolicyIndex=1,Database!G35*$M$28,IF(PolicyIndex=2,Database!G35*$M$48,IF(PolicyIndex=3,Database!G35*$M$69,""))) -> 0 | H88: =IF(PolicyIndex=1,Database!H35*$M$28,IF(PolicyIndex=2,Database!H35*$M$48,IF(PolicyIndex=3,Database!H35*$M$69,""))) -> 0 | I88: =IF(PolicyIndex=1,Database!I35*$M$28,IF(PolicyIndex=2,Database!I35*$M$48,IF(PolicyIndex=3,Database!I35*$M$69,""))) -> 0 | J88: =IF(PolicyIndex=1,Database!J35*$M$28,IF(PolicyIndex=2,Database!J35*$M$48,IF(PolicyIndex=3,Database!J35*$M$69,""))) -> 0 | K88: =IF(PolicyIndex=1,Database!K35*$M$28,IF(PolicyIndex=2,Database!K35*$M$48,IF(PolicyIndex=3,Database!K35*$M$69,""))) -> 0 | L88: =IF(PolicyIndex=1,Database!L35*$M$28,IF(PolicyIndex=2,Database!L35*$M$48,IF(PolicyIndex=3,Database!L35*$M$69,""))) -> 0
B89: HID - Mercury Vapour | C89: =IF(PolicyIndex=1,Database!C36*$N$29,IF(PolicyIndex=2,Database!C36*$N$49,IF(PolicyIndex=3,Database!C36*$N$70,""))) -> 0 | D89: =IF(PolicyIndex=1,Database!D36*$N$29,IF(PolicyIndex=2,Database!D36*$N$49,IF(PolicyIndex=3,Database!D36*$N$70,""))) -> 0 | E89: =IF(PolicyIndex=1,Database!E36*$N$29,IF(PolicyIndex=2,Database!E36*$N$49,IF(PolicyIndex=3,Database!E36*$N$70,""))) -> 0 | F89: =IF(PolicyIndex=1,Database!F36*$N$29,IF(PolicyIndex=2,Database!F36*$N$49,IF(PolicyIndex=3,Database!F36*$N$70,""))) -> 0 | G89: =IF(PolicyIndex=1,Database!G36*$N$29,IF(PolicyIndex=2,Database!G36*$N$49,IF(PolicyIndex=3,Database!G36*$N$70,""))) -> 0 | H89: =IF(PolicyIndex=1,Database!H36*$N$29,IF(PolicyIndex=2,Database!H36*$N$49,IF(PolicyIndex=3,Database!H36*$N$70,""))) -> 0 | I89: =IF(PolicyIndex=1,Database!I36*$N$29,IF(PolicyIndex=2,Database!I36*$N$49,IF(PolicyIndex=3,Database!I36*$N$70,""))) -> 0 | J89: =IF(PolicyIndex=1,Database!J36*$N$29,IF(PolicyIndex=2,Database!J36*$N$49,IF(PolicyIndex=3,Database!J36*$N$70,""))) -> 0 | K89: =IF(PolicyIndex=1,Database!K36*$N$29,IF(PolicyIndex=2,Database!K36*$N$49,IF(PolicyIndex=3,Database!K36*$N$70,""))) -> 0 | L89: =IF(PolicyIndex=1,Database!L36*$N$29,IF(PolicyIndex=2,Database!L36*$N$49,IF(PolicyIndex=3,Database!L36*$N$70,""))) -> 0
B90: HID - Metal Halide | C90: =IF(PolicyIndex=1,Database!C37*$O$30,IF(PolicyIndex=2,Database!C37*$O$50,IF(PolicyIndex=3,Database!C37*$O$71,""))) -> 0 | D90: =IF(PolicyIndex=1,Database!D37*$O$30,IF(PolicyIndex=2,Database!D37*$O$50,IF(PolicyIndex=3,Database!D37*$O$71,""))) -> 0 | E90: =IF(PolicyIndex=1,Database!E37*$O$30,IF(PolicyIndex=2,Database!E37*$O$50,IF(PolicyIndex=3,Database!E37*$O$71,""))) -> 0 | F90: =IF(PolicyIndex=1,Database!F37*$O$30,IF(PolicyIndex=2,Database!F37*$O$50,IF(PolicyIndex=3,Database!F37*$O$71,""))) -> 0 | G90: =IF(PolicyIndex=1,Database!G37*$O$30,IF(PolicyIndex=2,Database!G37*$O$50,IF(PolicyIndex=3,Database!G37*$O$71,""))) -> 0 | H90: =IF(PolicyIndex=1,Database!H37*$O$30,IF(PolicyIndex=2,Database!H37*$O$50,IF(PolicyIndex=3,Database!H37*$O$71,""))) -> 0 | I90: =IF(PolicyIndex=1,Database!I37*$O$30,IF(PolicyIndex=2,Database!I37*$O$50,IF(PolicyIndex=3,Database!I37*$O$71,""))) -> 0 | J90: =IF(PolicyIndex=1,Database!J37*$O$30,IF(PolicyIndex=2,Database!J37*$O$50,IF(PolicyIndex=3,Database!J37*$O$71,""))) -> 0 | K90: =IF(PolicyIndex=1,Database!K37*$O$30,IF(PolicyIndex=2,Database!K37*$O$50,IF(PolicyIndex=3,Database!K37*$O$71,""))) -> 0 | L90: =IF(PolicyIndex=1,Database!L37*$O$30,IF(PolicyIndex=2,Database!L37*$O$50,IF(PolicyIndex=3,Database!L37*$O$71,""))) -> 0 | AK90: Annual electricity consumption from average lamp in each sector (kWh/lamp) [UEC in 2000]
B91: COMMERCIAL | C91: 1 | D91: 2 | E91: 3 | F91: 4 | G91: 5 | H91: 6 | I91: 7 | J91: 8 | K91: 9 | L91: 10
B92: Incandescent | C92: =IF(PolicyIndex=1,Database!C39*$C$18,IF(PolicyIndex=2,Database!C39*'Policy Scenarios'!$C$38,IF(PolicyIndex=3,Database!C39*'Policy Scenarios'!$C$59,""))) -> 0 | D92: =IF(PolicyIndex=1,Database!D39*$C$18,IF(PolicyIndex=2,Database!D39*'Policy Scenarios'!$C$38,IF(PolicyIndex=3,Database!D39*'Policy Scenarios'!$C$59,""))) -> 6.103515625e-08 | E92: =IF(PolicyIndex=1,Database!E39*$C$18,IF(PolicyIndex=2,Database!E39*'Policy Scenarios'!$C$38,IF(PolicyIndex=3,Database!E39*'Policy Scenarios'!$C$59,""))) -> 0 | F92: =IF(PolicyIndex=1,Database!F39*$C$18,IF(PolicyIndex=2,Database!F39*'Policy Scenarios'!$C$38,IF(PolicyIndex=3,Database!F39*'Policy Scenarios'!$C$59,""))) -> 1.098632812e-06 | G92: =IF(PolicyIndex=1,Database!G39*$C$18,IF(PolicyIndex=2,Database!G39*'Policy Scenarios'!$C$38,IF(PolicyIndex=3,Database!G39*'Policy Scenarios'!$C$59,""))) -> 0 | H92: =IF(PolicyIndex=1,Database!H39*$C$18,IF(PolicyIndex=2,Database!H39*'Policy Scenarios'!$C$38,IF(PolicyIndex=3,Database!H39*'Policy Scenarios'!$C$59,""))) -> 4.8828125e-07 | I92: =IF(PolicyIndex=1,Database!I39*$C$18,IF(PolicyIndex=2,Database!I39*'Policy Scenarios'!$C$38,IF(PolicyIndex=3,Database!I39*'Policy Scenarios'!$C$59,""))) -> 1.525878906e-07 | J92: =IF(PolicyIndex=1,Database!J39*$C$18,IF(PolicyIndex=2,Database!J39*'Policy Scenarios'!$C$38,IF(PolicyIndex=3,Database!J39*'Policy Scenarios'!$C$59,""))) -> 0 | K92: =IF(PolicyIndex=1,Database!K39*$C$18,IF(PolicyIndex=2,Database!K39*'Policy Scenarios'!$C$38,IF(PolicyIndex=3,Database!K39*'Policy Scenarios'!$C$59,""))) -> 6.103515625e-07 | L92: =IF(PolicyIndex=1,Database!L39*$C$18,IF(PolicyIndex=2,Database!L39*'Policy Scenarios'!$C$38,IF(PolicyIndex=3,Database!L39*'Policy Scenarios'!$C$59,""))) -> 3.753662109e-07 | AK92: Country Name | AM92: Sector
B93: Halogen | C93: =IF(PolicyIndex=1,Database!C40*$D$19,IF(PolicyIndex=2,Database!C40*'Policy Scenarios'!$D$39,IF(PolicyIndex=3,Database!C40*'Policy Scenarios'!$D$60,""))) -> 0 | D93: =IF(PolicyIndex=1,Database!D40*$D$19,IF(PolicyIndex=2,Database!D40*'Policy Scenarios'!$D$39,IF(PolicyIndex=3,Database!D40*'Policy Scenarios'!$D$60,""))) -> 0.006858818979 | E93: =IF(PolicyIndex=1,Database!E40*$D$19,IF(PolicyIndex=2,Database!E40*'Policy Scenarios'!$D$39,IF(PolicyIndex=3,Database!E40*'Policy Scenarios'!$D$60,""))) -> 0.01247057996 | F93: =IF(PolicyIndex=1,Database!F40*$D$19,IF(PolicyIndex=2,Database!F40*'Policy Scenarios'!$D$39,IF(PolicyIndex=3,Database!F40*'Policy Scenarios'!$D$60,""))) -> 0.03990585588 | G93: =IF(PolicyIndex=1,Database!G40*$D$19,IF(PolicyIndex=2,Database!G40*'Policy Scenarios'!$D$39,IF(PolicyIndex=3,Database!G40*'Policy Scenarios'!$D$60,""))) -> 0.01247057996 | H93: =IF(PolicyIndex=1,Database!H40*$D$19,IF(PolicyIndex=2,Database!H40*'Policy Scenarios'!$D$39,IF(PolicyIndex=3,Database!H40*'Policy Scenarios'!$D$60,""))) -> 0.02182351493 | I93: =IF(PolicyIndex=1,Database!I40*$D$19,IF(PolicyIndex=2,Database!I40*'Policy Scenarios'!$D$39,IF(PolicyIndex=3,Database!I40*'Policy Scenarios'!$D$60,""))) -> 0.00997646397 | J93: =IF(PolicyIndex=1,Database!J40*$D$19,IF(PolicyIndex=2,Database!J40*'Policy Scenarios'!$D$39,IF(PolicyIndex=3,Database!J40*'Policy Scenarios'!$D$60,""))) -> 0.01247057996 | K93: =IF(PolicyIndex=1,Database!K40*$D$19,IF(PolicyIndex=2,Database!K40*'Policy Scenarios'!$D$39,IF(PolicyIndex=3,Database!K40*'Policy Scenarios'!$D$60,""))) -> 0.01745881195 | L93: =IF(PolicyIndex=1,Database!L40*$D$19,IF(PolicyIndex=2,Database!L40*'Policy Scenarios'!$D$39,IF(PolicyIndex=3,Database!L40*'Policy Scenarios'!$D$60,""))) -> 0 | AM93: Residential | AN93: Commercial | AO93: Industrial | AP93: Outdoor
B94: CFL | C94: =IF(PolicyIndex=1,Database!C41*$E$20+Database!C39*'Policy Scenarios'!$C$20,IF(PolicyIndex=2,Database!C41*'Policy Scenarios'!$E$40+Database!C39*'Policy Scenarios'!$C$40,IF(PolicyIndex=3,Database!C41*'Policy Scenarios'!$E$61+Database!C39*'Policy Scenarios'!$C$61,""))) -> 0.2418004488 | D94: =IF(PolicyIndex=1,Database!D41*$E$20+Database!D39*'Policy Scenarios'!$C$20,IF(PolicyIndex=2,Database!D41*'Policy Scenarios'!$E$40+Database!D39*'Policy Scenarios'!$C$40,IF(PolicyIndex=3,Database!D41*'Policy Scenarios'!$E$61+Database!D39*'Policy Scenarios'!$C$61,""))) -> 0.2057303754 | E94: =IF(PolicyIndex=1,Database!E41*$E$20+Database!E39*'Policy Scenarios'!$C$20,IF(PolicyIndex=2,Database!E41*'Policy Scenarios'!$E$40+Database!E39*'Policy Scenarios'!$C$40,IF(PolicyIndex=3,Database!E41*'Policy Scenarios'!$E$61+Database!E39*'Policy Scenarios'!$C$61,""))) -> 0.2418004488 | F94: =IF(PolicyIndex=1,Database!F41*$E$20+Database!F39*'Policy Scenarios'!$C$20,IF(PolicyIndex=2,Database!F41*'Policy Scenarios'!$E$40+Database!F39*'Policy Scenarios'!$C$40,IF(PolicyIndex=3,Database!F41*'Policy Scenarios'!$E$61+Database!F39*'Policy Scenarios'!$C$61,""))) -> 0.1245001145 | G94: =IF(PolicyIndex=1,Database!G41*$E$20+Database!G39*'Policy Scenarios'!$C$20,IF(PolicyIndex=2,Database!G41*'Policy Scenarios'!$E$40+Database!G39*'Policy Scenarios'!$C$40,IF(PolicyIndex=3,Database!G41*'Policy Scenarios'!$E$61+Database!G39*'Policy Scenarios'!$C$61,""))) -> 0.2418004488 | H94: =IF(PolicyIndex=1,Database!H41*$E$20+Database!H39*'Policy Scenarios'!$C$20,IF(PolicyIndex=2,Database!H41*'Policy Scenarios'!$E$40+Database!H39*'Policy Scenarios'!$C$40,IF(PolicyIndex=3,Database!H41*'Policy Scenarios'!$E$61+Database!H39*'Policy Scenarios'!$C$61,""))) -> 0.2101528382 | I94: =IF(PolicyIndex=1,Database!I41*$E$20+Database!I39*'Policy Scenarios'!$C$20,IF(PolicyIndex=2,Database!I41*'Policy Scenarios'!$E$40+Database!I39*'Policy Scenarios'!$C$40,IF(PolicyIndex=3,Database!I41*'Policy Scenarios'!$E$61+Database!I39*'Policy Scenarios'!$C$61,""))) -> 0.1014516721 | J94: =IF(PolicyIndex=1,Database!J41*$E$20+Database!J39*'Policy Scenarios'!$C$20,IF(PolicyIndex=2,Database!J41*'Policy Scenarios'!$E$40+Database!J39*'Policy Scenarios'!$C$40,IF(PolicyIndex=3,Database!J41*'Policy Scenarios'!$E$61+Database!J39*'Policy Scenarios'!$C$61,""))) -> 0.2418004488 | K94: =IF(PolicyIndex=1,Database!K41*$E$20+Database!K39*'Policy Scenarios'!$C$20,IF(PolicyIndex=2,Database!K41*'Policy Scenarios'!$E$40+Database!K39*'Policy Scenarios'!$C$40,IF(PolicyIndex=3,Database!K41*'Policy Scenarios'!$E$61+Database!K39*'Policy Scenarios'!$C$61,""))) -> 0.1295496757 | L94: =IF(PolicyIndex=1,Database!L41*$E$20+Database!L39*'Policy Scenarios'!$C$20,IF(PolicyIndex=2,Database!L41*'Policy Scenarios'!$E$40+Database!L39*'Policy Scenarios'!$C$40,IF(PolicyIndex=3,Database!L41*'Policy Scenarios'!$E$61+Database!L39*'Policy Scenarios'!$C$61,""))) -> 0.1495745378 | AK94: SEA | AL94: Brunei Darussalam | AM94: =SUMPRODUCT(AM28:AM40,$C$142:$C$154)/1000*O142*365 -> 37.3196805 | AN94: =SUMPRODUCT(AM42:AM54,$V$6:$V$18,Y6:Y18,AI6:AI18)/1000*365 -> 74.0390815 | AO94: =SUMPRODUCT($AM$57:$AM$69,$W$6:$W$18,$Y$6:$Y$18,$AJ$6:$AJ$18)/1000*365 -> 204.3978102 | AP94: =SUMPRODUCT($AM$72:$AM$85,$X$6:$X$19,$Y$6:$Y$19,$AK$6:$AK$19)/1000*365 -> 692.0700459
B95: LFL - T5 | C95: =IF(PolicyIndex=1,(Database!C42*$F$21+(Database!C43*'Policy Scenarios'!$G$21)+(Database!C44*'Policy Scenarios'!$H$21)),IF(PolicyIndex=2,(Database!C42*$F$41+(Database!C43*'Policy Scenarios'!$G$41)+(Database!C44*'Policy Scenarios'!$H$41)),IF(PolicyIndex=3,(Database!C42*$F$62+(Database!C43*'Policy Scenarios'!$G$62)+(Database!C44*'Policy Scenarios'!$H$62)),""))) -> 0.1148127354 | D95: =IF(PolicyIndex=1,(Database!D42*$F$21+(Database!D43*'Policy Scenarios'!$G$21)+(Database!D44*'Policy Scenarios'!$H$21)),IF(PolicyIndex=2,(Database!D42*$F$41+(Database!D43*'Policy Scenarios'!$G$41)+(Database!D44*'Policy Scenarios'!$H$41)),IF(PolicyIndex=3,(Database!D42*$F$62+(Database!D43*'Policy Scenarios'!$G$62)+(Database!D44*'Policy Scenarios'!$H$62)),""))) -> 0.104193132 | E95: =IF(PolicyIndex=1,(Database!E42*$F$21+(Database!E43*'Policy Scenarios'!$G$21)+(Database!E44*'Policy Scenarios'!$H$21)),IF(PolicyIndex=2,(Database!E42*$F$41+(Database!E43*'Policy Scenarios'!$G$41)+(Database!E44*'Policy Scenarios'!$H$41)),IF(PolicyIndex=3,(Database!E42*$F$62+(Database!E43*'Policy Scenarios'!$G$62)+(Database!E44*'Policy Scenarios'!$H$62)),""))) -> 0.148704001 | F95: =IF(PolicyIndex=1,(Database!F42*$F$21+(Database!F43*'Policy Scenarios'!$G$21)+(Database!F44*'Policy Scenarios'!$H$21)),IF(PolicyIndex=2,(Database!F42*$F$41+(Database!F43*'Policy Scenarios'!$G$41)+(Database!F44*'Policy Scenarios'!$H$41)),IF(PolicyIndex=3,(Database!F42*$F$62+(Database!F43*'Policy Scenarios'!$G$62)+(Database!F44*'Policy Scenarios'!$H$62)),""))) -> 0.1132057604 | G95: =IF(PolicyIndex=1,(Database!G42*$F$21+(Database!G43*'Policy Scenarios'!$G$21)+(Database!G44*'Policy Scenarios'!$H$21)),IF(PolicyIndex=2,(Database!G42*$F$41+(Database!G43*'Policy Scenarios'!$G$41)+(Database!G44*'Policy Scenarios'!$H$41)),IF(PolicyIndex=3,(Database!G42*$F$62+(Database!G43*'Policy Scenarios'!$G$62)+(Database!G44*'Policy Scenarios'!$H$62)),""))) -> 0.148704001 | H95: =IF(PolicyIndex=1,(Database!H42*$F$21+(Database!H43*'Policy Scenarios'!$G$21)+(Database!H44*'Policy Scenarios'!$H$21)),IF(PolicyIndex=2,(Database!H42*$F$41+(Database!H43*'Policy Scenarios'!$G$41)+(Database!H44*'Policy Scenarios'!$H$41)),IF(PolicyIndex=3,(Database!H42*$F$62+(Database!H43*'Policy Scenarios'!$G$62)+(Database!H44*'Policy Scenarios'!$H$62)),""))) -> 0.1052424247 | I95: =IF(PolicyIndex=1,(Database!I42*$F$21+(Database!I43*'Policy Scenarios'!$G$21)+(Database!I44*'Policy Scenarios'!$H$21)),IF(PolicyIndex=2,(Database!I42*$F$41+(Database!I43*'Policy Scenarios'!$G$41)+(Database!I44*'Policy Scenarios'!$H$41)),IF(PolicyIndex=3,(Database!I42*$F$62+(Database!I43*'Policy Scenarios'!$G$62)+(Database!I44*'Policy Scenarios'!$H$62)),""))) -> 0.1644974486 | J95: =IF(PolicyIndex=1,(Database!J42*$F$21+(Database!J43*'Policy Scenarios'!$G$21)+(Database!J44*'Policy Scenarios'!$H$21)),IF(PolicyIndex=2,(Database!J42*$F$41+(Database!J43*'Policy Scenarios'!$G$41)+(Database!J44*'Policy Scenarios'!$H$41)),IF(PolicyIndex=3,(Database!J42*$F$62+(Database!J43*'Policy Scenarios'!$G$62)+(Database!J44*'Policy Scenarios'!$H$62)),""))) -> 0.148704001 | K95: =IF(PolicyIndex=1,(Database!K42*$F$21+(Database!K43*'Policy Scenarios'!$G$21)+(Database!K44*'Policy Scenarios'!$H$21)),IF(PolicyIndex=2,(Database!K42*$F$41+(Database!K43*'Policy Scenarios'!$G$41)+(Database!K44*'Policy Scenarios'!$H$41)),IF(PolicyIndex=3,(Database!K42*$F$62+(Database!K43*'Policy Scenarios'!$G$62)+(Database!K44*'Policy Scenarios'!$H$62)),""))) -> 0.138934269 | L95: =IF(PolicyIndex=1,(Database!L42*$F$21+(Database!L43*'Policy Scenarios'!$G$21)+(Database!L44*'Policy Scenarios'!$H$21)),IF(PolicyIndex=2,(Database!L42*$F$41+(Database!L43*'Policy Scenarios'!$G$41)+(Database!L44*'Policy Scenarios'!$H$41)),IF(PolicyIndex=3,(Database!L42*$F$62+(Database!L43*'Policy Scenarios'!$G$62)+(Database!L44*'Policy Scenarios'!$H$62)),""))) -> 0.09160811524 | AL95: Cambodia | AM95: =SUMPRODUCT(AN28:AN40,D142:D154)/1000*O143*365 -> 31.12685104 | AN95: =SUMPRODUCT(AN42:AN54,$V$6:$V$18,Z6:Z18,$AI$6:$AI$18)/1000*365 -> 80.7331776 | AO95: =SUMPRODUCT($AN$57:$AN$69,$W$6:$W$18,$Y$6:$Y$18,$AJ$6:$AJ$18)/1000*365 -> 204.3978102 | AP95: =SUMPRODUCT($AN$72:$AN$85,$X$6:$X$19,$Y$6:$Y$19,$AK$6:$AK$19)/1000*365 -> 712.468539
B96: LFL - T8 | C96: =IF(PolicyIndex=1,(Database!C43*$G$22+(Database!C44*'Policy Scenarios'!$H$22)),IF(PolicyIndex=2,(Database!C43*$G$42+(Database!C44*'Policy Scenarios'!$H$42)),IF(PolicyIndex=3,(Database!C43*$G$63+(Database!C44*'Policy Scenarios'!$H$63)),""))) -> 0.1720031018 | D96: =IF(PolicyIndex=1,(Database!D43*$G$22+(Database!D44*'Policy Scenarios'!$H$22)),IF(PolicyIndex=2,(Database!D43*$G$42+(Database!D44*'Policy Scenarios'!$H$42)),IF(PolicyIndex=3,(Database!D43*$G$63+(Database!D44*'Policy Scenarios'!$H$63)),""))) -> 0.2093952227 | E96: =IF(PolicyIndex=1,(Database!E43*$G$22+(Database!E44*'Policy Scenarios'!$H$22)),IF(PolicyIndex=2,(Database!E43*$G$42+(Database!E44*'Policy Scenarios'!$H$42)),IF(PolicyIndex=3,(Database!E43*$G$63+(Database!E44*'Policy Scenarios'!$H$63)),""))) -> 0.1357588316 | F96: =IF(PolicyIndex=1,(Database!F43*$G$22+(Database!F44*'Policy Scenarios'!$H$22)),IF(PolicyIndex=2,(Database!F43*$G$42+(Database!F44*'Policy Scenarios'!$H$42)),IF(PolicyIndex=3,(Database!F43*$G$63+(Database!F44*'Policy Scenarios'!$H$63)),""))) -> 0.2249072927 | G96: =IF(PolicyIndex=1,(Database!G43*$G$22+(Database!G44*'Policy Scenarios'!$H$22)),IF(PolicyIndex=2,(Database!G43*$G$42+(Database!G44*'Policy Scenarios'!$H$42)),IF(PolicyIndex=3,(Database!G43*$G$63+(Database!G44*'Policy Scenarios'!$H$63)),""))) -> 0.1357588316 | H96: =IF(PolicyIndex=1,(Database!H43*$G$22+(Database!H44*'Policy Scenarios'!$H$22)),IF(PolicyIndex=2,(Database!H43*$G$42+(Database!H44*'Policy Scenarios'!$H$42)),IF(PolicyIndex=3,(Database!H43*$G$63+(Database!H44*'Policy Scenarios'!$H$63)),""))) -> 0.1527467813 | I96: =IF(PolicyIndex=1,(Database!I43*$G$22+(Database!I44*'Policy Scenarios'!$H$22)),IF(PolicyIndex=2,(Database!I43*$G$42+(Database!I44*'Policy Scenarios'!$H$42)),IF(PolicyIndex=3,(Database!I43*$G$63+(Database!I44*'Policy Scenarios'!$H$63)),""))) -> 0.2437216827 | J96: =IF(PolicyIndex=1,(Database!J43*$G$22+(Database!J44*'Policy Scenarios'!$H$22)),IF(PolicyIndex=2,(Database!J43*$G$42+(Database!J44*'Policy Scenarios'!$H$42)),IF(PolicyIndex=3,(Database!J43*$G$63+(Database!J44*'Policy Scenarios'!$H$63)),""))) -> 0.1357588316 | K96: =IF(PolicyIndex=1,(Database!K43*$G$22+(Database!K44*'Policy Scenarios'!$H$22)),IF(PolicyIndex=2,(Database!K43*$G$42+(Database!K44*'Policy Scenarios'!$H$42)),IF(PolicyIndex=3,(Database!K43*$G$63+(Database!K44*'Policy Scenarios'!$H$63)),""))) -> 0.2255292587 | L96: =IF(PolicyIndex=1,(Database!L43*$G$22+(Database!L44*'Policy Scenarios'!$H$22)),IF(PolicyIndex=2,(Database!L43*$G$42+(Database!L44*'Policy Scenarios'!$H$42)),IF(PolicyIndex=3,(Database!L43*$G$63+(Database!L44*'Policy Scenarios'!$H$63)),""))) -> 0.2556035237 | AL96: Indonesia | AM96: =SUMPRODUCT(AO28:AO40,E142:E154)/1000*O144*365 -> 72.72687389 | AN96: =SUMPRODUCT(AO42:AO54,$V$6:$V$18,AA6:AA18,$AI$6:$AI$18)/1000*365 -> 81.63560013 | AO96: =SUMPRODUCT($AO$57:$AO$69,$W$6:$W$18,$Y$6:$Y$18,$AJ$6:$AJ$18)/1000*365 -> 204.3978102 | AP96: =SUMPRODUCT($AO$72:$AO$85,$X$6:$X$19,$Y$6:$Y$19,$AK$6:$AK$19)/1000*365 -> 708.5845201
B97: LFL - T12 | C97: =IF(PolicyIndex=1,(Database!C44*$H$23),IF(PolicyIndex=2,(Database!C44*$H$43),IF(PolicyIndex=3,(Database!C44*$H$64)))) -> 4.701849846e-06 | D97: =IF(PolicyIndex=1,(Database!D44*$H$23),IF(PolicyIndex=2,(Database!D44*$H$43),IF(PolicyIndex=4,(Database!D44*$H$64)))) -> 0 | E97: =IF(PolicyIndex=1,(Database!E44*$H$23),IF(PolicyIndex=2,(Database!E44*$H$43),IF(PolicyIndex=3,(Database!E44*$H$64)))) -> 2.350924923e-06 | F97: =IF(PolicyIndex=1,(Database!F44*$H$23),IF(PolicyIndex=2,(Database!F44*$H$43),IF(PolicyIndex=3,(Database!F44*$H$64)))) -> 2.350924923e-06 | G97: =IF(PolicyIndex=1,(Database!G44*$H$23),IF(PolicyIndex=2,(Database!G44*$H$43),IF(PolicyIndex=3,(Database!G44*$H$64)))) -> 2.350924923e-06 | H97: =IF(PolicyIndex=1,(Database!H44*$H$23),IF(PolicyIndex=2,(Database!H44*$H$46),IF(PolicyIndex=3,(Database!H44*$H$64)))) -> 0.02848659973 | I97: =IF(PolicyIndex=1,(Database!I44*$H$23),IF(PolicyIndex=2,(Database!I44*$H$43),IF(PolicyIndex=3,(Database!I44*$H$64)))) -> 5.642219815e-06 | J97: =IF(PolicyIndex=1,(Database!J44*$H$23),IF(PolicyIndex=2,(Database!J44*$H$43),IF(PolicyIndex=3,(Database!J44*$H$64)))) -> 2.350924923e-06 | K97: =IF(PolicyIndex=1,(Database!K44*$H$23),IF(PolicyIndex=2,(Database!K44*$H$43),IF(PolicyIndex=3,(Database!K44*$H$64)))) -> 2.350924923e-06 | L97: =IF(PolicyIndex=1,(Database!L44*$H$23),IF(PolicyIndex=2,(Database!L44*$H$43),IF(PolicyIndex=3,(Database!L44*$H$64)))) -> 2.868128406e-06 | AL97: Lao PDR | AM97: =SUMPRODUCT(AP28:AP40,F142:F154)/1000*O145*365 -> 24.41211537 | AN97: =SUMPRODUCT(AP42:AP54,$V$6:$V$18,AB6:AB18,$AI$6:$AI$18)/1000*365 -> 83.26271305 | AO97: =SUMPRODUCT($AP$57:$AP$69,$W$6:$W$18,$Y$6:$Y$18,$AJ$6:$AJ$18)/1000*365 -> 204.3978102 | AP97: =SUMPRODUCT($AP$72:$AP$85,$X$6:$X$19,$Y$6:$Y$19,$AK$6:$AK$19)/1000*365 -> 631.20983
